Workbook

Sheet はじめに（PC）
A1: ★基本情報入力欄 はじめに太枠内の情報を入力してください。
B2: 都道府県名 | D2: 徳島県 | E2: ← 「都道府県」まで記入してください。
B3: 市町村名 | D3: ○○市 | E3: ← 「市町村」まで記入してください。
B4: 対象組織名 | D4: ●●活動組織
B5: 代表者名 | D5: □□ □□
B6: 代表者住所 | D6: 徳島県○○市○丁目
A8: ★記入の手順と注意事項（Excelで様式を作成する場合）
B9: ・様式1-1号シートから順番に入力してください。
B10: ・画面下の様式名を選択すると、入力する様式を切り替えることができます。左下の◀▶をクリックすることで、隠れている様式を表示させることができます。
B11: ・活動組織の方が入力するセルには、この色が塗ってあります。
B12: ・この色が塗ってあるセルは自動で入力されます。自動入力されたものが間違っている場合は、正しく修正してください。
B13: ・行を追加する際は、一番左にある行番号をクリックして行全体をコピーし、表の最下部の太線より上の位置で行番号を右クリックし「コピーしたセルの挿入」を選択してください。
B14: ・入力するセル以外は編集できないよう設定してあります。自動入力されたものを訂正する場合や、行の挿入等を行う場合は、「校閲」の「シート保護の解除」をクリックしてください。
B15: ・計算式が入っているセルは変更しないでください。自動入力や自動計算ができなくなります。
A17: ★提出書類と各シートの説明
A18: １．事業計画の申請時に提出するもの
B19: シート名 | D19: 提出の必要性 | E19: 書類名
B20: 様式１－１号 | D20: 必須 | E20: 様式第1-1号 多面的機能発揮促進事業に関する計画の認定の申請について
B21: 様式１－２号 | D21: 必須 | E21: 様式第1-2号 多面的機能発揮促進事業に関する計画
B22: 様式１－３号 | D22: 必須 | E22: 様式第1-3号 農業の有する多面的機能の発揮の促進に関する活動計画書
C23: 活動計画書 | D23: 必須 | E23: 様式第1-3号別紙１ 多面的機能支払交付金に係る活動計画書（１号事業様式）
C24: 加算措置 | D24: 必要に応じて | E24: ※加算措置に取り組む場合のみ提出
C25: 位置図 | D25: 必須 | E25: 様式第1-3号別紙１別添１ 実施区域位置図
C26: 田んぼダム位置図 | D26: 必要に応じて | E26: 様式第1-3号別紙１別添３ 田んぼダム実施区域位置図
C27: 構成員一覧 | D27: 必須（どちらかを提出） | E27: 活動組織の規約別紙（構成員一覧）
B28: 別ファイル | E28: 様式第1-3号別紙１別添２ 構成員一覧
B29: 長寿命化整備計画 | D29: 必要に応じて | E29: 様式第1-4号 長寿命化整備計画書
B30: 工事確認書 | D30: 必要に応じて | E30: 様式第1-5号 工事に関する確認書
B31: みどりチェック | D31: 必須 | E31: 様式第1-11号 環境負荷低減のクロスコンプライアンス（みどりチェック） チェックシート（申請時の項目を記入）
B33: 別ファイル | D33: 必須 | E33: 別記6-1 活動組織規約 又は別記5-2 広域協定運営委員会規則
A35: ２．実施状況の報告時に提出するもの
B36: シート名 | D36: 提出の必要性 | E36: 書類名
B37: 活動記録 | D37: 必須に応じて | E37: 様式第1-6号 活動記録 ※農地維持支払のみに取り組む場合、提出不要
B38: 金銭出納簿 | D38: 必須 | E38: 様式第1-7号 金銭出納簿
B39: 報告書 | D39: 必須 | E39: 様式第1-8号 実施状況報告書
C40: 環境負荷低減の 取組への支援 | D40: 必要に応じて | E40: 様式第1-8号別紙1,2 環境負荷低減の取組への支援
C42: 持越金の使用予定表 | D42: 必要に応じて | E42: 様式第1-8号別紙3 持越金の使用予定表 ※持越金の額が規定以上になる場合のみ提出
B44: みどりチェック | D44: 必須 | E44: 様式第1-11号 環境負荷低減のクロスコンプライアンス（みどりチェック） チェックシート（報告時の項目を記入）
B46: 別ファイル | D46: 必須に応じて | E46: 様式第1-12号 環境負荷低減の取組への支援に係る実施経過報告書
B47: 別ファイル | D47: 必須に応じて | E47: 様式第1-12号別紙1,2（様式第1-8号別紙1,2と同様）
B48: 別ファイル | D48: 必須に応じて | E48: 様式第1-13号 環境負荷低減の取組への支援に係る履行困難理由書
A50: ３．取組番号表
B51: シート名 | D51: 提出の必要性 | E51: 内容
B52: 取組番号早見表 | E52: 活動記録に記載する取組の番号早見表
B53: 取組番号表 | E53: 活動記録に記載する取組の番号表（詳細版）
A54: ４．その他のシート（活動組織の方は入力不要です）
B55: シート名 | D55: 提出の必要性 | E55: 内容
B56: 選択肢 | E56: 選択肢のリスト 活動組織の方は、選択肢を変更しないでください。
B57: 市町村用 | E57: 市町村が都道府県に報告する様式
B58: 別記3-1(1) | E58: 市町村の確認用様式
B59: 別記3-1(2) | E59: 市町村の確認用様式
B60: 別記3-1(3) | E60: 市町村の確認用様式
B61: 市町村コード | E61: 集計用の市町村コード一覧表

Sheet 使い方
A1: ★マクロを有効にして、入力支援を活用する方法
A3: このExcel様式を開いた際に、セキュリティ警告と併せて「コンテンツの有効化」という選択ボタンが表示されます。
A4: これをクリックすることで、マクロによる入力支援が作動するようになります。
A5: ※入力支援が必要ない場合については、コンテンツを有効化しないようにしてください。
A18: なお、以下のような警告が表示された場合には、以下のとおり対応してください。
A24: ①一度、Excel様式を閉じてアイコン上で右クリックをし、プロパティを開く。 ②全般タブのセキュリティの項目について、「許可する」にチェックを付け、適⽤をクリック。 その後、再度Excel様式を開くと前⾴の操作ができるようになります。
A33: また、「コンテンツの有効化」という選択ボタンが表示されない場合には、以下のとおり対応してください。（エクセルのバージョンによって、画面が異なる場合があります。）
A34: ①ファイルのオプションをクリックする。 ②「リボンのユーザー設定」で、「開発」に☑を入れて「OK」をクリックする。 ③②の操作をすると「開発」のタブが表れるため、「開発」をクリックし、「マクロのセキュリティ」をクリックする。 ④「警告して、VBAマクロを無効にする」を選択して「OK」をクリックする。
A72: ★セルの数式の変更や行の挿入をしたいが、ロックが掛けられていて編集できない場合
A74: このExcel様式では、数式が組み込まれており、基本的に変更されることが想定されないセルにおいて、セルのロックが掛けられています。
A75: 数式の変更や行の挿入を行いたい場合には、以下のとおり作業をお願いします。
A77: 校閲タブを選択し、「シートの保護を解除」を選択。

Sheet 【参考】交付単価（PC）
A1: ★基本情報確認用 | N1: 条件分岐（別紙１活動計画書で選択）
A2: 本様式では、多面的機能支払交付金実施要綱において国が示す交付単価が入力されています。都道府県独自の交付単価（要綱基本方針に定められている交付単価）を使用している場合、まずは下の表の値を修正してください。 | N2: 共同 | O2: 加算 | Q2: 長寿命化
N3: =IF(COUNTIF('別紙1 活動計画書'!Q25:V27,"○")>1,"error","ok") -> ok | O3: =IF(COUNTIF('別紙1 活動計画書'!Q25:V27,"○")>1,"error","ok") -> ok
N4: =IF('別紙1 活動計画書'!Q25="○",1,IF('別紙1 活動計画書'!V25="○",0.625,IF('別紙1 活動計画書'!Q28="○",0.75,IF('別紙1 活動計画書'!V28="○",5/6,IF(COUNTIF('別紙1 活動計画書'!Q25:V27,"○")=0,1))))) -> 1 | O4: =IF('別紙1 活動計画書'!Q25="○",1,IF('別紙1 活動計画書'!V25="○",0.75,IF('別紙1 活動計画書'!Q28="○",0.75,IF('別紙1 活動計画書'!V28="○",1,IF(COUNTIF('別紙1 活動計画書'!Q25:V27,"○")=0,1))))) -> 1 | Q4: =IF('別紙1 活動計画書'!V39="○",5/6,1) -> 1
A5: ○基本単価 | N5: ○取組状況に応じた減額後（計算シート）
B6: 都府県 | H6: 北海道 | O6: 都府県 | U6: 北海道
B7: 農地維持支払 | D7: 資源向上支払 （共同） | F7: 資源向上支払 （長寿命化） | H7: 農地維持支払 | J7: 資源向上支払 （共同） | L7: 資源向上支払 （長寿命化） | O7: 農地維持支払 | Q7: 資源向上支払 （共同） | S7: 資源向上支払 （長寿命化） | U7: 農地維持支払 | W7: 資源向上支払 （共同） | Y7: 資源向上支払 （長寿命化）
A9: 田 | B9: 3000 | C9: 円/10a | D9: 2400 | E9: 円/10a | F9: 4400 | G9: 円/10a | H9: 2300 | I9: 円/10a | J9: 1920 | K9: 円/10a | L9: 3400 | M9: 円/10a | N9: 田 | O9: =B9 -> 3000 | P9: 円/10a | Q9: =ROUNDDOWN(D9*$N$4,0) -> 2400 | R9: 円/10a | S9: =ROUNDDOWN(F9*$Q$4,0) -> 4400 | T9: 円/10a | U9: =H9 -> 2300 | V9: 円/10a | W9: =ROUNDDOWN(J9*$N$4,0) -> 1920 | X9: 円/10a | Y9: =ROUNDDOWN(L9*$Q$4,0) -> 3400 | Z9: 円/10a
A10: 畑 | B10: 2000 | C10: 円/10a | D10: 1440 | E10: 円/10a | F10: 2000 | G10: 円/10a | H10: 1000 | I10: 円/10a | J10: 480 | K10: 円/10a | L10: 600 | M10: 円/10a | N10: 畑 | O10: =B10 -> 2000 | P10: 円/10a | Q10: =ROUNDDOWN(D10*$N$4,0) -> 1440 | R10: 円/10a | S10: =ROUNDDOWN(F10*$Q$4,0) -> 2000 | T10: 円/10a | U10: =H10 -> 1000 | V10: 円/10a | W10: =ROUNDDOWN(J10*$N$4,0) -> 480 | X10: 円/10a | Y10: =ROUNDDOWN(L10*$Q$4,0) -> 600 | Z10: 円/10a
A11: 草地 | B11: 250 | C11: 円/10a | D11: 240 | E11: 円/10a | F11: 400 | G11: 円/10a | H11: 130 | I11: 円/10a | J11: 120 | K11: 円/10a | L11: 400 | M11: 円/10a | N11: 草地 | O11: 250 | P11: 円/10a | Q11: 240 | R11: 円/10a | S11: 400 | T11: 円/10a | U11: 130 | V11: 円/10a | W11: 120 | X11: 円/10a | Y11: 400 | Z11: 円/10a
A13: ○加算措置（多面的機能の更なる増進に向けた活動への支援）
B14: 都府県 | D14: 北海道 | O14: 都府県 | Q14: 北海道
A15: 田 | B15: 400 | C15: 円/10a | D15: 320 | E15: 円/10a | N15: 田 | O15: =ROUNDDOWN(B15*$O$4,0) -> 400 | P15: 円/10a | Q15: =ROUNDDOWN(D15*$O$4,0) -> 320 | R15: 円/10a
A16: 畑 | B16: 240 | C16: 円/10a | D16: 80 | E16: 円/10a | N16: 畑 | O16: =ROUNDDOWN(B16*$O$4,0) -> 240 | P16: 円/10a | Q16: =ROUNDDOWN(D16*$O$4,0) -> 80 | R16: 円/10a
A17: 草地 | B17: 40 | C17: 円/10a | D17: 20 | E17: 円/10a | N17: 草地 | O17: 40 | P17: 円/10a | Q17: 20 | R17: 円/10a
A19: ○加算措置（農村協働力の深化に向けた活動への支援）
B20: 都府県 | D20: 北海道 | O20: 都府県 | Q20: 北海道
A21: 田 | B21: 400 | C21: 円/10a | D21: 320 | E21: 円/10a | N21: 田 | O21: =ROUNDDOWN(B21*$O$4,0) -> 400 | P21: 円/10a | Q21: =ROUNDDOWN(D21*$O$4,0) -> 320 | R21: 円/10a
A22: 畑 | B22: 240 | C22: 円/10a | D22: 80 | E22: 円/10a | N22: 畑 | O22: =ROUNDDOWN(B22*$O$4,0) -> 240 | P22: 円/10a | Q22: =ROUNDDOWN(D22*$O$4,0) -> 80 | R22: 円/10a
A23: 草地 | B23: 40 | C23: 円/10a | D23: 20 | E23: 円/10a | N23: 草地 | O23: 40 | P23: 円/10a | Q23: 20 | R23: 円/10a
A25: ○加算措置（水田の雨水貯留機能の強化（田んぼダム）を推進する活動への支援）
B26: 都府県 | D26: 北海道 | O26: 都府県 | Q26: 北海道
A27: 田 | B27: 400 | C27: 円/10a | D27: 320 | E27: 円/10a | N27: 田 | O27: =ROUNDDOWN(B27*$O$4,0) -> 400 | P27: 円/10a | Q27: =ROUNDDOWN(D27*$O$4,0) -> 320 | R27: 円/10a

Sheet はじめに (手書き)
A1: ★注意事項（手書きで様式を作成する場合）
B2: ・画面下の様式名を選択すると、入力する様式を切り替えることができます。 左下の◀▶をクリックすることで、隠れている様式を表示させることができます。
B3: ・色が塗られているマスがありますが、これはパソコンで作成する方向けの目印です。 色にかかわらず、必要な項目を記入してください。
A4: ★提出書類と各シートの説明
A5: １．事業計画の申請時に提出するもの
B6: シート名 | D6: 提出の必要性 | E6: 書類名
B7: 様式１－１号 | D7: 必須 | E7: 様式第1-1号 多面的機能発揮促進事業に関する計画の認定の申請について
B8: 様式１－２号 | D8: 必須 | E8: 様式第1-2号 多面的機能発揮促進事業に関する計画
B9: 様式１－３号 | D9: 必須 | E9: 様式第1-3号 農業の有する多面的機能の発揮の促進に関する活動計画書
C10: 活動計画書 | D10: 必須 | E10: 様式第1-3号別紙１ 多面的機能支払交付金に係る活動計画書（１号事業様式）
C11: 加算措置 | D11: 必要に応じて | E11: ※加算措置に取り組む場合のみ提出
C12: 位置図 | D12: 必須 | E12: 様式第1-3号別紙１別添１ 実施区域位置図
C13: 田んぼダム位置図 | D13: 必要に応じて | E13: 様式第1-3号別紙１別添３ 田んぼダム実施区域位置図
C14: 構成員一覧 | D14: 必須（どちらかを提出） | E14: 活動組織の規約別紙（構成員一覧）
B15: 別ファイル | E15: 様式第1-3号別紙１別添２ 構成員一覧
B16: 長寿命化整備計画 | D16: 必要に応じて | E16: 様式第1-4号 長寿命化整備計画書
B17: 工事確認書 | D17: 必要に応じて | E17: 様式第1-5号 工事に関する確認書
B18: みどりチェック | D18: 必須 | E18: 様式第1-11号 環境負荷低減のクロスコンプライアンス（みどりチェック） チェックシート（申請時の項目を記入）
B20: 別ファイル | D20: 必須 | E20: 別記6-1 活動組織規約 又は別記5-2 広域協定運営委員会規則
A22: ２．実施状況の報告時に提出するもの
B23: シート名 | D23: 提出の必要性 | E23: 書類名
B24: 活動記録 | D24: 必須に応じて | E24: 様式第1-6号 活動記録 ※農地維持支払のみに取り組む場合、提出不要
B25: 金銭出納簿 | D25: 必須 | E25: 様式第1-7号 金銭出納簿
B26: 報告書 | D26: 必須 | E26: 様式第1-8号 実施状況報告書
C27: 環境負荷低減の 取組への支援 | D27: 必要に応じて | E27: 様式第1-8号別紙1,2 環境負荷低減の取組への支援
C29: 持越金の使用予定表 | D29: 必要に応じて | E29: 様式第1-8号別紙3 持越金の使用予定表 ※持越金の額が規定以上になる場合のみ提出
B31: みどりチェック | D31: 必須 | E31: 様式第1-11号 環境負荷低減のクロスコンプライアンス（みどりチェック） チェックシート（報告時の項目を記入）
B33: 別ファイル | D33: 必須に応じて | E33: 様式第1-12号 環境負荷低減の取組への支援に係る実施経過報告書
B34: 別ファイル | D34: 必須に応じて | E34: 様式第1-12号別紙1,2（様式第1-8号別紙1,2と同様）
B35: 別ファイル | D35: 必須に応じて | E35: 様式第1-13号 環境負荷低減の取組への支援に係る履行困難理由書
A37: ３．取組番号表
B38: シート名 | D38: 提出の必要性 | E38: 内容
B39: 取組番号早見表 | E39: 活動記録に記載する取組の番号早見表
B40: 取組番号表 | E40: 活動記録に記載する取組の番号表（詳細版）

Sheet 様式第1-1号
A1: （様式第１－１号）
A2: 【活動組織から市町村に提出するもの】 | E2: 農林水産省様式
E3: 2025-04-01
A4: ='はじめに（PC）'!D3 -> ○○市 | D4: 長 殿
E6: ='はじめに（PC）'!D4&"" -> ●●活動組織
E7: ='はじめに（PC）'!D5&"" -> □□ □□
B10: 多面的機能発揮促進事業に関する計画の認定の申請について
A12: このことについて、農業の有する多面的機能の発揮の促進に関する法律（平成26年法律第78号）第７条第１項の規定に基づき、下記関係書類を添えて認定を申請する。
A14: 記
B15: １ 事業計画
B17: ２ 農業の有する多面的機能の発揮の促進に関する活動計画書
C18: ■ | D18: １号事業（多面的機能支払交付金）
C19: □ | D19: ２号事業（中山間地域等直接支払交付金）
C20: □ | D20: ３号事業（環境保全型農業直接支払交付金）
B22: ３ その他
C23: □ | D23: 都道府県の同意書の写し（都道府県営土地改良施設の管理）
C25: ※ | D25: 農山漁村の活性化のための定住等及び地域間交流の促進に関する法律（平成19年法律第48号）第５条第１項に規定する活性化計画が作成されている場合であって、その添付書類として、多面的機能発揮促進事業に関する計画の認定の申請に必要な上記１から３までに掲げる書類が既に市町村長に提出されているときは、これらの書類の添付を省略することができる。
C26: □ | D26: ※に該当するため、書類の添付を省略する。

Sheet 様式第1-2号
A1: （様式第１－２号）
A2: 【活動組織から市町村に提出するもの】 | G2: 農林水産省様式
A4: 多面的機能発揮促進事業に関する計画
F6: ='様式第1-1号'!E3 -> 2025-04-01
F7: ='はじめに（PC）'!D4&"" -> ●●活動組織
A9: １ 多面的機能発揮促進事業の目標
A10: １．現況
B11: （例）本地域は、水資源に恵まれ、良質な米を生産している。今後とも農業振興を図るためには、農業用用排水路を適切に保全管理することが必要である。
A12: ２．目標
B13: （例）１を踏まえ、本地域では、地域住民と協力して農業用用排水路の清掃等を行うことにより、多面的機能の発揮の促進を図ることとしている。
A14: ２ 多面的機能発揮促進事業の内容
A15: （１）多面的機能発揮促進事業の種類及び実施区域
A16: ① 種類（実施するものに○を付すこと。）
C17: １号事業（多面的機能支払交付金）
D18: ○ | E18: 農業の有する多面的機能の発揮の促進に関する法律（平成26年法律第78号。以下「法」という。）第３条第３項第１号イに掲げる施設の維持その他の主として当該施設の機能の保持を図る活動（以下「イの活動」という。） （農地維持支払交付金）
D20: ○ | E20: 法第３条第３項第１号ロに掲げる施設の改良その他の主として当該施設の機能の増進を図る活動（以下「ロの活動」という。） （資源向上支払交付金）
D22: ２号事業（中山間地域等直接支払交付金）
D23: ３号事業（環境保全型農業直接支払交付金）
D24: ４号事業（その他農業の有する多面的機能の発揮の促進に資する事業）
A26: ② 実施区域
C27: （例）農業の有する多面的機能の発揮の促進に関する活動計画書（以下「活動計画書」という。）「（別添１）実施区域位置図」のとおり。
A28: （２）活動の内容等
A29: ① １号事業
A30: １）事業に係る施設の所在及び施設の種類、活動の別
C31: （例） 活動計画書「Ⅰ．地区の概要」の「１．活動期間」及び「２．実施区域内の農用地、施設」並びに「（別添１）実施区域位置図」のとおり。
A32: ２）活動の内容
C33: （例） イ 活動計画書「３．活動の計画」の「（１）農地維持支払」に記載のとおり。 ロ 活動計画書「３．活動の計画」の「（２）資源向上支払（共同）」及び「（３）資源向上支払（長寿命化）」に記載のとおり。
A34: ３ 多面的機能発揮促進事業の実施期間
C35: （例）活動計画書「Ⅰ．地区の概要」の「１．活動期間」のとおり。
A37: ４ 農業者団体等の構成員に係る事項
C38: （例）「（別添２）構成員一覧」に記載のとおり。多面的機能支払交付金実施要領「別記６－１活動組織規約」の「（別紙）構成員一覧」に代えることもできる。
A41: ＜施行注意＞
B42: 記入内容が様式第１－３号と重複する場合は、「２（１）②実施区域」、「２（２）活動の内容等」、「３ 多面的機能発揮促進事業の実施期間」及び「４ 農業者団体等の構成員に係る事項」の記入を省略することも可能とする。

Sheet 様式第1-3号
A1: （様式第１－３号）
A2: 【活動組織から市町村に提出するもの】 | N2: 農林水産省様式
M3: ='様式第1-1号'!E3 -> 2025-04-01
B4: 農業の有する多面的機能の発揮の促進に関する活動計画書 （多面的機能支払に係る活動計画書、中山間地域等直接支払に係る集落協定、 環境保全型農業直接支払に係る営農活動計画書）
D6: （ふりがな）
D7: 組織名 | F7: ='はじめに（PC）'!D4&"" -> ●●活動組織
D9: （ふりがな）
D10: 代表者氏名 | F10: ='はじめに（PC）'!D5&"" -> □□ □□
D12: （ふりがな）
D13: 所在地 | F13: ='はじめに（PC）'!D6&"" -> 徳島県○○市○丁目
D16: Ⅰ． | E16: 地区の概要（共通）
D18: ＜活動の計画＞
D19: ■ | E19: Ⅱ． １号事業（多面的機能支払） | M19: 別紙１
D20: □ | E20: Ⅲ． ２号事業（中山間地域等直接支払） | M20: 別紙
D21: □ | E21: Ⅳ． ３号事業（環境保全型農業直接支払） | M21: 別紙
D22: □ | E22: Ⅴ． その他多面的機能の発揮の促進に資する事業に係る計画書 | M22: 別紙
D23: （注）該当する活動にチェックし、取り組む活動の別紙のみ添付すること
C25: ＜施行注意＞
C26: 提出の際に（ ）内は、多面的機能支払に係る活動計画書、中山間地域等直接支払に係る集落協定、環境保全型農業直接支払に係る営農活動計画書のうち該当する活動の計画書若しくは協定を記載すること。
A27: Ⅰ．地区の概要
B28: ※ 以下、（多面的機能支払、中山間地域等直接支払、環境保全型農業直接支払）をそれぞれ（多面支払、中山間直払、環境直払）と一部で表示
B29: １．活動期間
D30: 活動開始年度 | F30: 活動終了年度 | H30: 交付金の 交付年数 | J30: 計画変更年度 | L30: 計画変更年度
B31: 農地維持支払
D32: ７ | F32: 11 | H32: 5 | J32: ○ | L32: ○
B33: 資源向上支払（共同）
D34: ７ | F34: 11 | H34: 5 | J34: ○ | L34: ○
B35: 資源向上支払（長寿命化）
D36: ７ | F36: 11 | H36: 5 | J36: ○ | L36: ○
B37: 中山間地域等 直接支払
H38: 0
B39: 環境保全型農業直接支払
H40: 0
B41: ２．実施区域内の農用地、施設
B42: 協定農用地面積 又は認定農用地面積※１ | L42: 計 | M42: うち解消する遊休 農地面積 | N42: 年当たり 交付金額 上限
D43: 田 | F43: 畑 | H43: 草地 | J43: 採草放牧地
C44: 多面 支払 | L44: =SUM(D44,F44,H44) -> 0
D45: 0 | F45: 0 | H45: 0 | L45: =SUM(D45:I45) -> 0 | M45: 0 | N45: =SUM('別紙1 活動計画書'!I16,'別紙1 活動計画書'!I28,'加算措置（みどり加算以外）'!I37,'加算措置（みどり加算以外）'!I68,'加算措置（みどり加算以外）'!O101)+IF('別紙1 活動計画書'!V45="○",MIN('別紙1 活動計画書'!S47,'別紙1 活動計画書'!I44),'別紙1 活動計画書'!I44)+IFERROR(VLOOKUP("○",'加算措置（みどり加算以外）'!I78:P80,5,FALSE),0)+IF('加算措置（みどり加算以外）'!J74>0,400000,0)+MAX('加算措置（みどり加算）'!S41:AE41) -> 0
C46: 中山間 直払 | L46: =SUM(D46:K46) -> 0
D47: 0 | F47: 0 | H47: 0 | J47: 0 | L47: =SUM(D47:J47) -> 0 | M47: 0 | N47: 0
D48: 傾斜 | F48: 傾斜 | H48: 傾斜 | J48: 傾斜
B50: 取組面積 | C50: 環境 直払※２ | D50: 0
D51: 0 | N51: 0
B52: ※１ 多面支払の認定農用地面積は、集落が管理する農用地面積を記載する。 ※２ 環境直払に取り組む場合は、Ⅳの４の交付金額の取組面積の合計及び年当たり交付金額上限の合計 を記載するものとする。
B53: 農業用施設 （多面支払） | F53: 水路 | J53: 農道 | L53: ため池
H54: うち、排水路
F56: 0 | H56: 0 | J56: 0 | L56: 0
C57: うち、資源向上支払 （長寿命化）の対象施設
F58: 0 | H58: 0 | J58: 0 | L58: 0
B59: ※ 延長は、小数点以下第１位まで記入する。
B60: ３．実施区域位置図
B61: 別添１「実施区域位置図」のとおり
B62: ４．組織構成員一覧
B63: 別添２「構成員一覧」のとおり ※ 多面支払のみに取り組む場合は、活動組織規約の別紙「構成員一覧」に代えることができる。
B64: ５．多面的機能支払と中山間地域等直接支払との重複面積
B65: 重複面積 （多面支払・中山間直払）
B66: =L44+L46-D66 -> 0
B67: 0
B68: ※ 多面支払の活動計画書及び中山間直払の集落協定に位置づけられている施設等については、多面支払の 活動組織により活動を実施し、また、多面支払の交付金を充てることとする。
B69: ＜施行注意＞
B70: 計画書の変更の際には、容易に比較対照できるよう変更部分を二段書きとし、変更前を（ ）書で上段に 記載するものとする。

Sheet 別紙1 活動計画書
V1: （別紙1）
B2: 多面的機能支払に係る活動計画書（1号事業様式）
A3: Ⅱ． １号事業（多面的機能支払）
B4: 対象組織が広域活動組織の場合は○ | J4: ⇒
A5: １．交付金額 | F5: ※複数の交付単価がある場合には、行を追加してください。 ※加算措置は除きます。
A6: （１）農地維持支払
B7: 地目 | C7: 対象農用地面積 | F7: 交付単価 | I7: 年当たり交付金額 | N7: ※対象農用地面積とは、交付金の算定の対象となる農用地の面積のことです。小数点以下を切り捨て、整数で記入してください。
B8: 田 | I8: =IF(ROUNDDOWN((INT(C8)*F8/10),0)="0","",ROUNDDOWN((INT(C8)*F8/10),0)) -> 0
C9: 0 | F9: =IF('はじめに（PC）'!$D$2="北海道",'【参考】交付単価（PC）'!U9,'【参考】交付単価（PC）'!O9) -> 3000 | H9: 円/10a | I9: =ROUNDDOWN((INT(C9)*F9/10),0) -> 0
B10: 畑 | I10: =IF(ROUNDDOWN((INT(C10)*F10/10),0)="0","",ROUNDDOWN((INT(C10)*F10/10),0)) -> 0 | N10: ★活動期間中に、田から畑への地目の変更が生じた場合は下記に記入し、市町村に提出してください。農地維持支払の単価が活動終了年度まで田の単価となります。
C11: 0 | F11: =IF('はじめに（PC）'!$D$2="北海道",'【参考】交付単価（PC）'!U10,'【参考】交付単価（PC）'!O10) -> 2000 | H11: 円/10a | I11: =ROUNDDOWN((INT(C11)*F11/10),0) -> 0
B12: 草地 | I12: =IF(ROUNDDOWN((INT(C12)*F12/10),0)="0","",ROUNDDOWN((INT(C12)*F12/10),0)) -> 0
C13: 0 | F13: =IF('はじめに（PC）'!$D$2="北海道",'【参考】交付単価（PC）'!U11,'【参考】交付単価（PC）'!O11) -> 250 | H13: 円/10a | I13: 0
B14: この線より上に行を挿入してください。 | O14: 地目を田から畑に変更する面積 | U14: 0
B15: 合計 | C15: =IF(INT(SUM(C8,C10,C12))=0,"",INT(SUM(C8,C10,C12))) ->  | I15: =IF(SUM(I8,I10,I12)="0","",SUM(I8,I10,I12)) -> 0
C16: =INT(SUM(C9,C11,C13)) -> 0 | I16: =SUM(I9,I11,I13) -> 0
A18: （２）資源向上支払（共同）
B19: 地目 | C19: 対象農用地面積 | F19: 交付単価 | I19: 年当たり交付金額 | N19: ※交付単価は、以下①、②への取組状況によって異なります。左の表には減額する前の単価が入力されており、以下の該当するパターンに〇を付けると自動で減額されます。
B20: 田 | I20: =ROUNDDOWN((INT(C20)*F20/10),0) -> 0
C21: 0 | F21: =IF('はじめに（PC）'!$D$2="北海道",'【参考】交付単価（PC）'!W9,'【参考】交付単価（PC）'!Q9) -> 2400 | H21: 円/10a | I21: 0
B22: 畑 | I22: 0 | O22: ①多面的機能の増進活動に取り組む ②資源向上支払（共同）を５年以上実施、又は資源向上支払（長寿命化）に取り組む
C23: 0 | F23: =IF('はじめに（PC）'!$D$2="北海道",'【参考】交付単価（PC）'!W10,'【参考】交付単価（PC）'!Q10) -> 1440 | H23: 円/10a | I23: 0
B24: 草地 | I24: 0
C25: 0 | F25: =IF('はじめに（PC）'!$D$2="北海道",'【参考】交付単価（PC）'!W11,'【参考】交付単価（PC）'!Q11) -> 240 | H25: 円/10a | I25: 0 | N25: ①のみ該当 （修正なし） | S25: ②のみ該当 (単価×0.625)
B26: この線より上に行を挿入してください。
B27: 合計 | C27: =INT(SUM(C20,C22,C24)) -> 0 | I27: =SUM(I20,I22,I24) -> 0
C28: =INT(SUM(C21,C23,C25)) -> 0 | I28: =SUM(I21,I23,I25) -> 0 | N28: ①②に該当 (単価×0.75) | S28: 該当なし （単価×5/6）
N31: ※「特定事業実施者」（令和６年度に環境保全型農業直接支払交付金を受けていた農業者団体等）が加算措置「環境負荷低減の取組に係る支援」のみを実施する場合は、○を付けてください。
O32: 加算措置「環境負荷低減の取組に係る支援」のみ実施する場合は〇 | U32: ⇒
A34: （３）資源向上支払（長寿命化）
B35: 地目 | C35: 対象農用地面積 | F35: 交付単価 | I35: 年当たり交付上限額 | N35: ※交付単価は、直営施工の取組状況によって異なります。左の表には、減額する前の単価が入力されており、直営施工を実施しない場合は、以下に〇を付けると自動で減額されます。
B36: 田 | I36: =ROUNDDOWN((INT(C36)*F36/10),0) -> 0
C37: 0 | F37: =IF('はじめに（PC）'!$D$2="北海道",'【参考】交付単価（PC）'!Y9,'【参考】交付単価（PC）'!S9) -> 4400 | H37: 円/10a | I37: 0
B38: 畑 | I38: 0
C39: 0 | F39: =IF('はじめに（PC）'!$D$2="北海道",'【参考】交付単価（PC）'!Y10,'【参考】交付単価（PC）'!S10) -> 2000 | H39: 円/10a | I39: 0 | O39: 直営施工を実施しない場合は○ （単価×5/6） | U39: ⇒
B40: 草地 | I40: 0
C41: 0 | F41: =IF('はじめに（PC）'!$D$2="北海道",'【参考】交付単価（PC）'!Y11,'【参考】交付単価（PC）'!S11) -> 400 | H41: 円/10a | I41: 0
B42: この線より上に行を挿入してください。 | N42: ※広域活動組織となるための規模要件を満たさない場合は、左記合計と集落数×200万円のいずれか小さい方が上限となります。
B43: 合計 | C43: =INT(SUM(C36,C38,C40)) -> 0 | I43: =SUM(I36,I38,I40) -> 0
C44: =INT(SUM(C37,C39,C41)) -> 0 | I44: =SUM(I37,I39,I41) -> 0
O45: 広域活動組織となるための規模要件を満たさない場合は○ | U45: ⇒
N47: 集落数×200万円
A49: ２．組織の広域化・体制強化の計画 （計画がない場合、この項目への記入は不要です）
E50: 広域活動組織の設立 | J50: 特定非営利活動法人化 | O50: 活動支援班の設立 | T50: ※「特定非営利活動法人」とは、営農法人とは別に多面的活動に関与する法人のことです。
B51: 実施予定年度 | F51: 令和 | H51: 年度 | K51: 令和 | M51: 年度 | P51: 令和 | R51: 年度
B53: 以下は市町村担当者と相談の上、記入してください。
B54: 集落数 | E54: 0
B56: 農業地域類型 | F56: 都市的地域 | J56: 平地農業地域 | N56: 中間農業地域 | R56: 山間農業地域
B58: 地域振興立法の適用 | H58: 特定農山村 | K58: 振興山村 | N58: 過疎 | Q58: 半島
H60: 離島 | K60: 沖縄 | N60: 奄美群島 | Q60: 小笠原諸島
B62: 指定棚田地域の該当状況
B64: 交付金算定の対象としている農振農用地区域外の対象農用地面積
B65: 農地維持支払 | E65: 0 | H65: 資源向上支払 （共同） | K65: 0 | P65: 資源向上支払 （長寿命化） | S65: 0
A68: ３．活動の計画
A69: （１）農地維持支払 | K69: ※毎年度実施するものに○を記入してください。
B70: 活動区分 | D70: 活動項目 | M70: 計画
B72: 点検・ 計画策定 | D72: １ 点検 | N72: =IF(M72="○","","※必ず選択してください。") -> ※必ず選択してください。
D73: ２ 年度活動計画の策定 | N73: =IF(M73="○","","※必ず選択してください。") -> ※必ず選択してください。
B74: 研修 | D74: ３ 事務・組織運営等に関する研修、 機械の安全使用に関する研修 | M74: ５年間に各１回以上実施
B75: 実践活動 | C75: 農用地 | D75: ４ 遊休農地発生防止のための保全管理 | U75: =IF(COUNTIF(M75:T84,"○")=0,"※4～13のうち該当する活動項目を全て選択してください。","") -> ※4～13のうち該当する活動項目を全て選択してください。
D76: ５ 畦畔・法面・防風林の草刈り
D77: ６ 鳥獣害防護柵等の保守管理 | M77: 点検結果に応じて実施
C78: 水路 | D78: ７ 水路の草刈り
D79: ８ 水路の泥上げ
D80: ９ 水路附帯施設の保守管理 | M80: 点検結果に応じて実施
C81: 農道 | D81: 10 農道の草刈り
D82: 11 農道側溝の泥上げ | M82: 点検結果に応じて実施
D83: 12 路面の維持 | M83: 点検結果に応じて実施
C84: ため池 | D84: 13 ため池の草刈り
D85: 14 ため池の泥上げ | M85: 点検結果に応じて実施
D86: 15 ため池附帯施設の保守管理 | M86: 点検結果に応じて実施
C87: 共通 | D87: 16 異常気象時の対応 | M87: 洪水、台風、地震等の発生後に実施
B88: 地域資源の適切な保全管理のための推進活動 | N88: =IF(M88="○","","※必ず選択してください。") -> ※必ず選択してください。
B89: 地域資源の適切な保全管理のための推進活動について、１）～４）を記入してください。
B90: １）保全管理の目標を①～⑥から選んでください。（複数選択可）
C91: ①中心経営体との役割分担による保全管理 | N91: ④集落間連携や広域的活動による保全管理
C92: ②集落営農組織を基礎とした地域ぐるみの保全管理 | N92: ⑤多様な地域資源管理の担い手による保全管理
C93: ③地域外の経営体との協力・役割分担による保全管理 | N93: ⑥その他
B94: ２）今後、地域で取り組んでいくべき保全管理の内容を①～⑤から1項目以上選んでください。
C95: ①農地の利用集積に伴う管理作業 | N95: ④共同利用施設の保全管理
C96: ②高齢農家の農用地に係る管理作業 | N96: ⑤その他
C97: ③不在村地主等の遊休農地に係る管理作業
B98: ３）２）で選んだ内容に取り組むため、今後進めていく活動の方向性を①～⑦から1項目以上選んでください。
C99: ①担い手の人材・機材の有効活用、連携強化 | N99: ⑤不在村地主との連絡・調整体制の構築
C100: ②入り作等の近隣の担い手との協力 | N100: ⑥集落間の連携や広域的な活動
C101: ③地域住民、土地持ち非農家等を含めた体制づくり | N101: ⑦その他
C102: ④新たな保全管理の担い手の確保
B103: ４） ２）で選んだ内容に取り組むため、毎年実践する活動を17～23から1項目以上選んでください。
C104: 17．入り作農家や土地持ち非農家を含む 農業者の検討会の開催 | N104: 21．地域住民等に対する意向調査、地 域住民等との集落内調査
C105: 18．農業者に対する意向調査、農業者による現地調査 | N105: 22．有識者等による研修会、検討会の開催
C106: 19．不在村地主との連絡体制の整備、調整等 | N106: 23．その他
C107: 20．集落外の住民・組織や地域住民との意見交 換・ワークショップ・交流会の開催
A109: （２）資源向上支払（共同）
A110: １）施設の軽微な補修、農村環境保全活動 | K110: ※毎年度実施するものに○を記入してください。
B111: 活動区分 | E111: 活動項目 | O111: 計画
B113: 施設の軽微な補修 | C113: 機能診断・ 計画策定 | E113: 24 農用地の機能診断 | P113: =IF(COUNTIF(O113:O116,"○")=0,"※24～27のうち該当する活動項目を全て選択してください。","") -> ※24～27のうち該当する活動項目を全て選択してください。
E114: 25 水路の機能診断
E115: 26 農道の機能診断
E116: 27 ため池の機能診断
E117: 28 年度活動計画の策定 | P117: =IF(O117="○","","※必ず選択してください。") -> ※必ず選択してください。
C118: 研修 | E118: 29 機能診断・補修技術等に関する研修 | O118: ５年間に１回以上実施
C119: 実践活動 | E119: 30 農用地の軽微な補修等 | O119: 機能診断結果に応じて実施
E120: 31 水路の軽微な補修等 | O120: 機能診断結果に応じて実施
E121: 32 農道の軽微な補修等 | O121: 機能診断結果に応じて実施
E122: 33 ため池の軽微な補修等 | O122: 機能診断結果に応じて実施
B123: 農村環境保全活動 | C123: 計画策定 | E123: 34 生物多様性保全計画の策定 | P123: =IF(COUNTIF(O123:O127,"○")=0,"※34～38のいずれかを選択してください。","") -> ※34～38のいずれかを選択してください。
E124: 35 水質保全計画、農地保全計画の策定
E125: 36 景観形成計画、生活環境保全計画の策定
E126: 37 水田貯留機能増進計画、地下水かん養活動計画の策定
E127: 38 資源循環計画の策定
C128: 実践活動 | P128: =IF(COUNTIF(O128:O132,"○")=0,"※実施する活動をプルダウンリストから選択し、○をしてください。","") -> ※実施する活動をプルダウンリストから選択し、○をしてください。
E133: この線より上に行を挿入してください。
C134: 啓発・普及 | E134: 51 啓発・普及活動 | P134: =IF(O134="○","","※必ず選択してください。") -> ※必ず選択してください。
A135: ２）多面的機能の増進を図る活動（任意） | J135: ※毎年度実施するものに○を記入してください。
B136: 活動区分 | D136: 活動項目 | O136: 計画
B138: 多面的機能の増進を 図る活動 | D138: 52 遊休農地の有効活用
D139: 53 鳥獣被害防止対策及び環境改善活動の強化
D140: 54 地域住民による直営施工
D141: 55 防災・減災力の強化
D142: 56 農村環境保全活動の幅広い展開 | P142: =IF(O142="○","下の太枠内も記入してください。","") -> 
D143: 57 やすらぎ・福祉及び教育機能の活用
D144: 58 農村文化の伝承を通じた農村コミュニティの強化
D145: 58-2 広域活動組織における活動支援班による活動の実施
D146: 58-3 水管理を通じた環境負荷低減活動の強化 | P146: =IF(O146="○","下の太枠内も記入してください。","") -> 
D147: 59 都道府県、市町村が特に認める活動 | P147: =IF(O147="○","下の太枠内も記入してください。","") -> 
D148: この線より上に行を挿入してください。
D149: 60 広報活動・農村関係人口の拡大 | P149: =IF(AND(O149="",COUNTIF(O138:O147,"○")),"※必ず選択してください。","") -> 
B150: ※増進を図る活動を実施する場合は、活動項目を選択した上で、毎年度実施するとともに、「60 広報活動・農村関係人口の拡大」を毎年度実施してください。 ただし、農業地域類型区分の「中間農業地域」または「山間農業地域」、地域振興立法８法地域においては「60 広報活動・農村関係人口の拡大」は必須ではありません。
B151: 「56 農村環境保全活動の幅広い展開」を選択した場合 「①農村環境保全活動を１テーマ追加」又は「②高度な保全活動の実施」のいずれかを選択し、実施する活動を選択してください。
B152: ①農村環境保全活動を１テーマ追加 | I152: ・・・追加する農村環境保全活動
B153: ②「高度な保全活動の実施」 | I153: ・・・高度な保全活動の活動項目
B156: 「58-3 水管理を通じた環境負荷低減活動の強化」を選択した場合 実施する取組の実施予定面積を記入してください。
C157: 長期中干し | H157: 0
C158: 冬期湛水 | H158: 0
C159: 夏期湛水 | H159: 0
C160: 中干し延期 | H160: 0
C161: 江の設置（作溝実施） | H161: 0
C162: 江の設置（作溝未実施） | H162: 0
B165: 「59 都道府県、市町村が特に認める活動」を選択した場合 具体的な活動内容を記載してください。
A169: （３）資源向上支払（長寿命化）
B170: 工事１件当たり200万円以上となることが明らかな場合は、様式第１－４号「長寿命化整備計画書」を作成し、添付してください。なお、１つの活動項目を分けて実施する場合は、それぞれを１件として考えます。 ※延べ数量の延長は小数点以下第２位まで記入してください。 ※施設単位について、「ため池」は「箇所」、「水路」及び「農道」は「km」とします。 「水路」「農道」でゲート等を施工するなど「箇所」単位とすることが一般的なものであっても、 「１箇所＝0.01km」として扱い、「km」単位で記入してください。
B171: 活動内容 | N171: 延べ数量 | Q171: 左記が水路の場合、うち排水路延長 | AQ171: =_xlfn.IFS(OR(B173="水路",B173="農道"),"km",B173="ため池","箇所",B173="","") -> 
B172: 施設区分 | D172: 活動項目 | H172: 内容 | P172: （各単位） | S172: （各単位）
P173: =IF(OR(B173="農道", B173="水路"), "km", IF(B173="ため池", "箇所", "")) ->  | S173: =IF(B173="水路","km","") -> 
P174: =IF(OR(B174="農道", B174="水路"), "km", IF(B174="ため池", "箇所", "")) ->  | S174: =IF(B174="水路","km","") -> 
S175: =IF(B175="水路","km","") -> 
B184: この線より上に行を挿入してください。
B186: ☆直営施工の実施方針について | J186: 全部直営施工又は 一部直営施工を実施する | S186: 直営施工は実施しない
B187: ☆上記以外に農業の多面的機能の維持・発揮に必要な共同活動を実施する場合は、その活動内容を、この活動計画書に記載してください。（別紙でも可。）（実施要領第１の２の（４）又は第２の２の（４）に基づく活動）

Sheet 加算措置（みどり加算以外）
A1: ４．加算措置
B2: 加算措置に取り組む場合は以下を記入してください。取り組まない場合、本項目に係るページは提出不要です。
B4: 加算一覧 | M4: 計画
B5: 多面的機能の更なる増進に向けた活動への支援 | N5: →（１）へ | X5: （通称：増進加算）
B6: 農村協働力の深化に向けた活動への支援 | N6: →（２）へ | X6: （令和６年度廃止（令和10年度までの経過措置））
B7: 水田の貯留機能の強化（田んぼダム）を推進する活動への支援 | N7: →（５）へ | X7: （通称：田んぼダム加算）
B8: 環境負荷低減の取組への支援 | N8: →別葉（６）へ | X8: （通称：みどり加算）
B9: 組織の体制強化に対する支援 | N9: →（３）へ | X9: （通称：活動支援班加算）
B10: 組織の広域化・体制強化に対する支援 | N10: →（４）へ | X10: （令和６年度廃止（令和10年度までの経過措置））
A12: （１）多面的機能の更なる増進に向けた活動への支援
B13: ★適用条件 活動を継続する組織 …（本事業計画の活動項目数）＞（前年度又は変更前の活動項目数） 新規の組織 … 本事業計画の活動項目数２つ以上
B15: 多面的機能の増進を図る活動の活動項目 | O15: ↓ 活動を継続する組織のみ記入
B16: 項目 | L16: 本事業計画の活動 | O16: 前年度又は変更前の活動
B17: 52 遊休農地の有効活用 | L17: =IF('別紙1 活動計画書'!O138="○","○","") -> 
B18: 53 鳥獣被害防止対策及び環境改善活動の強化 | L18: =IF('別紙1 活動計画書'!O139="○","○","") -> 
B19: 54 地域住民による直営施工 | L19: =IF('別紙1 活動計画書'!O140="○","○","") -> 
B20: 55 防災・減災力の強化 | L20: =IF('別紙1 活動計画書'!O141="○","○","") -> 
B21: 56 農村環境保全活動の幅広い展開 | L21: =IF('別紙1 活動計画書'!O142="○","○","") -> 
B22: 57 やすらぎ・福祉及び教育機能の活用 | L22: =IF('別紙1 活動計画書'!O143="○","○","") -> 
B23: 58 農村文化の伝承を通じた農村コミュニティの強化 | L23: =IF('別紙1 活動計画書'!O144="○","○","") -> 
B24: 58-2 広域活動組織における活動支援班による活動の実施 | L24: =IF('別紙1 活動計画書'!O145="○","○","") -> 
B25: 58-3 水管理を通じた環境負荷低減活動の強化 | L25: =IF('別紙1 活動計画書'!O146="○","○","") -> 
B26: 59 都道府県、市町村が特に認める活動 | L26: =IF('別紙1 活動計画書'!O147="○","○","") -> 
B29: 地目 | C29: 対象農用地面積 | F29: 交付単価 | I29: 年当たり交付金額 | N29: ※対象農用地面積とは、交付金の算定の対象となる農用地の面積のことです。小数点以下を切り捨て、整数で記入してください。
B30: 田 | I30: =INT(C30*F30/10) -> 0
C31: =IF($M$5="○",'別紙1 活動計画書'!C21,"") ->  | F31: =IF('はじめに（PC）'!$D$2="北海道",'【参考】交付単価（PC）'!Q15,'【参考】交付単価（PC）'!O15) -> 400 | H31: 円/10a | I31: =IFERROR(INT(C31*F31/10),"") -> 
B32: 畑 | I32: =INT(C32*F32/10) -> 0 | N32: ※資源向上支払（共同）の交付単価の減額条件に該当する場合は、本加算措置の交付単価も同様に減額されます。
C33: =IF($M$5="○",'別紙1 活動計画書'!C23,"") ->  | F33: =IF('はじめに（PC）'!$D$2="北海道",'【参考】交付単価（PC）'!Q16,'【参考】交付単価（PC）'!O16) -> 240 | H33: 円/10a | I33: =IFERROR(INT(C33*F33/10),"") -> 
B34: 草地 | I34: 0
C35: =IF($M$5="○",'別紙1 活動計画書'!C25,"") ->  | F35: =IF('はじめに（PC）'!$D$2="北海道",'【参考】交付単価（PC）'!Q17,'【参考】交付単価（PC）'!O17) -> 40 | H35: 円/10a | I35: =IFERROR(INT(C35*F35/10),"") -> 
B36: 合計 | C36: =INT(SUM(C30,C32,C34)) -> 0 | I36: =SUM(I30,I32,I34) -> 0
C37: =INT(SUM(C31,C33,C35)) -> 0 | I37: =SUM(I31,I33,I35) -> 0
A39: （２）農村協働力の深化に向けた活動への支援（令和６年度廃止（令和10年度までの経過措置））
B40: 適用条件の確認
B41: ① 多面的機能の更なる増進に向けた活動への支援を受ける
B42: ② 農業者以外の割合
B43: ・ | C43: 組織の構成員
E44: 農業者 | H44: 個人 | I44: 0 | K44: +団体 | M44: 0 | O44: = | P44: =I44+M44 -> 0
E45: 農業者以外 | H45: 個人 | I45: 0 | K45: +団体 | M45: 0 | O45: = | P45: =I45+M45 -> 0 | U45: ･･･①
E47: 合計 | H47: 個人 | I47: =I44+I45 -> 0 | K47: +団体 | M47: =M44+M45 -> 0 | O47: = | P47: =I47+M47 -> 0 | U47: ･･･②
B49: ・ | C49: 農業者以外の割合 | G49: =IFERROR(P45/P47,"%") -> % | J49: ・・・ ①／②
B50: ③－１ 共同活動に参加する構成員の総人数の８割が参加する実践活動の実施
C51: 個人 | E51: =I47 -> 0 | G51: + 団体の構成員のうち、共同活動に参加する人数 | Q51: 0
C52: = | D52: 共同活動に参加する構成員の総人数 | K52: =E51+Q51 -> 0 | M52: のうち、８割にあたる | R52: =ROUNDUP(K52*0.8,0) -> 0 | T52: 以上が
C53: 参加する実践活動を毎年度行う。
B54: ③－２ あるいは、役員に女性が | H54: 0 | I54: 選任されていて、共同活動に参加する構成員の総人数の６割が
B55: 参加する実践活動を、２種以上、それぞれ別の日に実施
C56: 個人 | E56: =I47 -> 0 | G56: + 団体の構成員のうち、共同活動に参加する人数 | Q56: 0
C57: = | D57: 共同活動に参加する構成員の総人数 | K57: =E56+Q56 -> 0 | M57: のうち、6割にあたる | R57: =ROUNDUP(K57*0.6,0) -> 0 | T57: 以上が
C58: 参加する実践活動を、２種以上、それぞれ別の日に毎年度行う。
B59: ③－１、２いずれの場合も、共同活動に参加する構成員の総人数の内訳がわかる名簿（様式自由）を添付してください。
B60: 地目 | C60: 対象農用地面積 | F60: 交付単価 | I60: 年当たり交付金額 | N60: ★ 農村協働力の深化に向けた活動への支援の適用条件 ○多面的機能の更なる増進に向けた活動への支援を受けること ○構成員の農業者以外の割合 ４割以上 ○共同活動に参加する構成員の総人数（※）の８割以上が参加する実践活動を行うこと、あるいは女性役員が２名以上の組織で構成員の総人数の６割以上が参加する実践活動を複数回行うこと ※構成員個人と、団体の構成員のうち共同活動に参加する人数の合計
B61: 田 | I61: =INT(C61*F61/10) -> 0
C62: =IF($M$6="○",'別紙1 活動計画書'!C21,"") ->  | F62: =IF('はじめに（PC）'!$D$2="北海道",'【参考】交付単価（PC）'!Q21,'【参考】交付単価（PC）'!O21) -> 400 | H62: 円/10a | I62: =IFERROR(INT(C62*F62/10),"") -> 
B63: 畑 | I63: 0
C64: =IF($M$6="○",'別紙1 活動計画書'!C23,"") ->  | F64: =IF('はじめに（PC）'!$D$2="北海道",'【参考】交付単価（PC）'!Q22,'【参考】交付単価（PC）'!O22) -> 240 | H64: 円/10a | I64: =IFERROR(INT(C64*F64/10),"") -> 
B65: 草地 | I65: 0
C66: =IF($M$6="○",'別紙1 活動計画書'!C25,"") ->  | F66: =IF('はじめに（PC）'!$D$2="北海道",'【参考】交付単価（PC）'!Q23,'【参考】交付単価（PC）'!O23) -> 40 | H66: 円/10a | I66: =IFERROR(INT(C66*F66/10),"") -> 
B67: 合計 | C67: =INT(SUM(C61,C63,C65)) -> 0 | I67: =SUM(I61,I63,I65) -> 0
C68: =INT(SUM(C62,C64,C66)) -> 0 | I68: =SUM(I62,I64,I66) -> 0
B69: ※対象農用地面積とは、交付金の算定の対象となる農用地の面積のことです。小数点以下を切り捨て、整数で記入してください。
B70: ※資源向上支払（共同）の交付単価の減額条件に該当する場合は、本加算措置の交付単価も同様に減額されます。
A72: （３）組織の体制強化に対する支援
B73: 区分 | I73: 交付年度 | M73: 交付額
B74: 広域活動組織の設立及び活動支援班の設置 | I74: 令和 | K74: 年度 | M74: 400000
A76: （４）組織の広域化・体制強化に対する支援（令和６年度廃止（令和10年度までの経過措置））
B77: 区分 | I77: 該当するものに○ | M77: 交付額
B78: ３集落以上 又は50ha以上200ha未満 | M78: 40000
B79: 200ha以上1,000ha未満 又は特定非営利活動法人 | M79: 80000
B80: 1,000ha以上 | M80: 160000
B81: ※北海道にあっては、３集落以上又は1,500ha以上3,000ha未満のとき40,000円／年・組織、3,000ha以上15,000ha未満又は特定非営利活動法人のとき80,000円／年・組織、15,000ha以上のとき160,000円／年・組織に置き換える。
B82: ※特定非営利活動法人の加算措置を受ける場合は、特定非営利活動促進法第13条第２項の登記事項証明書の写しを提出してください。
A83: （５）水田の雨水貯留機能の強化（田んぼダム）を推進する活動への支援
B84: ★適用条件 ①資源向上支払（共同）の交付を受ける田面積のうち５割以上において、雨水貯留機能の強化 （田んぼダム）を 推進する活動を行っていること。 ②広域活動組織にあっては、本活動を実施する集落ごとに、資源向上支払（共同）の交付を受ける水田面積のうち ５割以上において、雨水貯留機能の強化 （田んぼダム）を推進する活動を行っていること。 （実施しない集落の面積は対象農用地面積より除くこと。）
B86: a 実施期間
B87: 開始年度 | F87: 最終年度 | J87: ※最終年度は、資源向上（共同）の活動終了年度と同じです。
B88: 令和 | E88: 年度 | F88: 令和 | H88: 年度
B90: ｂ 実施計画
B91: 年度 | F91: 年次計画・実施体制等
B92: 令和 | C92: =IF(C88="","",C88) ->  | E92: 年度
B93: 令和 | C93: =IF((G88-C88)>0,C92+1,"") ->  | E93: 年度
B94: 令和 | C94: =IF((G88-C88)>1,C93+1,"") ->  | E94: 年度
B95: 令和 | C95: =IF((G88-C88)>2,C94+1,"") ->  | E95: 年度
B96: 令和 | C96: =IF((G88-C88)>3,C95+1,"") ->  | E96: 年度
B98: c 最終年度における実施面積及び加算額
B99: 地目 | C99: 全対象農用地面積 | J99: 交付単価 | O99: 年当たりの 加算額 | S99: 実施面積の 割合
G100: うち、実施面積
B101: 田 | C101: =IF($M$7="○",'別紙1 活動計画書'!C21,"") ->  | G101: 0 | J101: =IF('はじめに（PC）'!$D$2="北海道",'【参考】交付単価（PC）'!Q27,'【参考】交付単価（PC）'!O27) -> 400 | M101: 円/10a | O101: =IFERROR(C101*J101/10,"") ->  | S101: =IF(G101>0,G101/C101,0) -> 0
B103: ※資源向上支払（共同）の交付単価の減額条件に該当する場合は、本加算措置の交付単価も同様に減額されます。
B105: （参考）広域活動組織における集落ごとの実施面積と割合
B106: 集落名 | G106: 対象農用地面積 | O106: 実施面積の 割合 | S106: 備考
K107: うち、実施面積
J108: a | N108: a | O108: =IF(K108>0,K108/G108,0) -> 0
J110: a | N110: a | O110: =IF(K110>0,K110/G110,0) -> 0
J112: a | N112: a | O112: =IF(K112>0,K112/G112,0) -> 0
J114: a | N114: a | O114: =IF(K114>0,K114/G114,0) -> 0
B117: d 活動実施区域位置図
C118: 別添３「田んぼダム実施区域位置図」のとおり
B119: ※なお、別添１「実施区域位置図」に田んぼダム実施区域位置を記載している場合、別添３は省略できる。

Sheet 加算措置（みどり加算）
B1: （別葉）
B2: （６）環境負荷低減の取組への支援
B4: a 実施期間
C5: 開始年度 | F5: 最終年度 | J5: ※最終年度は、資源向上（共同）の活動終了年度と同じです。
C6: 令和 | E6: 年度 | F6: 令和 | H6: 年度
B8: ｂ 実施時期
C9: 取組項目 | M9: 化学肥料及び化学合成農薬を 5割以上低減する活動
C12: 内容 | H12: 実施時期 | M12: 作物名 | R12: 栽培時期
I13: 月 | J13: ～ | L13: 月 | S13: 月 | T13: ～ | V13: 月
I14: 月 | J14: ～ | L14: 月 | S14: 月 | T14: ～ | V14: 月
I15: 月 | J15: ～ | L15: 月 | S15: 月 | T15: ～ | V15: 月
I16: 月 | J16: ～ | L16: 月 | S16: 月 | T16: ～ | V16: 月
I17: 月 | J17: ～ | L17: 月 | S17: 月 | T17: ～ | V17: 月
I18: 月 | J18: ～ | L18: 月 | S18: 月 | T18: ～ | V18: 月
I19: 月 | J19: ～ | L19: 月 | S19: 月 | T19: ～ | V19: 月
I20: 月 | J20: ～ | L20: 月 | S20: 月 | T20: ～ | V20: 月
I21: 月 | J21: ～ | L21: 月 | S21: 月 | T21: ～ | V21: 月
I22: 月 | J22: ～ | L22: 月 | S22: 月 | T22: ～ | V22: 月
I23: 月 | J23: ～ | L23: 月 | S23: 月 | T23: ～ | V23: 月
I24: 月 | J24: ～ | L24: 月 | S24: 月 | T24: ～ | V24: 月
C25: ※必要に応じて欄を追加してください。
B27: c 活動の計画
B28: 取組項目 | E28: １年目 計画面積 （畦畔除く） | G28: ２年目 計画面積 （畦畔除く） | I28: ３年目 計画面積 （畦畔除く） | K28: ４年目 計画面積 （畦畔除く） | M28: ５年目 計画面積 （畦畔除く） | O28: 交付単価 | S28: １年目 交付上限額 | V28: ２年目 交付上限額 | Y28: ３年目 交付上限額 | AB28: ４年目 交付上限額 | AE28: ５年目 交付上限額 | AH28: 備考
B29: 長期中干し | E29: 0 | G29: 0 | I29: 0 | K29: 0 | M29: 0 | O29: 800 | Q29: 円/10a | S29: =E29*O29/10 -> 0 | V29: =G29*O29/10 -> 0 | Y29: =I29*O29/10 -> 0 | AB29: =K29*O29/10 -> 0 | AE29: =M29*O29/10 -> 0
B31: 冬期湛水 | E31: 0 | G31: 0 | I31: 0 | K31: 0 | M31: 0 | O31: 4000 | Q31: 円/10a | S31: =E31*O31/10 -> 0 | V31: =G31*O31/10 -> 0 | Y31: =I31*O31/10 -> 0 | AB31: =K31*O31/10 -> 0 | AE31: =M31*O31/10 -> 0
B33: 夏期湛水 | E33: 0 | G33: 0 | I33: 0 | K33: 0 | M33: 0 | O33: 8000 | Q33: 円/10a | S33: =E33*O33/10 -> 0 | V33: =G33*O33/10 -> 0 | Y33: =I33*O33/10 -> 0 | AB33: =K33*O33/10 -> 0 | AE33: =M33*O33/10 -> 0
B35: 中干し延期 | E35: 0 | G35: 0 | I35: 0 | K35: 0 | M35: 0 | O35: 3000 | Q35: 円/10a | S35: =E35*O35/10 -> 0 | V35: =G35*O35/10 -> 0 | Y35: =I35*O35/10 -> 0 | AB35: =K35*O35/10 -> 0 | AE35: =M35*O35/10 -> 0
B37: 江の設置等 （作溝実施） | E37: 0 | G37: 0 | I37: 0 | K37: 0 | M37: 0 | O37: 4000 | Q37: 円/10a | S37: =E37*O37/10 -> 0 | V37: =G37*O37/10 -> 0 | Y37: =I37*O37/10 -> 0 | AB37: =K37*O37/10 -> 0 | AE37: =M37*O37/10 -> 0
B39: 江の設置等 （作溝未実施） | E39: 0 | G39: 0 | I39: 0 | K39: 0 | M39: 0 | O39: 3000 | Q39: 円/10a | S39: =E39*O39/10 -> 0 | V39: =G39*O39/10 -> 0 | Y39: =I39*O39/10 -> 0 | AB39: =K39*O39/10 -> 0 | AE39: =M39*O39/10 -> 0
B41: 合計 | E41: =SUM(E29:F40) -> 0 | G41: =SUM(G29:H40) -> 0 | I41: =SUM(I29:J40) -> 0 | K41: =SUM(K29:L40) -> 0 | M41: =SUM(M29:N40) -> 0 | S41: =SUM(S29:U40) -> 0 | V41: =SUM(V29:X40) -> 0 | Y41: =SUM(Y29:AA40) -> 0 | AB41: =SUM(AB29:AD40) -> 0 | AE41: =SUM(AE29:AG40) -> 0
B42: ※ 計画面積は、対象活動別（同一の対象活動であっても、単価毎）に、a未満を切り捨てた値を記載すること。
B43: ※ 計画面積は、取組ごとに、２年目以降の取組面積が初年度の取組面積を下回らず、終了年度の取組面積が初年度の取組面積を上回る必要があります。
B44: ※ 資源向上支払（共同）の活動期間の途中からみどり加算に取り組む場合は、当該活動期間中の実施計画のみを記入します。
B46: d 活動実施区域位置図
C47: 別添４「環境負荷低減の取組実施区域位置図」のとおり
B48: ※なお、別添１「実施区域位置図」に環境負荷低減の取組実施区域を記載している場合、別添４は省略できます。
B50: e （特定事業実施者のみ）添付書類
C51: 特定事業実施者の場合であって、
C52: 農業者の組織する団体の場合、規約など令和６年度に環境保全型農業直接支払交付金の交付を受けていたことが分かる書類
C53: 一定の要件を満たす農業者の場合、一定の要件を満たし令和６年度に環境保全型農業直接支払交付金の交付を受けていたことが分かる書類

Sheet 別添1 位置図
B1: （別添１）
B2: 実施区域位置図 | H2: 組織名称：
B3: ='様式第1-1号'!C18 -> ■ | C3: １号事業（多面支払） | D3: ='様式第1-1号'!C19 -> □ | E3: 2号事業（中山間直払） | F3: ='様式第1-1号'!C20 -> □ | G3: ３号事業（環境直払） | H3: ='はじめに（PC）'!D4&"" -> ●●活動組織

Sheet 別添3 位置図
B1: （別添３）
B2: 田んぼダム実施区域位置図 | J2: 活動組織名称：
J3: ='はじめに（PC）'!D4&"" -> ●●活動組織
C32: 注１） 別添１「実施区域位置図」に田んぼダム実施区域位置を記載している場合、本様式は省略ができる。

Sheet 別添4 位置図
B1: （別添４）
B2: 環境負荷低減の取組実施区域位置図 | J2: 活動組織名称：
J3: ='はじめに（PC）'!D4&"" -> ●●活動組織
C32: 注１） 別添１「実施区域位置図」に環境負荷低減の取組実施区域位置を記載している場合、本様式は省略ができる。

Sheet 様式第１－11号
B1: （様式第１－11号） | L1: 農林水産省様式
J2: 申請時記入日： 年 月
J3: 報告時記入日： 年 月
B4: 多面的機能支払交付金 環境負荷低減のクロスコンプライアンス（みどりチェック） チェックシート
I5: 組織名： | J5: ='はじめに（PC）'!D4 -> ●●活動組織
C7: （１）適正な施肥 | D7: 該当しない | E7: 申請時 | F7: 報告時 | I7: （５）廃棄物の発生抑制、適正な循環的な利用及び適正な処分 | J7: 該当しない | K7: 申請時 | L7: 報告時
E8: （します） | F8: （しました） | K8: （します） | L8: （しました）
B9: ① | C9: 「環境負荷低減の取組への支援」（※1）の交付を受ける場合 | H9: ⑧ | I9: 全ての活動組織、広域活動組織、特定事業実施者
C10: 肥料の適正な保管 | I10: プラ等廃棄物の削減に努め、適正に処理
B11: ② | C11: 「環境負荷低減の取組への支援」（※1）の交付を受ける場合
C12: 肥料の使用状況等の記録・保存に努める
I13: （６）生物多様性への悪影響の防止 | J13: 該当しない | K13: 申請時 | L13: 報告時
C14: （２）適正な除草や害虫駆除等 | D14: 該当しない | E14: 申請時 | F14: 報告時 | K14: （します） | L14: （しました）
E15: （します） | F15: （しました） | H15: ⑨ | I15: 多面支払（※2）の活動で農薬を使った除草や害虫駆除等を行う場合
B16: ③ | C16: 多面支払（※2）の活動で農薬を使った除草や害虫駆除等を行う場合やみどり加算の交付を受ける場合 | I16: 雑草や害虫の発生状況を推定し、除草や害虫駆除等の要否及び実施時期の判断に努める
C18: 農薬の適正な使用・保管 | H18: ⑩ | I18: 生態系への影響が想定される工事等を実施する場合
B19: ④ | C19: 「環境負荷低減の取組への支援」（※1）の交付を受ける場合 | I19: 生態系に配慮した事業実施に努める
C20: 農薬の使用状況等の記録・保存
I21: （７）環境関係法令の遵守等 | J21: 該当しない | K21: 申請時 | L21: 報告時
C22: （３）エネルギーの節減 | D22: 該当しない | E22: 申請時 | F22: 報告時 | K22: （します） | L22: （しました）
E23: （します） | F23: （しました） | H23: ⑪ | I23: 全ての活動組織、広域活動組織、特定事業実施者
B24: ⑤ | C24: 活動組織で作業機械等を所有している場合 | I24: 「みどりの食料システム戦略」を理解し、適切な事業実施に努める
C25: 作業機械等の燃料の使用状況の記録・保存に努める
B26: ⑥ | C26: 活動組織で作業機械等を所有している場合 | H26: ⑫ | I26: 全ての活動組織、広域活動組織、特定事業実施者
C27: 省エネを意識し、作業機械等の不必要・非効率なエネルギー消費をしないよう努める | I27: 関係法令の遵守
H28: ⑬ | I28: 活動組織で作業機械等を所有している場合
I29: 作業機械等の適切な整備と管理の実施に努める
C30: （４）悪臭及び害虫の発生防止 | D30: 該当しない | E30: 申請時 | F30: 報告時 | H30: ⑭ | I30: 全ての活動組織、広域活動組織、特定事業実施者
E31: （します） | F31: （しました） | I31: 正しい知識に基づく作業安全に努める
B32: ⑦ | C32: 全ての活動組織及び広域活動組織（特定事業実施者を除く） | D32: 特定事業実施者 のみ | H32: 注１ 申請時は該当する全ての項目の「します」の□にチェックし、報告時（活動期間の最終年度）は 実施した内容を踏まえ、該当する全ての項目の「しました」の□にチェックしてください。 注２ 記載内容に該当しない場合は「（該当しない □）」にチェックしてください。この場合、 当該項目の申請時・報告時のチェックは不要です。 ※１ 多面的機能支払交付金実施要綱別紙２の第６の２の（１）のウのｄ及び第４の１の（３）の活動をいう。 ※２ 便宜上、多面的機能支払交付金のことを「多面支払」と表記する。
C33: 除草や水路の泥上げ等を行う場合には、気温や周辺環境等を考慮し、草や土砂等を適切に処理することで悪臭・害虫の発生防止・低減に努める

Sheet 構成員一覧
F1: （規約別紙）
D2: ○年○月○日
A3: ='様式第1-1号'!E6&"構成員一覧" -> ●●活動組織構成員一覧 | I3: 農業者 | M3: 農業者以外
B4: ="以下３．の構成員は、"&'様式第1-1号'!E6&"へ参加するとともに、活動組織の代表、役員を下記１．２．のとおり定めます。 " -> 以下３．の構成員は、●●活動組織へ参加するとともに、活動組織の代表、役員を下記１．２．のとおり定めます。 | I4: １.農業者個人 | J4: ２.農事組合法人 | K4: ３.営農組合 | L4: ４.その他の農業者団体 | M4: ５.農業者以外個人 | N4: ６.自治会 | O4: ７.女性会 | P4: ８.子供会 | Q4: ９.土地改良区 | R4: 10.JA | S4: 11.学校・PTA | T4: 12.NPO | U4: 13.その他の農業者以外団体
A5: １．代表 | H5: カウント | I5: =COUNTIF($B23:$B57,I4) -> 0 | J5: =COUNTIF($B23:$B57,J4) -> 0 | K5: 0 | L5: 0 | M5: 0 | N5: 0 | O5: 0 | P5: 0 | Q5: 0 | R5: 0 | S5: 0 | T5: 0 | U5: 0
B6: 役職名 | C6: 氏名 | D6: 備考
E7: 活動支援班員
C8: ='はじめに（PC）'!D5&"" -> □□ □□
A9: ２．役員
B10: 役職名 | C10: 氏名 | D10: 備考
E11: 活動支援班員
A17: ３．構成員
B18: ★分類欄は「分類番号リスト」より番号を選択してください。
B19: ★団体の場合は代表者名を記入してください。
A20: （１） ○○集落
B21: ① 農業者の個人または団体（「農業者」は、活動計画書に位置付けられている農用地において耕作又は養畜の業務を営む農業者又は団体。）
B22: 分類 | C22: 氏名 | D22: 備考
E23: 活動支援班員
B27: この線より上に行を挿入してください。
B28: ② 農業者以外の個人
B29: 分類 | C29: 氏名 | D29: 備考
E30: 活動支援班員
B34: この線より上に行を挿入してください。
A35: （２） ○○集落
B36: ① 農業者の個人または団体（「農業者」は、活動計画書に位置付けられている農用地において耕作又は養畜の業務を営む農業者又は団体。）
B37: 分類 | C37: 氏名 | D37: 備考
E38: 活動支援班員
B42: この線より上に行を挿入してください。
B43: ② 農業者以外の個人
B44: 分類 | C44: 氏名 | D44: 備考
E45: 活動支援班員
B49: この線より上に行を挿入してください。
A51: （３）農業者以外の団体 （代表者名のみ記載する。）
B52: 分類 | C52: 氏名 | D52: 備考
E53: 活動支援班員
B57: この線より上に行を挿入してください。
A59: 構成員の総数 | C59: =IF(SUM(I5:U5)>0,SUM(I5:U5),"") -> 

Sheet 長寿命化整備計画
B1: （様式第１－４号） | L1: 農林水産省様式
B2: 【活動組織から市町村に提出するもの】 | K2: ○年○月○日
H3: 組織名： | I3: ='はじめに（PC）'!D4&"" -> ●●活動組織
B4: 長寿命化整備計画書
B5: ＜留意事項＞
B6: 活動計画書の資源向上支払（長寿命化）において、工事１件あたり200万円以上となることが明らかな活動について、下記に記載してください。
B7: なお、１つの活動を分けて実施する場合は、それぞれを１件として考え、１件ずつ記載してください。
B8: また、概算事業費の根拠となる資料（積算根拠や見積書）を整理してください。
B9: （１）施設の機能診断結果及び長寿命化対策の計画等
B10: 番号 | C10: 施設名 | D10: 設置 年度 | E10: 改修 年度 | F10: 施設の概要 | G10: 機能診断結果 （劣化状況等） | H10: 長寿命化対策の内容 | I10: 数量 | J10: 実施年度 | K10: 工事１件あたりの概算事業費 | L10: 備考
B11: 1
B12: 2
B13: 3
B14: 4
B15: 5
B16: ※ 改修年度欄には、施設の改修又は災害復旧等によって更新が行われた最近の年度を記入してください。
B17: ※ 延長は小数点以下第２位まで、概算事業費は10万円単位で記入してください。
B18: （２） 施設の位置図
B19: 対象施設の位置図を添付し、長寿命化対策を行う施設について、活動内容、数量等を記載すること。

Sheet 工事確認書
A1: （様式第１－５号）
A2: 【活動組織から市町村に提出するもの】 | B2: 農林水産省様式
A3: 工事に関する確認書
A5: 多面的機能支払交付金実施要綱（平成26年４月１日付け25農振第2254号農林水産事務次官依命通知)別紙２の第５の５の（１）のカに基づき、○○活動組織（以下「活動組織」という。）と○○土地改良区（以下「土地改良区」という。）は、○○に存する水路、農道等の地域資源の質的向上を図る共同活動並びに施設の長寿命化のための活動が円滑に実施できるよう、下記のとおり工事に関して確認する。
A6: 記
A7: （活動の対象となる施設及び内容）
A8: 第１条 活動組織が行う多面的機能支払交付金に係る活動の対象となる施設及び活動期間は、別添 「多面的機能支払交付金に係る活動計画書」のⅠに定めるとおりとする。
A9: ２ 活動組織が資源向上支払交付金により行う活動は、別添「多面的機能支払交付金に係る活 動計画書」のⅡに定めるとおりとする。
A11: （工事の施行に関する条件）
A12: 第２条 活動組織は、工事の施行に当たって、常に災害等の防止に努めるものとし、当該工事が原 因で、第三者に損害を与え、若しくは与えるおそれのあるときは、活動組織の負担において 必要な措置を講ずるものとする。
A13: ２ 土地改良区が管理する施設に関し、活動組織が実施する工事によって生じた工作物等は、 土地改良区に無償で譲渡するものとする。その際には、あらかじめ土地改良区と協議し、工 作物等の譲渡に必要となる工作物等の所在、構造、規模、数量等が明示された図面等の書類 の作成、譲渡の時期及びその他必要となる手続について、土地改良区の指示を受けるものと する。
A14: ３ 活動組織は、土地改良区が管理する施設に関し、工事に当たって詳細な工事内容について 土地改良区に提出し、工事内容に変更が生じた場合には、あらかじめ、土地改良区に協議 し、その指示を受けるとともに、工事が完了したときは、土地改良区にその旨を報告し、土 地改良区は書類確認を行うとともに、必要に応じて現地確認を行うものとする。
A16: （その他）
A17: 第３条 この確認書に定めのない事項、又は疑義が生じた場合には、土地改良区と活動組織が協 議をして定めるものとする。
A19: 上記確認書の締結を証するため、土地改良区と活動組織は、本書２通を作成し記名の上、そ れぞれ１通を保有するものとする。
A21: ○○年○○月○○日
B22: ='はじめに（PC）'!D4&"" -> ●●活動組織
B23: ="住 所 "&'はじめに（PC）'!D6&"" -> 住 所 徳島県○○市○丁目
B24: ="代 表 "&'はじめに（PC）'!D5&"" -> 代 表 □□ □□
B26: ○○土地改良区
B27: 住 所 ○○県○○市○○丁目
B28: 理事長 ○○○○

Sheet 活動記録（長寿命化を除く）
A1: （様式第１－６号） | P1: 農林水産省様式
A2: 【活動組織から市町村に提出するもの】 | P2: 組織名：
F3: 7 | G3: 年度 多面的機能支払交付金 活動記録 | P3: ='はじめに（PC）'!D4&"" -> ●●活動組織
B4: ★「実施時間」には休憩時間を含めず、実働時間を記入してください。 | M4: （施設の長寿命化を除く）
B5: ★「活動項目番号」欄には、実施要領別記1-2の国が定める活動指針における活動項目の番号及び要領第1の２の(1)に基づき都道府県が定める要綱基本方針において追加された活動項目の番号を記入します。その他、事務処理は200番、会議等は300番を記入します。 同一日に複数の活動を行った場合は、該当する全ての活動項目番号を左詰めで一行に記入してください。番号欄が足りない場合は、複数行に分けて記入してください。
B6: 活動実施日及び活動時間 | D6: 活動参加人数 | G6: 活動項目番号（左詰め） | M6: 活動内容 | P6: 備考（具体的な活動内容を記入） | Q6: 様式欄外（参考）
B7: 日付 | C7: 活動時間 | D7: 農業者 | E7: 農業者 以外 | F7: 総参加 人数 | M7: 支払区分 | N7: 活動区分 | O7: 活動項目 | Q7: 直営施工した場合は○ | R7: 活動支援班による活動の場合は○
F9: =SUM(D9+E9) -> 0 | M9: =IF(G9="","",(IFERROR(VLOOKUP($G9,【選択肢】!$Q$3:$U$90,2,)," ")&IF(H9="","",","&IFERROR(VLOOKUP($H9,【選択肢】!$Q$3:$U$90,2,)," ")&IF(I9="","",","&IFERROR(VLOOKUP($I9,【選択肢】!$Q$3:$U$90,2,)," ")&IF(J9="","",","&IFERROR(VLOOKUP($J9,【選択肢】!$Q$3:$U$90,2,)," ")&IF(K9="","",","&IFERROR(VLOOKUP($K9,【選択肢】!$Q$3:$U$90,2,)," ")&IF(L9="","",","&IFERROR(VLOOKUP($L9,【選択肢】!$Q$3:$U$90,2,)," ")))))))) ->  | N9: =IF(G9="","",(IFERROR(VLOOKUP($G9,【選択肢】!$Q$3:$U$90,4,)," ")&IF(H9="","",","&IFERROR(VLOOKUP($H9,【選択肢】!$Q$3:$U$90,4,)," ")&IF(I9="","",","&IFERROR(VLOOKUP($I9,【選択肢】!$Q$3:$U$90,4,)," ")&IF(J9="","",","&IFERROR(VLOOKUP($J9,【選択肢】!$Q$3:$U$90,4,)," ")&IF(K9="","",","&IFERROR(VLOOKUP($K9,【選択肢】!$Q$3:$U$90,4,)," ")&IF(L9="","",","&IFERROR(VLOOKUP($L9,【選択肢】!$Q$3:$U$90,4,)," ")))))))) ->  | O9: =IF(G9="","",(IFERROR(VLOOKUP($G9,【選択肢】!$Q$3:$U$90,5,)," ")&IF(H9="","",","&IFERROR(VLOOKUP($H9,【選択肢】!$Q$3:$U$90,5,)," ")&IF(I9="","",","&IFERROR(VLOOKUP($I9,【選択肢】!$Q$3:$U$90,5,)," ")&IF(J9="","",","&IFERROR(VLOOKUP($J9,【選択肢】!$Q$3:$U$90,5,)," ")&IF(K9="","",","&IFERROR(VLOOKUP($K9,【選択肢】!$Q$3:$U$90,5,)," ")&IF(L9="","",","&IFERROR(VLOOKUP($L9,【選択肢】!$Q$3:$U$90,5,)," ")))))))) -> 
F10: 0 | M10: =IF(G10="","",(IFERROR(VLOOKUP($G10,【選択肢】!$Q$3:$U$90,2,)," ")&IF(H10="","",","&IFERROR(VLOOKUP($H10,【選択肢】!$Q$3:$U$90,2,)," ")&IF(I10="","",","&IFERROR(VLOOKUP($I10,【選択肢】!$Q$3:$U$90,2,)," ")&IF(J10="","",","&IFERROR(VLOOKUP($J10,【選択肢】!$Q$3:$U$90,2,)," ")&IF(K10="","",","&IFERROR(VLOOKUP($K10,【選択肢】!$Q$3:$U$90,2,)," ")&IF(L10="","",","&IFERROR(VLOOKUP($L10,【選択肢】!$Q$3:$U$90,2,)," ")))))))) ->  | N10: =IF(G10="","",(IFERROR(VLOOKUP($G10,【選択肢】!$Q$3:$U$90,4,)," ")&IF(H10="","",","&IFERROR(VLOOKUP($H10,【選択肢】!$Q$3:$U$90,4,)," ")&IF(I10="","",","&IFERROR(VLOOKUP($I10,【選択肢】!$Q$3:$U$90,4,)," ")&IF(J10="","",","&IFERROR(VLOOKUP($J10,【選択肢】!$Q$3:$U$90,4,)," ")&IF(K10="","",","&IFERROR(VLOOKUP($K10,【選択肢】!$Q$3:$U$90,4,)," ")&IF(L10="","",","&IFERROR(VLOOKUP($L10,【選択肢】!$Q$3:$U$90,4,)," ")))))))) ->  | O10: =IF(G10="","",(IFERROR(VLOOKUP($G10,【選択肢】!$Q$3:$U$90,5,)," ")&IF(H10="","",","&IFERROR(VLOOKUP($H10,【選択肢】!$Q$3:$U$90,5,)," ")&IF(I10="","",","&IFERROR(VLOOKUP($I10,【選択肢】!$Q$3:$U$90,5,)," ")&IF(J10="","",","&IFERROR(VLOOKUP($J10,【選択肢】!$Q$3:$U$90,5,)," ")&IF(K10="","",","&IFERROR(VLOOKUP($K10,【選択肢】!$Q$3:$U$90,5,)," ")&IF(L10="","",","&IFERROR(VLOOKUP($L10,【選択肢】!$Q$3:$U$90,5,)," ")))))))) -> 
F11: 0 | M11: =IF(G11="","",(IFERROR(VLOOKUP($G11,【選択肢】!$Q$3:$U$90,2,)," ")&IF(H11="","",","&IFERROR(VLOOKUP($H11,【選択肢】!$Q$3:$U$90,2,)," ")&IF(I11="","",","&IFERROR(VLOOKUP($I11,【選択肢】!$Q$3:$U$90,2,)," ")&IF(J11="","",","&IFERROR(VLOOKUP($J11,【選択肢】!$Q$3:$U$90,2,)," ")&IF(K11="","",","&IFERROR(VLOOKUP($K11,【選択肢】!$Q$3:$U$90,2,)," ")&IF(L11="","",","&IFERROR(VLOOKUP($L11,【選択肢】!$Q$3:$U$90,2,)," ")))))))) ->  | N11: =IF(G11="","",(IFERROR(VLOOKUP($G11,【選択肢】!$Q$3:$U$90,4,)," ")&IF(H11="","",","&IFERROR(VLOOKUP($H11,【選択肢】!$Q$3:$U$90,4,)," ")&IF(I11="","",","&IFERROR(VLOOKUP($I11,【選択肢】!$Q$3:$U$90,4,)," ")&IF(J11="","",","&IFERROR(VLOOKUP($J11,【選択肢】!$Q$3:$U$90,4,)," ")&IF(K11="","",","&IFERROR(VLOOKUP($K11,【選択肢】!$Q$3:$U$90,4,)," ")&IF(L11="","",","&IFERROR(VLOOKUP($L11,【選択肢】!$Q$3:$U$90,4,)," ")))))))) ->  | O11: =IF(G11="","",(IFERROR(VLOOKUP($G11,【選択肢】!$Q$3:$U$90,5,)," ")&IF(H11="","",","&IFERROR(VLOOKUP($H11,【選択肢】!$Q$3:$U$90,5,)," ")&IF(I11="","",","&IFERROR(VLOOKUP($I11,【選択肢】!$Q$3:$U$90,5,)," ")&IF(J11="","",","&IFERROR(VLOOKUP($J11,【選択肢】!$Q$3:$U$90,5,)," ")&IF(K11="","",","&IFERROR(VLOOKUP($K11,【選択肢】!$Q$3:$U$90,5,)," ")&IF(L11="","",","&IFERROR(VLOOKUP($L11,【選択肢】!$Q$3:$U$90,5,)," ")))))))) -> 
F12: 0 | M12: =IF(G12="","",(IFERROR(VLOOKUP($G12,【選択肢】!$Q$3:$U$90,2,)," ")&IF(H12="","",","&IFERROR(VLOOKUP($H12,【選択肢】!$Q$3:$U$90,2,)," ")&IF(I12="","",","&IFERROR(VLOOKUP($I12,【選択肢】!$Q$3:$U$90,2,)," ")&IF(J12="","",","&IFERROR(VLOOKUP($J12,【選択肢】!$Q$3:$U$90,2,)," ")&IF(K12="","",","&IFERROR(VLOOKUP($K12,【選択肢】!$Q$3:$U$90,2,)," ")&IF(L12="","",","&IFERROR(VLOOKUP($L12,【選択肢】!$Q$3:$U$90,2,)," ")))))))) ->  | N12: =IF(G12="","",(IFERROR(VLOOKUP($G12,【選択肢】!$Q$3:$U$90,4,)," ")&IF(H12="","",","&IFERROR(VLOOKUP($H12,【選択肢】!$Q$3:$U$90,4,)," ")&IF(I12="","",","&IFERROR(VLOOKUP($I12,【選択肢】!$Q$3:$U$90,4,)," ")&IF(J12="","",","&IFERROR(VLOOKUP($J12,【選択肢】!$Q$3:$U$90,4,)," ")&IF(K12="","",","&IFERROR(VLOOKUP($K12,【選択肢】!$Q$3:$U$90,4,)," ")&IF(L12="","",","&IFERROR(VLOOKUP($L12,【選択肢】!$Q$3:$U$90,4,)," ")))))))) ->  | O12: =IF(G12="","",(IFERROR(VLOOKUP($G12,【選択肢】!$Q$3:$U$90,5,)," ")&IF(H12="","",","&IFERROR(VLOOKUP($H12,【選択肢】!$Q$3:$U$90,5,)," ")&IF(I12="","",","&IFERROR(VLOOKUP($I12,【選択肢】!$Q$3:$U$90,5,)," ")&IF(J12="","",","&IFERROR(VLOOKUP($J12,【選択肢】!$Q$3:$U$90,5,)," ")&IF(K12="","",","&IFERROR(VLOOKUP($K12,【選択肢】!$Q$3:$U$90,5,)," ")&IF(L12="","",","&IFERROR(VLOOKUP($L12,【選択肢】!$Q$3:$U$90,5,)," ")))))))) -> 
F13: 0 | M13: =IF(G13="","",(IFERROR(VLOOKUP($G13,【選択肢】!$Q$3:$U$90,2,)," ")&IF(H13="","",","&IFERROR(VLOOKUP($H13,【選択肢】!$Q$3:$U$90,2,)," ")&IF(I13="","",","&IFERROR(VLOOKUP($I13,【選択肢】!$Q$3:$U$90,2,)," ")&IF(J13="","",","&IFERROR(VLOOKUP($J13,【選択肢】!$Q$3:$U$90,2,)," ")&IF(K13="","",","&IFERROR(VLOOKUP($K13,【選択肢】!$Q$3:$U$90,2,)," ")&IF(L13="","",","&IFERROR(VLOOKUP($L13,【選択肢】!$Q$3:$U$90,2,)," ")))))))) ->  | N13: =IF(G13="","",(IFERROR(VLOOKUP($G13,【選択肢】!$Q$3:$U$90,4,)," ")&IF(H13="","",","&IFERROR(VLOOKUP($H13,【選択肢】!$Q$3:$U$90,4,)," ")&IF(I13="","",","&IFERROR(VLOOKUP($I13,【選択肢】!$Q$3:$U$90,4,)," ")&IF(J13="","",","&IFERROR(VLOOKUP($J13,【選択肢】!$Q$3:$U$90,4,)," ")&IF(K13="","",","&IFERROR(VLOOKUP($K13,【選択肢】!$Q$3:$U$90,4,)," ")&IF(L13="","",","&IFERROR(VLOOKUP($L13,【選択肢】!$Q$3:$U$90,4,)," ")))))))) ->  | O13: =IF(G13="","",(IFERROR(VLOOKUP($G13,【選択肢】!$Q$3:$U$90,5,)," ")&IF(H13="","",","&IFERROR(VLOOKUP($H13,【選択肢】!$Q$3:$U$90,5,)," ")&IF(I13="","",","&IFERROR(VLOOKUP($I13,【選択肢】!$Q$3:$U$90,5,)," ")&IF(J13="","",","&IFERROR(VLOOKUP($J13,【選択肢】!$Q$3:$U$90,5,)," ")&IF(K13="","",","&IFERROR(VLOOKUP($K13,【選択肢】!$Q$3:$U$90,5,)," ")&IF(L13="","",","&IFERROR(VLOOKUP($L13,【選択肢】!$Q$3:$U$90,5,)," ")))))))) -> 
F14: 0 | M14: =IF(G14="","",(IFERROR(VLOOKUP($G14,【選択肢】!$Q$3:$U$90,2,)," ")&IF(H14="","",","&IFERROR(VLOOKUP($H14,【選択肢】!$Q$3:$U$90,2,)," ")&IF(I14="","",","&IFERROR(VLOOKUP($I14,【選択肢】!$Q$3:$U$90,2,)," ")&IF(J14="","",","&IFERROR(VLOOKUP($J14,【選択肢】!$Q$3:$U$90,2,)," ")&IF(K14="","",","&IFERROR(VLOOKUP($K14,【選択肢】!$Q$3:$U$90,2,)," ")&IF(L14="","",","&IFERROR(VLOOKUP($L14,【選択肢】!$Q$3:$U$90,2,)," ")))))))) ->  | N14: =IF(G14="","",(IFERROR(VLOOKUP($G14,【選択肢】!$Q$3:$U$90,4,)," ")&IF(H14="","",","&IFERROR(VLOOKUP($H14,【選択肢】!$Q$3:$U$90,4,)," ")&IF(I14="","",","&IFERROR(VLOOKUP($I14,【選択肢】!$Q$3:$U$90,4,)," ")&IF(J14="","",","&IFERROR(VLOOKUP($J14,【選択肢】!$Q$3:$U$90,4,)," ")&IF(K14="","",","&IFERROR(VLOOKUP($K14,【選択肢】!$Q$3:$U$90,4,)," ")&IF(L14="","",","&IFERROR(VLOOKUP($L14,【選択肢】!$Q$3:$U$90,4,)," ")))))))) ->  | O14: =IF(G14="","",(IFERROR(VLOOKUP($G14,【選択肢】!$Q$3:$U$90,5,)," ")&IF(H14="","",","&IFERROR(VLOOKUP($H14,【選択肢】!$Q$3:$U$90,5,)," ")&IF(I14="","",","&IFERROR(VLOOKUP($I14,【選択肢】!$Q$3:$U$90,5,)," ")&IF(J14="","",","&IFERROR(VLOOKUP($J14,【選択肢】!$Q$3:$U$90,5,)," ")&IF(K14="","",","&IFERROR(VLOOKUP($K14,【選択肢】!$Q$3:$U$90,5,)," ")&IF(L14="","",","&IFERROR(VLOOKUP($L14,【選択肢】!$Q$3:$U$90,5,)," ")))))))) -> 
F15: 0 | M15: =IF(G15="","",(IFERROR(VLOOKUP($G15,【選択肢】!$Q$3:$U$90,2,)," ")&IF(H15="","",","&IFERROR(VLOOKUP($H15,【選択肢】!$Q$3:$U$90,2,)," ")&IF(I15="","",","&IFERROR(VLOOKUP($I15,【選択肢】!$Q$3:$U$90,2,)," ")&IF(J15="","",","&IFERROR(VLOOKUP($J15,【選択肢】!$Q$3:$U$90,2,)," ")&IF(K15="","",","&IFERROR(VLOOKUP($K15,【選択肢】!$Q$3:$U$90,2,)," ")&IF(L15="","",","&IFERROR(VLOOKUP($L15,【選択肢】!$Q$3:$U$90,2,)," ")))))))) ->  | N15: =IF(G15="","",(IFERROR(VLOOKUP($G15,【選択肢】!$Q$3:$U$90,4,)," ")&IF(H15="","",","&IFERROR(VLOOKUP($H15,【選択肢】!$Q$3:$U$90,4,)," ")&IF(I15="","",","&IFERROR(VLOOKUP($I15,【選択肢】!$Q$3:$U$90,4,)," ")&IF(J15="","",","&IFERROR(VLOOKUP($J15,【選択肢】!$Q$3:$U$90,4,)," ")&IF(K15="","",","&IFERROR(VLOOKUP($K15,【選択肢】!$Q$3:$U$90,4,)," ")&IF(L15="","",","&IFERROR(VLOOKUP($L15,【選択肢】!$Q$3:$U$90,4,)," ")))))))) ->  | O15: =IF(G15="","",(IFERROR(VLOOKUP($G15,【選択肢】!$Q$3:$U$90,5,)," ")&IF(H15="","",","&IFERROR(VLOOKUP($H15,【選択肢】!$Q$3:$U$90,5,)," ")&IF(I15="","",","&IFERROR(VLOOKUP($I15,【選択肢】!$Q$3:$U$90,5,)," ")&IF(J15="","",","&IFERROR(VLOOKUP($J15,【選択肢】!$Q$3:$U$90,5,)," ")&IF(K15="","",","&IFERROR(VLOOKUP($K15,【選択肢】!$Q$3:$U$90,5,)," ")&IF(L15="","",","&IFERROR(VLOOKUP($L15,【選択肢】!$Q$3:$U$90,5,)," ")))))))) -> 
F16: 0 | M16: =IF(G16="","",(IFERROR(VLOOKUP($G16,【選択肢】!$Q$3:$U$90,2,)," ")&IF(H16="","",","&IFERROR(VLOOKUP($H16,【選択肢】!$Q$3:$U$90,2,)," ")&IF(I16="","",","&IFERROR(VLOOKUP($I16,【選択肢】!$Q$3:$U$90,2,)," ")&IF(J16="","",","&IFERROR(VLOOKUP($J16,【選択肢】!$Q$3:$U$90,2,)," ")&IF(K16="","",","&IFERROR(VLOOKUP($K16,【選択肢】!$Q$3:$U$90,2,)," ")&IF(L16="","",","&IFERROR(VLOOKUP($L16,【選択肢】!$Q$3:$U$90,2,)," ")))))))) ->  | N16: =IF(G16="","",(IFERROR(VLOOKUP($G16,【選択肢】!$Q$3:$U$90,4,)," ")&IF(H16="","",","&IFERROR(VLOOKUP($H16,【選択肢】!$Q$3:$U$90,4,)," ")&IF(I16="","",","&IFERROR(VLOOKUP($I16,【選択肢】!$Q$3:$U$90,4,)," ")&IF(J16="","",","&IFERROR(VLOOKUP($J16,【選択肢】!$Q$3:$U$90,4,)," ")&IF(K16="","",","&IFERROR(VLOOKUP($K16,【選択肢】!$Q$3:$U$90,4,)," ")&IF(L16="","",","&IFERROR(VLOOKUP($L16,【選択肢】!$Q$3:$U$90,4,)," ")))))))) ->  | O16: =IF(G16="","",(IFERROR(VLOOKUP($G16,【選択肢】!$Q$3:$U$90,5,)," ")&IF(H16="","",","&IFERROR(VLOOKUP($H16,【選択肢】!$Q$3:$U$90,5,)," ")&IF(I16="","",","&IFERROR(VLOOKUP($I16,【選択肢】!$Q$3:$U$90,5,)," ")&IF(J16="","",","&IFERROR(VLOOKUP($J16,【選択肢】!$Q$3:$U$90,5,)," ")&IF(K16="","",","&IFERROR(VLOOKUP($K16,【選択肢】!$Q$3:$U$90,5,)," ")&IF(L16="","",","&IFERROR(VLOOKUP($L16,【選択肢】!$Q$3:$U$90,5,)," ")))))))) -> 
F17: 0 | M17: =IF(G17="","",(IFERROR(VLOOKUP($G17,【選択肢】!$Q$3:$U$90,2,)," ")&IF(H17="","",","&IFERROR(VLOOKUP($H17,【選択肢】!$Q$3:$U$90,2,)," ")&IF(I17="","",","&IFERROR(VLOOKUP($I17,【選択肢】!$Q$3:$U$90,2,)," ")&IF(J17="","",","&IFERROR(VLOOKUP($J17,【選択肢】!$Q$3:$U$90,2,)," ")&IF(K17="","",","&IFERROR(VLOOKUP($K17,【選択肢】!$Q$3:$U$90,2,)," ")&IF(L17="","",","&IFERROR(VLOOKUP($L17,【選択肢】!$Q$3:$U$90,2,)," ")))))))) ->  | N17: =IF(G17="","",(IFERROR(VLOOKUP($G17,【選択肢】!$Q$3:$U$90,4,)," ")&IF(H17="","",","&IFERROR(VLOOKUP($H17,【選択肢】!$Q$3:$U$90,4,)," ")&IF(I17="","",","&IFERROR(VLOOKUP($I17,【選択肢】!$Q$3:$U$90,4,)," ")&IF(J17="","",","&IFERROR(VLOOKUP($J17,【選択肢】!$Q$3:$U$90,4,)," ")&IF(K17="","",","&IFERROR(VLOOKUP($K17,【選択肢】!$Q$3:$U$90,4,)," ")&IF(L17="","",","&IFERROR(VLOOKUP($L17,【選択肢】!$Q$3:$U$90,4,)," ")))))))) ->  | O17: =IF(G17="","",(IFERROR(VLOOKUP($G17,【選択肢】!$Q$3:$U$90,5,)," ")&IF(H17="","",","&IFERROR(VLOOKUP($H17,【選択肢】!$Q$3:$U$90,5,)," ")&IF(I17="","",","&IFERROR(VLOOKUP($I17,【選択肢】!$Q$3:$U$90,5,)," ")&IF(J17="","",","&IFERROR(VLOOKUP($J17,【選択肢】!$Q$3:$U$90,5,)," ")&IF(K17="","",","&IFERROR(VLOOKUP($K17,【選択肢】!$Q$3:$U$90,5,)," ")&IF(L17="","",","&IFERROR(VLOOKUP($L17,【選択肢】!$Q$3:$U$90,5,)," ")))))))) -> 
F18: 0 | M18: =IF(G18="","",(IFERROR(VLOOKUP($G18,【選択肢】!$Q$3:$U$90,2,)," ")&IF(H18="","",","&IFERROR(VLOOKUP($H18,【選択肢】!$Q$3:$U$90,2,)," ")&IF(I18="","",","&IFERROR(VLOOKUP($I18,【選択肢】!$Q$3:$U$90,2,)," ")&IF(J18="","",","&IFERROR(VLOOKUP($J18,【選択肢】!$Q$3:$U$90,2,)," ")&IF(K18="","",","&IFERROR(VLOOKUP($K18,【選択肢】!$Q$3:$U$90,2,)," ")&IF(L18="","",","&IFERROR(VLOOKUP($L18,【選択肢】!$Q$3:$U$90,2,)," ")))))))) ->  | N18: =IF(G18="","",(IFERROR(VLOOKUP($G18,【選択肢】!$Q$3:$U$90,4,)," ")&IF(H18="","",","&IFERROR(VLOOKUP($H18,【選択肢】!$Q$3:$U$90,4,)," ")&IF(I18="","",","&IFERROR(VLOOKUP($I18,【選択肢】!$Q$3:$U$90,4,)," ")&IF(J18="","",","&IFERROR(VLOOKUP($J18,【選択肢】!$Q$3:$U$90,4,)," ")&IF(K18="","",","&IFERROR(VLOOKUP($K18,【選択肢】!$Q$3:$U$90,4,)," ")&IF(L18="","",","&IFERROR(VLOOKUP($L18,【選択肢】!$Q$3:$U$90,4,)," ")))))))) ->  | O18: =IF(G18="","",(IFERROR(VLOOKUP($G18,【選択肢】!$Q$3:$U$90,5,)," ")&IF(H18="","",","&IFERROR(VLOOKUP($H18,【選択肢】!$Q$3:$U$90,5,)," ")&IF(I18="","",","&IFERROR(VLOOKUP($I18,【選択肢】!$Q$3:$U$90,5,)," ")&IF(J18="","",","&IFERROR(VLOOKUP($J18,【選択肢】!$Q$3:$U$90,5,)," ")&IF(K18="","",","&IFERROR(VLOOKUP($K18,【選択肢】!$Q$3:$U$90,5,)," ")&IF(L18="","",","&IFERROR(VLOOKUP($L18,【選択肢】!$Q$3:$U$90,5,)," ")))))))) -> 
F19: 0 | M19: =IF(G19="","",(IFERROR(VLOOKUP($G19,【選択肢】!$Q$3:$U$90,2,)," ")&IF(H19="","",","&IFERROR(VLOOKUP($H19,【選択肢】!$Q$3:$U$90,2,)," ")&IF(I19="","",","&IFERROR(VLOOKUP($I19,【選択肢】!$Q$3:$U$90,2,)," ")&IF(J19="","",","&IFERROR(VLOOKUP($J19,【選択肢】!$Q$3:$U$90,2,)," ")&IF(K19="","",","&IFERROR(VLOOKUP($K19,【選択肢】!$Q$3:$U$90,2,)," ")&IF(L19="","",","&IFERROR(VLOOKUP($L19,【選択肢】!$Q$3:$U$90,2,)," ")))))))) ->  | N19: =IF(G19="","",(IFERROR(VLOOKUP($G19,【選択肢】!$Q$3:$U$90,4,)," ")&IF(H19="","",","&IFERROR(VLOOKUP($H19,【選択肢】!$Q$3:$U$90,4,)," ")&IF(I19="","",","&IFERROR(VLOOKUP($I19,【選択肢】!$Q$3:$U$90,4,)," ")&IF(J19="","",","&IFERROR(VLOOKUP($J19,【選択肢】!$Q$3:$U$90,4,)," ")&IF(K19="","",","&IFERROR(VLOOKUP($K19,【選択肢】!$Q$3:$U$90,4,)," ")&IF(L19="","",","&IFERROR(VLOOKUP($L19,【選択肢】!$Q$3:$U$90,4,)," ")))))))) ->  | O19: =IF(G19="","",(IFERROR(VLOOKUP($G19,【選択肢】!$Q$3:$U$90,5,)," ")&IF(H19="","",","&IFERROR(VLOOKUP($H19,【選択肢】!$Q$3:$U$90,5,)," ")&IF(I19="","",","&IFERROR(VLOOKUP($I19,【選択肢】!$Q$3:$U$90,5,)," ")&IF(J19="","",","&IFERROR(VLOOKUP($J19,【選択肢】!$Q$3:$U$90,5,)," ")&IF(K19="","",","&IFERROR(VLOOKUP($K19,【選択肢】!$Q$3:$U$90,5,)," ")&IF(L19="","",","&IFERROR(VLOOKUP($L19,【選択肢】!$Q$3:$U$90,5,)," ")))))))) -> 
F20: 0 | M20: =IF(G20="","",(IFERROR(VLOOKUP($G20,【選択肢】!$Q$3:$U$90,2,)," ")&IF(H20="","",","&IFERROR(VLOOKUP($H20,【選択肢】!$Q$3:$U$90,2,)," ")&IF(I20="","",","&IFERROR(VLOOKUP($I20,【選択肢】!$Q$3:$U$90,2,)," ")&IF(J20="","",","&IFERROR(VLOOKUP($J20,【選択肢】!$Q$3:$U$90,2,)," ")&IF(K20="","",","&IFERROR(VLOOKUP($K20,【選択肢】!$Q$3:$U$90,2,)," ")&IF(L20="","",","&IFERROR(VLOOKUP($L20,【選択肢】!$Q$3:$U$90,2,)," ")))))))) ->  | N20: =IF(G20="","",(IFERROR(VLOOKUP($G20,【選択肢】!$Q$3:$U$90,4,)," ")&IF(H20="","",","&IFERROR(VLOOKUP($H20,【選択肢】!$Q$3:$U$90,4,)," ")&IF(I20="","",","&IFERROR(VLOOKUP($I20,【選択肢】!$Q$3:$U$90,4,)," ")&IF(J20="","",","&IFERROR(VLOOKUP($J20,【選択肢】!$Q$3:$U$90,4,)," ")&IF(K20="","",","&IFERROR(VLOOKUP($K20,【選択肢】!$Q$3:$U$90,4,)," ")&IF(L20="","",","&IFERROR(VLOOKUP($L20,【選択肢】!$Q$3:$U$90,4,)," ")))))))) ->  | O20: =IF(G20="","",(IFERROR(VLOOKUP($G20,【選択肢】!$Q$3:$U$90,5,)," ")&IF(H20="","",","&IFERROR(VLOOKUP($H20,【選択肢】!$Q$3:$U$90,5,)," ")&IF(I20="","",","&IFERROR(VLOOKUP($I20,【選択肢】!$Q$3:$U$90,5,)," ")&IF(J20="","",","&IFERROR(VLOOKUP($J20,【選択肢】!$Q$3:$U$90,5,)," ")&IF(K20="","",","&IFERROR(VLOOKUP($K20,【選択肢】!$Q$3:$U$90,5,)," ")&IF(L20="","",","&IFERROR(VLOOKUP($L20,【選択肢】!$Q$3:$U$90,5,)," ")))))))) -> 
F21: 0 | M21: =IF(G21="","",(IFERROR(VLOOKUP($G21,【選択肢】!$Q$3:$U$90,2,)," ")&IF(H21="","",","&IFERROR(VLOOKUP($H21,【選択肢】!$Q$3:$U$90,2,)," ")&IF(I21="","",","&IFERROR(VLOOKUP($I21,【選択肢】!$Q$3:$U$90,2,)," ")&IF(J21="","",","&IFERROR(VLOOKUP($J21,【選択肢】!$Q$3:$U$90,2,)," ")&IF(K21="","",","&IFERROR(VLOOKUP($K21,【選択肢】!$Q$3:$U$90,2,)," ")&IF(L21="","",","&IFERROR(VLOOKUP($L21,【選択肢】!$Q$3:$U$90,2,)," ")))))))) ->  | N21: =IF(G21="","",(IFERROR(VLOOKUP($G21,【選択肢】!$Q$3:$U$90,4,)," ")&IF(H21="","",","&IFERROR(VLOOKUP($H21,【選択肢】!$Q$3:$U$90,4,)," ")&IF(I21="","",","&IFERROR(VLOOKUP($I21,【選択肢】!$Q$3:$U$90,4,)," ")&IF(J21="","",","&IFERROR(VLOOKUP($J21,【選択肢】!$Q$3:$U$90,4,)," ")&IF(K21="","",","&IFERROR(VLOOKUP($K21,【選択肢】!$Q$3:$U$90,4,)," ")&IF(L21="","",","&IFERROR(VLOOKUP($L21,【選択肢】!$Q$3:$U$90,4,)," ")))))))) ->  | O21: =IF(G21="","",(IFERROR(VLOOKUP($G21,【選択肢】!$Q$3:$U$90,5,)," ")&IF(H21="","",","&IFERROR(VLOOKUP($H21,【選択肢】!$Q$3:$U$90,5,)," ")&IF(I21="","",","&IFERROR(VLOOKUP($I21,【選択肢】!$Q$3:$U$90,5,)," ")&IF(J21="","",","&IFERROR(VLOOKUP($J21,【選択肢】!$Q$3:$U$90,5,)," ")&IF(K21="","",","&IFERROR(VLOOKUP($K21,【選択肢】!$Q$3:$U$90,5,)," ")&IF(L21="","",","&IFERROR(VLOOKUP($L21,【選択肢】!$Q$3:$U$90,5,)," ")))))))) -> 
F22: 0 | M22: =IF(G22="","",(IFERROR(VLOOKUP($G22,【選択肢】!$Q$3:$U$90,2,)," ")&IF(H22="","",","&IFERROR(VLOOKUP($H22,【選択肢】!$Q$3:$U$90,2,)," ")&IF(I22="","",","&IFERROR(VLOOKUP($I22,【選択肢】!$Q$3:$U$90,2,)," ")&IF(J22="","",","&IFERROR(VLOOKUP($J22,【選択肢】!$Q$3:$U$90,2,)," ")&IF(K22="","",","&IFERROR(VLOOKUP($K22,【選択肢】!$Q$3:$U$90,2,)," ")&IF(L22="","",","&IFERROR(VLOOKUP($L22,【選択肢】!$Q$3:$U$90,2,)," ")))))))) ->  | N22: =IF(G22="","",(IFERROR(VLOOKUP($G22,【選択肢】!$Q$3:$U$90,4,)," ")&IF(H22="","",","&IFERROR(VLOOKUP($H22,【選択肢】!$Q$3:$U$90,4,)," ")&IF(I22="","",","&IFERROR(VLOOKUP($I22,【選択肢】!$Q$3:$U$90,4,)," ")&IF(J22="","",","&IFERROR(VLOOKUP($J22,【選択肢】!$Q$3:$U$90,4,)," ")&IF(K22="","",","&IFERROR(VLOOKUP($K22,【選択肢】!$Q$3:$U$90,4,)," ")&IF(L22="","",","&IFERROR(VLOOKUP($L22,【選択肢】!$Q$3:$U$90,4,)," ")))))))) ->  | O22: =IF(G22="","",(IFERROR(VLOOKUP($G22,【選択肢】!$Q$3:$U$90,5,)," ")&IF(H22="","",","&IFERROR(VLOOKUP($H22,【選択肢】!$Q$3:$U$90,5,)," ")&IF(I22="","",","&IFERROR(VLOOKUP($I22,【選択肢】!$Q$3:$U$90,5,)," ")&IF(J22="","",","&IFERROR(VLOOKUP($J22,【選択肢】!$Q$3:$U$90,5,)," ")&IF(K22="","",","&IFERROR(VLOOKUP($K22,【選択肢】!$Q$3:$U$90,5,)," ")&IF(L22="","",","&IFERROR(VLOOKUP($L22,【選択肢】!$Q$3:$U$90,5,)," ")))))))) -> 
F23: 0 | M23: =IF(G23="","",(IFERROR(VLOOKUP($G23,【選択肢】!$Q$3:$U$90,2,)," ")&IF(H23="","",","&IFERROR(VLOOKUP($H23,【選択肢】!$Q$3:$U$90,2,)," ")&IF(I23="","",","&IFERROR(VLOOKUP($I23,【選択肢】!$Q$3:$U$90,2,)," ")&IF(J23="","",","&IFERROR(VLOOKUP($J23,【選択肢】!$Q$3:$U$90,2,)," ")&IF(K23="","",","&IFERROR(VLOOKUP($K23,【選択肢】!$Q$3:$U$90,2,)," ")&IF(L23="","",","&IFERROR(VLOOKUP($L23,【選択肢】!$Q$3:$U$90,2,)," ")))))))) ->  | N23: =IF(G23="","",(IFERROR(VLOOKUP($G23,【選択肢】!$Q$3:$U$90,4,)," ")&IF(H23="","",","&IFERROR(VLOOKUP($H23,【選択肢】!$Q$3:$U$90,4,)," ")&IF(I23="","",","&IFERROR(VLOOKUP($I23,【選択肢】!$Q$3:$U$90,4,)," ")&IF(J23="","",","&IFERROR(VLOOKUP($J23,【選択肢】!$Q$3:$U$90,4,)," ")&IF(K23="","",","&IFERROR(VLOOKUP($K23,【選択肢】!$Q$3:$U$90,4,)," ")&IF(L23="","",","&IFERROR(VLOOKUP($L23,【選択肢】!$Q$3:$U$90,4,)," ")))))))) ->  | O23: =IF(G23="","",(IFERROR(VLOOKUP($G23,【選択肢】!$Q$3:$U$90,5,)," ")&IF(H23="","",","&IFERROR(VLOOKUP($H23,【選択肢】!$Q$3:$U$90,5,)," ")&IF(I23="","",","&IFERROR(VLOOKUP($I23,【選択肢】!$Q$3:$U$90,5,)," ")&IF(J23="","",","&IFERROR(VLOOKUP($J23,【選択肢】!$Q$3:$U$90,5,)," ")&IF(K23="","",","&IFERROR(VLOOKUP($K23,【選択肢】!$Q$3:$U$90,5,)," ")&IF(L23="","",","&IFERROR(VLOOKUP($L23,【選択肢】!$Q$3:$U$90,5,)," ")))))))) -> 
F24: 0 | M24: =IF(G24="","",(IFERROR(VLOOKUP($G24,【選択肢】!$Q$3:$U$90,2,)," ")&IF(H24="","",","&IFERROR(VLOOKUP($H24,【選択肢】!$Q$3:$U$90,2,)," ")&IF(I24="","",","&IFERROR(VLOOKUP($I24,【選択肢】!$Q$3:$U$90,2,)," ")&IF(J24="","",","&IFERROR(VLOOKUP($J24,【選択肢】!$Q$3:$U$90,2,)," ")&IF(K24="","",","&IFERROR(VLOOKUP($K24,【選択肢】!$Q$3:$U$90,2,)," ")&IF(L24="","",","&IFERROR(VLOOKUP($L24,【選択肢】!$Q$3:$U$90,2,)," ")))))))) ->  | N24: =IF(G24="","",(IFERROR(VLOOKUP($G24,【選択肢】!$Q$3:$U$90,4,)," ")&IF(H24="","",","&IFERROR(VLOOKUP($H24,【選択肢】!$Q$3:$U$90,4,)," ")&IF(I24="","",","&IFERROR(VLOOKUP($I24,【選択肢】!$Q$3:$U$90,4,)," ")&IF(J24="","",","&IFERROR(VLOOKUP($J24,【選択肢】!$Q$3:$U$90,4,)," ")&IF(K24="","",","&IFERROR(VLOOKUP($K24,【選択肢】!$Q$3:$U$90,4,)," ")&IF(L24="","",","&IFERROR(VLOOKUP($L24,【選択肢】!$Q$3:$U$90,4,)," ")))))))) ->  | O24: =IF(G24="","",(IFERROR(VLOOKUP($G24,【選択肢】!$Q$3:$U$90,5,)," ")&IF(H24="","",","&IFERROR(VLOOKUP($H24,【選択肢】!$Q$3:$U$90,5,)," ")&IF(I24="","",","&IFERROR(VLOOKUP($I24,【選択肢】!$Q$3:$U$90,5,)," ")&IF(J24="","",","&IFERROR(VLOOKUP($J24,【選択肢】!$Q$3:$U$90,5,)," ")&IF(K24="","",","&IFERROR(VLOOKUP($K24,【選択肢】!$Q$3:$U$90,5,)," ")&IF(L24="","",","&IFERROR(VLOOKUP($L24,【選択肢】!$Q$3:$U$90,5,)," ")))))))) -> 
F25: 0 | M25: =IF(G25="","",(IFERROR(VLOOKUP($G25,【選択肢】!$Q$3:$U$90,2,)," ")&IF(H25="","",","&IFERROR(VLOOKUP($H25,【選択肢】!$Q$3:$U$90,2,)," ")&IF(I25="","",","&IFERROR(VLOOKUP($I25,【選択肢】!$Q$3:$U$90,2,)," ")&IF(J25="","",","&IFERROR(VLOOKUP($J25,【選択肢】!$Q$3:$U$90,2,)," ")&IF(K25="","",","&IFERROR(VLOOKUP($K25,【選択肢】!$Q$3:$U$90,2,)," ")&IF(L25="","",","&IFERROR(VLOOKUP($L25,【選択肢】!$Q$3:$U$90,2,)," ")))))))) ->  | N25: =IF(G25="","",(IFERROR(VLOOKUP($G25,【選択肢】!$Q$3:$U$90,4,)," ")&IF(H25="","",","&IFERROR(VLOOKUP($H25,【選択肢】!$Q$3:$U$90,4,)," ")&IF(I25="","",","&IFERROR(VLOOKUP($I25,【選択肢】!$Q$3:$U$90,4,)," ")&IF(J25="","",","&IFERROR(VLOOKUP($J25,【選択肢】!$Q$3:$U$90,4,)," ")&IF(K25="","",","&IFERROR(VLOOKUP($K25,【選択肢】!$Q$3:$U$90,4,)," ")&IF(L25="","",","&IFERROR(VLOOKUP($L25,【選択肢】!$Q$3:$U$90,4,)," ")))))))) ->  | O25: =IF(G25="","",(IFERROR(VLOOKUP($G25,【選択肢】!$Q$3:$U$90,5,)," ")&IF(H25="","",","&IFERROR(VLOOKUP($H25,【選択肢】!$Q$3:$U$90,5,)," ")&IF(I25="","",","&IFERROR(VLOOKUP($I25,【選択肢】!$Q$3:$U$90,5,)," ")&IF(J25="","",","&IFERROR(VLOOKUP($J25,【選択肢】!$Q$3:$U$90,5,)," ")&IF(K25="","",","&IFERROR(VLOOKUP($K25,【選択肢】!$Q$3:$U$90,5,)," ")&IF(L25="","",","&IFERROR(VLOOKUP($L25,【選択肢】!$Q$3:$U$90,5,)," ")))))))) -> 
F26: 0 | M26: =IF(G26="","",(IFERROR(VLOOKUP($G26,【選択肢】!$Q$3:$U$90,2,)," ")&IF(H26="","",","&IFERROR(VLOOKUP($H26,【選択肢】!$Q$3:$U$90,2,)," ")&IF(I26="","",","&IFERROR(VLOOKUP($I26,【選択肢】!$Q$3:$U$90,2,)," ")&IF(J26="","",","&IFERROR(VLOOKUP($J26,【選択肢】!$Q$3:$U$90,2,)," ")&IF(K26="","",","&IFERROR(VLOOKUP($K26,【選択肢】!$Q$3:$U$90,2,)," ")&IF(L26="","",","&IFERROR(VLOOKUP($L26,【選択肢】!$Q$3:$U$90,2,)," ")))))))) ->  | N26: =IF(G26="","",(IFERROR(VLOOKUP($G26,【選択肢】!$Q$3:$U$90,4,)," ")&IF(H26="","",","&IFERROR(VLOOKUP($H26,【選択肢】!$Q$3:$U$90,4,)," ")&IF(I26="","",","&IFERROR(VLOOKUP($I26,【選択肢】!$Q$3:$U$90,4,)," ")&IF(J26="","",","&IFERROR(VLOOKUP($J26,【選択肢】!$Q$3:$U$90,4,)," ")&IF(K26="","",","&IFERROR(VLOOKUP($K26,【選択肢】!$Q$3:$U$90,4,)," ")&IF(L26="","",","&IFERROR(VLOOKUP($L26,【選択肢】!$Q$3:$U$90,4,)," ")))))))) ->  | O26: =IF(G26="","",(IFERROR(VLOOKUP($G26,【選択肢】!$Q$3:$U$90,5,)," ")&IF(H26="","",","&IFERROR(VLOOKUP($H26,【選択肢】!$Q$3:$U$90,5,)," ")&IF(I26="","",","&IFERROR(VLOOKUP($I26,【選択肢】!$Q$3:$U$90,5,)," ")&IF(J26="","",","&IFERROR(VLOOKUP($J26,【選択肢】!$Q$3:$U$90,5,)," ")&IF(K26="","",","&IFERROR(VLOOKUP($K26,【選択肢】!$Q$3:$U$90,5,)," ")&IF(L26="","",","&IFERROR(VLOOKUP($L26,【選択肢】!$Q$3:$U$90,5,)," ")))))))) -> 
F27: 0 | M27: =IF(G27="","",(IFERROR(VLOOKUP($G27,【選択肢】!$Q$3:$U$90,2,)," ")&IF(H27="","",","&IFERROR(VLOOKUP($H27,【選択肢】!$Q$3:$U$90,2,)," ")&IF(I27="","",","&IFERROR(VLOOKUP($I27,【選択肢】!$Q$3:$U$90,2,)," ")&IF(J27="","",","&IFERROR(VLOOKUP($J27,【選択肢】!$Q$3:$U$90,2,)," ")&IF(K27="","",","&IFERROR(VLOOKUP($K27,【選択肢】!$Q$3:$U$90,2,)," ")&IF(L27="","",","&IFERROR(VLOOKUP($L27,【選択肢】!$Q$3:$U$90,2,)," ")))))))) ->  | N27: =IF(G27="","",(IFERROR(VLOOKUP($G27,【選択肢】!$Q$3:$U$90,4,)," ")&IF(H27="","",","&IFERROR(VLOOKUP($H27,【選択肢】!$Q$3:$U$90,4,)," ")&IF(I27="","",","&IFERROR(VLOOKUP($I27,【選択肢】!$Q$3:$U$90,4,)," ")&IF(J27="","",","&IFERROR(VLOOKUP($J27,【選択肢】!$Q$3:$U$90,4,)," ")&IF(K27="","",","&IFERROR(VLOOKUP($K27,【選択肢】!$Q$3:$U$90,4,)," ")&IF(L27="","",","&IFERROR(VLOOKUP($L27,【選択肢】!$Q$3:$U$90,4,)," ")))))))) ->  | O27: =IF(G27="","",(IFERROR(VLOOKUP($G27,【選択肢】!$Q$3:$U$90,5,)," ")&IF(H27="","",","&IFERROR(VLOOKUP($H27,【選択肢】!$Q$3:$U$90,5,)," ")&IF(I27="","",","&IFERROR(VLOOKUP($I27,【選択肢】!$Q$3:$U$90,5,)," ")&IF(J27="","",","&IFERROR(VLOOKUP($J27,【選択肢】!$Q$3:$U$90,5,)," ")&IF(K27="","",","&IFERROR(VLOOKUP($K27,【選択肢】!$Q$3:$U$90,5,)," ")&IF(L27="","",","&IFERROR(VLOOKUP($L27,【選択肢】!$Q$3:$U$90,5,)," ")))))))) -> 
F28: =SUM(D28+E28) -> 0 | M28: =IF(G28="","",(IFERROR(VLOOKUP($G28,【選択肢】!$Q$3:$U$90,2,)," ")&IF(H28="","",","&IFERROR(VLOOKUP($H28,【選択肢】!$Q$3:$U$90,2,)," ")&IF(I28="","",","&IFERROR(VLOOKUP($I28,【選択肢】!$Q$3:$U$90,2,)," ")&IF(J28="","",","&IFERROR(VLOOKUP($J28,【選択肢】!$Q$3:$U$90,2,)," ")&IF(K28="","",","&IFERROR(VLOOKUP($K28,【選択肢】!$Q$3:$U$90,2,)," ")&IF(L28="","",","&IFERROR(VLOOKUP($L28,【選択肢】!$Q$3:$U$90,2,)," ")))))))) ->  | N28: =IF(G28="","",(IFERROR(VLOOKUP($G28,【選択肢】!$Q$3:$U$90,4,)," ")&IF(H28="","",","&IFERROR(VLOOKUP($H28,【選択肢】!$Q$3:$U$90,4,)," ")&IF(I28="","",","&IFERROR(VLOOKUP($I28,【選択肢】!$Q$3:$U$90,4,)," ")&IF(J28="","",","&IFERROR(VLOOKUP($J28,【選択肢】!$Q$3:$U$90,4,)," ")&IF(K28="","",","&IFERROR(VLOOKUP($K28,【選択肢】!$Q$3:$U$90,4,)," ")&IF(L28="","",","&IFERROR(VLOOKUP($L28,【選択肢】!$Q$3:$U$90,4,)," ")))))))) ->  | O28: =IF(G28="","",(IFERROR(VLOOKUP($G28,【選択肢】!$Q$3:$U$90,5,)," ")&IF(H28="","",","&IFERROR(VLOOKUP($H28,【選択肢】!$Q$3:$U$90,5,)," ")&IF(I28="","",","&IFERROR(VLOOKUP($I28,【選択肢】!$Q$3:$U$90,5,)," ")&IF(J28="","",","&IFERROR(VLOOKUP($J28,【選択肢】!$Q$3:$U$90,5,)," ")&IF(K28="","",","&IFERROR(VLOOKUP($K28,【選択肢】!$Q$3:$U$90,5,)," ")&IF(L28="","",","&IFERROR(VLOOKUP($L28,【選択肢】!$Q$3:$U$90,5,)," ")))))))) -> 
F29: 0 | M29: =IF(G29="","",(IFERROR(VLOOKUP($G29,【選択肢】!$Q$3:$U$90,2,)," ")&IF(H29="","",","&IFERROR(VLOOKUP($H29,【選択肢】!$Q$3:$U$90,2,)," ")&IF(I29="","",","&IFERROR(VLOOKUP($I29,【選択肢】!$Q$3:$U$90,2,)," ")&IF(J29="","",","&IFERROR(VLOOKUP($J29,【選択肢】!$Q$3:$U$90,2,)," ")&IF(K29="","",","&IFERROR(VLOOKUP($K29,【選択肢】!$Q$3:$U$90,2,)," ")&IF(L29="","",","&IFERROR(VLOOKUP($L29,【選択肢】!$Q$3:$U$90,2,)," ")))))))) ->  | N29: =IF(G29="","",(IFERROR(VLOOKUP($G29,【選択肢】!$Q$3:$U$90,4,)," ")&IF(H29="","",","&IFERROR(VLOOKUP($H29,【選択肢】!$Q$3:$U$90,4,)," ")&IF(I29="","",","&IFERROR(VLOOKUP($I29,【選択肢】!$Q$3:$U$90,4,)," ")&IF(J29="","",","&IFERROR(VLOOKUP($J29,【選択肢】!$Q$3:$U$90,4,)," ")&IF(K29="","",","&IFERROR(VLOOKUP($K29,【選択肢】!$Q$3:$U$90,4,)," ")&IF(L29="","",","&IFERROR(VLOOKUP($L29,【選択肢】!$Q$3:$U$90,4,)," ")))))))) ->  | O29: =IF(G29="","",(IFERROR(VLOOKUP($G29,【選択肢】!$Q$3:$U$90,5,)," ")&IF(H29="","",","&IFERROR(VLOOKUP($H29,【選択肢】!$Q$3:$U$90,5,)," ")&IF(I29="","",","&IFERROR(VLOOKUP($I29,【選択肢】!$Q$3:$U$90,5,)," ")&IF(J29="","",","&IFERROR(VLOOKUP($J29,【選択肢】!$Q$3:$U$90,5,)," ")&IF(K29="","",","&IFERROR(VLOOKUP($K29,【選択肢】!$Q$3:$U$90,5,)," ")&IF(L29="","",","&IFERROR(VLOOKUP($L29,【選択肢】!$Q$3:$U$90,5,)," ")))))))) -> 
F30: 0 | M30: =IF(G30="","",(IFERROR(VLOOKUP($G30,【選択肢】!$Q$3:$U$90,2,)," ")&IF(H30="","",","&IFERROR(VLOOKUP($H30,【選択肢】!$Q$3:$U$90,2,)," ")&IF(I30="","",","&IFERROR(VLOOKUP($I30,【選択肢】!$Q$3:$U$90,2,)," ")&IF(J30="","",","&IFERROR(VLOOKUP($J30,【選択肢】!$Q$3:$U$90,2,)," ")&IF(K30="","",","&IFERROR(VLOOKUP($K30,【選択肢】!$Q$3:$U$90,2,)," ")&IF(L30="","",","&IFERROR(VLOOKUP($L30,【選択肢】!$Q$3:$U$90,2,)," ")))))))) ->  | N30: =IF(G30="","",(IFERROR(VLOOKUP($G30,【選択肢】!$Q$3:$U$90,4,)," ")&IF(H30="","",","&IFERROR(VLOOKUP($H30,【選択肢】!$Q$3:$U$90,4,)," ")&IF(I30="","",","&IFERROR(VLOOKUP($I30,【選択肢】!$Q$3:$U$90,4,)," ")&IF(J30="","",","&IFERROR(VLOOKUP($J30,【選択肢】!$Q$3:$U$90,4,)," ")&IF(K30="","",","&IFERROR(VLOOKUP($K30,【選択肢】!$Q$3:$U$90,4,)," ")&IF(L30="","",","&IFERROR(VLOOKUP($L30,【選択肢】!$Q$3:$U$90,4,)," ")))))))) ->  | O30: =IF(G30="","",(IFERROR(VLOOKUP($G30,【選択肢】!$Q$3:$U$90,5,)," ")&IF(H30="","",","&IFERROR(VLOOKUP($H30,【選択肢】!$Q$3:$U$90,5,)," ")&IF(I30="","",","&IFERROR(VLOOKUP($I30,【選択肢】!$Q$3:$U$90,5,)," ")&IF(J30="","",","&IFERROR(VLOOKUP($J30,【選択肢】!$Q$3:$U$90,5,)," ")&IF(K30="","",","&IFERROR(VLOOKUP($K30,【選択肢】!$Q$3:$U$90,5,)," ")&IF(L30="","",","&IFERROR(VLOOKUP($L30,【選択肢】!$Q$3:$U$90,5,)," ")))))))) -> 
F31: 0 | M31: =IF(G31="","",(IFERROR(VLOOKUP($G31,【選択肢】!$Q$3:$U$90,2,)," ")&IF(H31="","",","&IFERROR(VLOOKUP($H31,【選択肢】!$Q$3:$U$90,2,)," ")&IF(I31="","",","&IFERROR(VLOOKUP($I31,【選択肢】!$Q$3:$U$90,2,)," ")&IF(J31="","",","&IFERROR(VLOOKUP($J31,【選択肢】!$Q$3:$U$90,2,)," ")&IF(K31="","",","&IFERROR(VLOOKUP($K31,【選択肢】!$Q$3:$U$90,2,)," ")&IF(L31="","",","&IFERROR(VLOOKUP($L31,【選択肢】!$Q$3:$U$90,2,)," ")))))))) ->  | N31: =IF(G31="","",(IFERROR(VLOOKUP($G31,【選択肢】!$Q$3:$U$90,4,)," ")&IF(H31="","",","&IFERROR(VLOOKUP($H31,【選択肢】!$Q$3:$U$90,4,)," ")&IF(I31="","",","&IFERROR(VLOOKUP($I31,【選択肢】!$Q$3:$U$90,4,)," ")&IF(J31="","",","&IFERROR(VLOOKUP($J31,【選択肢】!$Q$3:$U$90,4,)," ")&IF(K31="","",","&IFERROR(VLOOKUP($K31,【選択肢】!$Q$3:$U$90,4,)," ")&IF(L31="","",","&IFERROR(VLOOKUP($L31,【選択肢】!$Q$3:$U$90,4,)," ")))))))) ->  | O31: =IF(G31="","",(IFERROR(VLOOKUP($G31,【選択肢】!$Q$3:$U$90,5,)," ")&IF(H31="","",","&IFERROR(VLOOKUP($H31,【選択肢】!$Q$3:$U$90,5,)," ")&IF(I31="","",","&IFERROR(VLOOKUP($I31,【選択肢】!$Q$3:$U$90,5,)," ")&IF(J31="","",","&IFERROR(VLOOKUP($J31,【選択肢】!$Q$3:$U$90,5,)," ")&IF(K31="","",","&IFERROR(VLOOKUP($K31,【選択肢】!$Q$3:$U$90,5,)," ")&IF(L31="","",","&IFERROR(VLOOKUP($L31,【選択肢】!$Q$3:$U$90,5,)," ")))))))) -> 
F32: 0 | M32: =IF(G32="","",(IFERROR(VLOOKUP($G32,【選択肢】!$Q$3:$U$90,2,)," ")&IF(H32="","",","&IFERROR(VLOOKUP($H32,【選択肢】!$Q$3:$U$90,2,)," ")&IF(I32="","",","&IFERROR(VLOOKUP($I32,【選択肢】!$Q$3:$U$90,2,)," ")&IF(J32="","",","&IFERROR(VLOOKUP($J32,【選択肢】!$Q$3:$U$90,2,)," ")&IF(K32="","",","&IFERROR(VLOOKUP($K32,【選択肢】!$Q$3:$U$90,2,)," ")&IF(L32="","",","&IFERROR(VLOOKUP($L32,【選択肢】!$Q$3:$U$90,2,)," ")))))))) ->  | N32: =IF(G32="","",(IFERROR(VLOOKUP($G32,【選択肢】!$Q$3:$U$90,4,)," ")&IF(H32="","",","&IFERROR(VLOOKUP($H32,【選択肢】!$Q$3:$U$90,4,)," ")&IF(I32="","",","&IFERROR(VLOOKUP($I32,【選択肢】!$Q$3:$U$90,4,)," ")&IF(J32="","",","&IFERROR(VLOOKUP($J32,【選択肢】!$Q$3:$U$90,4,)," ")&IF(K32="","",","&IFERROR(VLOOKUP($K32,【選択肢】!$Q$3:$U$90,4,)," ")&IF(L32="","",","&IFERROR(VLOOKUP($L32,【選択肢】!$Q$3:$U$90,4,)," ")))))))) ->  | O32: =IF(G32="","",(IFERROR(VLOOKUP($G32,【選択肢】!$Q$3:$U$90,5,)," ")&IF(H32="","",","&IFERROR(VLOOKUP($H32,【選択肢】!$Q$3:$U$90,5,)," ")&IF(I32="","",","&IFERROR(VLOOKUP($I32,【選択肢】!$Q$3:$U$90,5,)," ")&IF(J32="","",","&IFERROR(VLOOKUP($J32,【選択肢】!$Q$3:$U$90,5,)," ")&IF(K32="","",","&IFERROR(VLOOKUP($K32,【選択肢】!$Q$3:$U$90,5,)," ")&IF(L32="","",","&IFERROR(VLOOKUP($L32,【選択肢】!$Q$3:$U$90,5,)," ")))))))) -> 
F33: 0 | M33: =IF(G33="","",(IFERROR(VLOOKUP($G33,【選択肢】!$Q$3:$U$90,2,)," ")&IF(H33="","",","&IFERROR(VLOOKUP($H33,【選択肢】!$Q$3:$U$90,2,)," ")&IF(I33="","",","&IFERROR(VLOOKUP($I33,【選択肢】!$Q$3:$U$90,2,)," ")&IF(J33="","",","&IFERROR(VLOOKUP($J33,【選択肢】!$Q$3:$U$90,2,)," ")&IF(K33="","",","&IFERROR(VLOOKUP($K33,【選択肢】!$Q$3:$U$90,2,)," ")&IF(L33="","",","&IFERROR(VLOOKUP($L33,【選択肢】!$Q$3:$U$90,2,)," ")))))))) ->  | N33: =IF(G33="","",(IFERROR(VLOOKUP($G33,【選択肢】!$Q$3:$U$90,4,)," ")&IF(H33="","",","&IFERROR(VLOOKUP($H33,【選択肢】!$Q$3:$U$90,4,)," ")&IF(I33="","",","&IFERROR(VLOOKUP($I33,【選択肢】!$Q$3:$U$90,4,)," ")&IF(J33="","",","&IFERROR(VLOOKUP($J33,【選択肢】!$Q$3:$U$90,4,)," ")&IF(K33="","",","&IFERROR(VLOOKUP($K33,【選択肢】!$Q$3:$U$90,4,)," ")&IF(L33="","",","&IFERROR(VLOOKUP($L33,【選択肢】!$Q$3:$U$90,4,)," ")))))))) ->  | O33: =IF(G33="","",(IFERROR(VLOOKUP($G33,【選択肢】!$Q$3:$U$90,5,)," ")&IF(H33="","",","&IFERROR(VLOOKUP($H33,【選択肢】!$Q$3:$U$90,5,)," ")&IF(I33="","",","&IFERROR(VLOOKUP($I33,【選択肢】!$Q$3:$U$90,5,)," ")&IF(J33="","",","&IFERROR(VLOOKUP($J33,【選択肢】!$Q$3:$U$90,5,)," ")&IF(K33="","",","&IFERROR(VLOOKUP($K33,【選択肢】!$Q$3:$U$90,5,)," ")&IF(L33="","",","&IFERROR(VLOOKUP($L33,【選択肢】!$Q$3:$U$90,5,)," ")))))))) -> 
F34: 0 | M34: =IF(G34="","",(IFERROR(VLOOKUP($G34,【選択肢】!$Q$3:$U$90,2,)," ")&IF(H34="","",","&IFERROR(VLOOKUP($H34,【選択肢】!$Q$3:$U$90,2,)," ")&IF(I34="","",","&IFERROR(VLOOKUP($I34,【選択肢】!$Q$3:$U$90,2,)," ")&IF(J34="","",","&IFERROR(VLOOKUP($J34,【選択肢】!$Q$3:$U$90,2,)," ")&IF(K34="","",","&IFERROR(VLOOKUP($K34,【選択肢】!$Q$3:$U$90,2,)," ")&IF(L34="","",","&IFERROR(VLOOKUP($L34,【選択肢】!$Q$3:$U$90,2,)," ")))))))) ->  | N34: =IF(G34="","",(IFERROR(VLOOKUP($G34,【選択肢】!$Q$3:$U$90,4,)," ")&IF(H34="","",","&IFERROR(VLOOKUP($H34,【選択肢】!$Q$3:$U$90,4,)," ")&IF(I34="","",","&IFERROR(VLOOKUP($I34,【選択肢】!$Q$3:$U$90,4,)," ")&IF(J34="","",","&IFERROR(VLOOKUP($J34,【選択肢】!$Q$3:$U$90,4,)," ")&IF(K34="","",","&IFERROR(VLOOKUP($K34,【選択肢】!$Q$3:$U$90,4,)," ")&IF(L34="","",","&IFERROR(VLOOKUP($L34,【選択肢】!$Q$3:$U$90,4,)," ")))))))) ->  | O34: =IF(G34="","",(IFERROR(VLOOKUP($G34,【選択肢】!$Q$3:$U$90,5,)," ")&IF(H34="","",","&IFERROR(VLOOKUP($H34,【選択肢】!$Q$3:$U$90,5,)," ")&IF(I34="","",","&IFERROR(VLOOKUP($I34,【選択肢】!$Q$3:$U$90,5,)," ")&IF(J34="","",","&IFERROR(VLOOKUP($J34,【選択肢】!$Q$3:$U$90,5,)," ")&IF(K34="","",","&IFERROR(VLOOKUP($K34,【選択肢】!$Q$3:$U$90,5,)," ")&IF(L34="","",","&IFERROR(VLOOKUP($L34,【選択肢】!$Q$3:$U$90,5,)," ")))))))) -> 
F35: 0 | M35: =IF(G35="","",(IFERROR(VLOOKUP($G35,【選択肢】!$Q$3:$U$90,2,)," ")&IF(H35="","",","&IFERROR(VLOOKUP($H35,【選択肢】!$Q$3:$U$90,2,)," ")&IF(I35="","",","&IFERROR(VLOOKUP($I35,【選択肢】!$Q$3:$U$90,2,)," ")&IF(J35="","",","&IFERROR(VLOOKUP($J35,【選択肢】!$Q$3:$U$90,2,)," ")&IF(K35="","",","&IFERROR(VLOOKUP($K35,【選択肢】!$Q$3:$U$90,2,)," ")&IF(L35="","",","&IFERROR(VLOOKUP($L35,【選択肢】!$Q$3:$U$90,2,)," ")))))))) ->  | N35: =IF(G35="","",(IFERROR(VLOOKUP($G35,【選択肢】!$Q$3:$U$90,4,)," ")&IF(H35="","",","&IFERROR(VLOOKUP($H35,【選択肢】!$Q$3:$U$90,4,)," ")&IF(I35="","",","&IFERROR(VLOOKUP($I35,【選択肢】!$Q$3:$U$90,4,)," ")&IF(J35="","",","&IFERROR(VLOOKUP($J35,【選択肢】!$Q$3:$U$90,4,)," ")&IF(K35="","",","&IFERROR(VLOOKUP($K35,【選択肢】!$Q$3:$U$90,4,)," ")&IF(L35="","",","&IFERROR(VLOOKUP($L35,【選択肢】!$Q$3:$U$90,4,)," ")))))))) ->  | O35: =IF(G35="","",(IFERROR(VLOOKUP($G35,【選択肢】!$Q$3:$U$90,5,)," ")&IF(H35="","",","&IFERROR(VLOOKUP($H35,【選択肢】!$Q$3:$U$90,5,)," ")&IF(I35="","",","&IFERROR(VLOOKUP($I35,【選択肢】!$Q$3:$U$90,5,)," ")&IF(J35="","",","&IFERROR(VLOOKUP($J35,【選択肢】!$Q$3:$U$90,5,)," ")&IF(K35="","",","&IFERROR(VLOOKUP($K35,【選択肢】!$Q$3:$U$90,5,)," ")&IF(L35="","",","&IFERROR(VLOOKUP($L35,【選択肢】!$Q$3:$U$90,5,)," ")))))))) -> 
F36: 0 | M36: =IF(G36="","",(IFERROR(VLOOKUP($G36,【選択肢】!$Q$3:$U$90,2,)," ")&IF(H36="","",","&IFERROR(VLOOKUP($H36,【選択肢】!$Q$3:$U$90,2,)," ")&IF(I36="","",","&IFERROR(VLOOKUP($I36,【選択肢】!$Q$3:$U$90,2,)," ")&IF(J36="","",","&IFERROR(VLOOKUP($J36,【選択肢】!$Q$3:$U$90,2,)," ")&IF(K36="","",","&IFERROR(VLOOKUP($K36,【選択肢】!$Q$3:$U$90,2,)," ")&IF(L36="","",","&IFERROR(VLOOKUP($L36,【選択肢】!$Q$3:$U$90,2,)," ")))))))) ->  | N36: =IF(G36="","",(IFERROR(VLOOKUP($G36,【選択肢】!$Q$3:$U$90,4,)," ")&IF(H36="","",","&IFERROR(VLOOKUP($H36,【選択肢】!$Q$3:$U$90,4,)," ")&IF(I36="","",","&IFERROR(VLOOKUP($I36,【選択肢】!$Q$3:$U$90,4,)," ")&IF(J36="","",","&IFERROR(VLOOKUP($J36,【選択肢】!$Q$3:$U$90,4,)," ")&IF(K36="","",","&IFERROR(VLOOKUP($K36,【選択肢】!$Q$3:$U$90,4,)," ")&IF(L36="","",","&IFERROR(VLOOKUP($L36,【選択肢】!$Q$3:$U$90,4,)," ")))))))) ->  | O36: =IF(G36="","",(IFERROR(VLOOKUP($G36,【選択肢】!$Q$3:$U$90,5,)," ")&IF(H36="","",","&IFERROR(VLOOKUP($H36,【選択肢】!$Q$3:$U$90,5,)," ")&IF(I36="","",","&IFERROR(VLOOKUP($I36,【選択肢】!$Q$3:$U$90,5,)," ")&IF(J36="","",","&IFERROR(VLOOKUP($J36,【選択肢】!$Q$3:$U$90,5,)," ")&IF(K36="","",","&IFERROR(VLOOKUP($K36,【選択肢】!$Q$3:$U$90,5,)," ")&IF(L36="","",","&IFERROR(VLOOKUP($L36,【選択肢】!$Q$3:$U$90,5,)," ")))))))) -> 
F37: 0 | M37: =IF(G37="","",(IFERROR(VLOOKUP($G37,【選択肢】!$Q$3:$U$90,2,)," ")&IF(H37="","",","&IFERROR(VLOOKUP($H37,【選択肢】!$Q$3:$U$90,2,)," ")&IF(I37="","",","&IFERROR(VLOOKUP($I37,【選択肢】!$Q$3:$U$90,2,)," ")&IF(J37="","",","&IFERROR(VLOOKUP($J37,【選択肢】!$Q$3:$U$90,2,)," ")&IF(K37="","",","&IFERROR(VLOOKUP($K37,【選択肢】!$Q$3:$U$90,2,)," ")&IF(L37="","",","&IFERROR(VLOOKUP($L37,【選択肢】!$Q$3:$U$90,2,)," ")))))))) ->  | N37: =IF(G37="","",(IFERROR(VLOOKUP($G37,【選択肢】!$Q$3:$U$90,4,)," ")&IF(H37="","",","&IFERROR(VLOOKUP($H37,【選択肢】!$Q$3:$U$90,4,)," ")&IF(I37="","",","&IFERROR(VLOOKUP($I37,【選択肢】!$Q$3:$U$90,4,)," ")&IF(J37="","",","&IFERROR(VLOOKUP($J37,【選択肢】!$Q$3:$U$90,4,)," ")&IF(K37="","",","&IFERROR(VLOOKUP($K37,【選択肢】!$Q$3:$U$90,4,)," ")&IF(L37="","",","&IFERROR(VLOOKUP($L37,【選択肢】!$Q$3:$U$90,4,)," ")))))))) ->  | O37: =IF(G37="","",(IFERROR(VLOOKUP($G37,【選択肢】!$Q$3:$U$90,5,)," ")&IF(H37="","",","&IFERROR(VLOOKUP($H37,【選択肢】!$Q$3:$U$90,5,)," ")&IF(I37="","",","&IFERROR(VLOOKUP($I37,【選択肢】!$Q$3:$U$90,5,)," ")&IF(J37="","",","&IFERROR(VLOOKUP($J37,【選択肢】!$Q$3:$U$90,5,)," ")&IF(K37="","",","&IFERROR(VLOOKUP($K37,【選択肢】!$Q$3:$U$90,5,)," ")&IF(L37="","",","&IFERROR(VLOOKUP($L37,【選択肢】!$Q$3:$U$90,5,)," ")))))))) -> 
F38: =SUM(D38+E38) -> 0 | M38: =IF(G38="","",(IFERROR(VLOOKUP($G38,【選択肢】!$Q$3:$U$90,2,)," ")&IF(H38="","",","&IFERROR(VLOOKUP($H38,【選択肢】!$Q$3:$U$90,2,)," ")&IF(I38="","",","&IFERROR(VLOOKUP($I38,【選択肢】!$Q$3:$U$90,2,)," ")&IF(J38="","",","&IFERROR(VLOOKUP($J38,【選択肢】!$Q$3:$U$90,2,)," ")&IF(K38="","",","&IFERROR(VLOOKUP($K38,【選択肢】!$Q$3:$U$90,2,)," ")&IF(L38="","",","&IFERROR(VLOOKUP($L38,【選択肢】!$Q$3:$U$90,2,)," ")))))))) ->  | N38: =IF(G38="","",(IFERROR(VLOOKUP($G38,【選択肢】!$Q$3:$U$90,4,)," ")&IF(H38="","",","&IFERROR(VLOOKUP($H38,【選択肢】!$Q$3:$U$90,4,)," ")&IF(I38="","",","&IFERROR(VLOOKUP($I38,【選択肢】!$Q$3:$U$90,4,)," ")&IF(J38="","",","&IFERROR(VLOOKUP($J38,【選択肢】!$Q$3:$U$90,4,)," ")&IF(K38="","",","&IFERROR(VLOOKUP($K38,【選択肢】!$Q$3:$U$90,4,)," ")&IF(L38="","",","&IFERROR(VLOOKUP($L38,【選択肢】!$Q$3:$U$90,4,)," ")))))))) ->  | O38: =IF(G38="","",(IFERROR(VLOOKUP($G38,【選択肢】!$Q$3:$U$90,5,)," ")&IF(H38="","",","&IFERROR(VLOOKUP($H38,【選択肢】!$Q$3:$U$90,5,)," ")&IF(I38="","",","&IFERROR(VLOOKUP($I38,【選択肢】!$Q$3:$U$90,5,)," ")&IF(J38="","",","&IFERROR(VLOOKUP($J38,【選択肢】!$Q$3:$U$90,5,)," ")&IF(K38="","",","&IFERROR(VLOOKUP($K38,【選択肢】!$Q$3:$U$90,5,)," ")&IF(L38="","",","&IFERROR(VLOOKUP($L38,【選択肢】!$Q$3:$U$90,5,)," ")))))))) -> 
F39: =SUM(D39+E39) -> 0 | M39: =IF(G39="","",(IFERROR(VLOOKUP($G39,【選択肢】!$Q$3:$U$90,2,)," ")&IF(H39="","",","&IFERROR(VLOOKUP($H39,【選択肢】!$Q$3:$U$90,2,)," ")&IF(I39="","",","&IFERROR(VLOOKUP($I39,【選択肢】!$Q$3:$U$90,2,)," ")&IF(J39="","",","&IFERROR(VLOOKUP($J39,【選択肢】!$Q$3:$U$90,2,)," ")&IF(K39="","",","&IFERROR(VLOOKUP($K39,【選択肢】!$Q$3:$U$90,2,)," ")&IF(L39="","",","&IFERROR(VLOOKUP($L39,【選択肢】!$Q$3:$U$90,2,)," ")))))))) ->  | N39: =IF(G39="","",(IFERROR(VLOOKUP($G39,【選択肢】!$Q$3:$U$90,4,)," ")&IF(H39="","",","&IFERROR(VLOOKUP($H39,【選択肢】!$Q$3:$U$90,4,)," ")&IF(I39="","",","&IFERROR(VLOOKUP($I39,【選択肢】!$Q$3:$U$90,4,)," ")&IF(J39="","",","&IFERROR(VLOOKUP($J39,【選択肢】!$Q$3:$U$90,4,)," ")&IF(K39="","",","&IFERROR(VLOOKUP($K39,【選択肢】!$Q$3:$U$90,4,)," ")&IF(L39="","",","&IFERROR(VLOOKUP($L39,【選択肢】!$Q$3:$U$90,4,)," ")))))))) ->  | O39: =IF(G39="","",(IFERROR(VLOOKUP($G39,【選択肢】!$Q$3:$U$90,5,)," ")&IF(H39="","",","&IFERROR(VLOOKUP($H39,【選択肢】!$Q$3:$U$90,5,)," ")&IF(I39="","",","&IFERROR(VLOOKUP($I39,【選択肢】!$Q$3:$U$90,5,)," ")&IF(J39="","",","&IFERROR(VLOOKUP($J39,【選択肢】!$Q$3:$U$90,5,)," ")&IF(K39="","",","&IFERROR(VLOOKUP($K39,【選択肢】!$Q$3:$U$90,5,)," ")&IF(L39="","",","&IFERROR(VLOOKUP($L39,【選択肢】!$Q$3:$U$90,5,)," ")))))))) -> 
F40: 0 | M40: =IF(G40="","",(IFERROR(VLOOKUP($G40,【選択肢】!$Q$3:$U$90,2,)," ")&IF(H40="","",","&IFERROR(VLOOKUP($H40,【選択肢】!$Q$3:$U$90,2,)," ")&IF(I40="","",","&IFERROR(VLOOKUP($I40,【選択肢】!$Q$3:$U$90,2,)," ")&IF(J40="","",","&IFERROR(VLOOKUP($J40,【選択肢】!$Q$3:$U$90,2,)," ")&IF(K40="","",","&IFERROR(VLOOKUP($K40,【選択肢】!$Q$3:$U$90,2,)," ")&IF(L40="","",","&IFERROR(VLOOKUP($L40,【選択肢】!$Q$3:$U$90,2,)," ")))))))) ->  | N40: =IF(G40="","",(IFERROR(VLOOKUP($G40,【選択肢】!$Q$3:$U$90,4,)," ")&IF(H40="","",","&IFERROR(VLOOKUP($H40,【選択肢】!$Q$3:$U$90,4,)," ")&IF(I40="","",","&IFERROR(VLOOKUP($I40,【選択肢】!$Q$3:$U$90,4,)," ")&IF(J40="","",","&IFERROR(VLOOKUP($J40,【選択肢】!$Q$3:$U$90,4,)," ")&IF(K40="","",","&IFERROR(VLOOKUP($K40,【選択肢】!$Q$3:$U$90,4,)," ")&IF(L40="","",","&IFERROR(VLOOKUP($L40,【選択肢】!$Q$3:$U$90,4,)," ")))))))) ->  | O40: =IF(G40="","",(IFERROR(VLOOKUP($G40,【選択肢】!$Q$3:$U$90,5,)," ")&IF(H40="","",","&IFERROR(VLOOKUP($H40,【選択肢】!$Q$3:$U$90,5,)," ")&IF(I40="","",","&IFERROR(VLOOKUP($I40,【選択肢】!$Q$3:$U$90,5,)," ")&IF(J40="","",","&IFERROR(VLOOKUP($J40,【選択肢】!$Q$3:$U$90,5,)," ")&IF(K40="","",","&IFERROR(VLOOKUP($K40,【選択肢】!$Q$3:$U$90,5,)," ")&IF(L40="","",","&IFERROR(VLOOKUP($L40,【選択肢】!$Q$3:$U$90,5,)," ")))))))) -> 
F41: 0 | M41: =IF(G41="","",(IFERROR(VLOOKUP($G41,【選択肢】!$Q$3:$U$90,2,)," ")&IF(H41="","",","&IFERROR(VLOOKUP($H41,【選択肢】!$Q$3:$U$90,2,)," ")&IF(I41="","",","&IFERROR(VLOOKUP($I41,【選択肢】!$Q$3:$U$90,2,)," ")&IF(J41="","",","&IFERROR(VLOOKUP($J41,【選択肢】!$Q$3:$U$90,2,)," ")&IF(K41="","",","&IFERROR(VLOOKUP($K41,【選択肢】!$Q$3:$U$90,2,)," ")&IF(L41="","",","&IFERROR(VLOOKUP($L41,【選択肢】!$Q$3:$U$90,2,)," ")))))))) ->  | N41: =IF(G41="","",(IFERROR(VLOOKUP($G41,【選択肢】!$Q$3:$U$90,4,)," ")&IF(H41="","",","&IFERROR(VLOOKUP($H41,【選択肢】!$Q$3:$U$90,4,)," ")&IF(I41="","",","&IFERROR(VLOOKUP($I41,【選択肢】!$Q$3:$U$90,4,)," ")&IF(J41="","",","&IFERROR(VLOOKUP($J41,【選択肢】!$Q$3:$U$90,4,)," ")&IF(K41="","",","&IFERROR(VLOOKUP($K41,【選択肢】!$Q$3:$U$90,4,)," ")&IF(L41="","",","&IFERROR(VLOOKUP($L41,【選択肢】!$Q$3:$U$90,4,)," ")))))))) ->  | O41: =IF(G41="","",(IFERROR(VLOOKUP($G41,【選択肢】!$Q$3:$U$90,5,)," ")&IF(H41="","",","&IFERROR(VLOOKUP($H41,【選択肢】!$Q$3:$U$90,5,)," ")&IF(I41="","",","&IFERROR(VLOOKUP($I41,【選択肢】!$Q$3:$U$90,5,)," ")&IF(J41="","",","&IFERROR(VLOOKUP($J41,【選択肢】!$Q$3:$U$90,5,)," ")&IF(K41="","",","&IFERROR(VLOOKUP($K41,【選択肢】!$Q$3:$U$90,5,)," ")&IF(L41="","",","&IFERROR(VLOOKUP($L41,【選択肢】!$Q$3:$U$90,5,)," ")))))))) -> 
F42: 0 | M42: =IF(G42="","",(IFERROR(VLOOKUP($G42,【選択肢】!$Q$3:$U$90,2,)," ")&IF(H42="","",","&IFERROR(VLOOKUP($H42,【選択肢】!$Q$3:$U$90,2,)," ")&IF(I42="","",","&IFERROR(VLOOKUP($I42,【選択肢】!$Q$3:$U$90,2,)," ")&IF(J42="","",","&IFERROR(VLOOKUP($J42,【選択肢】!$Q$3:$U$90,2,)," ")&IF(K42="","",","&IFERROR(VLOOKUP($K42,【選択肢】!$Q$3:$U$90,2,)," ")&IF(L42="","",","&IFERROR(VLOOKUP($L42,【選択肢】!$Q$3:$U$90,2,)," ")))))))) ->  | N42: =IF(G42="","",(IFERROR(VLOOKUP($G42,【選択肢】!$Q$3:$U$90,4,)," ")&IF(H42="","",","&IFERROR(VLOOKUP($H42,【選択肢】!$Q$3:$U$90,4,)," ")&IF(I42="","",","&IFERROR(VLOOKUP($I42,【選択肢】!$Q$3:$U$90,4,)," ")&IF(J42="","",","&IFERROR(VLOOKUP($J42,【選択肢】!$Q$3:$U$90,4,)," ")&IF(K42="","",","&IFERROR(VLOOKUP($K42,【選択肢】!$Q$3:$U$90,4,)," ")&IF(L42="","",","&IFERROR(VLOOKUP($L42,【選択肢】!$Q$3:$U$90,4,)," ")))))))) ->  | O42: =IF(G42="","",(IFERROR(VLOOKUP($G42,【選択肢】!$Q$3:$U$90,5,)," ")&IF(H42="","",","&IFERROR(VLOOKUP($H42,【選択肢】!$Q$3:$U$90,5,)," ")&IF(I42="","",","&IFERROR(VLOOKUP($I42,【選択肢】!$Q$3:$U$90,5,)," ")&IF(J42="","",","&IFERROR(VLOOKUP($J42,【選択肢】!$Q$3:$U$90,5,)," ")&IF(K42="","",","&IFERROR(VLOOKUP($K42,【選択肢】!$Q$3:$U$90,5,)," ")&IF(L42="","",","&IFERROR(VLOOKUP($L42,【選択肢】!$Q$3:$U$90,5,)," ")))))))) -> 
F43: 0 | M43: =IF(G43="","",(IFERROR(VLOOKUP($G43,【選択肢】!$Q$3:$U$90,2,)," ")&IF(H43="","",","&IFERROR(VLOOKUP($H43,【選択肢】!$Q$3:$U$90,2,)," ")&IF(I43="","",","&IFERROR(VLOOKUP($I43,【選択肢】!$Q$3:$U$90,2,)," ")&IF(J43="","",","&IFERROR(VLOOKUP($J43,【選択肢】!$Q$3:$U$90,2,)," ")&IF(K43="","",","&IFERROR(VLOOKUP($K43,【選択肢】!$Q$3:$U$90,2,)," ")&IF(L43="","",","&IFERROR(VLOOKUP($L43,【選択肢】!$Q$3:$U$90,2,)," ")))))))) ->  | N43: =IF(G43="","",(IFERROR(VLOOKUP($G43,【選択肢】!$Q$3:$U$90,4,)," ")&IF(H43="","",","&IFERROR(VLOOKUP($H43,【選択肢】!$Q$3:$U$90,4,)," ")&IF(I43="","",","&IFERROR(VLOOKUP($I43,【選択肢】!$Q$3:$U$90,4,)," ")&IF(J43="","",","&IFERROR(VLOOKUP($J43,【選択肢】!$Q$3:$U$90,4,)," ")&IF(K43="","",","&IFERROR(VLOOKUP($K43,【選択肢】!$Q$3:$U$90,4,)," ")&IF(L43="","",","&IFERROR(VLOOKUP($L43,【選択肢】!$Q$3:$U$90,4,)," ")))))))) ->  | O43: =IF(G43="","",(IFERROR(VLOOKUP($G43,【選択肢】!$Q$3:$U$90,5,)," ")&IF(H43="","",","&IFERROR(VLOOKUP($H43,【選択肢】!$Q$3:$U$90,5,)," ")&IF(I43="","",","&IFERROR(VLOOKUP($I43,【選択肢】!$Q$3:$U$90,5,)," ")&IF(J43="","",","&IFERROR(VLOOKUP($J43,【選択肢】!$Q$3:$U$90,5,)," ")&IF(K43="","",","&IFERROR(VLOOKUP($K43,【選択肢】!$Q$3:$U$90,5,)," ")&IF(L43="","",","&IFERROR(VLOOKUP($L43,【選択肢】!$Q$3:$U$90,5,)," ")))))))) -> 
F44: 0 | M44: =IF(G44="","",(IFERROR(VLOOKUP($G44,【選択肢】!$Q$3:$U$90,2,)," ")&IF(H44="","",","&IFERROR(VLOOKUP($H44,【選択肢】!$Q$3:$U$90,2,)," ")&IF(I44="","",","&IFERROR(VLOOKUP($I44,【選択肢】!$Q$3:$U$90,2,)," ")&IF(J44="","",","&IFERROR(VLOOKUP($J44,【選択肢】!$Q$3:$U$90,2,)," ")&IF(K44="","",","&IFERROR(VLOOKUP($K44,【選択肢】!$Q$3:$U$90,2,)," ")&IF(L44="","",","&IFERROR(VLOOKUP($L44,【選択肢】!$Q$3:$U$90,2,)," ")))))))) ->  | N44: =IF(G44="","",(IFERROR(VLOOKUP($G44,【選択肢】!$Q$3:$U$90,4,)," ")&IF(H44="","",","&IFERROR(VLOOKUP($H44,【選択肢】!$Q$3:$U$90,4,)," ")&IF(I44="","",","&IFERROR(VLOOKUP($I44,【選択肢】!$Q$3:$U$90,4,)," ")&IF(J44="","",","&IFERROR(VLOOKUP($J44,【選択肢】!$Q$3:$U$90,4,)," ")&IF(K44="","",","&IFERROR(VLOOKUP($K44,【選択肢】!$Q$3:$U$90,4,)," ")&IF(L44="","",","&IFERROR(VLOOKUP($L44,【選択肢】!$Q$3:$U$90,4,)," ")))))))) ->  | O44: =IF(G44="","",(IFERROR(VLOOKUP($G44,【選択肢】!$Q$3:$U$90,5,)," ")&IF(H44="","",","&IFERROR(VLOOKUP($H44,【選択肢】!$Q$3:$U$90,5,)," ")&IF(I44="","",","&IFERROR(VLOOKUP($I44,【選択肢】!$Q$3:$U$90,5,)," ")&IF(J44="","",","&IFERROR(VLOOKUP($J44,【選択肢】!$Q$3:$U$90,5,)," ")&IF(K44="","",","&IFERROR(VLOOKUP($K44,【選択肢】!$Q$3:$U$90,5,)," ")&IF(L44="","",","&IFERROR(VLOOKUP($L44,【選択肢】!$Q$3:$U$90,5,)," ")))))))) -> 
F45: 0 | M45: =IF(G45="","",(IFERROR(VLOOKUP($G45,【選択肢】!$Q$3:$U$90,2,)," ")&IF(H45="","",","&IFERROR(VLOOKUP($H45,【選択肢】!$Q$3:$U$90,2,)," ")&IF(I45="","",","&IFERROR(VLOOKUP($I45,【選択肢】!$Q$3:$U$90,2,)," ")&IF(J45="","",","&IFERROR(VLOOKUP($J45,【選択肢】!$Q$3:$U$90,2,)," ")&IF(K45="","",","&IFERROR(VLOOKUP($K45,【選択肢】!$Q$3:$U$90,2,)," ")&IF(L45="","",","&IFERROR(VLOOKUP($L45,【選択肢】!$Q$3:$U$90,2,)," ")))))))) ->  | N45: =IF(G45="","",(IFERROR(VLOOKUP($G45,【選択肢】!$Q$3:$U$90,4,)," ")&IF(H45="","",","&IFERROR(VLOOKUP($H45,【選択肢】!$Q$3:$U$90,4,)," ")&IF(I45="","",","&IFERROR(VLOOKUP($I45,【選択肢】!$Q$3:$U$90,4,)," ")&IF(J45="","",","&IFERROR(VLOOKUP($J45,【選択肢】!$Q$3:$U$90,4,)," ")&IF(K45="","",","&IFERROR(VLOOKUP($K45,【選択肢】!$Q$3:$U$90,4,)," ")&IF(L45="","",","&IFERROR(VLOOKUP($L45,【選択肢】!$Q$3:$U$90,4,)," ")))))))) ->  | O45: =IF(G45="","",(IFERROR(VLOOKUP($G45,【選択肢】!$Q$3:$U$90,5,)," ")&IF(H45="","",","&IFERROR(VLOOKUP($H45,【選択肢】!$Q$3:$U$90,5,)," ")&IF(I45="","",","&IFERROR(VLOOKUP($I45,【選択肢】!$Q$3:$U$90,5,)," ")&IF(J45="","",","&IFERROR(VLOOKUP($J45,【選択肢】!$Q$3:$U$90,5,)," ")&IF(K45="","",","&IFERROR(VLOOKUP($K45,【選択肢】!$Q$3:$U$90,5,)," ")&IF(L45="","",","&IFERROR(VLOOKUP($L45,【選択肢】!$Q$3:$U$90,5,)," ")))))))) -> 
F46: 0 | M46: =IF(G46="","",(IFERROR(VLOOKUP($G46,【選択肢】!$Q$3:$U$90,2,)," ")&IF(H46="","",","&IFERROR(VLOOKUP($H46,【選択肢】!$Q$3:$U$90,2,)," ")&IF(I46="","",","&IFERROR(VLOOKUP($I46,【選択肢】!$Q$3:$U$90,2,)," ")&IF(J46="","",","&IFERROR(VLOOKUP($J46,【選択肢】!$Q$3:$U$90,2,)," ")&IF(K46="","",","&IFERROR(VLOOKUP($K46,【選択肢】!$Q$3:$U$90,2,)," ")&IF(L46="","",","&IFERROR(VLOOKUP($L46,【選択肢】!$Q$3:$U$90,2,)," ")))))))) ->  | N46: =IF(G46="","",(IFERROR(VLOOKUP($G46,【選択肢】!$Q$3:$U$90,4,)," ")&IF(H46="","",","&IFERROR(VLOOKUP($H46,【選択肢】!$Q$3:$U$90,4,)," ")&IF(I46="","",","&IFERROR(VLOOKUP($I46,【選択肢】!$Q$3:$U$90,4,)," ")&IF(J46="","",","&IFERROR(VLOOKUP($J46,【選択肢】!$Q$3:$U$90,4,)," ")&IF(K46="","",","&IFERROR(VLOOKUP($K46,【選択肢】!$Q$3:$U$90,4,)," ")&IF(L46="","",","&IFERROR(VLOOKUP($L46,【選択肢】!$Q$3:$U$90,4,)," ")))))))) ->  | O46: =IF(G46="","",(IFERROR(VLOOKUP($G46,【選択肢】!$Q$3:$U$90,5,)," ")&IF(H46="","",","&IFERROR(VLOOKUP($H46,【選択肢】!$Q$3:$U$90,5,)," ")&IF(I46="","",","&IFERROR(VLOOKUP($I46,【選択肢】!$Q$3:$U$90,5,)," ")&IF(J46="","",","&IFERROR(VLOOKUP($J46,【選択肢】!$Q$3:$U$90,5,)," ")&IF(K46="","",","&IFERROR(VLOOKUP($K46,【選択肢】!$Q$3:$U$90,5,)," ")&IF(L46="","",","&IFERROR(VLOOKUP($L46,【選択肢】!$Q$3:$U$90,5,)," ")))))))) -> 
F47: 0 | M47: =IF(G47="","",(IFERROR(VLOOKUP($G47,【選択肢】!$Q$3:$U$90,2,)," ")&IF(H47="","",","&IFERROR(VLOOKUP($H47,【選択肢】!$Q$3:$U$90,2,)," ")&IF(I47="","",","&IFERROR(VLOOKUP($I47,【選択肢】!$Q$3:$U$90,2,)," ")&IF(J47="","",","&IFERROR(VLOOKUP($J47,【選択肢】!$Q$3:$U$90,2,)," ")&IF(K47="","",","&IFERROR(VLOOKUP($K47,【選択肢】!$Q$3:$U$90,2,)," ")&IF(L47="","",","&IFERROR(VLOOKUP($L47,【選択肢】!$Q$3:$U$90,2,)," ")))))))) ->  | N47: =IF(G47="","",(IFERROR(VLOOKUP($G47,【選択肢】!$Q$3:$U$90,4,)," ")&IF(H47="","",","&IFERROR(VLOOKUP($H47,【選択肢】!$Q$3:$U$90,4,)," ")&IF(I47="","",","&IFERROR(VLOOKUP($I47,【選択肢】!$Q$3:$U$90,4,)," ")&IF(J47="","",","&IFERROR(VLOOKUP($J47,【選択肢】!$Q$3:$U$90,4,)," ")&IF(K47="","",","&IFERROR(VLOOKUP($K47,【選択肢】!$Q$3:$U$90,4,)," ")&IF(L47="","",","&IFERROR(VLOOKUP($L47,【選択肢】!$Q$3:$U$90,4,)," ")))))))) ->  | O47: =IF(G47="","",(IFERROR(VLOOKUP($G47,【選択肢】!$Q$3:$U$90,5,)," ")&IF(H47="","",","&IFERROR(VLOOKUP($H47,【選択肢】!$Q$3:$U$90,5,)," ")&IF(I47="","",","&IFERROR(VLOOKUP($I47,【選択肢】!$Q$3:$U$90,5,)," ")&IF(J47="","",","&IFERROR(VLOOKUP($J47,【選択肢】!$Q$3:$U$90,5,)," ")&IF(K47="","",","&IFERROR(VLOOKUP($K47,【選択肢】!$Q$3:$U$90,5,)," ")&IF(L47="","",","&IFERROR(VLOOKUP($L47,【選択肢】!$Q$3:$U$90,5,)," ")))))))) -> 
F48: 0 | M48: =IF(G48="","",(IFERROR(VLOOKUP($G48,【選択肢】!$Q$3:$U$90,2,)," ")&IF(H48="","",","&IFERROR(VLOOKUP($H48,【選択肢】!$Q$3:$U$90,2,)," ")&IF(I48="","",","&IFERROR(VLOOKUP($I48,【選択肢】!$Q$3:$U$90,2,)," ")&IF(J48="","",","&IFERROR(VLOOKUP($J48,【選択肢】!$Q$3:$U$90,2,)," ")&IF(K48="","",","&IFERROR(VLOOKUP($K48,【選択肢】!$Q$3:$U$90,2,)," ")&IF(L48="","",","&IFERROR(VLOOKUP($L48,【選択肢】!$Q$3:$U$90,2,)," ")))))))) ->  | N48: =IF(G48="","",(IFERROR(VLOOKUP($G48,【選択肢】!$Q$3:$U$90,4,)," ")&IF(H48="","",","&IFERROR(VLOOKUP($H48,【選択肢】!$Q$3:$U$90,4,)," ")&IF(I48="","",","&IFERROR(VLOOKUP($I48,【選択肢】!$Q$3:$U$90,4,)," ")&IF(J48="","",","&IFERROR(VLOOKUP($J48,【選択肢】!$Q$3:$U$90,4,)," ")&IF(K48="","",","&IFERROR(VLOOKUP($K48,【選択肢】!$Q$3:$U$90,4,)," ")&IF(L48="","",","&IFERROR(VLOOKUP($L48,【選択肢】!$Q$3:$U$90,4,)," ")))))))) ->  | O48: =IF(G48="","",(IFERROR(VLOOKUP($G48,【選択肢】!$Q$3:$U$90,5,)," ")&IF(H48="","",","&IFERROR(VLOOKUP($H48,【選択肢】!$Q$3:$U$90,5,)," ")&IF(I48="","",","&IFERROR(VLOOKUP($I48,【選択肢】!$Q$3:$U$90,5,)," ")&IF(J48="","",","&IFERROR(VLOOKUP($J48,【選択肢】!$Q$3:$U$90,5,)," ")&IF(K48="","",","&IFERROR(VLOOKUP($K48,【選択肢】!$Q$3:$U$90,5,)," ")&IF(L48="","",","&IFERROR(VLOOKUP($L48,【選択肢】!$Q$3:$U$90,5,)," ")))))))) -> 
F49: 0 | M49: =IF(G49="","",(IFERROR(VLOOKUP($G49,【選択肢】!$Q$3:$U$90,2,)," ")&IF(H49="","",","&IFERROR(VLOOKUP($H49,【選択肢】!$Q$3:$U$90,2,)," ")&IF(I49="","",","&IFERROR(VLOOKUP($I49,【選択肢】!$Q$3:$U$90,2,)," ")&IF(J49="","",","&IFERROR(VLOOKUP($J49,【選択肢】!$Q$3:$U$90,2,)," ")&IF(K49="","",","&IFERROR(VLOOKUP($K49,【選択肢】!$Q$3:$U$90,2,)," ")&IF(L49="","",","&IFERROR(VLOOKUP($L49,【選択肢】!$Q$3:$U$90,2,)," ")))))))) ->  | N49: =IF(G49="","",(IFERROR(VLOOKUP($G49,【選択肢】!$Q$3:$U$90,4,)," ")&IF(H49="","",","&IFERROR(VLOOKUP($H49,【選択肢】!$Q$3:$U$90,4,)," ")&IF(I49="","",","&IFERROR(VLOOKUP($I49,【選択肢】!$Q$3:$U$90,4,)," ")&IF(J49="","",","&IFERROR(VLOOKUP($J49,【選択肢】!$Q$3:$U$90,4,)," ")&IF(K49="","",","&IFERROR(VLOOKUP($K49,【選択肢】!$Q$3:$U$90,4,)," ")&IF(L49="","",","&IFERROR(VLOOKUP($L49,【選択肢】!$Q$3:$U$90,4,)," ")))))))) ->  | O49: =IF(G49="","",(IFERROR(VLOOKUP($G49,【選択肢】!$Q$3:$U$90,5,)," ")&IF(H49="","",","&IFERROR(VLOOKUP($H49,【選択肢】!$Q$3:$U$90,5,)," ")&IF(I49="","",","&IFERROR(VLOOKUP($I49,【選択肢】!$Q$3:$U$90,5,)," ")&IF(J49="","",","&IFERROR(VLOOKUP($J49,【選択肢】!$Q$3:$U$90,5,)," ")&IF(K49="","",","&IFERROR(VLOOKUP($K49,【選択肢】!$Q$3:$U$90,5,)," ")&IF(L49="","",","&IFERROR(VLOOKUP($L49,【選択肢】!$Q$3:$U$90,5,)," ")))))))) -> 
F50: 0 | M50: =IF(G50="","",(IFERROR(VLOOKUP($G50,【選択肢】!$Q$3:$U$90,2,)," ")&IF(H50="","",","&IFERROR(VLOOKUP($H50,【選択肢】!$Q$3:$U$90,2,)," ")&IF(I50="","",","&IFERROR(VLOOKUP($I50,【選択肢】!$Q$3:$U$90,2,)," ")&IF(J50="","",","&IFERROR(VLOOKUP($J50,【選択肢】!$Q$3:$U$90,2,)," ")&IF(K50="","",","&IFERROR(VLOOKUP($K50,【選択肢】!$Q$3:$U$90,2,)," ")&IF(L50="","",","&IFERROR(VLOOKUP($L50,【選択肢】!$Q$3:$U$90,2,)," ")))))))) ->  | N50: =IF(G50="","",(IFERROR(VLOOKUP($G50,【選択肢】!$Q$3:$U$90,4,)," ")&IF(H50="","",","&IFERROR(VLOOKUP($H50,【選択肢】!$Q$3:$U$90,4,)," ")&IF(I50="","",","&IFERROR(VLOOKUP($I50,【選択肢】!$Q$3:$U$90,4,)," ")&IF(J50="","",","&IFERROR(VLOOKUP($J50,【選択肢】!$Q$3:$U$90,4,)," ")&IF(K50="","",","&IFERROR(VLOOKUP($K50,【選択肢】!$Q$3:$U$90,4,)," ")&IF(L50="","",","&IFERROR(VLOOKUP($L50,【選択肢】!$Q$3:$U$90,4,)," ")))))))) ->  | O50: =IF(G50="","",(IFERROR(VLOOKUP($G50,【選択肢】!$Q$3:$U$90,5,)," ")&IF(H50="","",","&IFERROR(VLOOKUP($H50,【選択肢】!$Q$3:$U$90,5,)," ")&IF(I50="","",","&IFERROR(VLOOKUP($I50,【選択肢】!$Q$3:$U$90,5,)," ")&IF(J50="","",","&IFERROR(VLOOKUP($J50,【選択肢】!$Q$3:$U$90,5,)," ")&IF(K50="","",","&IFERROR(VLOOKUP($K50,【選択肢】!$Q$3:$U$90,5,)," ")&IF(L50="","",","&IFERROR(VLOOKUP($L50,【選択肢】!$Q$3:$U$90,5,)," ")))))))) -> 
F51: 0 | M51: =IF(G51="","",(IFERROR(VLOOKUP($G51,【選択肢】!$Q$3:$U$90,2,)," ")&IF(H51="","",","&IFERROR(VLOOKUP($H51,【選択肢】!$Q$3:$U$90,2,)," ")&IF(I51="","",","&IFERROR(VLOOKUP($I51,【選択肢】!$Q$3:$U$90,2,)," ")&IF(J51="","",","&IFERROR(VLOOKUP($J51,【選択肢】!$Q$3:$U$90,2,)," ")&IF(K51="","",","&IFERROR(VLOOKUP($K51,【選択肢】!$Q$3:$U$90,2,)," ")&IF(L51="","",","&IFERROR(VLOOKUP($L51,【選択肢】!$Q$3:$U$90,2,)," ")))))))) ->  | N51: =IF(G51="","",(IFERROR(VLOOKUP($G51,【選択肢】!$Q$3:$U$90,4,)," ")&IF(H51="","",","&IFERROR(VLOOKUP($H51,【選択肢】!$Q$3:$U$90,4,)," ")&IF(I51="","",","&IFERROR(VLOOKUP($I51,【選択肢】!$Q$3:$U$90,4,)," ")&IF(J51="","",","&IFERROR(VLOOKUP($J51,【選択肢】!$Q$3:$U$90,4,)," ")&IF(K51="","",","&IFERROR(VLOOKUP($K51,【選択肢】!$Q$3:$U$90,4,)," ")&IF(L51="","",","&IFERROR(VLOOKUP($L51,【選択肢】!$Q$3:$U$90,4,)," ")))))))) ->  | O51: =IF(G51="","",(IFERROR(VLOOKUP($G51,【選択肢】!$Q$3:$U$90,5,)," ")&IF(H51="","",","&IFERROR(VLOOKUP($H51,【選択肢】!$Q$3:$U$90,5,)," ")&IF(I51="","",","&IFERROR(VLOOKUP($I51,【選択肢】!$Q$3:$U$90,5,)," ")&IF(J51="","",","&IFERROR(VLOOKUP($J51,【選択肢】!$Q$3:$U$90,5,)," ")&IF(K51="","",","&IFERROR(VLOOKUP($K51,【選択肢】!$Q$3:$U$90,5,)," ")&IF(L51="","",","&IFERROR(VLOOKUP($L51,【選択肢】!$Q$3:$U$90,5,)," ")))))))) -> 
F52: 0 | M52: =IF(G52="","",(IFERROR(VLOOKUP($G52,【選択肢】!$Q$3:$U$90,2,)," ")&IF(H52="","",","&IFERROR(VLOOKUP($H52,【選択肢】!$Q$3:$U$90,2,)," ")&IF(I52="","",","&IFERROR(VLOOKUP($I52,【選択肢】!$Q$3:$U$90,2,)," ")&IF(J52="","",","&IFERROR(VLOOKUP($J52,【選択肢】!$Q$3:$U$90,2,)," ")&IF(K52="","",","&IFERROR(VLOOKUP($K52,【選択肢】!$Q$3:$U$90,2,)," ")&IF(L52="","",","&IFERROR(VLOOKUP($L52,【選択肢】!$Q$3:$U$90,2,)," ")))))))) ->  | N52: =IF(G52="","",(IFERROR(VLOOKUP($G52,【選択肢】!$Q$3:$U$90,4,)," ")&IF(H52="","",","&IFERROR(VLOOKUP($H52,【選択肢】!$Q$3:$U$90,4,)," ")&IF(I52="","",","&IFERROR(VLOOKUP($I52,【選択肢】!$Q$3:$U$90,4,)," ")&IF(J52="","",","&IFERROR(VLOOKUP($J52,【選択肢】!$Q$3:$U$90,4,)," ")&IF(K52="","",","&IFERROR(VLOOKUP($K52,【選択肢】!$Q$3:$U$90,4,)," ")&IF(L52="","",","&IFERROR(VLOOKUP($L52,【選択肢】!$Q$3:$U$90,4,)," ")))))))) ->  | O52: =IF(G52="","",(IFERROR(VLOOKUP($G52,【選択肢】!$Q$3:$U$90,5,)," ")&IF(H52="","",","&IFERROR(VLOOKUP($H52,【選択肢】!$Q$3:$U$90,5,)," ")&IF(I52="","",","&IFERROR(VLOOKUP($I52,【選択肢】!$Q$3:$U$90,5,)," ")&IF(J52="","",","&IFERROR(VLOOKUP($J52,【選択肢】!$Q$3:$U$90,5,)," ")&IF(K52="","",","&IFERROR(VLOOKUP($K52,【選択肢】!$Q$3:$U$90,5,)," ")&IF(L52="","",","&IFERROR(VLOOKUP($L52,【選択肢】!$Q$3:$U$90,5,)," ")))))))) -> 
F53: 0 | M53: =IF(G53="","",(IFERROR(VLOOKUP($G53,【選択肢】!$Q$3:$U$90,2,)," ")&IF(H53="","",","&IFERROR(VLOOKUP($H53,【選択肢】!$Q$3:$U$90,2,)," ")&IF(I53="","",","&IFERROR(VLOOKUP($I53,【選択肢】!$Q$3:$U$90,2,)," ")&IF(J53="","",","&IFERROR(VLOOKUP($J53,【選択肢】!$Q$3:$U$90,2,)," ")&IF(K53="","",","&IFERROR(VLOOKUP($K53,【選択肢】!$Q$3:$U$90,2,)," ")&IF(L53="","",","&IFERROR(VLOOKUP($L53,【選択肢】!$Q$3:$U$90,2,)," ")))))))) ->  | N53: =IF(G53="","",(IFERROR(VLOOKUP($G53,【選択肢】!$Q$3:$U$90,4,)," ")&IF(H53="","",","&IFERROR(VLOOKUP($H53,【選択肢】!$Q$3:$U$90,4,)," ")&IF(I53="","",","&IFERROR(VLOOKUP($I53,【選択肢】!$Q$3:$U$90,4,)," ")&IF(J53="","",","&IFERROR(VLOOKUP($J53,【選択肢】!$Q$3:$U$90,4,)," ")&IF(K53="","",","&IFERROR(VLOOKUP($K53,【選択肢】!$Q$3:$U$90,4,)," ")&IF(L53="","",","&IFERROR(VLOOKUP($L53,【選択肢】!$Q$3:$U$90,4,)," ")))))))) ->  | O53: =IF(G53="","",(IFERROR(VLOOKUP($G53,【選択肢】!$Q$3:$U$90,5,)," ")&IF(H53="","",","&IFERROR(VLOOKUP($H53,【選択肢】!$Q$3:$U$90,5,)," ")&IF(I53="","",","&IFERROR(VLOOKUP($I53,【選択肢】!$Q$3:$U$90,5,)," ")&IF(J53="","",","&IFERROR(VLOOKUP($J53,【選択肢】!$Q$3:$U$90,5,)," ")&IF(K53="","",","&IFERROR(VLOOKUP($K53,【選択肢】!$Q$3:$U$90,5,)," ")&IF(L53="","",","&IFERROR(VLOOKUP($L53,【選択肢】!$Q$3:$U$90,5,)," ")))))))) -> 
F54: 0 | M54: =IF(G54="","",(IFERROR(VLOOKUP($G54,【選択肢】!$Q$3:$U$90,2,)," ")&IF(H54="","",","&IFERROR(VLOOKUP($H54,【選択肢】!$Q$3:$U$90,2,)," ")&IF(I54="","",","&IFERROR(VLOOKUP($I54,【選択肢】!$Q$3:$U$90,2,)," ")&IF(J54="","",","&IFERROR(VLOOKUP($J54,【選択肢】!$Q$3:$U$90,2,)," ")&IF(K54="","",","&IFERROR(VLOOKUP($K54,【選択肢】!$Q$3:$U$90,2,)," ")&IF(L54="","",","&IFERROR(VLOOKUP($L54,【選択肢】!$Q$3:$U$90,2,)," ")))))))) ->  | N54: =IF(G54="","",(IFERROR(VLOOKUP($G54,【選択肢】!$Q$3:$U$90,4,)," ")&IF(H54="","",","&IFERROR(VLOOKUP($H54,【選択肢】!$Q$3:$U$90,4,)," ")&IF(I54="","",","&IFERROR(VLOOKUP($I54,【選択肢】!$Q$3:$U$90,4,)," ")&IF(J54="","",","&IFERROR(VLOOKUP($J54,【選択肢】!$Q$3:$U$90,4,)," ")&IF(K54="","",","&IFERROR(VLOOKUP($K54,【選択肢】!$Q$3:$U$90,4,)," ")&IF(L54="","",","&IFERROR(VLOOKUP($L54,【選択肢】!$Q$3:$U$90,4,)," ")))))))) ->  | O54: =IF(G54="","",(IFERROR(VLOOKUP($G54,【選択肢】!$Q$3:$U$90,5,)," ")&IF(H54="","",","&IFERROR(VLOOKUP($H54,【選択肢】!$Q$3:$U$90,5,)," ")&IF(I54="","",","&IFERROR(VLOOKUP($I54,【選択肢】!$Q$3:$U$90,5,)," ")&IF(J54="","",","&IFERROR(VLOOKUP($J54,【選択肢】!$Q$3:$U$90,5,)," ")&IF(K54="","",","&IFERROR(VLOOKUP($K54,【選択肢】!$Q$3:$U$90,5,)," ")&IF(L54="","",","&IFERROR(VLOOKUP($L54,【選択肢】!$Q$3:$U$90,5,)," ")))))))) -> 
F55: 0 | M55: =IF(G55="","",(IFERROR(VLOOKUP($G55,【選択肢】!$Q$3:$U$90,2,)," ")&IF(H55="","",","&IFERROR(VLOOKUP($H55,【選択肢】!$Q$3:$U$90,2,)," ")&IF(I55="","",","&IFERROR(VLOOKUP($I55,【選択肢】!$Q$3:$U$90,2,)," ")&IF(J55="","",","&IFERROR(VLOOKUP($J55,【選択肢】!$Q$3:$U$90,2,)," ")&IF(K55="","",","&IFERROR(VLOOKUP($K55,【選択肢】!$Q$3:$U$90,2,)," ")&IF(L55="","",","&IFERROR(VLOOKUP($L55,【選択肢】!$Q$3:$U$90,2,)," ")))))))) ->  | N55: =IF(G55="","",(IFERROR(VLOOKUP($G55,【選択肢】!$Q$3:$U$90,4,)," ")&IF(H55="","",","&IFERROR(VLOOKUP($H55,【選択肢】!$Q$3:$U$90,4,)," ")&IF(I55="","",","&IFERROR(VLOOKUP($I55,【選択肢】!$Q$3:$U$90,4,)," ")&IF(J55="","",","&IFERROR(VLOOKUP($J55,【選択肢】!$Q$3:$U$90,4,)," ")&IF(K55="","",","&IFERROR(VLOOKUP($K55,【選択肢】!$Q$3:$U$90,4,)," ")&IF(L55="","",","&IFERROR(VLOOKUP($L55,【選択肢】!$Q$3:$U$90,4,)," ")))))))) ->  | O55: =IF(G55="","",(IFERROR(VLOOKUP($G55,【選択肢】!$Q$3:$U$90,5,)," ")&IF(H55="","",","&IFERROR(VLOOKUP($H55,【選択肢】!$Q$3:$U$90,5,)," ")&IF(I55="","",","&IFERROR(VLOOKUP($I55,【選択肢】!$Q$3:$U$90,5,)," ")&IF(J55="","",","&IFERROR(VLOOKUP($J55,【選択肢】!$Q$3:$U$90,5,)," ")&IF(K55="","",","&IFERROR(VLOOKUP($K55,【選択肢】!$Q$3:$U$90,5,)," ")&IF(L55="","",","&IFERROR(VLOOKUP($L55,【選択肢】!$Q$3:$U$90,5,)," ")))))))) -> 
F56: 0 | M56: =IF(G56="","",(IFERROR(VLOOKUP($G56,【選択肢】!$Q$3:$U$90,2,)," ")&IF(H56="","",","&IFERROR(VLOOKUP($H56,【選択肢】!$Q$3:$U$90,2,)," ")&IF(I56="","",","&IFERROR(VLOOKUP($I56,【選択肢】!$Q$3:$U$90,2,)," ")&IF(J56="","",","&IFERROR(VLOOKUP($J56,【選択肢】!$Q$3:$U$90,2,)," ")&IF(K56="","",","&IFERROR(VLOOKUP($K56,【選択肢】!$Q$3:$U$90,2,)," ")&IF(L56="","",","&IFERROR(VLOOKUP($L56,【選択肢】!$Q$3:$U$90,2,)," ")))))))) ->  | N56: =IF(G56="","",(IFERROR(VLOOKUP($G56,【選択肢】!$Q$3:$U$90,4,)," ")&IF(H56="","",","&IFERROR(VLOOKUP($H56,【選択肢】!$Q$3:$U$90,4,)," ")&IF(I56="","",","&IFERROR(VLOOKUP($I56,【選択肢】!$Q$3:$U$90,4,)," ")&IF(J56="","",","&IFERROR(VLOOKUP($J56,【選択肢】!$Q$3:$U$90,4,)," ")&IF(K56="","",","&IFERROR(VLOOKUP($K56,【選択肢】!$Q$3:$U$90,4,)," ")&IF(L56="","",","&IFERROR(VLOOKUP($L56,【選択肢】!$Q$3:$U$90,4,)," ")))))))) ->  | O56: =IF(G56="","",(IFERROR(VLOOKUP($G56,【選択肢】!$Q$3:$U$90,5,)," ")&IF(H56="","",","&IFERROR(VLOOKUP($H56,【選択肢】!$Q$3:$U$90,5,)," ")&IF(I56="","",","&IFERROR(VLOOKUP($I56,【選択肢】!$Q$3:$U$90,5,)," ")&IF(J56="","",","&IFERROR(VLOOKUP($J56,【選択肢】!$Q$3:$U$90,5,)," ")&IF(K56="","",","&IFERROR(VLOOKUP($K56,【選択肢】!$Q$3:$U$90,5,)," ")&IF(L56="","",","&IFERROR(VLOOKUP($L56,【選択肢】!$Q$3:$U$90,5,)," ")))))))) -> 
F57: =SUM(D57+E57) -> 0 | M57: =IF(G57="","",(IFERROR(VLOOKUP($G57,【選択肢】!$Q$3:$U$90,2,)," ")&IF(H57="","",","&IFERROR(VLOOKUP($H57,【選択肢】!$Q$3:$U$90,2,)," ")&IF(I57="","",","&IFERROR(VLOOKUP($I57,【選択肢】!$Q$3:$U$90,2,)," ")&IF(J57="","",","&IFERROR(VLOOKUP($J57,【選択肢】!$Q$3:$U$90,2,)," ")&IF(K57="","",","&IFERROR(VLOOKUP($K57,【選択肢】!$Q$3:$U$90,2,)," ")&IF(L57="","",","&IFERROR(VLOOKUP($L57,【選択肢】!$Q$3:$U$90,2,)," ")))))))) ->  | N57: =IF(G57="","",(IFERROR(VLOOKUP($G57,【選択肢】!$Q$3:$U$90,4,)," ")&IF(H57="","",","&IFERROR(VLOOKUP($H57,【選択肢】!$Q$3:$U$90,4,)," ")&IF(I57="","",","&IFERROR(VLOOKUP($I57,【選択肢】!$Q$3:$U$90,4,)," ")&IF(J57="","",","&IFERROR(VLOOKUP($J57,【選択肢】!$Q$3:$U$90,4,)," ")&IF(K57="","",","&IFERROR(VLOOKUP($K57,【選択肢】!$Q$3:$U$90,4,)," ")&IF(L57="","",","&IFERROR(VLOOKUP($L57,【選択肢】!$Q$3:$U$90,4,)," ")))))))) ->  | O57: =IF(G57="","",(IFERROR(VLOOKUP($G57,【選択肢】!$Q$3:$U$90,5,)," ")&IF(H57="","",","&IFERROR(VLOOKUP($H57,【選択肢】!$Q$3:$U$90,5,)," ")&IF(I57="","",","&IFERROR(VLOOKUP($I57,【選択肢】!$Q$3:$U$90,5,)," ")&IF(J57="","",","&IFERROR(VLOOKUP($J57,【選択肢】!$Q$3:$U$90,5,)," ")&IF(K57="","",","&IFERROR(VLOOKUP($K57,【選択肢】!$Q$3:$U$90,5,)," ")&IF(L57="","",","&IFERROR(VLOOKUP($L57,【選択肢】!$Q$3:$U$90,5,)," ")))))))) -> 
F58: 0 | M58: =IF(G58="","",(IFERROR(VLOOKUP($G58,【選択肢】!$Q$3:$U$90,2,)," ")&IF(H58="","",","&IFERROR(VLOOKUP($H58,【選択肢】!$Q$3:$U$90,2,)," ")&IF(I58="","",","&IFERROR(VLOOKUP($I58,【選択肢】!$Q$3:$U$90,2,)," ")&IF(J58="","",","&IFERROR(VLOOKUP($J58,【選択肢】!$Q$3:$U$90,2,)," ")&IF(K58="","",","&IFERROR(VLOOKUP($K58,【選択肢】!$Q$3:$U$90,2,)," ")&IF(L58="","",","&IFERROR(VLOOKUP($L58,【選択肢】!$Q$3:$U$90,2,)," ")))))))) ->  | N58: =IF(G58="","",(IFERROR(VLOOKUP($G58,【選択肢】!$Q$3:$U$90,4,)," ")&IF(H58="","",","&IFERROR(VLOOKUP($H58,【選択肢】!$Q$3:$U$90,4,)," ")&IF(I58="","",","&IFERROR(VLOOKUP($I58,【選択肢】!$Q$3:$U$90,4,)," ")&IF(J58="","",","&IFERROR(VLOOKUP($J58,【選択肢】!$Q$3:$U$90,4,)," ")&IF(K58="","",","&IFERROR(VLOOKUP($K58,【選択肢】!$Q$3:$U$90,4,)," ")&IF(L58="","",","&IFERROR(VLOOKUP($L58,【選択肢】!$Q$3:$U$90,4,)," ")))))))) ->  | O58: =IF(G58="","",(IFERROR(VLOOKUP($G58,【選択肢】!$Q$3:$U$90,5,)," ")&IF(H58="","",","&IFERROR(VLOOKUP($H58,【選択肢】!$Q$3:$U$90,5,)," ")&IF(I58="","",","&IFERROR(VLOOKUP($I58,【選択肢】!$Q$3:$U$90,5,)," ")&IF(J58="","",","&IFERROR(VLOOKUP($J58,【選択肢】!$Q$3:$U$90,5,)," ")&IF(K58="","",","&IFERROR(VLOOKUP($K58,【選択肢】!$Q$3:$U$90,5,)," ")&IF(L58="","",","&IFERROR(VLOOKUP($L58,【選択肢】!$Q$3:$U$90,5,)," ")))))))) -> 
F59: 0 | M59: =IF(G59="","",(IFERROR(VLOOKUP($G59,【選択肢】!$Q$3:$U$90,2,)," ")&IF(H59="","",","&IFERROR(VLOOKUP($H59,【選択肢】!$Q$3:$U$90,2,)," ")&IF(I59="","",","&IFERROR(VLOOKUP($I59,【選択肢】!$Q$3:$U$90,2,)," ")&IF(J59="","",","&IFERROR(VLOOKUP($J59,【選択肢】!$Q$3:$U$90,2,)," ")&IF(K59="","",","&IFERROR(VLOOKUP($K59,【選択肢】!$Q$3:$U$90,2,)," ")&IF(L59="","",","&IFERROR(VLOOKUP($L59,【選択肢】!$Q$3:$U$90,2,)," ")))))))) ->  | N59: =IF(G59="","",(IFERROR(VLOOKUP($G59,【選択肢】!$Q$3:$U$90,4,)," ")&IF(H59="","",","&IFERROR(VLOOKUP($H59,【選択肢】!$Q$3:$U$90,4,)," ")&IF(I59="","",","&IFERROR(VLOOKUP($I59,【選択肢】!$Q$3:$U$90,4,)," ")&IF(J59="","",","&IFERROR(VLOOKUP($J59,【選択肢】!$Q$3:$U$90,4,)," ")&IF(K59="","",","&IFERROR(VLOOKUP($K59,【選択肢】!$Q$3:$U$90,4,)," ")&IF(L59="","",","&IFERROR(VLOOKUP($L59,【選択肢】!$Q$3:$U$90,4,)," ")))))))) ->  | O59: =IF(G59="","",(IFERROR(VLOOKUP($G59,【選択肢】!$Q$3:$U$90,5,)," ")&IF(H59="","",","&IFERROR(VLOOKUP($H59,【選択肢】!$Q$3:$U$90,5,)," ")&IF(I59="","",","&IFERROR(VLOOKUP($I59,【選択肢】!$Q$3:$U$90,5,)," ")&IF(J59="","",","&IFERROR(VLOOKUP($J59,【選択肢】!$Q$3:$U$90,5,)," ")&IF(K59="","",","&IFERROR(VLOOKUP($K59,【選択肢】!$Q$3:$U$90,5,)," ")&IF(L59="","",","&IFERROR(VLOOKUP($L59,【選択肢】!$Q$3:$U$90,5,)," ")))))))) -> 
F60: 0 | M60: =IF(G60="","",(IFERROR(VLOOKUP($G60,【選択肢】!$Q$3:$U$90,2,)," ")&IF(H60="","",","&IFERROR(VLOOKUP($H60,【選択肢】!$Q$3:$U$90,2,)," ")&IF(I60="","",","&IFERROR(VLOOKUP($I60,【選択肢】!$Q$3:$U$90,2,)," ")&IF(J60="","",","&IFERROR(VLOOKUP($J60,【選択肢】!$Q$3:$U$90,2,)," ")&IF(K60="","",","&IFERROR(VLOOKUP($K60,【選択肢】!$Q$3:$U$90,2,)," ")&IF(L60="","",","&IFERROR(VLOOKUP($L60,【選択肢】!$Q$3:$U$90,2,)," ")))))))) ->  | N60: =IF(G60="","",(IFERROR(VLOOKUP($G60,【選択肢】!$Q$3:$U$90,4,)," ")&IF(H60="","",","&IFERROR(VLOOKUP($H60,【選択肢】!$Q$3:$U$90,4,)," ")&IF(I60="","",","&IFERROR(VLOOKUP($I60,【選択肢】!$Q$3:$U$90,4,)," ")&IF(J60="","",","&IFERROR(VLOOKUP($J60,【選択肢】!$Q$3:$U$90,4,)," ")&IF(K60="","",","&IFERROR(VLOOKUP($K60,【選択肢】!$Q$3:$U$90,4,)," ")&IF(L60="","",","&IFERROR(VLOOKUP($L60,【選択肢】!$Q$3:$U$90,4,)," ")))))))) ->  | O60: =IF(G60="","",(IFERROR(VLOOKUP($G60,【選択肢】!$Q$3:$U$90,5,)," ")&IF(H60="","",","&IFERROR(VLOOKUP($H60,【選択肢】!$Q$3:$U$90,5,)," ")&IF(I60="","",","&IFERROR(VLOOKUP($I60,【選択肢】!$Q$3:$U$90,5,)," ")&IF(J60="","",","&IFERROR(VLOOKUP($J60,【選択肢】!$Q$3:$U$90,5,)," ")&IF(K60="","",","&IFERROR(VLOOKUP($K60,【選択肢】!$Q$3:$U$90,5,)," ")&IF(L60="","",","&IFERROR(VLOOKUP($L60,【選択肢】!$Q$3:$U$90,5,)," ")))))))) -> 
F61: =SUM(D61+E61) -> 0 | M61: =IF(G61="","",(IFERROR(VLOOKUP($G61,【選択肢】!$Q$3:$U$90,2,)," ")&IF(H61="","",","&IFERROR(VLOOKUP($H61,【選択肢】!$Q$3:$U$90,2,)," ")&IF(I61="","",","&IFERROR(VLOOKUP($I61,【選択肢】!$Q$3:$U$90,2,)," ")&IF(J61="","",","&IFERROR(VLOOKUP($J61,【選択肢】!$Q$3:$U$90,2,)," ")&IF(K61="","",","&IFERROR(VLOOKUP($K61,【選択肢】!$Q$3:$U$90,2,)," ")&IF(L61="","",","&IFERROR(VLOOKUP($L61,【選択肢】!$Q$3:$U$90,2,)," ")))))))) ->  | N61: =IF(G61="","",(IFERROR(VLOOKUP($G61,【選択肢】!$Q$3:$U$90,4,)," ")&IF(H61="","",","&IFERROR(VLOOKUP($H61,【選択肢】!$Q$3:$U$90,4,)," ")&IF(I61="","",","&IFERROR(VLOOKUP($I61,【選択肢】!$Q$3:$U$90,4,)," ")&IF(J61="","",","&IFERROR(VLOOKUP($J61,【選択肢】!$Q$3:$U$90,4,)," ")&IF(K61="","",","&IFERROR(VLOOKUP($K61,【選択肢】!$Q$3:$U$90,4,)," ")&IF(L61="","",","&IFERROR(VLOOKUP($L61,【選択肢】!$Q$3:$U$90,4,)," ")))))))) ->  | O61: =IF(G61="","",(IFERROR(VLOOKUP($G61,【選択肢】!$Q$3:$U$90,5,)," ")&IF(H61="","",","&IFERROR(VLOOKUP($H61,【選択肢】!$Q$3:$U$90,5,)," ")&IF(I61="","",","&IFERROR(VLOOKUP($I61,【選択肢】!$Q$3:$U$90,5,)," ")&IF(J61="","",","&IFERROR(VLOOKUP($J61,【選択肢】!$Q$3:$U$90,5,)," ")&IF(K61="","",","&IFERROR(VLOOKUP($K61,【選択肢】!$Q$3:$U$90,5,)," ")&IF(L61="","",","&IFERROR(VLOOKUP($L61,【選択肢】!$Q$3:$U$90,5,)," ")))))))) -> 
F62: 0 | M62: =IF(G62="","",(IFERROR(VLOOKUP($G62,【選択肢】!$Q$3:$U$90,2,)," ")&IF(H62="","",","&IFERROR(VLOOKUP($H62,【選択肢】!$Q$3:$U$90,2,)," ")&IF(I62="","",","&IFERROR(VLOOKUP($I62,【選択肢】!$Q$3:$U$90,2,)," ")&IF(J62="","",","&IFERROR(VLOOKUP($J62,【選択肢】!$Q$3:$U$90,2,)," ")&IF(K62="","",","&IFERROR(VLOOKUP($K62,【選択肢】!$Q$3:$U$90,2,)," ")&IF(L62="","",","&IFERROR(VLOOKUP($L62,【選択肢】!$Q$3:$U$90,2,)," ")))))))) ->  | N62: =IF(G62="","",(IFERROR(VLOOKUP($G62,【選択肢】!$Q$3:$U$90,4,)," ")&IF(H62="","",","&IFERROR(VLOOKUP($H62,【選択肢】!$Q$3:$U$90,4,)," ")&IF(I62="","",","&IFERROR(VLOOKUP($I62,【選択肢】!$Q$3:$U$90,4,)," ")&IF(J62="","",","&IFERROR(VLOOKUP($J62,【選択肢】!$Q$3:$U$90,4,)," ")&IF(K62="","",","&IFERROR(VLOOKUP($K62,【選択肢】!$Q$3:$U$90,4,)," ")&IF(L62="","",","&IFERROR(VLOOKUP($L62,【選択肢】!$Q$3:$U$90,4,)," ")))))))) ->  | O62: =IF(G62="","",(IFERROR(VLOOKUP($G62,【選択肢】!$Q$3:$U$90,5,)," ")&IF(H62="","",","&IFERROR(VLOOKUP($H62,【選択肢】!$Q$3:$U$90,5,)," ")&IF(I62="","",","&IFERROR(VLOOKUP($I62,【選択肢】!$Q$3:$U$90,5,)," ")&IF(J62="","",","&IFERROR(VLOOKUP($J62,【選択肢】!$Q$3:$U$90,5,)," ")&IF(K62="","",","&IFERROR(VLOOKUP($K62,【選択肢】!$Q$3:$U$90,5,)," ")&IF(L62="","",","&IFERROR(VLOOKUP($L62,【選択肢】!$Q$3:$U$90,5,)," ")))))))) -> 
F63: 0 | M63: =IF(G63="","",(IFERROR(VLOOKUP($G63,【選択肢】!$Q$3:$U$90,2,)," ")&IF(H63="","",","&IFERROR(VLOOKUP($H63,【選択肢】!$Q$3:$U$90,2,)," ")&IF(I63="","",","&IFERROR(VLOOKUP($I63,【選択肢】!$Q$3:$U$90,2,)," ")&IF(J63="","",","&IFERROR(VLOOKUP($J63,【選択肢】!$Q$3:$U$90,2,)," ")&IF(K63="","",","&IFERROR(VLOOKUP($K63,【選択肢】!$Q$3:$U$90,2,)," ")&IF(L63="","",","&IFERROR(VLOOKUP($L63,【選択肢】!$Q$3:$U$90,2,)," ")))))))) ->  | N63: =IF(G63="","",(IFERROR(VLOOKUP($G63,【選択肢】!$Q$3:$U$90,4,)," ")&IF(H63="","",","&IFERROR(VLOOKUP($H63,【選択肢】!$Q$3:$U$90,4,)," ")&IF(I63="","",","&IFERROR(VLOOKUP($I63,【選択肢】!$Q$3:$U$90,4,)," ")&IF(J63="","",","&IFERROR(VLOOKUP($J63,【選択肢】!$Q$3:$U$90,4,)," ")&IF(K63="","",","&IFERROR(VLOOKUP($K63,【選択肢】!$Q$3:$U$90,4,)," ")&IF(L63="","",","&IFERROR(VLOOKUP($L63,【選択肢】!$Q$3:$U$90,4,)," ")))))))) ->  | O63: =IF(G63="","",(IFERROR(VLOOKUP($G63,【選択肢】!$Q$3:$U$90,5,)," ")&IF(H63="","",","&IFERROR(VLOOKUP($H63,【選択肢】!$Q$3:$U$90,5,)," ")&IF(I63="","",","&IFERROR(VLOOKUP($I63,【選択肢】!$Q$3:$U$90,5,)," ")&IF(J63="","",","&IFERROR(VLOOKUP($J63,【選択肢】!$Q$3:$U$90,5,)," ")&IF(K63="","",","&IFERROR(VLOOKUP($K63,【選択肢】!$Q$3:$U$90,5,)," ")&IF(L63="","",","&IFERROR(VLOOKUP($L63,【選択肢】!$Q$3:$U$90,5,)," ")))))))) -> 
F64: 0 | M64: =IF(G64="","",(IFERROR(VLOOKUP($G64,【選択肢】!$Q$3:$U$90,2,)," ")&IF(H64="","",","&IFERROR(VLOOKUP($H64,【選択肢】!$Q$3:$U$90,2,)," ")&IF(I64="","",","&IFERROR(VLOOKUP($I64,【選択肢】!$Q$3:$U$90,2,)," ")&IF(J64="","",","&IFERROR(VLOOKUP($J64,【選択肢】!$Q$3:$U$90,2,)," ")&IF(K64="","",","&IFERROR(VLOOKUP($K64,【選択肢】!$Q$3:$U$90,2,)," ")&IF(L64="","",","&IFERROR(VLOOKUP($L64,【選択肢】!$Q$3:$U$90,2,)," ")))))))) ->  | N64: =IF(G64="","",(IFERROR(VLOOKUP($G64,【選択肢】!$Q$3:$U$90,4,)," ")&IF(H64="","",","&IFERROR(VLOOKUP($H64,【選択肢】!$Q$3:$U$90,4,)," ")&IF(I64="","",","&IFERROR(VLOOKUP($I64,【選択肢】!$Q$3:$U$90,4,)," ")&IF(J64="","",","&IFERROR(VLOOKUP($J64,【選択肢】!$Q$3:$U$90,4,)," ")&IF(K64="","",","&IFERROR(VLOOKUP($K64,【選択肢】!$Q$3:$U$90,4,)," ")&IF(L64="","",","&IFERROR(VLOOKUP($L64,【選択肢】!$Q$3:$U$90,4,)," ")))))))) ->  | O64: =IF(G64="","",(IFERROR(VLOOKUP($G64,【選択肢】!$Q$3:$U$90,5,)," ")&IF(H64="","",","&IFERROR(VLOOKUP($H64,【選択肢】!$Q$3:$U$90,5,)," ")&IF(I64="","",","&IFERROR(VLOOKUP($I64,【選択肢】!$Q$3:$U$90,5,)," ")&IF(J64="","",","&IFERROR(VLOOKUP($J64,【選択肢】!$Q$3:$U$90,5,)," ")&IF(K64="","",","&IFERROR(VLOOKUP($K64,【選択肢】!$Q$3:$U$90,5,)," ")&IF(L64="","",","&IFERROR(VLOOKUP($L64,【選択肢】!$Q$3:$U$90,5,)," ")))))))) -> 
F65: 0 | M65: =IF(G65="","",(IFERROR(VLOOKUP($G65,【選択肢】!$Q$3:$U$90,2,)," ")&IF(H65="","",","&IFERROR(VLOOKUP($H65,【選択肢】!$Q$3:$U$90,2,)," ")&IF(I65="","",","&IFERROR(VLOOKUP($I65,【選択肢】!$Q$3:$U$90,2,)," ")&IF(J65="","",","&IFERROR(VLOOKUP($J65,【選択肢】!$Q$3:$U$90,2,)," ")&IF(K65="","",","&IFERROR(VLOOKUP($K65,【選択肢】!$Q$3:$U$90,2,)," ")&IF(L65="","",","&IFERROR(VLOOKUP($L65,【選択肢】!$Q$3:$U$90,2,)," ")))))))) ->  | N65: =IF(G65="","",(IFERROR(VLOOKUP($G65,【選択肢】!$Q$3:$U$90,4,)," ")&IF(H65="","",","&IFERROR(VLOOKUP($H65,【選択肢】!$Q$3:$U$90,4,)," ")&IF(I65="","",","&IFERROR(VLOOKUP($I65,【選択肢】!$Q$3:$U$90,4,)," ")&IF(J65="","",","&IFERROR(VLOOKUP($J65,【選択肢】!$Q$3:$U$90,4,)," ")&IF(K65="","",","&IFERROR(VLOOKUP($K65,【選択肢】!$Q$3:$U$90,4,)," ")&IF(L65="","",","&IFERROR(VLOOKUP($L65,【選択肢】!$Q$3:$U$90,4,)," ")))))))) ->  | O65: =IF(G65="","",(IFERROR(VLOOKUP($G65,【選択肢】!$Q$3:$U$90,5,)," ")&IF(H65="","",","&IFERROR(VLOOKUP($H65,【選択肢】!$Q$3:$U$90,5,)," ")&IF(I65="","",","&IFERROR(VLOOKUP($I65,【選択肢】!$Q$3:$U$90,5,)," ")&IF(J65="","",","&IFERROR(VLOOKUP($J65,【選択肢】!$Q$3:$U$90,5,)," ")&IF(K65="","",","&IFERROR(VLOOKUP($K65,【選択肢】!$Q$3:$U$90,5,)," ")&IF(L65="","",","&IFERROR(VLOOKUP($L65,【選択肢】!$Q$3:$U$90,5,)," ")))))))) -> 
F66: 0 | M66: =IF(G66="","",(IFERROR(VLOOKUP($G66,【選択肢】!$Q$3:$U$90,2,)," ")&IF(H66="","",","&IFERROR(VLOOKUP($H66,【選択肢】!$Q$3:$U$90,2,)," ")&IF(I66="","",","&IFERROR(VLOOKUP($I66,【選択肢】!$Q$3:$U$90,2,)," ")&IF(J66="","",","&IFERROR(VLOOKUP($J66,【選択肢】!$Q$3:$U$90,2,)," ")&IF(K66="","",","&IFERROR(VLOOKUP($K66,【選択肢】!$Q$3:$U$90,2,)," ")&IF(L66="","",","&IFERROR(VLOOKUP($L66,【選択肢】!$Q$3:$U$90,2,)," ")))))))) ->  | N66: =IF(G66="","",(IFERROR(VLOOKUP($G66,【選択肢】!$Q$3:$U$90,4,)," ")&IF(H66="","",","&IFERROR(VLOOKUP($H66,【選択肢】!$Q$3:$U$90,4,)," ")&IF(I66="","",","&IFERROR(VLOOKUP($I66,【選択肢】!$Q$3:$U$90,4,)," ")&IF(J66="","",","&IFERROR(VLOOKUP($J66,【選択肢】!$Q$3:$U$90,4,)," ")&IF(K66="","",","&IFERROR(VLOOKUP($K66,【選択肢】!$Q$3:$U$90,4,)," ")&IF(L66="","",","&IFERROR(VLOOKUP($L66,【選択肢】!$Q$3:$U$90,4,)," ")))))))) ->  | O66: =IF(G66="","",(IFERROR(VLOOKUP($G66,【選択肢】!$Q$3:$U$90,5,)," ")&IF(H66="","",","&IFERROR(VLOOKUP($H66,【選択肢】!$Q$3:$U$90,5,)," ")&IF(I66="","",","&IFERROR(VLOOKUP($I66,【選択肢】!$Q$3:$U$90,5,)," ")&IF(J66="","",","&IFERROR(VLOOKUP($J66,【選択肢】!$Q$3:$U$90,5,)," ")&IF(K66="","",","&IFERROR(VLOOKUP($K66,【選択肢】!$Q$3:$U$90,5,)," ")&IF(L66="","",","&IFERROR(VLOOKUP($L66,【選択肢】!$Q$3:$U$90,5,)," ")))))))) -> 
F67: 0 | M67: =IF(G67="","",(IFERROR(VLOOKUP($G67,【選択肢】!$Q$3:$U$90,2,)," ")&IF(H67="","",","&IFERROR(VLOOKUP($H67,【選択肢】!$Q$3:$U$90,2,)," ")&IF(I67="","",","&IFERROR(VLOOKUP($I67,【選択肢】!$Q$3:$U$90,2,)," ")&IF(J67="","",","&IFERROR(VLOOKUP($J67,【選択肢】!$Q$3:$U$90,2,)," ")&IF(K67="","",","&IFERROR(VLOOKUP($K67,【選択肢】!$Q$3:$U$90,2,)," ")&IF(L67="","",","&IFERROR(VLOOKUP($L67,【選択肢】!$Q$3:$U$90,2,)," ")))))))) ->  | N67: =IF(G67="","",(IFERROR(VLOOKUP($G67,【選択肢】!$Q$3:$U$90,4,)," ")&IF(H67="","",","&IFERROR(VLOOKUP($H67,【選択肢】!$Q$3:$U$90,4,)," ")&IF(I67="","",","&IFERROR(VLOOKUP($I67,【選択肢】!$Q$3:$U$90,4,)," ")&IF(J67="","",","&IFERROR(VLOOKUP($J67,【選択肢】!$Q$3:$U$90,4,)," ")&IF(K67="","",","&IFERROR(VLOOKUP($K67,【選択肢】!$Q$3:$U$90,4,)," ")&IF(L67="","",","&IFERROR(VLOOKUP($L67,【選択肢】!$Q$3:$U$90,4,)," ")))))))) ->  | O67: =IF(G67="","",(IFERROR(VLOOKUP($G67,【選択肢】!$Q$3:$U$90,5,)," ")&IF(H67="","",","&IFERROR(VLOOKUP($H67,【選択肢】!$Q$3:$U$90,5,)," ")&IF(I67="","",","&IFERROR(VLOOKUP($I67,【選択肢】!$Q$3:$U$90,5,)," ")&IF(J67="","",","&IFERROR(VLOOKUP($J67,【選択肢】!$Q$3:$U$90,5,)," ")&IF(K67="","",","&IFERROR(VLOOKUP($K67,【選択肢】!$Q$3:$U$90,5,)," ")&IF(L67="","",","&IFERROR(VLOOKUP($L67,【選択肢】!$Q$3:$U$90,5,)," ")))))))) -> 
F68: =SUM(D68+E68) -> 0 | M68: =IF(G68="","",(IFERROR(VLOOKUP($G68,【選択肢】!$Q$3:$U$90,2,)," ")&IF(H68="","",","&IFERROR(VLOOKUP($H68,【選択肢】!$Q$3:$U$90,2,)," ")&IF(I68="","",","&IFERROR(VLOOKUP($I68,【選択肢】!$Q$3:$U$90,2,)," ")&IF(J68="","",","&IFERROR(VLOOKUP($J68,【選択肢】!$Q$3:$U$90,2,)," ")&IF(K68="","",","&IFERROR(VLOOKUP($K68,【選択肢】!$Q$3:$U$90,2,)," ")&IF(L68="","",","&IFERROR(VLOOKUP($L68,【選択肢】!$Q$3:$U$90,2,)," ")))))))) ->  | N68: =IF(G68="","",(IFERROR(VLOOKUP($G68,【選択肢】!$Q$3:$U$90,4,)," ")&IF(H68="","",","&IFERROR(VLOOKUP($H68,【選択肢】!$Q$3:$U$90,4,)," ")&IF(I68="","",","&IFERROR(VLOOKUP($I68,【選択肢】!$Q$3:$U$90,4,)," ")&IF(J68="","",","&IFERROR(VLOOKUP($J68,【選択肢】!$Q$3:$U$90,4,)," ")&IF(K68="","",","&IFERROR(VLOOKUP($K68,【選択肢】!$Q$3:$U$90,4,)," ")&IF(L68="","",","&IFERROR(VLOOKUP($L68,【選択肢】!$Q$3:$U$90,4,)," ")))))))) ->  | O68: =IF(G68="","",(IFERROR(VLOOKUP($G68,【選択肢】!$Q$3:$U$90,5,)," ")&IF(H68="","",","&IFERROR(VLOOKUP($H68,【選択肢】!$Q$3:$U$90,5,)," ")&IF(I68="","",","&IFERROR(VLOOKUP($I68,【選択肢】!$Q$3:$U$90,5,)," ")&IF(J68="","",","&IFERROR(VLOOKUP($J68,【選択肢】!$Q$3:$U$90,5,)," ")&IF(K68="","",","&IFERROR(VLOOKUP($K68,【選択肢】!$Q$3:$U$90,5,)," ")&IF(L68="","",","&IFERROR(VLOOKUP($L68,【選択肢】!$Q$3:$U$90,5,)," ")))))))) -> 
F69: 0 | M69: =IF(G69="","",(IFERROR(VLOOKUP($G69,【選択肢】!$Q$3:$U$90,2,)," ")&IF(H69="","",","&IFERROR(VLOOKUP($H69,【選択肢】!$Q$3:$U$90,2,)," ")&IF(I69="","",","&IFERROR(VLOOKUP($I69,【選択肢】!$Q$3:$U$90,2,)," ")&IF(J69="","",","&IFERROR(VLOOKUP($J69,【選択肢】!$Q$3:$U$90,2,)," ")&IF(K69="","",","&IFERROR(VLOOKUP($K69,【選択肢】!$Q$3:$U$90,2,)," ")&IF(L69="","",","&IFERROR(VLOOKUP($L69,【選択肢】!$Q$3:$U$90,2,)," ")))))))) ->  | N69: =IF(G69="","",(IFERROR(VLOOKUP($G69,【選択肢】!$Q$3:$U$90,4,)," ")&IF(H69="","",","&IFERROR(VLOOKUP($H69,【選択肢】!$Q$3:$U$90,4,)," ")&IF(I69="","",","&IFERROR(VLOOKUP($I69,【選択肢】!$Q$3:$U$90,4,)," ")&IF(J69="","",","&IFERROR(VLOOKUP($J69,【選択肢】!$Q$3:$U$90,4,)," ")&IF(K69="","",","&IFERROR(VLOOKUP($K69,【選択肢】!$Q$3:$U$90,4,)," ")&IF(L69="","",","&IFERROR(VLOOKUP($L69,【選択肢】!$Q$3:$U$90,4,)," ")))))))) ->  | O69: =IF(G69="","",(IFERROR(VLOOKUP($G69,【選択肢】!$Q$3:$U$90,5,)," ")&IF(H69="","",","&IFERROR(VLOOKUP($H69,【選択肢】!$Q$3:$U$90,5,)," ")&IF(I69="","",","&IFERROR(VLOOKUP($I69,【選択肢】!$Q$3:$U$90,5,)," ")&IF(J69="","",","&IFERROR(VLOOKUP($J69,【選択肢】!$Q$3:$U$90,5,)," ")&IF(K69="","",","&IFERROR(VLOOKUP($K69,【選択肢】!$Q$3:$U$90,5,)," ")&IF(L69="","",","&IFERROR(VLOOKUP($L69,【選択肢】!$Q$3:$U$90,5,)," ")))))))) -> 
F70: 0 | M70: =IF(G70="","",(IFERROR(VLOOKUP($G70,【選択肢】!$Q$3:$U$90,2,)," ")&IF(H70="","",","&IFERROR(VLOOKUP($H70,【選択肢】!$Q$3:$U$90,2,)," ")&IF(I70="","",","&IFERROR(VLOOKUP($I70,【選択肢】!$Q$3:$U$90,2,)," ")&IF(J70="","",","&IFERROR(VLOOKUP($J70,【選択肢】!$Q$3:$U$90,2,)," ")&IF(K70="","",","&IFERROR(VLOOKUP($K70,【選択肢】!$Q$3:$U$90,2,)," ")&IF(L70="","",","&IFERROR(VLOOKUP($L70,【選択肢】!$Q$3:$U$90,2,)," ")))))))) ->  | N70: =IF(G70="","",(IFERROR(VLOOKUP($G70,【選択肢】!$Q$3:$U$90,4,)," ")&IF(H70="","",","&IFERROR(VLOOKUP($H70,【選択肢】!$Q$3:$U$90,4,)," ")&IF(I70="","",","&IFERROR(VLOOKUP($I70,【選択肢】!$Q$3:$U$90,4,)," ")&IF(J70="","",","&IFERROR(VLOOKUP($J70,【選択肢】!$Q$3:$U$90,4,)," ")&IF(K70="","",","&IFERROR(VLOOKUP($K70,【選択肢】!$Q$3:$U$90,4,)," ")&IF(L70="","",","&IFERROR(VLOOKUP($L70,【選択肢】!$Q$3:$U$90,4,)," ")))))))) ->  | O70: =IF(G70="","",(IFERROR(VLOOKUP($G70,【選択肢】!$Q$3:$U$90,5,)," ")&IF(H70="","",","&IFERROR(VLOOKUP($H70,【選択肢】!$Q$3:$U$90,5,)," ")&IF(I70="","",","&IFERROR(VLOOKUP($I70,【選択肢】!$Q$3:$U$90,5,)," ")&IF(J70="","",","&IFERROR(VLOOKUP($J70,【選択肢】!$Q$3:$U$90,5,)," ")&IF(K70="","",","&IFERROR(VLOOKUP($K70,【選択肢】!$Q$3:$U$90,5,)," ")&IF(L70="","",","&IFERROR(VLOOKUP($L70,【選択肢】!$Q$3:$U$90,5,)," ")))))))) -> 
F71: 0 | M71: =IF(G71="","",(IFERROR(VLOOKUP($G71,【選択肢】!$Q$3:$U$90,2,)," ")&IF(H71="","",","&IFERROR(VLOOKUP($H71,【選択肢】!$Q$3:$U$90,2,)," ")&IF(I71="","",","&IFERROR(VLOOKUP($I71,【選択肢】!$Q$3:$U$90,2,)," ")&IF(J71="","",","&IFERROR(VLOOKUP($J71,【選択肢】!$Q$3:$U$90,2,)," ")&IF(K71="","",","&IFERROR(VLOOKUP($K71,【選択肢】!$Q$3:$U$90,2,)," ")&IF(L71="","",","&IFERROR(VLOOKUP($L71,【選択肢】!$Q$3:$U$90,2,)," ")))))))) ->  | N71: =IF(G71="","",(IFERROR(VLOOKUP($G71,【選択肢】!$Q$3:$U$90,4,)," ")&IF(H71="","",","&IFERROR(VLOOKUP($H71,【選択肢】!$Q$3:$U$90,4,)," ")&IF(I71="","",","&IFERROR(VLOOKUP($I71,【選択肢】!$Q$3:$U$90,4,)," ")&IF(J71="","",","&IFERROR(VLOOKUP($J71,【選択肢】!$Q$3:$U$90,4,)," ")&IF(K71="","",","&IFERROR(VLOOKUP($K71,【選択肢】!$Q$3:$U$90,4,)," ")&IF(L71="","",","&IFERROR(VLOOKUP($L71,【選択肢】!$Q$3:$U$90,4,)," ")))))))) ->  | O71: =IF(G71="","",(IFERROR(VLOOKUP($G71,【選択肢】!$Q$3:$U$90,5,)," ")&IF(H71="","",","&IFERROR(VLOOKUP($H71,【選択肢】!$Q$3:$U$90,5,)," ")&IF(I71="","",","&IFERROR(VLOOKUP($I71,【選択肢】!$Q$3:$U$90,5,)," ")&IF(J71="","",","&IFERROR(VLOOKUP($J71,【選択肢】!$Q$3:$U$90,5,)," ")&IF(K71="","",","&IFERROR(VLOOKUP($K71,【選択肢】!$Q$3:$U$90,5,)," ")&IF(L71="","",","&IFERROR(VLOOKUP($L71,【選択肢】!$Q$3:$U$90,5,)," ")))))))) -> 
F72: 0 | M72: =IF(G72="","",(IFERROR(VLOOKUP($G72,【選択肢】!$Q$3:$U$90,2,)," ")&IF(H72="","",","&IFERROR(VLOOKUP($H72,【選択肢】!$Q$3:$U$90,2,)," ")&IF(I72="","",","&IFERROR(VLOOKUP($I72,【選択肢】!$Q$3:$U$90,2,)," ")&IF(J72="","",","&IFERROR(VLOOKUP($J72,【選択肢】!$Q$3:$U$90,2,)," ")&IF(K72="","",","&IFERROR(VLOOKUP($K72,【選択肢】!$Q$3:$U$90,2,)," ")&IF(L72="","",","&IFERROR(VLOOKUP($L72,【選択肢】!$Q$3:$U$90,2,)," ")))))))) ->  | N72: =IF(G72="","",(IFERROR(VLOOKUP($G72,【選択肢】!$Q$3:$U$90,4,)," ")&IF(H72="","",","&IFERROR(VLOOKUP($H72,【選択肢】!$Q$3:$U$90,4,)," ")&IF(I72="","",","&IFERROR(VLOOKUP($I72,【選択肢】!$Q$3:$U$90,4,)," ")&IF(J72="","",","&IFERROR(VLOOKUP($J72,【選択肢】!$Q$3:$U$90,4,)," ")&IF(K72="","",","&IFERROR(VLOOKUP($K72,【選択肢】!$Q$3:$U$90,4,)," ")&IF(L72="","",","&IFERROR(VLOOKUP($L72,【選択肢】!$Q$3:$U$90,4,)," ")))))))) ->  | O72: =IF(G72="","",(IFERROR(VLOOKUP($G72,【選択肢】!$Q$3:$U$90,5,)," ")&IF(H72="","",","&IFERROR(VLOOKUP($H72,【選択肢】!$Q$3:$U$90,5,)," ")&IF(I72="","",","&IFERROR(VLOOKUP($I72,【選択肢】!$Q$3:$U$90,5,)," ")&IF(J72="","",","&IFERROR(VLOOKUP($J72,【選択肢】!$Q$3:$U$90,5,)," ")&IF(K72="","",","&IFERROR(VLOOKUP($K72,【選択肢】!$Q$3:$U$90,5,)," ")&IF(L72="","",","&IFERROR(VLOOKUP($L72,【選択肢】!$Q$3:$U$90,5,)," ")))))))) -> 
F73: 0 | M73: =IF(G73="","",(IFERROR(VLOOKUP($G73,【選択肢】!$Q$3:$U$90,2,)," ")&IF(H73="","",","&IFERROR(VLOOKUP($H73,【選択肢】!$Q$3:$U$90,2,)," ")&IF(I73="","",","&IFERROR(VLOOKUP($I73,【選択肢】!$Q$3:$U$90,2,)," ")&IF(J73="","",","&IFERROR(VLOOKUP($J73,【選択肢】!$Q$3:$U$90,2,)," ")&IF(K73="","",","&IFERROR(VLOOKUP($K73,【選択肢】!$Q$3:$U$90,2,)," ")&IF(L73="","",","&IFERROR(VLOOKUP($L73,【選択肢】!$Q$3:$U$90,2,)," ")))))))) ->  | N73: =IF(G73="","",(IFERROR(VLOOKUP($G73,【選択肢】!$Q$3:$U$90,4,)," ")&IF(H73="","",","&IFERROR(VLOOKUP($H73,【選択肢】!$Q$3:$U$90,4,)," ")&IF(I73="","",","&IFERROR(VLOOKUP($I73,【選択肢】!$Q$3:$U$90,4,)," ")&IF(J73="","",","&IFERROR(VLOOKUP($J73,【選択肢】!$Q$3:$U$90,4,)," ")&IF(K73="","",","&IFERROR(VLOOKUP($K73,【選択肢】!$Q$3:$U$90,4,)," ")&IF(L73="","",","&IFERROR(VLOOKUP($L73,【選択肢】!$Q$3:$U$90,4,)," ")))))))) ->  | O73: =IF(G73="","",(IFERROR(VLOOKUP($G73,【選択肢】!$Q$3:$U$90,5,)," ")&IF(H73="","",","&IFERROR(VLOOKUP($H73,【選択肢】!$Q$3:$U$90,5,)," ")&IF(I73="","",","&IFERROR(VLOOKUP($I73,【選択肢】!$Q$3:$U$90,5,)," ")&IF(J73="","",","&IFERROR(VLOOKUP($J73,【選択肢】!$Q$3:$U$90,5,)," ")&IF(K73="","",","&IFERROR(VLOOKUP($K73,【選択肢】!$Q$3:$U$90,5,)," ")&IF(L73="","",","&IFERROR(VLOOKUP($L73,【選択肢】!$Q$3:$U$90,5,)," ")))))))) -> 
F74: 0 | M74: =IF(G74="","",(IFERROR(VLOOKUP($G74,【選択肢】!$Q$3:$U$90,2,)," ")&IF(H74="","",","&IFERROR(VLOOKUP($H74,【選択肢】!$Q$3:$U$90,2,)," ")&IF(I74="","",","&IFERROR(VLOOKUP($I74,【選択肢】!$Q$3:$U$90,2,)," ")&IF(J74="","",","&IFERROR(VLOOKUP($J74,【選択肢】!$Q$3:$U$90,2,)," ")&IF(K74="","",","&IFERROR(VLOOKUP($K74,【選択肢】!$Q$3:$U$90,2,)," ")&IF(L74="","",","&IFERROR(VLOOKUP($L74,【選択肢】!$Q$3:$U$90,2,)," ")))))))) ->  | N74: =IF(G74="","",(IFERROR(VLOOKUP($G74,【選択肢】!$Q$3:$U$90,4,)," ")&IF(H74="","",","&IFERROR(VLOOKUP($H74,【選択肢】!$Q$3:$U$90,4,)," ")&IF(I74="","",","&IFERROR(VLOOKUP($I74,【選択肢】!$Q$3:$U$90,4,)," ")&IF(J74="","",","&IFERROR(VLOOKUP($J74,【選択肢】!$Q$3:$U$90,4,)," ")&IF(K74="","",","&IFERROR(VLOOKUP($K74,【選択肢】!$Q$3:$U$90,4,)," ")&IF(L74="","",","&IFERROR(VLOOKUP($L74,【選択肢】!$Q$3:$U$90,4,)," ")))))))) ->  | O74: =IF(G74="","",(IFERROR(VLOOKUP($G74,【選択肢】!$Q$3:$U$90,5,)," ")&IF(H74="","",","&IFERROR(VLOOKUP($H74,【選択肢】!$Q$3:$U$90,5,)," ")&IF(I74="","",","&IFERROR(VLOOKUP($I74,【選択肢】!$Q$3:$U$90,5,)," ")&IF(J74="","",","&IFERROR(VLOOKUP($J74,【選択肢】!$Q$3:$U$90,5,)," ")&IF(K74="","",","&IFERROR(VLOOKUP($K74,【選択肢】!$Q$3:$U$90,5,)," ")&IF(L74="","",","&IFERROR(VLOOKUP($L74,【選択肢】!$Q$3:$U$90,5,)," ")))))))) -> 
F75: 0 | M75: =IF(G75="","",(IFERROR(VLOOKUP($G75,【選択肢】!$Q$3:$U$90,2,)," ")&IF(H75="","",","&IFERROR(VLOOKUP($H75,【選択肢】!$Q$3:$U$90,2,)," ")&IF(I75="","",","&IFERROR(VLOOKUP($I75,【選択肢】!$Q$3:$U$90,2,)," ")&IF(J75="","",","&IFERROR(VLOOKUP($J75,【選択肢】!$Q$3:$U$90,2,)," ")&IF(K75="","",","&IFERROR(VLOOKUP($K75,【選択肢】!$Q$3:$U$90,2,)," ")&IF(L75="","",","&IFERROR(VLOOKUP($L75,【選択肢】!$Q$3:$U$90,2,)," ")))))))) ->  | N75: =IF(G75="","",(IFERROR(VLOOKUP($G75,【選択肢】!$Q$3:$U$90,4,)," ")&IF(H75="","",","&IFERROR(VLOOKUP($H75,【選択肢】!$Q$3:$U$90,4,)," ")&IF(I75="","",","&IFERROR(VLOOKUP($I75,【選択肢】!$Q$3:$U$90,4,)," ")&IF(J75="","",","&IFERROR(VLOOKUP($J75,【選択肢】!$Q$3:$U$90,4,)," ")&IF(K75="","",","&IFERROR(VLOOKUP($K75,【選択肢】!$Q$3:$U$90,4,)," ")&IF(L75="","",","&IFERROR(VLOOKUP($L75,【選択肢】!$Q$3:$U$90,4,)," ")))))))) ->  | O75: =IF(G75="","",(IFERROR(VLOOKUP($G75,【選択肢】!$Q$3:$U$90,5,)," ")&IF(H75="","",","&IFERROR(VLOOKUP($H75,【選択肢】!$Q$3:$U$90,5,)," ")&IF(I75="","",","&IFERROR(VLOOKUP($I75,【選択肢】!$Q$3:$U$90,5,)," ")&IF(J75="","",","&IFERROR(VLOOKUP($J75,【選択肢】!$Q$3:$U$90,5,)," ")&IF(K75="","",","&IFERROR(VLOOKUP($K75,【選択肢】!$Q$3:$U$90,5,)," ")&IF(L75="","",","&IFERROR(VLOOKUP($L75,【選択肢】!$Q$3:$U$90,5,)," ")))))))) -> 
F76: 0 | M76: =IF(G76="","",(IFERROR(VLOOKUP($G76,【選択肢】!$Q$3:$U$90,2,)," ")&IF(H76="","",","&IFERROR(VLOOKUP($H76,【選択肢】!$Q$3:$U$90,2,)," ")&IF(I76="","",","&IFERROR(VLOOKUP($I76,【選択肢】!$Q$3:$U$90,2,)," ")&IF(J76="","",","&IFERROR(VLOOKUP($J76,【選択肢】!$Q$3:$U$90,2,)," ")&IF(K76="","",","&IFERROR(VLOOKUP($K76,【選択肢】!$Q$3:$U$90,2,)," ")&IF(L76="","",","&IFERROR(VLOOKUP($L76,【選択肢】!$Q$3:$U$90,2,)," ")))))))) ->  | N76: =IF(G76="","",(IFERROR(VLOOKUP($G76,【選択肢】!$Q$3:$U$90,4,)," ")&IF(H76="","",","&IFERROR(VLOOKUP($H76,【選択肢】!$Q$3:$U$90,4,)," ")&IF(I76="","",","&IFERROR(VLOOKUP($I76,【選択肢】!$Q$3:$U$90,4,)," ")&IF(J76="","",","&IFERROR(VLOOKUP($J76,【選択肢】!$Q$3:$U$90,4,)," ")&IF(K76="","",","&IFERROR(VLOOKUP($K76,【選択肢】!$Q$3:$U$90,4,)," ")&IF(L76="","",","&IFERROR(VLOOKUP($L76,【選択肢】!$Q$3:$U$90,4,)," ")))))))) ->  | O76: =IF(G76="","",(IFERROR(VLOOKUP($G76,【選択肢】!$Q$3:$U$90,5,)," ")&IF(H76="","",","&IFERROR(VLOOKUP($H76,【選択肢】!$Q$3:$U$90,5,)," ")&IF(I76="","",","&IFERROR(VLOOKUP($I76,【選択肢】!$Q$3:$U$90,5,)," ")&IF(J76="","",","&IFERROR(VLOOKUP($J76,【選択肢】!$Q$3:$U$90,5,)," ")&IF(K76="","",","&IFERROR(VLOOKUP($K76,【選択肢】!$Q$3:$U$90,5,)," ")&IF(L76="","",","&IFERROR(VLOOKUP($L76,【選択肢】!$Q$3:$U$90,5,)," ")))))))) -> 
F77: 0 | M77: =IF(G77="","",(IFERROR(VLOOKUP($G77,【選択肢】!$Q$3:$U$90,2,)," ")&IF(H77="","",","&IFERROR(VLOOKUP($H77,【選択肢】!$Q$3:$U$90,2,)," ")&IF(I77="","",","&IFERROR(VLOOKUP($I77,【選択肢】!$Q$3:$U$90,2,)," ")&IF(J77="","",","&IFERROR(VLOOKUP($J77,【選択肢】!$Q$3:$U$90,2,)," ")&IF(K77="","",","&IFERROR(VLOOKUP($K77,【選択肢】!$Q$3:$U$90,2,)," ")&IF(L77="","",","&IFERROR(VLOOKUP($L77,【選択肢】!$Q$3:$U$90,2,)," ")))))))) ->  | N77: =IF(G77="","",(IFERROR(VLOOKUP($G77,【選択肢】!$Q$3:$U$90,4,)," ")&IF(H77="","",","&IFERROR(VLOOKUP($H77,【選択肢】!$Q$3:$U$90,4,)," ")&IF(I77="","",","&IFERROR(VLOOKUP($I77,【選択肢】!$Q$3:$U$90,4,)," ")&IF(J77="","",","&IFERROR(VLOOKUP($J77,【選択肢】!$Q$3:$U$90,4,)," ")&IF(K77="","",","&IFERROR(VLOOKUP($K77,【選択肢】!$Q$3:$U$90,4,)," ")&IF(L77="","",","&IFERROR(VLOOKUP($L77,【選択肢】!$Q$3:$U$90,4,)," ")))))))) ->  | O77: =IF(G77="","",(IFERROR(VLOOKUP($G77,【選択肢】!$Q$3:$U$90,5,)," ")&IF(H77="","",","&IFERROR(VLOOKUP($H77,【選択肢】!$Q$3:$U$90,5,)," ")&IF(I77="","",","&IFERROR(VLOOKUP($I77,【選択肢】!$Q$3:$U$90,5,)," ")&IF(J77="","",","&IFERROR(VLOOKUP($J77,【選択肢】!$Q$3:$U$90,5,)," ")&IF(K77="","",","&IFERROR(VLOOKUP($K77,【選択肢】!$Q$3:$U$90,5,)," ")&IF(L77="","",","&IFERROR(VLOOKUP($L77,【選択肢】!$Q$3:$U$90,5,)," ")))))))) -> 
F78: 0 | M78: =IF(G78="","",(IFERROR(VLOOKUP($G78,【選択肢】!$Q$3:$U$90,2,)," ")&IF(H78="","",","&IFERROR(VLOOKUP($H78,【選択肢】!$Q$3:$U$90,2,)," ")&IF(I78="","",","&IFERROR(VLOOKUP($I78,【選択肢】!$Q$3:$U$90,2,)," ")&IF(J78="","",","&IFERROR(VLOOKUP($J78,【選択肢】!$Q$3:$U$90,2,)," ")&IF(K78="","",","&IFERROR(VLOOKUP($K78,【選択肢】!$Q$3:$U$90,2,)," ")&IF(L78="","",","&IFERROR(VLOOKUP($L78,【選択肢】!$Q$3:$U$90,2,)," ")))))))) ->  | N78: =IF(G78="","",(IFERROR(VLOOKUP($G78,【選択肢】!$Q$3:$U$90,4,)," ")&IF(H78="","",","&IFERROR(VLOOKUP($H78,【選択肢】!$Q$3:$U$90,4,)," ")&IF(I78="","",","&IFERROR(VLOOKUP($I78,【選択肢】!$Q$3:$U$90,4,)," ")&IF(J78="","",","&IFERROR(VLOOKUP($J78,【選択肢】!$Q$3:$U$90,4,)," ")&IF(K78="","",","&IFERROR(VLOOKUP($K78,【選択肢】!$Q$3:$U$90,4,)," ")&IF(L78="","",","&IFERROR(VLOOKUP($L78,【選択肢】!$Q$3:$U$90,4,)," ")))))))) ->  | O78: =IF(G78="","",(IFERROR(VLOOKUP($G78,【選択肢】!$Q$3:$U$90,5,)," ")&IF(H78="","",","&IFERROR(VLOOKUP($H78,【選択肢】!$Q$3:$U$90,5,)," ")&IF(I78="","",","&IFERROR(VLOOKUP($I78,【選択肢】!$Q$3:$U$90,5,)," ")&IF(J78="","",","&IFERROR(VLOOKUP($J78,【選択肢】!$Q$3:$U$90,5,)," ")&IF(K78="","",","&IFERROR(VLOOKUP($K78,【選択肢】!$Q$3:$U$90,5,)," ")&IF(L78="","",","&IFERROR(VLOOKUP($L78,【選択肢】!$Q$3:$U$90,5,)," ")))))))) -> 
F79: 0 | M79: =IF(G79="","",(IFERROR(VLOOKUP($G79,【選択肢】!$Q$3:$U$90,2,)," ")&IF(H79="","",","&IFERROR(VLOOKUP($H79,【選択肢】!$Q$3:$U$90,2,)," ")&IF(I79="","",","&IFERROR(VLOOKUP($I79,【選択肢】!$Q$3:$U$90,2,)," ")&IF(J79="","",","&IFERROR(VLOOKUP($J79,【選択肢】!$Q$3:$U$90,2,)," ")&IF(K79="","",","&IFERROR(VLOOKUP($K79,【選択肢】!$Q$3:$U$90,2,)," ")&IF(L79="","",","&IFERROR(VLOOKUP($L79,【選択肢】!$Q$3:$U$90,2,)," ")))))))) ->  | N79: =IF(G79="","",(IFERROR(VLOOKUP($G79,【選択肢】!$Q$3:$U$90,4,)," ")&IF(H79="","",","&IFERROR(VLOOKUP($H79,【選択肢】!$Q$3:$U$90,4,)," ")&IF(I79="","",","&IFERROR(VLOOKUP($I79,【選択肢】!$Q$3:$U$90,4,)," ")&IF(J79="","",","&IFERROR(VLOOKUP($J79,【選択肢】!$Q$3:$U$90,4,)," ")&IF(K79="","",","&IFERROR(VLOOKUP($K79,【選択肢】!$Q$3:$U$90,4,)," ")&IF(L79="","",","&IFERROR(VLOOKUP($L79,【選択肢】!$Q$3:$U$90,4,)," ")))))))) ->  | O79: =IF(G79="","",(IFERROR(VLOOKUP($G79,【選択肢】!$Q$3:$U$90,5,)," ")&IF(H79="","",","&IFERROR(VLOOKUP($H79,【選択肢】!$Q$3:$U$90,5,)," ")&IF(I79="","",","&IFERROR(VLOOKUP($I79,【選択肢】!$Q$3:$U$90,5,)," ")&IF(J79="","",","&IFERROR(VLOOKUP($J79,【選択肢】!$Q$3:$U$90,5,)," ")&IF(K79="","",","&IFERROR(VLOOKUP($K79,【選択肢】!$Q$3:$U$90,5,)," ")&IF(L79="","",","&IFERROR(VLOOKUP($L79,【選択肢】!$Q$3:$U$90,5,)," ")))))))) -> 
F80: 0 | M80: =IF(G80="","",(IFERROR(VLOOKUP($G80,【選択肢】!$Q$3:$U$90,2,)," ")&IF(H80="","",","&IFERROR(VLOOKUP($H80,【選択肢】!$Q$3:$U$90,2,)," ")&IF(I80="","",","&IFERROR(VLOOKUP($I80,【選択肢】!$Q$3:$U$90,2,)," ")&IF(J80="","",","&IFERROR(VLOOKUP($J80,【選択肢】!$Q$3:$U$90,2,)," ")&IF(K80="","",","&IFERROR(VLOOKUP($K80,【選択肢】!$Q$3:$U$90,2,)," ")&IF(L80="","",","&IFERROR(VLOOKUP($L80,【選択肢】!$Q$3:$U$90,2,)," ")))))))) ->  | N80: =IF(G80="","",(IFERROR(VLOOKUP($G80,【選択肢】!$Q$3:$U$90,4,)," ")&IF(H80="","",","&IFERROR(VLOOKUP($H80,【選択肢】!$Q$3:$U$90,4,)," ")&IF(I80="","",","&IFERROR(VLOOKUP($I80,【選択肢】!$Q$3:$U$90,4,)," ")&IF(J80="","",","&IFERROR(VLOOKUP($J80,【選択肢】!$Q$3:$U$90,4,)," ")&IF(K80="","",","&IFERROR(VLOOKUP($K80,【選択肢】!$Q$3:$U$90,4,)," ")&IF(L80="","",","&IFERROR(VLOOKUP($L80,【選択肢】!$Q$3:$U$90,4,)," ")))))))) ->  | O80: =IF(G80="","",(IFERROR(VLOOKUP($G80,【選択肢】!$Q$3:$U$90,5,)," ")&IF(H80="","",","&IFERROR(VLOOKUP($H80,【選択肢】!$Q$3:$U$90,5,)," ")&IF(I80="","",","&IFERROR(VLOOKUP($I80,【選択肢】!$Q$3:$U$90,5,)," ")&IF(J80="","",","&IFERROR(VLOOKUP($J80,【選択肢】!$Q$3:$U$90,5,)," ")&IF(K80="","",","&IFERROR(VLOOKUP($K80,【選択肢】!$Q$3:$U$90,5,)," ")&IF(L80="","",","&IFERROR(VLOOKUP($L80,【選択肢】!$Q$3:$U$90,5,)," ")))))))) -> 
F81: 0 | M81: =IF(G81="","",(IFERROR(VLOOKUP($G81,【選択肢】!$Q$3:$U$90,2,)," ")&IF(H81="","",","&IFERROR(VLOOKUP($H81,【選択肢】!$Q$3:$U$90,2,)," ")&IF(I81="","",","&IFERROR(VLOOKUP($I81,【選択肢】!$Q$3:$U$90,2,)," ")&IF(J81="","",","&IFERROR(VLOOKUP($J81,【選択肢】!$Q$3:$U$90,2,)," ")&IF(K81="","",","&IFERROR(VLOOKUP($K81,【選択肢】!$Q$3:$U$90,2,)," ")&IF(L81="","",","&IFERROR(VLOOKUP($L81,【選択肢】!$Q$3:$U$90,2,)," ")))))))) ->  | N81: =IF(G81="","",(IFERROR(VLOOKUP($G81,【選択肢】!$Q$3:$U$90,4,)," ")&IF(H81="","",","&IFERROR(VLOOKUP($H81,【選択肢】!$Q$3:$U$90,4,)," ")&IF(I81="","",","&IFERROR(VLOOKUP($I81,【選択肢】!$Q$3:$U$90,4,)," ")&IF(J81="","",","&IFERROR(VLOOKUP($J81,【選択肢】!$Q$3:$U$90,4,)," ")&IF(K81="","",","&IFERROR(VLOOKUP($K81,【選択肢】!$Q$3:$U$90,4,)," ")&IF(L81="","",","&IFERROR(VLOOKUP($L81,【選択肢】!$Q$3:$U$90,4,)," ")))))))) ->  | O81: =IF(G81="","",(IFERROR(VLOOKUP($G81,【選択肢】!$Q$3:$U$90,5,)," ")&IF(H81="","",","&IFERROR(VLOOKUP($H81,【選択肢】!$Q$3:$U$90,5,)," ")&IF(I81="","",","&IFERROR(VLOOKUP($I81,【選択肢】!$Q$3:$U$90,5,)," ")&IF(J81="","",","&IFERROR(VLOOKUP($J81,【選択肢】!$Q$3:$U$90,5,)," ")&IF(K81="","",","&IFERROR(VLOOKUP($K81,【選択肢】!$Q$3:$U$90,5,)," ")&IF(L81="","",","&IFERROR(VLOOKUP($L81,【選択肢】!$Q$3:$U$90,5,)," ")))))))) -> 
F82: 0 | M82: =IF(G82="","",(IFERROR(VLOOKUP($G82,【選択肢】!$Q$3:$U$90,2,)," ")&IF(H82="","",","&IFERROR(VLOOKUP($H82,【選択肢】!$Q$3:$U$90,2,)," ")&IF(I82="","",","&IFERROR(VLOOKUP($I82,【選択肢】!$Q$3:$U$90,2,)," ")&IF(J82="","",","&IFERROR(VLOOKUP($J82,【選択肢】!$Q$3:$U$90,2,)," ")&IF(K82="","",","&IFERROR(VLOOKUP($K82,【選択肢】!$Q$3:$U$90,2,)," ")&IF(L82="","",","&IFERROR(VLOOKUP($L82,【選択肢】!$Q$3:$U$90,2,)," ")))))))) ->  | N82: =IF(G82="","",(IFERROR(VLOOKUP($G82,【選択肢】!$Q$3:$U$90,4,)," ")&IF(H82="","",","&IFERROR(VLOOKUP($H82,【選択肢】!$Q$3:$U$90,4,)," ")&IF(I82="","",","&IFERROR(VLOOKUP($I82,【選択肢】!$Q$3:$U$90,4,)," ")&IF(J82="","",","&IFERROR(VLOOKUP($J82,【選択肢】!$Q$3:$U$90,4,)," ")&IF(K82="","",","&IFERROR(VLOOKUP($K82,【選択肢】!$Q$3:$U$90,4,)," ")&IF(L82="","",","&IFERROR(VLOOKUP($L82,【選択肢】!$Q$3:$U$90,4,)," ")))))))) ->  | O82: =IF(G82="","",(IFERROR(VLOOKUP($G82,【選択肢】!$Q$3:$U$90,5,)," ")&IF(H82="","",","&IFERROR(VLOOKUP($H82,【選択肢】!$Q$3:$U$90,5,)," ")&IF(I82="","",","&IFERROR(VLOOKUP($I82,【選択肢】!$Q$3:$U$90,5,)," ")&IF(J82="","",","&IFERROR(VLOOKUP($J82,【選択肢】!$Q$3:$U$90,5,)," ")&IF(K82="","",","&IFERROR(VLOOKUP($K82,【選択肢】!$Q$3:$U$90,5,)," ")&IF(L82="","",","&IFERROR(VLOOKUP($L82,【選択肢】!$Q$3:$U$90,5,)," ")))))))) -> 
F83: 0 | M83: =IF(G83="","",(IFERROR(VLOOKUP($G83,【選択肢】!$Q$3:$U$90,2,)," ")&IF(H83="","",","&IFERROR(VLOOKUP($H83,【選択肢】!$Q$3:$U$90,2,)," ")&IF(I83="","",","&IFERROR(VLOOKUP($I83,【選択肢】!$Q$3:$U$90,2,)," ")&IF(J83="","",","&IFERROR(VLOOKUP($J83,【選択肢】!$Q$3:$U$90,2,)," ")&IF(K83="","",","&IFERROR(VLOOKUP($K83,【選択肢】!$Q$3:$U$90,2,)," ")&IF(L83="","",","&IFERROR(VLOOKUP($L83,【選択肢】!$Q$3:$U$90,2,)," ")))))))) ->  | N83: =IF(G83="","",(IFERROR(VLOOKUP($G83,【選択肢】!$Q$3:$U$90,4,)," ")&IF(H83="","",","&IFERROR(VLOOKUP($H83,【選択肢】!$Q$3:$U$90,4,)," ")&IF(I83="","",","&IFERROR(VLOOKUP($I83,【選択肢】!$Q$3:$U$90,4,)," ")&IF(J83="","",","&IFERROR(VLOOKUP($J83,【選択肢】!$Q$3:$U$90,4,)," ")&IF(K83="","",","&IFERROR(VLOOKUP($K83,【選択肢】!$Q$3:$U$90,4,)," ")&IF(L83="","",","&IFERROR(VLOOKUP($L83,【選択肢】!$Q$3:$U$90,4,)," ")))))))) ->  | O83: =IF(G83="","",(IFERROR(VLOOKUP($G83,【選択肢】!$Q$3:$U$90,5,)," ")&IF(H83="","",","&IFERROR(VLOOKUP($H83,【選択肢】!$Q$3:$U$90,5,)," ")&IF(I83="","",","&IFERROR(VLOOKUP($I83,【選択肢】!$Q$3:$U$90,5,)," ")&IF(J83="","",","&IFERROR(VLOOKUP($J83,【選択肢】!$Q$3:$U$90,5,)," ")&IF(K83="","",","&IFERROR(VLOOKUP($K83,【選択肢】!$Q$3:$U$90,5,)," ")&IF(L83="","",","&IFERROR(VLOOKUP($L83,【選択肢】!$Q$3:$U$90,5,)," ")))))))) -> 
F84: 0 | M84: =IF(G84="","",(IFERROR(VLOOKUP($G84,【選択肢】!$Q$3:$U$90,2,)," ")&IF(H84="","",","&IFERROR(VLOOKUP($H84,【選択肢】!$Q$3:$U$90,2,)," ")&IF(I84="","",","&IFERROR(VLOOKUP($I84,【選択肢】!$Q$3:$U$90,2,)," ")&IF(J84="","",","&IFERROR(VLOOKUP($J84,【選択肢】!$Q$3:$U$90,2,)," ")&IF(K84="","",","&IFERROR(VLOOKUP($K84,【選択肢】!$Q$3:$U$90,2,)," ")&IF(L84="","",","&IFERROR(VLOOKUP($L84,【選択肢】!$Q$3:$U$90,2,)," ")))))))) ->  | N84: =IF(G84="","",(IFERROR(VLOOKUP($G84,【選択肢】!$Q$3:$U$90,4,)," ")&IF(H84="","",","&IFERROR(VLOOKUP($H84,【選択肢】!$Q$3:$U$90,4,)," ")&IF(I84="","",","&IFERROR(VLOOKUP($I84,【選択肢】!$Q$3:$U$90,4,)," ")&IF(J84="","",","&IFERROR(VLOOKUP($J84,【選択肢】!$Q$3:$U$90,4,)," ")&IF(K84="","",","&IFERROR(VLOOKUP($K84,【選択肢】!$Q$3:$U$90,4,)," ")&IF(L84="","",","&IFERROR(VLOOKUP($L84,【選択肢】!$Q$3:$U$90,4,)," ")))))))) ->  | O84: =IF(G84="","",(IFERROR(VLOOKUP($G84,【選択肢】!$Q$3:$U$90,5,)," ")&IF(H84="","",","&IFERROR(VLOOKUP($H84,【選択肢】!$Q$3:$U$90,5,)," ")&IF(I84="","",","&IFERROR(VLOOKUP($I84,【選択肢】!$Q$3:$U$90,5,)," ")&IF(J84="","",","&IFERROR(VLOOKUP($J84,【選択肢】!$Q$3:$U$90,5,)," ")&IF(K84="","",","&IFERROR(VLOOKUP($K84,【選択肢】!$Q$3:$U$90,5,)," ")&IF(L84="","",","&IFERROR(VLOOKUP($L84,【選択肢】!$Q$3:$U$90,5,)," ")))))))) -> 
F85: 0 | M85: =IF(G85="","",(IFERROR(VLOOKUP($G85,【選択肢】!$Q$3:$U$90,2,)," ")&IF(H85="","",","&IFERROR(VLOOKUP($H85,【選択肢】!$Q$3:$U$90,2,)," ")&IF(I85="","",","&IFERROR(VLOOKUP($I85,【選択肢】!$Q$3:$U$90,2,)," ")&IF(J85="","",","&IFERROR(VLOOKUP($J85,【選択肢】!$Q$3:$U$90,2,)," ")&IF(K85="","",","&IFERROR(VLOOKUP($K85,【選択肢】!$Q$3:$U$90,2,)," ")&IF(L85="","",","&IFERROR(VLOOKUP($L85,【選択肢】!$Q$3:$U$90,2,)," ")))))))) ->  | N85: =IF(G85="","",(IFERROR(VLOOKUP($G85,【選択肢】!$Q$3:$U$90,4,)," ")&IF(H85="","",","&IFERROR(VLOOKUP($H85,【選択肢】!$Q$3:$U$90,4,)," ")&IF(I85="","",","&IFERROR(VLOOKUP($I85,【選択肢】!$Q$3:$U$90,4,)," ")&IF(J85="","",","&IFERROR(VLOOKUP($J85,【選択肢】!$Q$3:$U$90,4,)," ")&IF(K85="","",","&IFERROR(VLOOKUP($K85,【選択肢】!$Q$3:$U$90,4,)," ")&IF(L85="","",","&IFERROR(VLOOKUP($L85,【選択肢】!$Q$3:$U$90,4,)," ")))))))) ->  | O85: =IF(G85="","",(IFERROR(VLOOKUP($G85,【選択肢】!$Q$3:$U$90,5,)," ")&IF(H85="","",","&IFERROR(VLOOKUP($H85,【選択肢】!$Q$3:$U$90,5,)," ")&IF(I85="","",","&IFERROR(VLOOKUP($I85,【選択肢】!$Q$3:$U$90,5,)," ")&IF(J85="","",","&IFERROR(VLOOKUP($J85,【選択肢】!$Q$3:$U$90,5,)," ")&IF(K85="","",","&IFERROR(VLOOKUP($K85,【選択肢】!$Q$3:$U$90,5,)," ")&IF(L85="","",","&IFERROR(VLOOKUP($L85,【選択肢】!$Q$3:$U$90,5,)," ")))))))) -> 
F86: =SUM(D86+E86) -> 0 | M86: =IF(G86="","",(IFERROR(VLOOKUP($G86,【選択肢】!$Q$3:$U$90,2,)," ")&IF(H86="","",","&IFERROR(VLOOKUP($H86,【選択肢】!$Q$3:$U$90,2,)," ")&IF(I86="","",","&IFERROR(VLOOKUP($I86,【選択肢】!$Q$3:$U$90,2,)," ")&IF(J86="","",","&IFERROR(VLOOKUP($J86,【選択肢】!$Q$3:$U$90,2,)," ")&IF(K86="","",","&IFERROR(VLOOKUP($K86,【選択肢】!$Q$3:$U$90,2,)," ")&IF(L86="","",","&IFERROR(VLOOKUP($L86,【選択肢】!$Q$3:$U$90,2,)," ")))))))) ->  | N86: =IF(G86="","",(IFERROR(VLOOKUP($G86,【選択肢】!$Q$3:$U$90,4,)," ")&IF(H86="","",","&IFERROR(VLOOKUP($H86,【選択肢】!$Q$3:$U$90,4,)," ")&IF(I86="","",","&IFERROR(VLOOKUP($I86,【選択肢】!$Q$3:$U$90,4,)," ")&IF(J86="","",","&IFERROR(VLOOKUP($J86,【選択肢】!$Q$3:$U$90,4,)," ")&IF(K86="","",","&IFERROR(VLOOKUP($K86,【選択肢】!$Q$3:$U$90,4,)," ")&IF(L86="","",","&IFERROR(VLOOKUP($L86,【選択肢】!$Q$3:$U$90,4,)," ")))))))) ->  | O86: =IF(G86="","",(IFERROR(VLOOKUP($G86,【選択肢】!$Q$3:$U$90,5,)," ")&IF(H86="","",","&IFERROR(VLOOKUP($H86,【選択肢】!$Q$3:$U$90,5,)," ")&IF(I86="","",","&IFERROR(VLOOKUP($I86,【選択肢】!$Q$3:$U$90,5,)," ")&IF(J86="","",","&IFERROR(VLOOKUP($J86,【選択肢】!$Q$3:$U$90,5,)," ")&IF(K86="","",","&IFERROR(VLOOKUP($K86,【選択肢】!$Q$3:$U$90,5,)," ")&IF(L86="","",","&IFERROR(VLOOKUP($L86,【選択肢】!$Q$3:$U$90,5,)," ")))))))) -> 
F87: 0 | M87: =IF(G87="","",(IFERROR(VLOOKUP($G87,【選択肢】!$Q$3:$U$90,2,)," ")&IF(H87="","",","&IFERROR(VLOOKUP($H87,【選択肢】!$Q$3:$U$90,2,)," ")&IF(I87="","",","&IFERROR(VLOOKUP($I87,【選択肢】!$Q$3:$U$90,2,)," ")&IF(J87="","",","&IFERROR(VLOOKUP($J87,【選択肢】!$Q$3:$U$90,2,)," ")&IF(K87="","",","&IFERROR(VLOOKUP($K87,【選択肢】!$Q$3:$U$90,2,)," ")&IF(L87="","",","&IFERROR(VLOOKUP($L87,【選択肢】!$Q$3:$U$90,2,)," ")))))))) ->  | N87: =IF(G87="","",(IFERROR(VLOOKUP($G87,【選択肢】!$Q$3:$U$90,4,)," ")&IF(H87="","",","&IFERROR(VLOOKUP($H87,【選択肢】!$Q$3:$U$90,4,)," ")&IF(I87="","",","&IFERROR(VLOOKUP($I87,【選択肢】!$Q$3:$U$90,4,)," ")&IF(J87="","",","&IFERROR(VLOOKUP($J87,【選択肢】!$Q$3:$U$90,4,)," ")&IF(K87="","",","&IFERROR(VLOOKUP($K87,【選択肢】!$Q$3:$U$90,4,)," ")&IF(L87="","",","&IFERROR(VLOOKUP($L87,【選択肢】!$Q$3:$U$90,4,)," ")))))))) ->  | O87: =IF(G87="","",(IFERROR(VLOOKUP($G87,【選択肢】!$Q$3:$U$90,5,)," ")&IF(H87="","",","&IFERROR(VLOOKUP($H87,【選択肢】!$Q$3:$U$90,5,)," ")&IF(I87="","",","&IFERROR(VLOOKUP($I87,【選択肢】!$Q$3:$U$90,5,)," ")&IF(J87="","",","&IFERROR(VLOOKUP($J87,【選択肢】!$Q$3:$U$90,5,)," ")&IF(K87="","",","&IFERROR(VLOOKUP($K87,【選択肢】!$Q$3:$U$90,5,)," ")&IF(L87="","",","&IFERROR(VLOOKUP($L87,【選択肢】!$Q$3:$U$90,5,)," ")))))))) -> 
F88: 0 | M88: =IF(G88="","",(IFERROR(VLOOKUP($G88,【選択肢】!$Q$3:$U$90,2,)," ")&IF(H88="","",","&IFERROR(VLOOKUP($H88,【選択肢】!$Q$3:$U$90,2,)," ")&IF(I88="","",","&IFERROR(VLOOKUP($I88,【選択肢】!$Q$3:$U$90,2,)," ")&IF(J88="","",","&IFERROR(VLOOKUP($J88,【選択肢】!$Q$3:$U$90,2,)," ")&IF(K88="","",","&IFERROR(VLOOKUP($K88,【選択肢】!$Q$3:$U$90,2,)," ")&IF(L88="","",","&IFERROR(VLOOKUP($L88,【選択肢】!$Q$3:$U$90,2,)," ")))))))) ->  | N88: =IF(G88="","",(IFERROR(VLOOKUP($G88,【選択肢】!$Q$3:$U$90,4,)," ")&IF(H88="","",","&IFERROR(VLOOKUP($H88,【選択肢】!$Q$3:$U$90,4,)," ")&IF(I88="","",","&IFERROR(VLOOKUP($I88,【選択肢】!$Q$3:$U$90,4,)," ")&IF(J88="","",","&IFERROR(VLOOKUP($J88,【選択肢】!$Q$3:$U$90,4,)," ")&IF(K88="","",","&IFERROR(VLOOKUP($K88,【選択肢】!$Q$3:$U$90,4,)," ")&IF(L88="","",","&IFERROR(VLOOKUP($L88,【選択肢】!$Q$3:$U$90,4,)," ")))))))) ->  | O88: =IF(G88="","",(IFERROR(VLOOKUP($G88,【選択肢】!$Q$3:$U$90,5,)," ")&IF(H88="","",","&IFERROR(VLOOKUP($H88,【選択肢】!$Q$3:$U$90,5,)," ")&IF(I88="","",","&IFERROR(VLOOKUP($I88,【選択肢】!$Q$3:$U$90,5,)," ")&IF(J88="","",","&IFERROR(VLOOKUP($J88,【選択肢】!$Q$3:$U$90,5,)," ")&IF(K88="","",","&IFERROR(VLOOKUP($K88,【選択肢】!$Q$3:$U$90,5,)," ")&IF(L88="","",","&IFERROR(VLOOKUP($L88,【選択肢】!$Q$3:$U$90,5,)," ")))))))) -> 
F89: 0 | M89: =IF(G89="","",(IFERROR(VLOOKUP($G89,【選択肢】!$Q$3:$U$90,2,)," ")&IF(H89="","",","&IFERROR(VLOOKUP($H89,【選択肢】!$Q$3:$U$90,2,)," ")&IF(I89="","",","&IFERROR(VLOOKUP($I89,【選択肢】!$Q$3:$U$90,2,)," ")&IF(J89="","",","&IFERROR(VLOOKUP($J89,【選択肢】!$Q$3:$U$90,2,)," ")&IF(K89="","",","&IFERROR(VLOOKUP($K89,【選択肢】!$Q$3:$U$90,2,)," ")&IF(L89="","",","&IFERROR(VLOOKUP($L89,【選択肢】!$Q$3:$U$90,2,)," ")))))))) ->  | N89: =IF(G89="","",(IFERROR(VLOOKUP($G89,【選択肢】!$Q$3:$U$90,4,)," ")&IF(H89="","",","&IFERROR(VLOOKUP($H89,【選択肢】!$Q$3:$U$90,4,)," ")&IF(I89="","",","&IFERROR(VLOOKUP($I89,【選択肢】!$Q$3:$U$90,4,)," ")&IF(J89="","",","&IFERROR(VLOOKUP($J89,【選択肢】!$Q$3:$U$90,4,)," ")&IF(K89="","",","&IFERROR(VLOOKUP($K89,【選択肢】!$Q$3:$U$90,4,)," ")&IF(L89="","",","&IFERROR(VLOOKUP($L89,【選択肢】!$Q$3:$U$90,4,)," ")))))))) ->  | O89: =IF(G89="","",(IFERROR(VLOOKUP($G89,【選択肢】!$Q$3:$U$90,5,)," ")&IF(H89="","",","&IFERROR(VLOOKUP($H89,【選択肢】!$Q$3:$U$90,5,)," ")&IF(I89="","",","&IFERROR(VLOOKUP($I89,【選択肢】!$Q$3:$U$90,5,)," ")&IF(J89="","",","&IFERROR(VLOOKUP($J89,【選択肢】!$Q$3:$U$90,5,)," ")&IF(K89="","",","&IFERROR(VLOOKUP($K89,【選択肢】!$Q$3:$U$90,5,)," ")&IF(L89="","",","&IFERROR(VLOOKUP($L89,【選択肢】!$Q$3:$U$90,5,)," ")))))))) -> 
F90: 0 | M90: =IF(G90="","",(IFERROR(VLOOKUP($G90,【選択肢】!$Q$3:$U$90,2,)," ")&IF(H90="","",","&IFERROR(VLOOKUP($H90,【選択肢】!$Q$3:$U$90,2,)," ")&IF(I90="","",","&IFERROR(VLOOKUP($I90,【選択肢】!$Q$3:$U$90,2,)," ")&IF(J90="","",","&IFERROR(VLOOKUP($J90,【選択肢】!$Q$3:$U$90,2,)," ")&IF(K90="","",","&IFERROR(VLOOKUP($K90,【選択肢】!$Q$3:$U$90,2,)," ")&IF(L90="","",","&IFERROR(VLOOKUP($L90,【選択肢】!$Q$3:$U$90,2,)," ")))))))) ->  | N90: =IF(G90="","",(IFERROR(VLOOKUP($G90,【選択肢】!$Q$3:$U$90,4,)," ")&IF(H90="","",","&IFERROR(VLOOKUP($H90,【選択肢】!$Q$3:$U$90,4,)," ")&IF(I90="","",","&IFERROR(VLOOKUP($I90,【選択肢】!$Q$3:$U$90,4,)," ")&IF(J90="","",","&IFERROR(VLOOKUP($J90,【選択肢】!$Q$3:$U$90,4,)," ")&IF(K90="","",","&IFERROR(VLOOKUP($K90,【選択肢】!$Q$3:$U$90,4,)," ")&IF(L90="","",","&IFERROR(VLOOKUP($L90,【選択肢】!$Q$3:$U$90,4,)," ")))))))) ->  | O90: =IF(G90="","",(IFERROR(VLOOKUP($G90,【選択肢】!$Q$3:$U$90,5,)," ")&IF(H90="","",","&IFERROR(VLOOKUP($H90,【選択肢】!$Q$3:$U$90,5,)," ")&IF(I90="","",","&IFERROR(VLOOKUP($I90,【選択肢】!$Q$3:$U$90,5,)," ")&IF(J90="","",","&IFERROR(VLOOKUP($J90,【選択肢】!$Q$3:$U$90,5,)," ")&IF(K90="","",","&IFERROR(VLOOKUP($K90,【選択肢】!$Q$3:$U$90,5,)," ")&IF(L90="","",","&IFERROR(VLOOKUP($L90,【選択肢】!$Q$3:$U$90,5,)," ")))))))) -> 
F91: 0 | M91: =IF(G91="","",(IFERROR(VLOOKUP($G91,【選択肢】!$Q$3:$U$90,2,)," ")&IF(H91="","",","&IFERROR(VLOOKUP($H91,【選択肢】!$Q$3:$U$90,2,)," ")&IF(I91="","",","&IFERROR(VLOOKUP($I91,【選択肢】!$Q$3:$U$90,2,)," ")&IF(J91="","",","&IFERROR(VLOOKUP($J91,【選択肢】!$Q$3:$U$90,2,)," ")&IF(K91="","",","&IFERROR(VLOOKUP($K91,【選択肢】!$Q$3:$U$90,2,)," ")&IF(L91="","",","&IFERROR(VLOOKUP($L91,【選択肢】!$Q$3:$U$90,2,)," ")))))))) ->  | N91: =IF(G91="","",(IFERROR(VLOOKUP($G91,【選択肢】!$Q$3:$U$90,4,)," ")&IF(H91="","",","&IFERROR(VLOOKUP($H91,【選択肢】!$Q$3:$U$90,4,)," ")&IF(I91="","",","&IFERROR(VLOOKUP($I91,【選択肢】!$Q$3:$U$90,4,)," ")&IF(J91="","",","&IFERROR(VLOOKUP($J91,【選択肢】!$Q$3:$U$90,4,)," ")&IF(K91="","",","&IFERROR(VLOOKUP($K91,【選択肢】!$Q$3:$U$90,4,)," ")&IF(L91="","",","&IFERROR(VLOOKUP($L91,【選択肢】!$Q$3:$U$90,4,)," ")))))))) ->  | O91: =IF(G91="","",(IFERROR(VLOOKUP($G91,【選択肢】!$Q$3:$U$90,5,)," ")&IF(H91="","",","&IFERROR(VLOOKUP($H91,【選択肢】!$Q$3:$U$90,5,)," ")&IF(I91="","",","&IFERROR(VLOOKUP($I91,【選択肢】!$Q$3:$U$90,5,)," ")&IF(J91="","",","&IFERROR(VLOOKUP($J91,【選択肢】!$Q$3:$U$90,5,)," ")&IF(K91="","",","&IFERROR(VLOOKUP($K91,【選択肢】!$Q$3:$U$90,5,)," ")&IF(L91="","",","&IFERROR(VLOOKUP($L91,【選択肢】!$Q$3:$U$90,5,)," ")))))))) -> 
F92: 0 | M92: =IF(G92="","",(IFERROR(VLOOKUP($G92,【選択肢】!$Q$3:$U$90,2,)," ")&IF(H92="","",","&IFERROR(VLOOKUP($H92,【選択肢】!$Q$3:$U$90,2,)," ")&IF(I92="","",","&IFERROR(VLOOKUP($I92,【選択肢】!$Q$3:$U$90,2,)," ")&IF(J92="","",","&IFERROR(VLOOKUP($J92,【選択肢】!$Q$3:$U$90,2,)," ")&IF(K92="","",","&IFERROR(VLOOKUP($K92,【選択肢】!$Q$3:$U$90,2,)," ")&IF(L92="","",","&IFERROR(VLOOKUP($L92,【選択肢】!$Q$3:$U$90,2,)," ")))))))) ->  | N92: =IF(G92="","",(IFERROR(VLOOKUP($G92,【選択肢】!$Q$3:$U$90,4,)," ")&IF(H92="","",","&IFERROR(VLOOKUP($H92,【選択肢】!$Q$3:$U$90,4,)," ")&IF(I92="","",","&IFERROR(VLOOKUP($I92,【選択肢】!$Q$3:$U$90,4,)," ")&IF(J92="","",","&IFERROR(VLOOKUP($J92,【選択肢】!$Q$3:$U$90,4,)," ")&IF(K92="","",","&IFERROR(VLOOKUP($K92,【選択肢】!$Q$3:$U$90,4,)," ")&IF(L92="","",","&IFERROR(VLOOKUP($L92,【選択肢】!$Q$3:$U$90,4,)," ")))))))) ->  | O92: =IF(G92="","",(IFERROR(VLOOKUP($G92,【選択肢】!$Q$3:$U$90,5,)," ")&IF(H92="","",","&IFERROR(VLOOKUP($H92,【選択肢】!$Q$3:$U$90,5,)," ")&IF(I92="","",","&IFERROR(VLOOKUP($I92,【選択肢】!$Q$3:$U$90,5,)," ")&IF(J92="","",","&IFERROR(VLOOKUP($J92,【選択肢】!$Q$3:$U$90,5,)," ")&IF(K92="","",","&IFERROR(VLOOKUP($K92,【選択肢】!$Q$3:$U$90,5,)," ")&IF(L92="","",","&IFERROR(VLOOKUP($L92,【選択肢】!$Q$3:$U$90,5,)," ")))))))) -> 
F93: 0 | M93: =IF(G93="","",(IFERROR(VLOOKUP($G93,【選択肢】!$Q$3:$U$90,2,)," ")&IF(H93="","",","&IFERROR(VLOOKUP($H93,【選択肢】!$Q$3:$U$90,2,)," ")&IF(I93="","",","&IFERROR(VLOOKUP($I93,【選択肢】!$Q$3:$U$90,2,)," ")&IF(J93="","",","&IFERROR(VLOOKUP($J93,【選択肢】!$Q$3:$U$90,2,)," ")&IF(K93="","",","&IFERROR(VLOOKUP($K93,【選択肢】!$Q$3:$U$90,2,)," ")&IF(L93="","",","&IFERROR(VLOOKUP($L93,【選択肢】!$Q$3:$U$90,2,)," ")))))))) ->  | N93: =IF(G93="","",(IFERROR(VLOOKUP($G93,【選択肢】!$Q$3:$U$90,4,)," ")&IF(H93="","",","&IFERROR(VLOOKUP($H93,【選択肢】!$Q$3:$U$90,4,)," ")&IF(I93="","",","&IFERROR(VLOOKUP($I93,【選択肢】!$Q$3:$U$90,4,)," ")&IF(J93="","",","&IFERROR(VLOOKUP($J93,【選択肢】!$Q$3:$U$90,4,)," ")&IF(K93="","",","&IFERROR(VLOOKUP($K93,【選択肢】!$Q$3:$U$90,4,)," ")&IF(L93="","",","&IFERROR(VLOOKUP($L93,【選択肢】!$Q$3:$U$90,4,)," ")))))))) ->  | O93: =IF(G93="","",(IFERROR(VLOOKUP($G93,【選択肢】!$Q$3:$U$90,5,)," ")&IF(H93="","",","&IFERROR(VLOOKUP($H93,【選択肢】!$Q$3:$U$90,5,)," ")&IF(I93="","",","&IFERROR(VLOOKUP($I93,【選択肢】!$Q$3:$U$90,5,)," ")&IF(J93="","",","&IFERROR(VLOOKUP($J93,【選択肢】!$Q$3:$U$90,5,)," ")&IF(K93="","",","&IFERROR(VLOOKUP($K93,【選択肢】!$Q$3:$U$90,5,)," ")&IF(L93="","",","&IFERROR(VLOOKUP($L93,【選択肢】!$Q$3:$U$90,5,)," ")))))))) -> 
F94: 0 | M94: =IF(G94="","",(IFERROR(VLOOKUP($G94,【選択肢】!$Q$3:$U$90,2,)," ")&IF(H94="","",","&IFERROR(VLOOKUP($H94,【選択肢】!$Q$3:$U$90,2,)," ")&IF(I94="","",","&IFERROR(VLOOKUP($I94,【選択肢】!$Q$3:$U$90,2,)," ")&IF(J94="","",","&IFERROR(VLOOKUP($J94,【選択肢】!$Q$3:$U$90,2,)," ")&IF(K94="","",","&IFERROR(VLOOKUP($K94,【選択肢】!$Q$3:$U$90,2,)," ")&IF(L94="","",","&IFERROR(VLOOKUP($L94,【選択肢】!$Q$3:$U$90,2,)," ")))))))) ->  | N94: =IF(G94="","",(IFERROR(VLOOKUP($G94,【選択肢】!$Q$3:$U$90,4,)," ")&IF(H94="","",","&IFERROR(VLOOKUP($H94,【選択肢】!$Q$3:$U$90,4,)," ")&IF(I94="","",","&IFERROR(VLOOKUP($I94,【選択肢】!$Q$3:$U$90,4,)," ")&IF(J94="","",","&IFERROR(VLOOKUP($J94,【選択肢】!$Q$3:$U$90,4,)," ")&IF(K94="","",","&IFERROR(VLOOKUP($K94,【選択肢】!$Q$3:$U$90,4,)," ")&IF(L94="","",","&IFERROR(VLOOKUP($L94,【選択肢】!$Q$3:$U$90,4,)," ")))))))) ->  | O94: =IF(G94="","",(IFERROR(VLOOKUP($G94,【選択肢】!$Q$3:$U$90,5,)," ")&IF(H94="","",","&IFERROR(VLOOKUP($H94,【選択肢】!$Q$3:$U$90,5,)," ")&IF(I94="","",","&IFERROR(VLOOKUP($I94,【選択肢】!$Q$3:$U$90,5,)," ")&IF(J94="","",","&IFERROR(VLOOKUP($J94,【選択肢】!$Q$3:$U$90,5,)," ")&IF(K94="","",","&IFERROR(VLOOKUP($K94,【選択肢】!$Q$3:$U$90,5,)," ")&IF(L94="","",","&IFERROR(VLOOKUP($L94,【選択肢】!$Q$3:$U$90,5,)," ")))))))) -> 
F95: 0 | M95: =IF(G95="","",(IFERROR(VLOOKUP($G95,【選択肢】!$Q$3:$U$90,2,)," ")&IF(H95="","",","&IFERROR(VLOOKUP($H95,【選択肢】!$Q$3:$U$90,2,)," ")&IF(I95="","",","&IFERROR(VLOOKUP($I95,【選択肢】!$Q$3:$U$90,2,)," ")&IF(J95="","",","&IFERROR(VLOOKUP($J95,【選択肢】!$Q$3:$U$90,2,)," ")&IF(K95="","",","&IFERROR(VLOOKUP($K95,【選択肢】!$Q$3:$U$90,2,)," ")&IF(L95="","",","&IFERROR(VLOOKUP($L95,【選択肢】!$Q$3:$U$90,2,)," ")))))))) ->  | N95: =IF(G95="","",(IFERROR(VLOOKUP($G95,【選択肢】!$Q$3:$U$90,4,)," ")&IF(H95="","",","&IFERROR(VLOOKUP($H95,【選択肢】!$Q$3:$U$90,4,)," ")&IF(I95="","",","&IFERROR(VLOOKUP($I95,【選択肢】!$Q$3:$U$90,4,)," ")&IF(J95="","",","&IFERROR(VLOOKUP($J95,【選択肢】!$Q$3:$U$90,4,)," ")&IF(K95="","",","&IFERROR(VLOOKUP($K95,【選択肢】!$Q$3:$U$90,4,)," ")&IF(L95="","",","&IFERROR(VLOOKUP($L95,【選択肢】!$Q$3:$U$90,4,)," ")))))))) ->  | O95: =IF(G95="","",(IFERROR(VLOOKUP($G95,【選択肢】!$Q$3:$U$90,5,)," ")&IF(H95="","",","&IFERROR(VLOOKUP($H95,【選択肢】!$Q$3:$U$90,5,)," ")&IF(I95="","",","&IFERROR(VLOOKUP($I95,【選択肢】!$Q$3:$U$90,5,)," ")&IF(J95="","",","&IFERROR(VLOOKUP($J95,【選択肢】!$Q$3:$U$90,5,)," ")&IF(K95="","",","&IFERROR(VLOOKUP($K95,【選択肢】!$Q$3:$U$90,5,)," ")&IF(L95="","",","&IFERROR(VLOOKUP($L95,【選択肢】!$Q$3:$U$90,5,)," ")))))))) -> 
F96: 0 | M96: =IF(G96="","",(IFERROR(VLOOKUP($G96,【選択肢】!$Q$3:$U$90,2,)," ")&IF(H96="","",","&IFERROR(VLOOKUP($H96,【選択肢】!$Q$3:$U$90,2,)," ")&IF(I96="","",","&IFERROR(VLOOKUP($I96,【選択肢】!$Q$3:$U$90,2,)," ")&IF(J96="","",","&IFERROR(VLOOKUP($J96,【選択肢】!$Q$3:$U$90,2,)," ")&IF(K96="","",","&IFERROR(VLOOKUP($K96,【選択肢】!$Q$3:$U$90,2,)," ")&IF(L96="","",","&IFERROR(VLOOKUP($L96,【選択肢】!$Q$3:$U$90,2,)," ")))))))) ->  | N96: =IF(G96="","",(IFERROR(VLOOKUP($G96,【選択肢】!$Q$3:$U$90,4,)," ")&IF(H96="","",","&IFERROR(VLOOKUP($H96,【選択肢】!$Q$3:$U$90,4,)," ")&IF(I96="","",","&IFERROR(VLOOKUP($I96,【選択肢】!$Q$3:$U$90,4,)," ")&IF(J96="","",","&IFERROR(VLOOKUP($J96,【選択肢】!$Q$3:$U$90,4,)," ")&IF(K96="","",","&IFERROR(VLOOKUP($K96,【選択肢】!$Q$3:$U$90,4,)," ")&IF(L96="","",","&IFERROR(VLOOKUP($L96,【選択肢】!$Q$3:$U$90,4,)," ")))))))) ->  | O96: =IF(G96="","",(IFERROR(VLOOKUP($G96,【選択肢】!$Q$3:$U$90,5,)," ")&IF(H96="","",","&IFERROR(VLOOKUP($H96,【選択肢】!$Q$3:$U$90,5,)," ")&IF(I96="","",","&IFERROR(VLOOKUP($I96,【選択肢】!$Q$3:$U$90,5,)," ")&IF(J96="","",","&IFERROR(VLOOKUP($J96,【選択肢】!$Q$3:$U$90,5,)," ")&IF(K96="","",","&IFERROR(VLOOKUP($K96,【選択肢】!$Q$3:$U$90,5,)," ")&IF(L96="","",","&IFERROR(VLOOKUP($L96,【選択肢】!$Q$3:$U$90,5,)," ")))))))) -> 
F97: 0 | M97: =IF(G97="","",(IFERROR(VLOOKUP($G97,【選択肢】!$Q$3:$U$90,2,)," ")&IF(H97="","",","&IFERROR(VLOOKUP($H97,【選択肢】!$Q$3:$U$90,2,)," ")&IF(I97="","",","&IFERROR(VLOOKUP($I97,【選択肢】!$Q$3:$U$90,2,)," ")&IF(J97="","",","&IFERROR(VLOOKUP($J97,【選択肢】!$Q$3:$U$90,2,)," ")&IF(K97="","",","&IFERROR(VLOOKUP($K97,【選択肢】!$Q$3:$U$90,2,)," ")&IF(L97="","",","&IFERROR(VLOOKUP($L97,【選択肢】!$Q$3:$U$90,2,)," ")))))))) ->  | N97: =IF(G97="","",(IFERROR(VLOOKUP($G97,【選択肢】!$Q$3:$U$90,4,)," ")&IF(H97="","",","&IFERROR(VLOOKUP($H97,【選択肢】!$Q$3:$U$90,4,)," ")&IF(I97="","",","&IFERROR(VLOOKUP($I97,【選択肢】!$Q$3:$U$90,4,)," ")&IF(J97="","",","&IFERROR(VLOOKUP($J97,【選択肢】!$Q$3:$U$90,4,)," ")&IF(K97="","",","&IFERROR(VLOOKUP($K97,【選択肢】!$Q$3:$U$90,4,)," ")&IF(L97="","",","&IFERROR(VLOOKUP($L97,【選択肢】!$Q$3:$U$90,4,)," ")))))))) ->  | O97: =IF(G97="","",(IFERROR(VLOOKUP($G97,【選択肢】!$Q$3:$U$90,5,)," ")&IF(H97="","",","&IFERROR(VLOOKUP($H97,【選択肢】!$Q$3:$U$90,5,)," ")&IF(I97="","",","&IFERROR(VLOOKUP($I97,【選択肢】!$Q$3:$U$90,5,)," ")&IF(J97="","",","&IFERROR(VLOOKUP($J97,【選択肢】!$Q$3:$U$90,5,)," ")&IF(K97="","",","&IFERROR(VLOOKUP($K97,【選択肢】!$Q$3:$U$90,5,)," ")&IF(L97="","",","&IFERROR(VLOOKUP($L97,【選択肢】!$Q$3:$U$90,5,)," ")))))))) -> 
F98: 0 | M98: =IF(G98="","",(IFERROR(VLOOKUP($G98,【選択肢】!$Q$3:$U$90,2,)," ")&IF(H98="","",","&IFERROR(VLOOKUP($H98,【選択肢】!$Q$3:$U$90,2,)," ")&IF(I98="","",","&IFERROR(VLOOKUP($I98,【選択肢】!$Q$3:$U$90,2,)," ")&IF(J98="","",","&IFERROR(VLOOKUP($J98,【選択肢】!$Q$3:$U$90,2,)," ")&IF(K98="","",","&IFERROR(VLOOKUP($K98,【選択肢】!$Q$3:$U$90,2,)," ")&IF(L98="","",","&IFERROR(VLOOKUP($L98,【選択肢】!$Q$3:$U$90,2,)," ")))))))) ->  | N98: =IF(G98="","",(IFERROR(VLOOKUP($G98,【選択肢】!$Q$3:$U$90,4,)," ")&IF(H98="","",","&IFERROR(VLOOKUP($H98,【選択肢】!$Q$3:$U$90,4,)," ")&IF(I98="","",","&IFERROR(VLOOKUP($I98,【選択肢】!$Q$3:$U$90,4,)," ")&IF(J98="","",","&IFERROR(VLOOKUP($J98,【選択肢】!$Q$3:$U$90,4,)," ")&IF(K98="","",","&IFERROR(VLOOKUP($K98,【選択肢】!$Q$3:$U$90,4,)," ")&IF(L98="","",","&IFERROR(VLOOKUP($L98,【選択肢】!$Q$3:$U$90,4,)," ")))))))) ->  | O98: =IF(G98="","",(IFERROR(VLOOKUP($G98,【選択肢】!$Q$3:$U$90,5,)," ")&IF(H98="","",","&IFERROR(VLOOKUP($H98,【選択肢】!$Q$3:$U$90,5,)," ")&IF(I98="","",","&IFERROR(VLOOKUP($I98,【選択肢】!$Q$3:$U$90,5,)," ")&IF(J98="","",","&IFERROR(VLOOKUP($J98,【選択肢】!$Q$3:$U$90,5,)," ")&IF(K98="","",","&IFERROR(VLOOKUP($K98,【選択肢】!$Q$3:$U$90,5,)," ")&IF(L98="","",","&IFERROR(VLOOKUP($L98,【選択肢】!$Q$3:$U$90,5,)," ")))))))) -> 
F99: 0 | M99: =IF(G99="","",(IFERROR(VLOOKUP($G99,【選択肢】!$Q$3:$U$90,2,)," ")&IF(H99="","",","&IFERROR(VLOOKUP($H99,【選択肢】!$Q$3:$U$90,2,)," ")&IF(I99="","",","&IFERROR(VLOOKUP($I99,【選択肢】!$Q$3:$U$90,2,)," ")&IF(J99="","",","&IFERROR(VLOOKUP($J99,【選択肢】!$Q$3:$U$90,2,)," ")&IF(K99="","",","&IFERROR(VLOOKUP($K99,【選択肢】!$Q$3:$U$90,2,)," ")&IF(L99="","",","&IFERROR(VLOOKUP($L99,【選択肢】!$Q$3:$U$90,2,)," ")))))))) ->  | N99: =IF(G99="","",(IFERROR(VLOOKUP($G99,【選択肢】!$Q$3:$U$90,4,)," ")&IF(H99="","",","&IFERROR(VLOOKUP($H99,【選択肢】!$Q$3:$U$90,4,)," ")&IF(I99="","",","&IFERROR(VLOOKUP($I99,【選択肢】!$Q$3:$U$90,4,)," ")&IF(J99="","",","&IFERROR(VLOOKUP($J99,【選択肢】!$Q$3:$U$90,4,)," ")&IF(K99="","",","&IFERROR(VLOOKUP($K99,【選択肢】!$Q$3:$U$90,4,)," ")&IF(L99="","",","&IFERROR(VLOOKUP($L99,【選択肢】!$Q$3:$U$90,4,)," ")))))))) ->  | O99: =IF(G99="","",(IFERROR(VLOOKUP($G99,【選択肢】!$Q$3:$U$90,5,)," ")&IF(H99="","",","&IFERROR(VLOOKUP($H99,【選択肢】!$Q$3:$U$90,5,)," ")&IF(I99="","",","&IFERROR(VLOOKUP($I99,【選択肢】!$Q$3:$U$90,5,)," ")&IF(J99="","",","&IFERROR(VLOOKUP($J99,【選択肢】!$Q$3:$U$90,5,)," ")&IF(K99="","",","&IFERROR(VLOOKUP($K99,【選択肢】!$Q$3:$U$90,5,)," ")&IF(L99="","",","&IFERROR(VLOOKUP($L99,【選択肢】!$Q$3:$U$90,5,)," ")))))))) -> 
F100: =SUM(D100+E100) -> 0 | M100: =IF(G100="","",(IFERROR(VLOOKUP($G100,【選択肢】!$Q$3:$U$90,2,)," ")&IF(H100="","",","&IFERROR(VLOOKUP($H100,【選択肢】!$Q$3:$U$90,2,)," ")&IF(I100="","",","&IFERROR(VLOOKUP($I100,【選択肢】!$Q$3:$U$90,2,)," ")&IF(J100="","",","&IFERROR(VLOOKUP($J100,【選択肢】!$Q$3:$U$90,2,)," ")&IF(K100="","",","&IFERROR(VLOOKUP($K100,【選択肢】!$Q$3:$U$90,2,)," ")&IF(L100="","",","&IFERROR(VLOOKUP($L100,【選択肢】!$Q$3:$U$90,2,)," ")))))))) ->  | N100: =IF(G100="","",(IFERROR(VLOOKUP($G100,【選択肢】!$Q$3:$U$90,4,)," ")&IF(H100="","",","&IFERROR(VLOOKUP($H100,【選択肢】!$Q$3:$U$90,4,)," ")&IF(I100="","",","&IFERROR(VLOOKUP($I100,【選択肢】!$Q$3:$U$90,4,)," ")&IF(J100="","",","&IFERROR(VLOOKUP($J100,【選択肢】!$Q$3:$U$90,4,)," ")&IF(K100="","",","&IFERROR(VLOOKUP($K100,【選択肢】!$Q$3:$U$90,4,)," ")&IF(L100="","",","&IFERROR(VLOOKUP($L100,【選択肢】!$Q$3:$U$90,4,)," ")))))))) ->  | O100: =IF(G100="","",(IFERROR(VLOOKUP($G100,【選択肢】!$Q$3:$U$90,5,)," ")&IF(H100="","",","&IFERROR(VLOOKUP($H100,【選択肢】!$Q$3:$U$90,5,)," ")&IF(I100="","",","&IFERROR(VLOOKUP($I100,【選択肢】!$Q$3:$U$90,5,)," ")&IF(J100="","",","&IFERROR(VLOOKUP($J100,【選択肢】!$Q$3:$U$90,5,)," ")&IF(K100="","",","&IFERROR(VLOOKUP($K100,【選択肢】!$Q$3:$U$90,5,)," ")&IF(L100="","",","&IFERROR(VLOOKUP($L100,【選択肢】!$Q$3:$U$90,5,)," ")))))))) -> 
F101: =SUM(D101+E101) -> 0 | M101: =IF(G101="","",(IFERROR(VLOOKUP($G101,【選択肢】!$Q$3:$U$90,2,)," ")&IF(H101="","",","&IFERROR(VLOOKUP($H101,【選択肢】!$Q$3:$U$90,2,)," ")&IF(I101="","",","&IFERROR(VLOOKUP($I101,【選択肢】!$Q$3:$U$90,2,)," ")&IF(J101="","",","&IFERROR(VLOOKUP($J101,【選択肢】!$Q$3:$U$90,2,)," ")&IF(K101="","",","&IFERROR(VLOOKUP($K101,【選択肢】!$Q$3:$U$90,2,)," ")&IF(L101="","",","&IFERROR(VLOOKUP($L101,【選択肢】!$Q$3:$U$90,2,)," ")))))))) ->  | N101: =IF(G101="","",(IFERROR(VLOOKUP($G101,【選択肢】!$Q$3:$U$90,4,)," ")&IF(H101="","",","&IFERROR(VLOOKUP($H101,【選択肢】!$Q$3:$U$90,4,)," ")&IF(I101="","",","&IFERROR(VLOOKUP($I101,【選択肢】!$Q$3:$U$90,4,)," ")&IF(J101="","",","&IFERROR(VLOOKUP($J101,【選択肢】!$Q$3:$U$90,4,)," ")&IF(K101="","",","&IFERROR(VLOOKUP($K101,【選択肢】!$Q$3:$U$90,4,)," ")&IF(L101="","",","&IFERROR(VLOOKUP($L101,【選択肢】!$Q$3:$U$90,4,)," ")))))))) ->  | O101: =IF(G101="","",(IFERROR(VLOOKUP($G101,【選択肢】!$Q$3:$U$90,5,)," ")&IF(H101="","",","&IFERROR(VLOOKUP($H101,【選択肢】!$Q$3:$U$90,5,)," ")&IF(I101="","",","&IFERROR(VLOOKUP($I101,【選択肢】!$Q$3:$U$90,5,)," ")&IF(J101="","",","&IFERROR(VLOOKUP($J101,【選択肢】!$Q$3:$U$90,5,)," ")&IF(K101="","",","&IFERROR(VLOOKUP($K101,【選択肢】!$Q$3:$U$90,5,)," ")&IF(L101="","",","&IFERROR(VLOOKUP($L101,【選択肢】!$Q$3:$U$90,5,)," ")))))))) -> 
F102: 0 | M102: =IF(G102="","",(IFERROR(VLOOKUP($G102,【選択肢】!$Q$3:$U$90,2,)," ")&IF(H102="","",","&IFERROR(VLOOKUP($H102,【選択肢】!$Q$3:$U$90,2,)," ")&IF(I102="","",","&IFERROR(VLOOKUP($I102,【選択肢】!$Q$3:$U$90,2,)," ")&IF(J102="","",","&IFERROR(VLOOKUP($J102,【選択肢】!$Q$3:$U$90,2,)," ")&IF(K102="","",","&IFERROR(VLOOKUP($K102,【選択肢】!$Q$3:$U$90,2,)," ")&IF(L102="","",","&IFERROR(VLOOKUP($L102,【選択肢】!$Q$3:$U$90,2,)," ")))))))) ->  | N102: =IF(G102="","",(IFERROR(VLOOKUP($G102,【選択肢】!$Q$3:$U$90,4,)," ")&IF(H102="","",","&IFERROR(VLOOKUP($H102,【選択肢】!$Q$3:$U$90,4,)," ")&IF(I102="","",","&IFERROR(VLOOKUP($I102,【選択肢】!$Q$3:$U$90,4,)," ")&IF(J102="","",","&IFERROR(VLOOKUP($J102,【選択肢】!$Q$3:$U$90,4,)," ")&IF(K102="","",","&IFERROR(VLOOKUP($K102,【選択肢】!$Q$3:$U$90,4,)," ")&IF(L102="","",","&IFERROR(VLOOKUP($L102,【選択肢】!$Q$3:$U$90,4,)," ")))))))) ->  | O102: =IF(G102="","",(IFERROR(VLOOKUP($G102,【選択肢】!$Q$3:$U$90,5,)," ")&IF(H102="","",","&IFERROR(VLOOKUP($H102,【選択肢】!$Q$3:$U$90,5,)," ")&IF(I102="","",","&IFERROR(VLOOKUP($I102,【選択肢】!$Q$3:$U$90,5,)," ")&IF(J102="","",","&IFERROR(VLOOKUP($J102,【選択肢】!$Q$3:$U$90,5,)," ")&IF(K102="","",","&IFERROR(VLOOKUP($K102,【選択肢】!$Q$3:$U$90,5,)," ")&IF(L102="","",","&IFERROR(VLOOKUP($L102,【選択肢】!$Q$3:$U$90,5,)," ")))))))) -> 
F103: 0 | M103: =IF(G103="","",(IFERROR(VLOOKUP($G103,【選択肢】!$Q$3:$U$90,2,)," ")&IF(H103="","",","&IFERROR(VLOOKUP($H103,【選択肢】!$Q$3:$U$90,2,)," ")&IF(I103="","",","&IFERROR(VLOOKUP($I103,【選択肢】!$Q$3:$U$90,2,)," ")&IF(J103="","",","&IFERROR(VLOOKUP($J103,【選択肢】!$Q$3:$U$90,2,)," ")&IF(K103="","",","&IFERROR(VLOOKUP($K103,【選択肢】!$Q$3:$U$90,2,)," ")&IF(L103="","",","&IFERROR(VLOOKUP($L103,【選択肢】!$Q$3:$U$90,2,)," ")))))))) ->  | N103: =IF(G103="","",(IFERROR(VLOOKUP($G103,【選択肢】!$Q$3:$U$90,4,)," ")&IF(H103="","",","&IFERROR(VLOOKUP($H103,【選択肢】!$Q$3:$U$90,4,)," ")&IF(I103="","",","&IFERROR(VLOOKUP($I103,【選択肢】!$Q$3:$U$90,4,)," ")&IF(J103="","",","&IFERROR(VLOOKUP($J103,【選択肢】!$Q$3:$U$90,4,)," ")&IF(K103="","",","&IFERROR(VLOOKUP($K103,【選択肢】!$Q$3:$U$90,4,)," ")&IF(L103="","",","&IFERROR(VLOOKUP($L103,【選択肢】!$Q$3:$U$90,4,)," ")))))))) ->  | O103: =IF(G103="","",(IFERROR(VLOOKUP($G103,【選択肢】!$Q$3:$U$90,5,)," ")&IF(H103="","",","&IFERROR(VLOOKUP($H103,【選択肢】!$Q$3:$U$90,5,)," ")&IF(I103="","",","&IFERROR(VLOOKUP($I103,【選択肢】!$Q$3:$U$90,5,)," ")&IF(J103="","",","&IFERROR(VLOOKUP($J103,【選択肢】!$Q$3:$U$90,5,)," ")&IF(K103="","",","&IFERROR(VLOOKUP($K103,【選択肢】!$Q$3:$U$90,5,)," ")&IF(L103="","",","&IFERROR(VLOOKUP($L103,【選択肢】!$Q$3:$U$90,5,)," ")))))))) -> 
F104: 0 | M104: =IF(G104="","",(IFERROR(VLOOKUP($G104,【選択肢】!$Q$3:$U$90,2,)," ")&IF(H104="","",","&IFERROR(VLOOKUP($H104,【選択肢】!$Q$3:$U$90,2,)," ")&IF(I104="","",","&IFERROR(VLOOKUP($I104,【選択肢】!$Q$3:$U$90,2,)," ")&IF(J104="","",","&IFERROR(VLOOKUP($J104,【選択肢】!$Q$3:$U$90,2,)," ")&IF(K104="","",","&IFERROR(VLOOKUP($K104,【選択肢】!$Q$3:$U$90,2,)," ")&IF(L104="","",","&IFERROR(VLOOKUP($L104,【選択肢】!$Q$3:$U$90,2,)," ")))))))) ->  | N104: =IF(G104="","",(IFERROR(VLOOKUP($G104,【選択肢】!$Q$3:$U$90,4,)," ")&IF(H104="","",","&IFERROR(VLOOKUP($H104,【選択肢】!$Q$3:$U$90,4,)," ")&IF(I104="","",","&IFERROR(VLOOKUP($I104,【選択肢】!$Q$3:$U$90,4,)," ")&IF(J104="","",","&IFERROR(VLOOKUP($J104,【選択肢】!$Q$3:$U$90,4,)," ")&IF(K104="","",","&IFERROR(VLOOKUP($K104,【選択肢】!$Q$3:$U$90,4,)," ")&IF(L104="","",","&IFERROR(VLOOKUP($L104,【選択肢】!$Q$3:$U$90,4,)," ")))))))) ->  | O104: =IF(G104="","",(IFERROR(VLOOKUP($G104,【選択肢】!$Q$3:$U$90,5,)," ")&IF(H104="","",","&IFERROR(VLOOKUP($H104,【選択肢】!$Q$3:$U$90,5,)," ")&IF(I104="","",","&IFERROR(VLOOKUP($I104,【選択肢】!$Q$3:$U$90,5,)," ")&IF(J104="","",","&IFERROR(VLOOKUP($J104,【選択肢】!$Q$3:$U$90,5,)," ")&IF(K104="","",","&IFERROR(VLOOKUP($K104,【選択肢】!$Q$3:$U$90,5,)," ")&IF(L104="","",","&IFERROR(VLOOKUP($L104,【選択肢】!$Q$3:$U$90,5,)," ")))))))) -> 
F105: 0 | M105: =IF(G105="","",(IFERROR(VLOOKUP($G105,【選択肢】!$Q$3:$U$90,2,)," ")&IF(H105="","",","&IFERROR(VLOOKUP($H105,【選択肢】!$Q$3:$U$90,2,)," ")&IF(I105="","",","&IFERROR(VLOOKUP($I105,【選択肢】!$Q$3:$U$90,2,)," ")&IF(J105="","",","&IFERROR(VLOOKUP($J105,【選択肢】!$Q$3:$U$90,2,)," ")&IF(K105="","",","&IFERROR(VLOOKUP($K105,【選択肢】!$Q$3:$U$90,2,)," ")&IF(L105="","",","&IFERROR(VLOOKUP($L105,【選択肢】!$Q$3:$U$90,2,)," ")))))))) ->  | N105: =IF(G105="","",(IFERROR(VLOOKUP($G105,【選択肢】!$Q$3:$U$90,4,)," ")&IF(H105="","",","&IFERROR(VLOOKUP($H105,【選択肢】!$Q$3:$U$90,4,)," ")&IF(I105="","",","&IFERROR(VLOOKUP($I105,【選択肢】!$Q$3:$U$90,4,)," ")&IF(J105="","",","&IFERROR(VLOOKUP($J105,【選択肢】!$Q$3:$U$90,4,)," ")&IF(K105="","",","&IFERROR(VLOOKUP($K105,【選択肢】!$Q$3:$U$90,4,)," ")&IF(L105="","",","&IFERROR(VLOOKUP($L105,【選択肢】!$Q$3:$U$90,4,)," ")))))))) ->  | O105: =IF(G105="","",(IFERROR(VLOOKUP($G105,【選択肢】!$Q$3:$U$90,5,)," ")&IF(H105="","",","&IFERROR(VLOOKUP($H105,【選択肢】!$Q$3:$U$90,5,)," ")&IF(I105="","",","&IFERROR(VLOOKUP($I105,【選択肢】!$Q$3:$U$90,5,)," ")&IF(J105="","",","&IFERROR(VLOOKUP($J105,【選択肢】!$Q$3:$U$90,5,)," ")&IF(K105="","",","&IFERROR(VLOOKUP($K105,【選択肢】!$Q$3:$U$90,5,)," ")&IF(L105="","",","&IFERROR(VLOOKUP($L105,【選択肢】!$Q$3:$U$90,5,)," ")))))))) -> 
F106: 0 | M106: =IF(G106="","",(IFERROR(VLOOKUP($G106,【選択肢】!$Q$3:$U$90,2,)," ")&IF(H106="","",","&IFERROR(VLOOKUP($H106,【選択肢】!$Q$3:$U$90,2,)," ")&IF(I106="","",","&IFERROR(VLOOKUP($I106,【選択肢】!$Q$3:$U$90,2,)," ")&IF(J106="","",","&IFERROR(VLOOKUP($J106,【選択肢】!$Q$3:$U$90,2,)," ")&IF(K106="","",","&IFERROR(VLOOKUP($K106,【選択肢】!$Q$3:$U$90,2,)," ")&IF(L106="","",","&IFERROR(VLOOKUP($L106,【選択肢】!$Q$3:$U$90,2,)," ")))))))) ->  | N106: =IF(G106="","",(IFERROR(VLOOKUP($G106,【選択肢】!$Q$3:$U$90,4,)," ")&IF(H106="","",","&IFERROR(VLOOKUP($H106,【選択肢】!$Q$3:$U$90,4,)," ")&IF(I106="","",","&IFERROR(VLOOKUP($I106,【選択肢】!$Q$3:$U$90,4,)," ")&IF(J106="","",","&IFERROR(VLOOKUP($J106,【選択肢】!$Q$3:$U$90,4,)," ")&IF(K106="","",","&IFERROR(VLOOKUP($K106,【選択肢】!$Q$3:$U$90,4,)," ")&IF(L106="","",","&IFERROR(VLOOKUP($L106,【選択肢】!$Q$3:$U$90,4,)," ")))))))) ->  | O106: =IF(G106="","",(IFERROR(VLOOKUP($G106,【選択肢】!$Q$3:$U$90,5,)," ")&IF(H106="","",","&IFERROR(VLOOKUP($H106,【選択肢】!$Q$3:$U$90,5,)," ")&IF(I106="","",","&IFERROR(VLOOKUP($I106,【選択肢】!$Q$3:$U$90,5,)," ")&IF(J106="","",","&IFERROR(VLOOKUP($J106,【選択肢】!$Q$3:$U$90,5,)," ")&IF(K106="","",","&IFERROR(VLOOKUP($K106,【選択肢】!$Q$3:$U$90,5,)," ")&IF(L106="","",","&IFERROR(VLOOKUP($L106,【選択肢】!$Q$3:$U$90,5,)," ")))))))) -> 
F107: 0 | M107: =IF(G107="","",(IFERROR(VLOOKUP($G107,【選択肢】!$Q$3:$U$90,2,)," ")&IF(H107="","",","&IFERROR(VLOOKUP($H107,【選択肢】!$Q$3:$U$90,2,)," ")&IF(I107="","",","&IFERROR(VLOOKUP($I107,【選択肢】!$Q$3:$U$90,2,)," ")&IF(J107="","",","&IFERROR(VLOOKUP($J107,【選択肢】!$Q$3:$U$90,2,)," ")&IF(K107="","",","&IFERROR(VLOOKUP($K107,【選択肢】!$Q$3:$U$90,2,)," ")&IF(L107="","",","&IFERROR(VLOOKUP($L107,【選択肢】!$Q$3:$U$90,2,)," ")))))))) ->  | N107: =IF(G107="","",(IFERROR(VLOOKUP($G107,【選択肢】!$Q$3:$U$90,4,)," ")&IF(H107="","",","&IFERROR(VLOOKUP($H107,【選択肢】!$Q$3:$U$90,4,)," ")&IF(I107="","",","&IFERROR(VLOOKUP($I107,【選択肢】!$Q$3:$U$90,4,)," ")&IF(J107="","",","&IFERROR(VLOOKUP($J107,【選択肢】!$Q$3:$U$90,4,)," ")&IF(K107="","",","&IFERROR(VLOOKUP($K107,【選択肢】!$Q$3:$U$90,4,)," ")&IF(L107="","",","&IFERROR(VLOOKUP($L107,【選択肢】!$Q$3:$U$90,4,)," ")))))))) ->  | O107: =IF(G107="","",(IFERROR(VLOOKUP($G107,【選択肢】!$Q$3:$U$90,5,)," ")&IF(H107="","",","&IFERROR(VLOOKUP($H107,【選択肢】!$Q$3:$U$90,5,)," ")&IF(I107="","",","&IFERROR(VLOOKUP($I107,【選択肢】!$Q$3:$U$90,5,)," ")&IF(J107="","",","&IFERROR(VLOOKUP($J107,【選択肢】!$Q$3:$U$90,5,)," ")&IF(K107="","",","&IFERROR(VLOOKUP($K107,【選択肢】!$Q$3:$U$90,5,)," ")&IF(L107="","",","&IFERROR(VLOOKUP($L107,【選択肢】!$Q$3:$U$90,5,)," ")))))))) -> 
F108: 0 | M108: =IF(G108="","",(IFERROR(VLOOKUP($G108,【選択肢】!$Q$3:$U$90,2,)," ")&IF(H108="","",","&IFERROR(VLOOKUP($H108,【選択肢】!$Q$3:$U$90,2,)," ")&IF(I108="","",","&IFERROR(VLOOKUP($I108,【選択肢】!$Q$3:$U$90,2,)," ")&IF(J108="","",","&IFERROR(VLOOKUP($J108,【選択肢】!$Q$3:$U$90,2,)," ")&IF(K108="","",","&IFERROR(VLOOKUP($K108,【選択肢】!$Q$3:$U$90,2,)," ")&IF(L108="","",","&IFERROR(VLOOKUP($L108,【選択肢】!$Q$3:$U$90,2,)," ")))))))) ->  | N108: =IF(G108="","",(IFERROR(VLOOKUP($G108,【選択肢】!$Q$3:$U$90,4,)," ")&IF(H108="","",","&IFERROR(VLOOKUP($H108,【選択肢】!$Q$3:$U$90,4,)," ")&IF(I108="","",","&IFERROR(VLOOKUP($I108,【選択肢】!$Q$3:$U$90,4,)," ")&IF(J108="","",","&IFERROR(VLOOKUP($J108,【選択肢】!$Q$3:$U$90,4,)," ")&IF(K108="","",","&IFERROR(VLOOKUP($K108,【選択肢】!$Q$3:$U$90,4,)," ")&IF(L108="","",","&IFERROR(VLOOKUP($L108,【選択肢】!$Q$3:$U$90,4,)," ")))))))) ->  | O108: =IF(G108="","",(IFERROR(VLOOKUP($G108,【選択肢】!$Q$3:$U$90,5,)," ")&IF(H108="","",","&IFERROR(VLOOKUP($H108,【選択肢】!$Q$3:$U$90,5,)," ")&IF(I108="","",","&IFERROR(VLOOKUP($I108,【選択肢】!$Q$3:$U$90,5,)," ")&IF(J108="","",","&IFERROR(VLOOKUP($J108,【選択肢】!$Q$3:$U$90,5,)," ")&IF(K108="","",","&IFERROR(VLOOKUP($K108,【選択肢】!$Q$3:$U$90,5,)," ")&IF(L108="","",","&IFERROR(VLOOKUP($L108,【選択肢】!$Q$3:$U$90,5,)," ")))))))) -> 
F109: 0 | M109: =IF(G109="","",(IFERROR(VLOOKUP($G109,【選択肢】!$Q$3:$U$90,2,)," ")&IF(H109="","",","&IFERROR(VLOOKUP($H109,【選択肢】!$Q$3:$U$90,2,)," ")&IF(I109="","",","&IFERROR(VLOOKUP($I109,【選択肢】!$Q$3:$U$90,2,)," ")&IF(J109="","",","&IFERROR(VLOOKUP($J109,【選択肢】!$Q$3:$U$90,2,)," ")&IF(K109="","",","&IFERROR(VLOOKUP($K109,【選択肢】!$Q$3:$U$90,2,)," ")&IF(L109="","",","&IFERROR(VLOOKUP($L109,【選択肢】!$Q$3:$U$90,2,)," ")))))))) ->  | N109: =IF(G109="","",(IFERROR(VLOOKUP($G109,【選択肢】!$Q$3:$U$90,4,)," ")&IF(H109="","",","&IFERROR(VLOOKUP($H109,【選択肢】!$Q$3:$U$90,4,)," ")&IF(I109="","",","&IFERROR(VLOOKUP($I109,【選択肢】!$Q$3:$U$90,4,)," ")&IF(J109="","",","&IFERROR(VLOOKUP($J109,【選択肢】!$Q$3:$U$90,4,)," ")&IF(K109="","",","&IFERROR(VLOOKUP($K109,【選択肢】!$Q$3:$U$90,4,)," ")&IF(L109="","",","&IFERROR(VLOOKUP($L109,【選択肢】!$Q$3:$U$90,4,)," ")))))))) ->  | O109: =IF(G109="","",(IFERROR(VLOOKUP($G109,【選択肢】!$Q$3:$U$90,5,)," ")&IF(H109="","",","&IFERROR(VLOOKUP($H109,【選択肢】!$Q$3:$U$90,5,)," ")&IF(I109="","",","&IFERROR(VLOOKUP($I109,【選択肢】!$Q$3:$U$90,5,)," ")&IF(J109="","",","&IFERROR(VLOOKUP($J109,【選択肢】!$Q$3:$U$90,5,)," ")&IF(K109="","",","&IFERROR(VLOOKUP($K109,【選択肢】!$Q$3:$U$90,5,)," ")&IF(L109="","",","&IFERROR(VLOOKUP($L109,【選択肢】!$Q$3:$U$90,5,)," ")))))))) -> 
F110: 0 | M110: =IF(G110="","",(IFERROR(VLOOKUP($G110,【選択肢】!$Q$3:$U$90,2,)," ")&IF(H110="","",","&IFERROR(VLOOKUP($H110,【選択肢】!$Q$3:$U$90,2,)," ")&IF(I110="","",","&IFERROR(VLOOKUP($I110,【選択肢】!$Q$3:$U$90,2,)," ")&IF(J110="","",","&IFERROR(VLOOKUP($J110,【選択肢】!$Q$3:$U$90,2,)," ")&IF(K110="","",","&IFERROR(VLOOKUP($K110,【選択肢】!$Q$3:$U$90,2,)," ")&IF(L110="","",","&IFERROR(VLOOKUP($L110,【選択肢】!$Q$3:$U$90,2,)," ")))))))) ->  | N110: =IF(G110="","",(IFERROR(VLOOKUP($G110,【選択肢】!$Q$3:$U$90,4,)," ")&IF(H110="","",","&IFERROR(VLOOKUP($H110,【選択肢】!$Q$3:$U$90,4,)," ")&IF(I110="","",","&IFERROR(VLOOKUP($I110,【選択肢】!$Q$3:$U$90,4,)," ")&IF(J110="","",","&IFERROR(VLOOKUP($J110,【選択肢】!$Q$3:$U$90,4,)," ")&IF(K110="","",","&IFERROR(VLOOKUP($K110,【選択肢】!$Q$3:$U$90,4,)," ")&IF(L110="","",","&IFERROR(VLOOKUP($L110,【選択肢】!$Q$3:$U$90,4,)," ")))))))) ->  | O110: =IF(G110="","",(IFERROR(VLOOKUP($G110,【選択肢】!$Q$3:$U$90,5,)," ")&IF(H110="","",","&IFERROR(VLOOKUP($H110,【選択肢】!$Q$3:$U$90,5,)," ")&IF(I110="","",","&IFERROR(VLOOKUP($I110,【選択肢】!$Q$3:$U$90,5,)," ")&IF(J110="","",","&IFERROR(VLOOKUP($J110,【選択肢】!$Q$3:$U$90,5,)," ")&IF(K110="","",","&IFERROR(VLOOKUP($K110,【選択肢】!$Q$3:$U$90,5,)," ")&IF(L110="","",","&IFERROR(VLOOKUP($L110,【選択肢】!$Q$3:$U$90,5,)," ")))))))) -> 
F111: 0 | M111: =IF(G111="","",(IFERROR(VLOOKUP($G111,【選択肢】!$Q$3:$U$90,2,)," ")&IF(H111="","",","&IFERROR(VLOOKUP($H111,【選択肢】!$Q$3:$U$90,2,)," ")&IF(I111="","",","&IFERROR(VLOOKUP($I111,【選択肢】!$Q$3:$U$90,2,)," ")&IF(J111="","",","&IFERROR(VLOOKUP($J111,【選択肢】!$Q$3:$U$90,2,)," ")&IF(K111="","",","&IFERROR(VLOOKUP($K111,【選択肢】!$Q$3:$U$90,2,)," ")&IF(L111="","",","&IFERROR(VLOOKUP($L111,【選択肢】!$Q$3:$U$90,2,)," ")))))))) ->  | N111: =IF(G111="","",(IFERROR(VLOOKUP($G111,【選択肢】!$Q$3:$U$90,4,)," ")&IF(H111="","",","&IFERROR(VLOOKUP($H111,【選択肢】!$Q$3:$U$90,4,)," ")&IF(I111="","",","&IFERROR(VLOOKUP($I111,【選択肢】!$Q$3:$U$90,4,)," ")&IF(J111="","",","&IFERROR(VLOOKUP($J111,【選択肢】!$Q$3:$U$90,4,)," ")&IF(K111="","",","&IFERROR(VLOOKUP($K111,【選択肢】!$Q$3:$U$90,4,)," ")&IF(L111="","",","&IFERROR(VLOOKUP($L111,【選択肢】!$Q$3:$U$90,4,)," ")))))))) ->  | O111: =IF(G111="","",(IFERROR(VLOOKUP($G111,【選択肢】!$Q$3:$U$90,5,)," ")&IF(H111="","",","&IFERROR(VLOOKUP($H111,【選択肢】!$Q$3:$U$90,5,)," ")&IF(I111="","",","&IFERROR(VLOOKUP($I111,【選択肢】!$Q$3:$U$90,5,)," ")&IF(J111="","",","&IFERROR(VLOOKUP($J111,【選択肢】!$Q$3:$U$90,5,)," ")&IF(K111="","",","&IFERROR(VLOOKUP($K111,【選択肢】!$Q$3:$U$90,5,)," ")&IF(L111="","",","&IFERROR(VLOOKUP($L111,【選択肢】!$Q$3:$U$90,5,)," ")))))))) -> 
F112: 0 | M112: =IF(G112="","",(IFERROR(VLOOKUP($G112,【選択肢】!$Q$3:$U$90,2,)," ")&IF(H112="","",","&IFERROR(VLOOKUP($H112,【選択肢】!$Q$3:$U$90,2,)," ")&IF(I112="","",","&IFERROR(VLOOKUP($I112,【選択肢】!$Q$3:$U$90,2,)," ")&IF(J112="","",","&IFERROR(VLOOKUP($J112,【選択肢】!$Q$3:$U$90,2,)," ")&IF(K112="","",","&IFERROR(VLOOKUP($K112,【選択肢】!$Q$3:$U$90,2,)," ")&IF(L112="","",","&IFERROR(VLOOKUP($L112,【選択肢】!$Q$3:$U$90,2,)," ")))))))) ->  | N112: =IF(G112="","",(IFERROR(VLOOKUP($G112,【選択肢】!$Q$3:$U$90,4,)," ")&IF(H112="","",","&IFERROR(VLOOKUP($H112,【選択肢】!$Q$3:$U$90,4,)," ")&IF(I112="","",","&IFERROR(VLOOKUP($I112,【選択肢】!$Q$3:$U$90,4,)," ")&IF(J112="","",","&IFERROR(VLOOKUP($J112,【選択肢】!$Q$3:$U$90,4,)," ")&IF(K112="","",","&IFERROR(VLOOKUP($K112,【選択肢】!$Q$3:$U$90,4,)," ")&IF(L112="","",","&IFERROR(VLOOKUP($L112,【選択肢】!$Q$3:$U$90,4,)," ")))))))) ->  | O112: =IF(G112="","",(IFERROR(VLOOKUP($G112,【選択肢】!$Q$3:$U$90,5,)," ")&IF(H112="","",","&IFERROR(VLOOKUP($H112,【選択肢】!$Q$3:$U$90,5,)," ")&IF(I112="","",","&IFERROR(VLOOKUP($I112,【選択肢】!$Q$3:$U$90,5,)," ")&IF(J112="","",","&IFERROR(VLOOKUP($J112,【選択肢】!$Q$3:$U$90,5,)," ")&IF(K112="","",","&IFERROR(VLOOKUP($K112,【選択肢】!$Q$3:$U$90,5,)," ")&IF(L112="","",","&IFERROR(VLOOKUP($L112,【選択肢】!$Q$3:$U$90,5,)," ")))))))) -> 
F113: 0 | M113: =IF(G113="","",(IFERROR(VLOOKUP($G113,【選択肢】!$Q$3:$U$90,2,)," ")&IF(H113="","",","&IFERROR(VLOOKUP($H113,【選択肢】!$Q$3:$U$90,2,)," ")&IF(I113="","",","&IFERROR(VLOOKUP($I113,【選択肢】!$Q$3:$U$90,2,)," ")&IF(J113="","",","&IFERROR(VLOOKUP($J113,【選択肢】!$Q$3:$U$90,2,)," ")&IF(K113="","",","&IFERROR(VLOOKUP($K113,【選択肢】!$Q$3:$U$90,2,)," ")&IF(L113="","",","&IFERROR(VLOOKUP($L113,【選択肢】!$Q$3:$U$90,2,)," ")))))))) ->  | N113: =IF(G113="","",(IFERROR(VLOOKUP($G113,【選択肢】!$Q$3:$U$90,4,)," ")&IF(H113="","",","&IFERROR(VLOOKUP($H113,【選択肢】!$Q$3:$U$90,4,)," ")&IF(I113="","",","&IFERROR(VLOOKUP($I113,【選択肢】!$Q$3:$U$90,4,)," ")&IF(J113="","",","&IFERROR(VLOOKUP($J113,【選択肢】!$Q$3:$U$90,4,)," ")&IF(K113="","",","&IFERROR(VLOOKUP($K113,【選択肢】!$Q$3:$U$90,4,)," ")&IF(L113="","",","&IFERROR(VLOOKUP($L113,【選択肢】!$Q$3:$U$90,4,)," ")))))))) ->  | O113: =IF(G113="","",(IFERROR(VLOOKUP($G113,【選択肢】!$Q$3:$U$90,5,)," ")&IF(H113="","",","&IFERROR(VLOOKUP($H113,【選択肢】!$Q$3:$U$90,5,)," ")&IF(I113="","",","&IFERROR(VLOOKUP($I113,【選択肢】!$Q$3:$U$90,5,)," ")&IF(J113="","",","&IFERROR(VLOOKUP($J113,【選択肢】!$Q$3:$U$90,5,)," ")&IF(K113="","",","&IFERROR(VLOOKUP($K113,【選択肢】!$Q$3:$U$90,5,)," ")&IF(L113="","",","&IFERROR(VLOOKUP($L113,【選択肢】!$Q$3:$U$90,5,)," ")))))))) -> 
F114: 0 | M114: =IF(G114="","",(IFERROR(VLOOKUP($G114,【選択肢】!$Q$3:$U$90,2,)," ")&IF(H114="","",","&IFERROR(VLOOKUP($H114,【選択肢】!$Q$3:$U$90,2,)," ")&IF(I114="","",","&IFERROR(VLOOKUP($I114,【選択肢】!$Q$3:$U$90,2,)," ")&IF(J114="","",","&IFERROR(VLOOKUP($J114,【選択肢】!$Q$3:$U$90,2,)," ")&IF(K114="","",","&IFERROR(VLOOKUP($K114,【選択肢】!$Q$3:$U$90,2,)," ")&IF(L114="","",","&IFERROR(VLOOKUP($L114,【選択肢】!$Q$3:$U$90,2,)," ")))))))) ->  | N114: =IF(G114="","",(IFERROR(VLOOKUP($G114,【選択肢】!$Q$3:$U$90,4,)," ")&IF(H114="","",","&IFERROR(VLOOKUP($H114,【選択肢】!$Q$3:$U$90,4,)," ")&IF(I114="","",","&IFERROR(VLOOKUP($I114,【選択肢】!$Q$3:$U$90,4,)," ")&IF(J114="","",","&IFERROR(VLOOKUP($J114,【選択肢】!$Q$3:$U$90,4,)," ")&IF(K114="","",","&IFERROR(VLOOKUP($K114,【選択肢】!$Q$3:$U$90,4,)," ")&IF(L114="","",","&IFERROR(VLOOKUP($L114,【選択肢】!$Q$3:$U$90,4,)," ")))))))) ->  | O114: =IF(G114="","",(IFERROR(VLOOKUP($G114,【選択肢】!$Q$3:$U$90,5,)," ")&IF(H114="","",","&IFERROR(VLOOKUP($H114,【選択肢】!$Q$3:$U$90,5,)," ")&IF(I114="","",","&IFERROR(VLOOKUP($I114,【選択肢】!$Q$3:$U$90,5,)," ")&IF(J114="","",","&IFERROR(VLOOKUP($J114,【選択肢】!$Q$3:$U$90,5,)," ")&IF(K114="","",","&IFERROR(VLOOKUP($K114,【選択肢】!$Q$3:$U$90,5,)," ")&IF(L114="","",","&IFERROR(VLOOKUP($L114,【選択肢】!$Q$3:$U$90,5,)," ")))))))) -> 
F115: 0 | M115: =IF(G115="","",(IFERROR(VLOOKUP($G115,【選択肢】!$Q$3:$U$90,2,)," ")&IF(H115="","",","&IFERROR(VLOOKUP($H115,【選択肢】!$Q$3:$U$90,2,)," ")&IF(I115="","",","&IFERROR(VLOOKUP($I115,【選択肢】!$Q$3:$U$90,2,)," ")&IF(J115="","",","&IFERROR(VLOOKUP($J115,【選択肢】!$Q$3:$U$90,2,)," ")&IF(K115="","",","&IFERROR(VLOOKUP($K115,【選択肢】!$Q$3:$U$90,2,)," ")&IF(L115="","",","&IFERROR(VLOOKUP($L115,【選択肢】!$Q$3:$U$90,2,)," ")))))))) ->  | N115: =IF(G115="","",(IFERROR(VLOOKUP($G115,【選択肢】!$Q$3:$U$90,4,)," ")&IF(H115="","",","&IFERROR(VLOOKUP($H115,【選択肢】!$Q$3:$U$90,4,)," ")&IF(I115="","",","&IFERROR(VLOOKUP($I115,【選択肢】!$Q$3:$U$90,4,)," ")&IF(J115="","",","&IFERROR(VLOOKUP($J115,【選択肢】!$Q$3:$U$90,4,)," ")&IF(K115="","",","&IFERROR(VLOOKUP($K115,【選択肢】!$Q$3:$U$90,4,)," ")&IF(L115="","",","&IFERROR(VLOOKUP($L115,【選択肢】!$Q$3:$U$90,4,)," ")))))))) ->  | O115: =IF(G115="","",(IFERROR(VLOOKUP($G115,【選択肢】!$Q$3:$U$90,5,)," ")&IF(H115="","",","&IFERROR(VLOOKUP($H115,【選択肢】!$Q$3:$U$90,5,)," ")&IF(I115="","",","&IFERROR(VLOOKUP($I115,【選択肢】!$Q$3:$U$90,5,)," ")&IF(J115="","",","&IFERROR(VLOOKUP($J115,【選択肢】!$Q$3:$U$90,5,)," ")&IF(K115="","",","&IFERROR(VLOOKUP($K115,【選択肢】!$Q$3:$U$90,5,)," ")&IF(L115="","",","&IFERROR(VLOOKUP($L115,【選択肢】!$Q$3:$U$90,5,)," ")))))))) -> 
F116: 0 | M116: =IF(G116="","",(IFERROR(VLOOKUP($G116,【選択肢】!$Q$3:$U$90,2,)," ")&IF(H116="","",","&IFERROR(VLOOKUP($H116,【選択肢】!$Q$3:$U$90,2,)," ")&IF(I116="","",","&IFERROR(VLOOKUP($I116,【選択肢】!$Q$3:$U$90,2,)," ")&IF(J116="","",","&IFERROR(VLOOKUP($J116,【選択肢】!$Q$3:$U$90,2,)," ")&IF(K116="","",","&IFERROR(VLOOKUP($K116,【選択肢】!$Q$3:$U$90,2,)," ")&IF(L116="","",","&IFERROR(VLOOKUP($L116,【選択肢】!$Q$3:$U$90,2,)," ")))))))) ->  | N116: =IF(G116="","",(IFERROR(VLOOKUP($G116,【選択肢】!$Q$3:$U$90,4,)," ")&IF(H116="","",","&IFERROR(VLOOKUP($H116,【選択肢】!$Q$3:$U$90,4,)," ")&IF(I116="","",","&IFERROR(VLOOKUP($I116,【選択肢】!$Q$3:$U$90,4,)," ")&IF(J116="","",","&IFERROR(VLOOKUP($J116,【選択肢】!$Q$3:$U$90,4,)," ")&IF(K116="","",","&IFERROR(VLOOKUP($K116,【選択肢】!$Q$3:$U$90,4,)," ")&IF(L116="","",","&IFERROR(VLOOKUP($L116,【選択肢】!$Q$3:$U$90,4,)," ")))))))) ->  | O116: =IF(G116="","",(IFERROR(VLOOKUP($G116,【選択肢】!$Q$3:$U$90,5,)," ")&IF(H116="","",","&IFERROR(VLOOKUP($H116,【選択肢】!$Q$3:$U$90,5,)," ")&IF(I116="","",","&IFERROR(VLOOKUP($I116,【選択肢】!$Q$3:$U$90,5,)," ")&IF(J116="","",","&IFERROR(VLOOKUP($J116,【選択肢】!$Q$3:$U$90,5,)," ")&IF(K116="","",","&IFERROR(VLOOKUP($K116,【選択肢】!$Q$3:$U$90,5,)," ")&IF(L116="","",","&IFERROR(VLOOKUP($L116,【選択肢】!$Q$3:$U$90,5,)," ")))))))) -> 
F117: 0 | M117: =IF(G117="","",(IFERROR(VLOOKUP($G117,【選択肢】!$Q$3:$U$90,2,)," ")&IF(H117="","",","&IFERROR(VLOOKUP($H117,【選択肢】!$Q$3:$U$90,2,)," ")&IF(I117="","",","&IFERROR(VLOOKUP($I117,【選択肢】!$Q$3:$U$90,2,)," ")&IF(J117="","",","&IFERROR(VLOOKUP($J117,【選択肢】!$Q$3:$U$90,2,)," ")&IF(K117="","",","&IFERROR(VLOOKUP($K117,【選択肢】!$Q$3:$U$90,2,)," ")&IF(L117="","",","&IFERROR(VLOOKUP($L117,【選択肢】!$Q$3:$U$90,2,)," ")))))))) ->  | N117: =IF(G117="","",(IFERROR(VLOOKUP($G117,【選択肢】!$Q$3:$U$90,4,)," ")&IF(H117="","",","&IFERROR(VLOOKUP($H117,【選択肢】!$Q$3:$U$90,4,)," ")&IF(I117="","",","&IFERROR(VLOOKUP($I117,【選択肢】!$Q$3:$U$90,4,)," ")&IF(J117="","",","&IFERROR(VLOOKUP($J117,【選択肢】!$Q$3:$U$90,4,)," ")&IF(K117="","",","&IFERROR(VLOOKUP($K117,【選択肢】!$Q$3:$U$90,4,)," ")&IF(L117="","",","&IFERROR(VLOOKUP($L117,【選択肢】!$Q$3:$U$90,4,)," ")))))))) ->  | O117: =IF(G117="","",(IFERROR(VLOOKUP($G117,【選択肢】!$Q$3:$U$90,5,)," ")&IF(H117="","",","&IFERROR(VLOOKUP($H117,【選択肢】!$Q$3:$U$90,5,)," ")&IF(I117="","",","&IFERROR(VLOOKUP($I117,【選択肢】!$Q$3:$U$90,5,)," ")&IF(J117="","",","&IFERROR(VLOOKUP($J117,【選択肢】!$Q$3:$U$90,5,)," ")&IF(K117="","",","&IFERROR(VLOOKUP($K117,【選択肢】!$Q$3:$U$90,5,)," ")&IF(L117="","",","&IFERROR(VLOOKUP($L117,【選択肢】!$Q$3:$U$90,5,)," ")))))))) -> 
F118: 0 | M118: =IF(G118="","",(IFERROR(VLOOKUP($G118,【選択肢】!$Q$3:$U$90,2,)," ")&IF(H118="","",","&IFERROR(VLOOKUP($H118,【選択肢】!$Q$3:$U$90,2,)," ")&IF(I118="","",","&IFERROR(VLOOKUP($I118,【選択肢】!$Q$3:$U$90,2,)," ")&IF(J118="","",","&IFERROR(VLOOKUP($J118,【選択肢】!$Q$3:$U$90,2,)," ")&IF(K118="","",","&IFERROR(VLOOKUP($K118,【選択肢】!$Q$3:$U$90,2,)," ")&IF(L118="","",","&IFERROR(VLOOKUP($L118,【選択肢】!$Q$3:$U$90,2,)," ")))))))) ->  | N118: =IF(G118="","",(IFERROR(VLOOKUP($G118,【選択肢】!$Q$3:$U$90,4,)," ")&IF(H118="","",","&IFERROR(VLOOKUP($H118,【選択肢】!$Q$3:$U$90,4,)," ")&IF(I118="","",","&IFERROR(VLOOKUP($I118,【選択肢】!$Q$3:$U$90,4,)," ")&IF(J118="","",","&IFERROR(VLOOKUP($J118,【選択肢】!$Q$3:$U$90,4,)," ")&IF(K118="","",","&IFERROR(VLOOKUP($K118,【選択肢】!$Q$3:$U$90,4,)," ")&IF(L118="","",","&IFERROR(VLOOKUP($L118,【選択肢】!$Q$3:$U$90,4,)," ")))))))) ->  | O118: =IF(G118="","",(IFERROR(VLOOKUP($G118,【選択肢】!$Q$3:$U$90,5,)," ")&IF(H118="","",","&IFERROR(VLOOKUP($H118,【選択肢】!$Q$3:$U$90,5,)," ")&IF(I118="","",","&IFERROR(VLOOKUP($I118,【選択肢】!$Q$3:$U$90,5,)," ")&IF(J118="","",","&IFERROR(VLOOKUP($J118,【選択肢】!$Q$3:$U$90,5,)," ")&IF(K118="","",","&IFERROR(VLOOKUP($K118,【選択肢】!$Q$3:$U$90,5,)," ")&IF(L118="","",","&IFERROR(VLOOKUP($L118,【選択肢】!$Q$3:$U$90,5,)," ")))))))) -> 
F119: =SUM(D119+E119) -> 0 | M119: =IF(G119="","",(IFERROR(VLOOKUP($G119,【選択肢】!$Q$3:$U$90,2,)," ")&IF(H119="","",","&IFERROR(VLOOKUP($H119,【選択肢】!$Q$3:$U$90,2,)," ")&IF(I119="","",","&IFERROR(VLOOKUP($I119,【選択肢】!$Q$3:$U$90,2,)," ")&IF(J119="","",","&IFERROR(VLOOKUP($J119,【選択肢】!$Q$3:$U$90,2,)," ")&IF(K119="","",","&IFERROR(VLOOKUP($K119,【選択肢】!$Q$3:$U$90,2,)," ")&IF(L119="","",","&IFERROR(VLOOKUP($L119,【選択肢】!$Q$3:$U$90,2,)," ")))))))) ->  | N119: =IF(G119="","",(IFERROR(VLOOKUP($G119,【選択肢】!$Q$3:$U$90,4,)," ")&IF(H119="","",","&IFERROR(VLOOKUP($H119,【選択肢】!$Q$3:$U$90,4,)," ")&IF(I119="","",","&IFERROR(VLOOKUP($I119,【選択肢】!$Q$3:$U$90,4,)," ")&IF(J119="","",","&IFERROR(VLOOKUP($J119,【選択肢】!$Q$3:$U$90,4,)," ")&IF(K119="","",","&IFERROR(VLOOKUP($K119,【選択肢】!$Q$3:$U$90,4,)," ")&IF(L119="","",","&IFERROR(VLOOKUP($L119,【選択肢】!$Q$3:$U$90,4,)," ")))))))) ->  | O119: =IF(G119="","",(IFERROR(VLOOKUP($G119,【選択肢】!$Q$3:$U$90,5,)," ")&IF(H119="","",","&IFERROR(VLOOKUP($H119,【選択肢】!$Q$3:$U$90,5,)," ")&IF(I119="","",","&IFERROR(VLOOKUP($I119,【選択肢】!$Q$3:$U$90,5,)," ")&IF(J119="","",","&IFERROR(VLOOKUP($J119,【選択肢】!$Q$3:$U$90,5,)," ")&IF(K119="","",","&IFERROR(VLOOKUP($K119,【選択肢】!$Q$3:$U$90,5,)," ")&IF(L119="","",","&IFERROR(VLOOKUP($L119,【選択肢】!$Q$3:$U$90,5,)," ")))))))) -> 
F120: 0 | M120: =IF(G120="","",(IFERROR(VLOOKUP($G120,【選択肢】!$Q$3:$U$90,2,)," ")&IF(H120="","",","&IFERROR(VLOOKUP($H120,【選択肢】!$Q$3:$U$90,2,)," ")&IF(I120="","",","&IFERROR(VLOOKUP($I120,【選択肢】!$Q$3:$U$90,2,)," ")&IF(J120="","",","&IFERROR(VLOOKUP($J120,【選択肢】!$Q$3:$U$90,2,)," ")&IF(K120="","",","&IFERROR(VLOOKUP($K120,【選択肢】!$Q$3:$U$90,2,)," ")&IF(L120="","",","&IFERROR(VLOOKUP($L120,【選択肢】!$Q$3:$U$90,2,)," ")))))))) ->  | N120: =IF(G120="","",(IFERROR(VLOOKUP($G120,【選択肢】!$Q$3:$U$90,4,)," ")&IF(H120="","",","&IFERROR(VLOOKUP($H120,【選択肢】!$Q$3:$U$90,4,)," ")&IF(I120="","",","&IFERROR(VLOOKUP($I120,【選択肢】!$Q$3:$U$90,4,)," ")&IF(J120="","",","&IFERROR(VLOOKUP($J120,【選択肢】!$Q$3:$U$90,4,)," ")&IF(K120="","",","&IFERROR(VLOOKUP($K120,【選択肢】!$Q$3:$U$90,4,)," ")&IF(L120="","",","&IFERROR(VLOOKUP($L120,【選択肢】!$Q$3:$U$90,4,)," ")))))))) ->  | O120: =IF(G120="","",(IFERROR(VLOOKUP($G120,【選択肢】!$Q$3:$U$90,5,)," ")&IF(H120="","",","&IFERROR(VLOOKUP($H120,【選択肢】!$Q$3:$U$90,5,)," ")&IF(I120="","",","&IFERROR(VLOOKUP($I120,【選択肢】!$Q$3:$U$90,5,)," ")&IF(J120="","",","&IFERROR(VLOOKUP($J120,【選択肢】!$Q$3:$U$90,5,)," ")&IF(K120="","",","&IFERROR(VLOOKUP($K120,【選択肢】!$Q$3:$U$90,5,)," ")&IF(L120="","",","&IFERROR(VLOOKUP($L120,【選択肢】!$Q$3:$U$90,5,)," ")))))))) -> 
F121: 0 | M121: =IF(G121="","",(IFERROR(VLOOKUP($G121,【選択肢】!$Q$3:$U$90,2,)," ")&IF(H121="","",","&IFERROR(VLOOKUP($H121,【選択肢】!$Q$3:$U$90,2,)," ")&IF(I121="","",","&IFERROR(VLOOKUP($I121,【選択肢】!$Q$3:$U$90,2,)," ")&IF(J121="","",","&IFERROR(VLOOKUP($J121,【選択肢】!$Q$3:$U$90,2,)," ")&IF(K121="","",","&IFERROR(VLOOKUP($K121,【選択肢】!$Q$3:$U$90,2,)," ")&IF(L121="","",","&IFERROR(VLOOKUP($L121,【選択肢】!$Q$3:$U$90,2,)," ")))))))) ->  | N121: =IF(G121="","",(IFERROR(VLOOKUP($G121,【選択肢】!$Q$3:$U$90,4,)," ")&IF(H121="","",","&IFERROR(VLOOKUP($H121,【選択肢】!$Q$3:$U$90,4,)," ")&IF(I121="","",","&IFERROR(VLOOKUP($I121,【選択肢】!$Q$3:$U$90,4,)," ")&IF(J121="","",","&IFERROR(VLOOKUP($J121,【選択肢】!$Q$3:$U$90,4,)," ")&IF(K121="","",","&IFERROR(VLOOKUP($K121,【選択肢】!$Q$3:$U$90,4,)," ")&IF(L121="","",","&IFERROR(VLOOKUP($L121,【選択肢】!$Q$3:$U$90,4,)," ")))))))) ->  | O121: =IF(G121="","",(IFERROR(VLOOKUP($G121,【選択肢】!$Q$3:$U$90,5,)," ")&IF(H121="","",","&IFERROR(VLOOKUP($H121,【選択肢】!$Q$3:$U$90,5,)," ")&IF(I121="","",","&IFERROR(VLOOKUP($I121,【選択肢】!$Q$3:$U$90,5,)," ")&IF(J121="","",","&IFERROR(VLOOKUP($J121,【選択肢】!$Q$3:$U$90,5,)," ")&IF(K121="","",","&IFERROR(VLOOKUP($K121,【選択肢】!$Q$3:$U$90,5,)," ")&IF(L121="","",","&IFERROR(VLOOKUP($L121,【選択肢】!$Q$3:$U$90,5,)," ")))))))) -> 
F122: 0 | M122: =IF(G122="","",(IFERROR(VLOOKUP($G122,【選択肢】!$Q$3:$U$90,2,)," ")&IF(H122="","",","&IFERROR(VLOOKUP($H122,【選択肢】!$Q$3:$U$90,2,)," ")&IF(I122="","",","&IFERROR(VLOOKUP($I122,【選択肢】!$Q$3:$U$90,2,)," ")&IF(J122="","",","&IFERROR(VLOOKUP($J122,【選択肢】!$Q$3:$U$90,2,)," ")&IF(K122="","",","&IFERROR(VLOOKUP($K122,【選択肢】!$Q$3:$U$90,2,)," ")&IF(L122="","",","&IFERROR(VLOOKUP($L122,【選択肢】!$Q$3:$U$90,2,)," ")))))))) ->  | N122: =IF(G122="","",(IFERROR(VLOOKUP($G122,【選択肢】!$Q$3:$U$90,4,)," ")&IF(H122="","",","&IFERROR(VLOOKUP($H122,【選択肢】!$Q$3:$U$90,4,)," ")&IF(I122="","",","&IFERROR(VLOOKUP($I122,【選択肢】!$Q$3:$U$90,4,)," ")&IF(J122="","",","&IFERROR(VLOOKUP($J122,【選択肢】!$Q$3:$U$90,4,)," ")&IF(K122="","",","&IFERROR(VLOOKUP($K122,【選択肢】!$Q$3:$U$90,4,)," ")&IF(L122="","",","&IFERROR(VLOOKUP($L122,【選択肢】!$Q$3:$U$90,4,)," ")))))))) ->  | O122: =IF(G122="","",(IFERROR(VLOOKUP($G122,【選択肢】!$Q$3:$U$90,5,)," ")&IF(H122="","",","&IFERROR(VLOOKUP($H122,【選択肢】!$Q$3:$U$90,5,)," ")&IF(I122="","",","&IFERROR(VLOOKUP($I122,【選択肢】!$Q$3:$U$90,5,)," ")&IF(J122="","",","&IFERROR(VLOOKUP($J122,【選択肢】!$Q$3:$U$90,5,)," ")&IF(K122="","",","&IFERROR(VLOOKUP($K122,【選択肢】!$Q$3:$U$90,5,)," ")&IF(L122="","",","&IFERROR(VLOOKUP($L122,【選択肢】!$Q$3:$U$90,5,)," ")))))))) -> 
F123: 0 | M123: =IF(G123="","",(IFERROR(VLOOKUP($G123,【選択肢】!$Q$3:$U$90,2,)," ")&IF(H123="","",","&IFERROR(VLOOKUP($H123,【選択肢】!$Q$3:$U$90,2,)," ")&IF(I123="","",","&IFERROR(VLOOKUP($I123,【選択肢】!$Q$3:$U$90,2,)," ")&IF(J123="","",","&IFERROR(VLOOKUP($J123,【選択肢】!$Q$3:$U$90,2,)," ")&IF(K123="","",","&IFERROR(VLOOKUP($K123,【選択肢】!$Q$3:$U$90,2,)," ")&IF(L123="","",","&IFERROR(VLOOKUP($L123,【選択肢】!$Q$3:$U$90,2,)," ")))))))) ->  | N123: =IF(G123="","",(IFERROR(VLOOKUP($G123,【選択肢】!$Q$3:$U$90,4,)," ")&IF(H123="","",","&IFERROR(VLOOKUP($H123,【選択肢】!$Q$3:$U$90,4,)," ")&IF(I123="","",","&IFERROR(VLOOKUP($I123,【選択肢】!$Q$3:$U$90,4,)," ")&IF(J123="","",","&IFERROR(VLOOKUP($J123,【選択肢】!$Q$3:$U$90,4,)," ")&IF(K123="","",","&IFERROR(VLOOKUP($K123,【選択肢】!$Q$3:$U$90,4,)," ")&IF(L123="","",","&IFERROR(VLOOKUP($L123,【選択肢】!$Q$3:$U$90,4,)," ")))))))) ->  | O123: =IF(G123="","",(IFERROR(VLOOKUP($G123,【選択肢】!$Q$3:$U$90,5,)," ")&IF(H123="","",","&IFERROR(VLOOKUP($H123,【選択肢】!$Q$3:$U$90,5,)," ")&IF(I123="","",","&IFERROR(VLOOKUP($I123,【選択肢】!$Q$3:$U$90,5,)," ")&IF(J123="","",","&IFERROR(VLOOKUP($J123,【選択肢】!$Q$3:$U$90,5,)," ")&IF(K123="","",","&IFERROR(VLOOKUP($K123,【選択肢】!$Q$3:$U$90,5,)," ")&IF(L123="","",","&IFERROR(VLOOKUP($L123,【選択肢】!$Q$3:$U$90,5,)," ")))))))) -> 
F124: 0 | M124: =IF(G124="","",(IFERROR(VLOOKUP($G124,【選択肢】!$Q$3:$U$90,2,)," ")&IF(H124="","",","&IFERROR(VLOOKUP($H124,【選択肢】!$Q$3:$U$90,2,)," ")&IF(I124="","",","&IFERROR(VLOOKUP($I124,【選択肢】!$Q$3:$U$90,2,)," ")&IF(J124="","",","&IFERROR(VLOOKUP($J124,【選択肢】!$Q$3:$U$90,2,)," ")&IF(K124="","",","&IFERROR(VLOOKUP($K124,【選択肢】!$Q$3:$U$90,2,)," ")&IF(L124="","",","&IFERROR(VLOOKUP($L124,【選択肢】!$Q$3:$U$90,2,)," ")))))))) ->  | N124: =IF(G124="","",(IFERROR(VLOOKUP($G124,【選択肢】!$Q$3:$U$90,4,)," ")&IF(H124="","",","&IFERROR(VLOOKUP($H124,【選択肢】!$Q$3:$U$90,4,)," ")&IF(I124="","",","&IFERROR(VLOOKUP($I124,【選択肢】!$Q$3:$U$90,4,)," ")&IF(J124="","",","&IFERROR(VLOOKUP($J124,【選択肢】!$Q$3:$U$90,4,)," ")&IF(K124="","",","&IFERROR(VLOOKUP($K124,【選択肢】!$Q$3:$U$90,4,)," ")&IF(L124="","",","&IFERROR(VLOOKUP($L124,【選択肢】!$Q$3:$U$90,4,)," ")))))))) ->  | O124: =IF(G124="","",(IFERROR(VLOOKUP($G124,【選択肢】!$Q$3:$U$90,5,)," ")&IF(H124="","",","&IFERROR(VLOOKUP($H124,【選択肢】!$Q$3:$U$90,5,)," ")&IF(I124="","",","&IFERROR(VLOOKUP($I124,【選択肢】!$Q$3:$U$90,5,)," ")&IF(J124="","",","&IFERROR(VLOOKUP($J124,【選択肢】!$Q$3:$U$90,5,)," ")&IF(K124="","",","&IFERROR(VLOOKUP($K124,【選択肢】!$Q$3:$U$90,5,)," ")&IF(L124="","",","&IFERROR(VLOOKUP($L124,【選択肢】!$Q$3:$U$90,5,)," ")))))))) -> 
F125: 0 | M125: =IF(G125="","",(IFERROR(VLOOKUP($G125,【選択肢】!$Q$3:$U$90,2,)," ")&IF(H125="","",","&IFERROR(VLOOKUP($H125,【選択肢】!$Q$3:$U$90,2,)," ")&IF(I125="","",","&IFERROR(VLOOKUP($I125,【選択肢】!$Q$3:$U$90,2,)," ")&IF(J125="","",","&IFERROR(VLOOKUP($J125,【選択肢】!$Q$3:$U$90,2,)," ")&IF(K125="","",","&IFERROR(VLOOKUP($K125,【選択肢】!$Q$3:$U$90,2,)," ")&IF(L125="","",","&IFERROR(VLOOKUP($L125,【選択肢】!$Q$3:$U$90,2,)," ")))))))) ->  | N125: =IF(G125="","",(IFERROR(VLOOKUP($G125,【選択肢】!$Q$3:$U$90,4,)," ")&IF(H125="","",","&IFERROR(VLOOKUP($H125,【選択肢】!$Q$3:$U$90,4,)," ")&IF(I125="","",","&IFERROR(VLOOKUP($I125,【選択肢】!$Q$3:$U$90,4,)," ")&IF(J125="","",","&IFERROR(VLOOKUP($J125,【選択肢】!$Q$3:$U$90,4,)," ")&IF(K125="","",","&IFERROR(VLOOKUP($K125,【選択肢】!$Q$3:$U$90,4,)," ")&IF(L125="","",","&IFERROR(VLOOKUP($L125,【選択肢】!$Q$3:$U$90,4,)," ")))))))) ->  | O125: =IF(G125="","",(IFERROR(VLOOKUP($G125,【選択肢】!$Q$3:$U$90,5,)," ")&IF(H125="","",","&IFERROR(VLOOKUP($H125,【選択肢】!$Q$3:$U$90,5,)," ")&IF(I125="","",","&IFERROR(VLOOKUP($I125,【選択肢】!$Q$3:$U$90,5,)," ")&IF(J125="","",","&IFERROR(VLOOKUP($J125,【選択肢】!$Q$3:$U$90,5,)," ")&IF(K125="","",","&IFERROR(VLOOKUP($K125,【選択肢】!$Q$3:$U$90,5,)," ")&IF(L125="","",","&IFERROR(VLOOKUP($L125,【選択肢】!$Q$3:$U$90,5,)," ")))))))) -> 
F126: 0 | M126: =IF(G126="","",(IFERROR(VLOOKUP($G126,【選択肢】!$Q$3:$U$90,2,)," ")&IF(H126="","",","&IFERROR(VLOOKUP($H126,【選択肢】!$Q$3:$U$90,2,)," ")&IF(I126="","",","&IFERROR(VLOOKUP($I126,【選択肢】!$Q$3:$U$90,2,)," ")&IF(J126="","",","&IFERROR(VLOOKUP($J126,【選択肢】!$Q$3:$U$90,2,)," ")&IF(K126="","",","&IFERROR(VLOOKUP($K126,【選択肢】!$Q$3:$U$90,2,)," ")&IF(L126="","",","&IFERROR(VLOOKUP($L126,【選択肢】!$Q$3:$U$90,2,)," ")))))))) ->  | N126: =IF(G126="","",(IFERROR(VLOOKUP($G126,【選択肢】!$Q$3:$U$90,4,)," ")&IF(H126="","",","&IFERROR(VLOOKUP($H126,【選択肢】!$Q$3:$U$90,4,)," ")&IF(I126="","",","&IFERROR(VLOOKUP($I126,【選択肢】!$Q$3:$U$90,4,)," ")&IF(J126="","",","&IFERROR(VLOOKUP($J126,【選択肢】!$Q$3:$U$90,4,)," ")&IF(K126="","",","&IFERROR(VLOOKUP($K126,【選択肢】!$Q$3:$U$90,4,)," ")&IF(L126="","",","&IFERROR(VLOOKUP($L126,【選択肢】!$Q$3:$U$90,4,)," ")))))))) ->  | O126: =IF(G126="","",(IFERROR(VLOOKUP($G126,【選択肢】!$Q$3:$U$90,5,)," ")&IF(H126="","",","&IFERROR(VLOOKUP($H126,【選択肢】!$Q$3:$U$90,5,)," ")&IF(I126="","",","&IFERROR(VLOOKUP($I126,【選択肢】!$Q$3:$U$90,5,)," ")&IF(J126="","",","&IFERROR(VLOOKUP($J126,【選択肢】!$Q$3:$U$90,5,)," ")&IF(K126="","",","&IFERROR(VLOOKUP($K126,【選択肢】!$Q$3:$U$90,5,)," ")&IF(L126="","",","&IFERROR(VLOOKUP($L126,【選択肢】!$Q$3:$U$90,5,)," ")))))))) -> 
F127: 0 | M127: =IF(G127="","",(IFERROR(VLOOKUP($G127,【選択肢】!$Q$3:$U$90,2,)," ")&IF(H127="","",","&IFERROR(VLOOKUP($H127,【選択肢】!$Q$3:$U$90,2,)," ")&IF(I127="","",","&IFERROR(VLOOKUP($I127,【選択肢】!$Q$3:$U$90,2,)," ")&IF(J127="","",","&IFERROR(VLOOKUP($J127,【選択肢】!$Q$3:$U$90,2,)," ")&IF(K127="","",","&IFERROR(VLOOKUP($K127,【選択肢】!$Q$3:$U$90,2,)," ")&IF(L127="","",","&IFERROR(VLOOKUP($L127,【選択肢】!$Q$3:$U$90,2,)," ")))))))) ->  | N127: =IF(G127="","",(IFERROR(VLOOKUP($G127,【選択肢】!$Q$3:$U$90,4,)," ")&IF(H127="","",","&IFERROR(VLOOKUP($H127,【選択肢】!$Q$3:$U$90,4,)," ")&IF(I127="","",","&IFERROR(VLOOKUP($I127,【選択肢】!$Q$3:$U$90,4,)," ")&IF(J127="","",","&IFERROR(VLOOKUP($J127,【選択肢】!$Q$3:$U$90,4,)," ")&IF(K127="","",","&IFERROR(VLOOKUP($K127,【選択肢】!$Q$3:$U$90,4,)," ")&IF(L127="","",","&IFERROR(VLOOKUP($L127,【選択肢】!$Q$3:$U$90,4,)," ")))))))) ->  | O127: =IF(G127="","",(IFERROR(VLOOKUP($G127,【選択肢】!$Q$3:$U$90,5,)," ")&IF(H127="","",","&IFERROR(VLOOKUP($H127,【選択肢】!$Q$3:$U$90,5,)," ")&IF(I127="","",","&IFERROR(VLOOKUP($I127,【選択肢】!$Q$3:$U$90,5,)," ")&IF(J127="","",","&IFERROR(VLOOKUP($J127,【選択肢】!$Q$3:$U$90,5,)," ")&IF(K127="","",","&IFERROR(VLOOKUP($K127,【選択肢】!$Q$3:$U$90,5,)," ")&IF(L127="","",","&IFERROR(VLOOKUP($L127,【選択肢】!$Q$3:$U$90,5,)," ")))))))) -> 
F128: 0 | M128: =IF(G128="","",(IFERROR(VLOOKUP($G128,【選択肢】!$Q$3:$U$90,2,)," ")&IF(H128="","",","&IFERROR(VLOOKUP($H128,【選択肢】!$Q$3:$U$90,2,)," ")&IF(I128="","",","&IFERROR(VLOOKUP($I128,【選択肢】!$Q$3:$U$90,2,)," ")&IF(J128="","",","&IFERROR(VLOOKUP($J128,【選択肢】!$Q$3:$U$90,2,)," ")&IF(K128="","",","&IFERROR(VLOOKUP($K128,【選択肢】!$Q$3:$U$90,2,)," ")&IF(L128="","",","&IFERROR(VLOOKUP($L128,【選択肢】!$Q$3:$U$90,2,)," ")))))))) ->  | N128: =IF(G128="","",(IFERROR(VLOOKUP($G128,【選択肢】!$Q$3:$U$90,4,)," ")&IF(H128="","",","&IFERROR(VLOOKUP($H128,【選択肢】!$Q$3:$U$90,4,)," ")&IF(I128="","",","&IFERROR(VLOOKUP($I128,【選択肢】!$Q$3:$U$90,4,)," ")&IF(J128="","",","&IFERROR(VLOOKUP($J128,【選択肢】!$Q$3:$U$90,4,)," ")&IF(K128="","",","&IFERROR(VLOOKUP($K128,【選択肢】!$Q$3:$U$90,4,)," ")&IF(L128="","",","&IFERROR(VLOOKUP($L128,【選択肢】!$Q$3:$U$90,4,)," ")))))))) ->  | O128: =IF(G128="","",(IFERROR(VLOOKUP($G128,【選択肢】!$Q$3:$U$90,5,)," ")&IF(H128="","",","&IFERROR(VLOOKUP($H128,【選択肢】!$Q$3:$U$90,5,)," ")&IF(I128="","",","&IFERROR(VLOOKUP($I128,【選択肢】!$Q$3:$U$90,5,)," ")&IF(J128="","",","&IFERROR(VLOOKUP($J128,【選択肢】!$Q$3:$U$90,5,)," ")&IF(K128="","",","&IFERROR(VLOOKUP($K128,【選択肢】!$Q$3:$U$90,5,)," ")&IF(L128="","",","&IFERROR(VLOOKUP($L128,【選択肢】!$Q$3:$U$90,5,)," ")))))))) -> 
F129: 0 | M129: =IF(G129="","",(IFERROR(VLOOKUP($G129,【選択肢】!$Q$3:$U$90,2,)," ")&IF(H129="","",","&IFERROR(VLOOKUP($H129,【選択肢】!$Q$3:$U$90,2,)," ")&IF(I129="","",","&IFERROR(VLOOKUP($I129,【選択肢】!$Q$3:$U$90,2,)," ")&IF(J129="","",","&IFERROR(VLOOKUP($J129,【選択肢】!$Q$3:$U$90,2,)," ")&IF(K129="","",","&IFERROR(VLOOKUP($K129,【選択肢】!$Q$3:$U$90,2,)," ")&IF(L129="","",","&IFERROR(VLOOKUP($L129,【選択肢】!$Q$3:$U$90,2,)," ")))))))) ->  | N129: =IF(G129="","",(IFERROR(VLOOKUP($G129,【選択肢】!$Q$3:$U$90,4,)," ")&IF(H129="","",","&IFERROR(VLOOKUP($H129,【選択肢】!$Q$3:$U$90,4,)," ")&IF(I129="","",","&IFERROR(VLOOKUP($I129,【選択肢】!$Q$3:$U$90,4,)," ")&IF(J129="","",","&IFERROR(VLOOKUP($J129,【選択肢】!$Q$3:$U$90,4,)," ")&IF(K129="","",","&IFERROR(VLOOKUP($K129,【選択肢】!$Q$3:$U$90,4,)," ")&IF(L129="","",","&IFERROR(VLOOKUP($L129,【選択肢】!$Q$3:$U$90,4,)," ")))))))) ->  | O129: =IF(G129="","",(IFERROR(VLOOKUP($G129,【選択肢】!$Q$3:$U$90,5,)," ")&IF(H129="","",","&IFERROR(VLOOKUP($H129,【選択肢】!$Q$3:$U$90,5,)," ")&IF(I129="","",","&IFERROR(VLOOKUP($I129,【選択肢】!$Q$3:$U$90,5,)," ")&IF(J129="","",","&IFERROR(VLOOKUP($J129,【選択肢】!$Q$3:$U$90,5,)," ")&IF(K129="","",","&IFERROR(VLOOKUP($K129,【選択肢】!$Q$3:$U$90,5,)," ")&IF(L129="","",","&IFERROR(VLOOKUP($L129,【選択肢】!$Q$3:$U$90,5,)," ")))))))) -> 
F130: 0 | M130: =IF(G130="","",(IFERROR(VLOOKUP($G130,【選択肢】!$Q$3:$U$90,2,)," ")&IF(H130="","",","&IFERROR(VLOOKUP($H130,【選択肢】!$Q$3:$U$90,2,)," ")&IF(I130="","",","&IFERROR(VLOOKUP($I130,【選択肢】!$Q$3:$U$90,2,)," ")&IF(J130="","",","&IFERROR(VLOOKUP($J130,【選択肢】!$Q$3:$U$90,2,)," ")&IF(K130="","",","&IFERROR(VLOOKUP($K130,【選択肢】!$Q$3:$U$90,2,)," ")&IF(L130="","",","&IFERROR(VLOOKUP($L130,【選択肢】!$Q$3:$U$90,2,)," ")))))))) ->  | N130: =IF(G130="","",(IFERROR(VLOOKUP($G130,【選択肢】!$Q$3:$U$90,4,)," ")&IF(H130="","",","&IFERROR(VLOOKUP($H130,【選択肢】!$Q$3:$U$90,4,)," ")&IF(I130="","",","&IFERROR(VLOOKUP($I130,【選択肢】!$Q$3:$U$90,4,)," ")&IF(J130="","",","&IFERROR(VLOOKUP($J130,【選択肢】!$Q$3:$U$90,4,)," ")&IF(K130="","",","&IFERROR(VLOOKUP($K130,【選択肢】!$Q$3:$U$90,4,)," ")&IF(L130="","",","&IFERROR(VLOOKUP($L130,【選択肢】!$Q$3:$U$90,4,)," ")))))))) ->  | O130: =IF(G130="","",(IFERROR(VLOOKUP($G130,【選択肢】!$Q$3:$U$90,5,)," ")&IF(H130="","",","&IFERROR(VLOOKUP($H130,【選択肢】!$Q$3:$U$90,5,)," ")&IF(I130="","",","&IFERROR(VLOOKUP($I130,【選択肢】!$Q$3:$U$90,5,)," ")&IF(J130="","",","&IFERROR(VLOOKUP($J130,【選択肢】!$Q$3:$U$90,5,)," ")&IF(K130="","",","&IFERROR(VLOOKUP($K130,【選択肢】!$Q$3:$U$90,5,)," ")&IF(L130="","",","&IFERROR(VLOOKUP($L130,【選択肢】!$Q$3:$U$90,5,)," ")))))))) -> 
F131: 0 | M131: =IF(G131="","",(IFERROR(VLOOKUP($G131,【選択肢】!$Q$3:$U$90,2,)," ")&IF(H131="","",","&IFERROR(VLOOKUP($H131,【選択肢】!$Q$3:$U$90,2,)," ")&IF(I131="","",","&IFERROR(VLOOKUP($I131,【選択肢】!$Q$3:$U$90,2,)," ")&IF(J131="","",","&IFERROR(VLOOKUP($J131,【選択肢】!$Q$3:$U$90,2,)," ")&IF(K131="","",","&IFERROR(VLOOKUP($K131,【選択肢】!$Q$3:$U$90,2,)," ")&IF(L131="","",","&IFERROR(VLOOKUP($L131,【選択肢】!$Q$3:$U$90,2,)," ")))))))) ->  | N131: =IF(G131="","",(IFERROR(VLOOKUP($G131,【選択肢】!$Q$3:$U$90,4,)," ")&IF(H131="","",","&IFERROR(VLOOKUP($H131,【選択肢】!$Q$3:$U$90,4,)," ")&IF(I131="","",","&IFERROR(VLOOKUP($I131,【選択肢】!$Q$3:$U$90,4,)," ")&IF(J131="","",","&IFERROR(VLOOKUP($J131,【選択肢】!$Q$3:$U$90,4,)," ")&IF(K131="","",","&IFERROR(VLOOKUP($K131,【選択肢】!$Q$3:$U$90,4,)," ")&IF(L131="","",","&IFERROR(VLOOKUP($L131,【選択肢】!$Q$3:$U$90,4,)," ")))))))) ->  | O131: =IF(G131="","",(IFERROR(VLOOKUP($G131,【選択肢】!$Q$3:$U$90,5,)," ")&IF(H131="","",","&IFERROR(VLOOKUP($H131,【選択肢】!$Q$3:$U$90,5,)," ")&IF(I131="","",","&IFERROR(VLOOKUP($I131,【選択肢】!$Q$3:$U$90,5,)," ")&IF(J131="","",","&IFERROR(VLOOKUP($J131,【選択肢】!$Q$3:$U$90,5,)," ")&IF(K131="","",","&IFERROR(VLOOKUP($K131,【選択肢】!$Q$3:$U$90,5,)," ")&IF(L131="","",","&IFERROR(VLOOKUP($L131,【選択肢】!$Q$3:$U$90,5,)," ")))))))) -> 
F132: 0 | M132: =IF(G132="","",(IFERROR(VLOOKUP($G132,【選択肢】!$Q$3:$U$90,2,)," ")&IF(H132="","",","&IFERROR(VLOOKUP($H132,【選択肢】!$Q$3:$U$90,2,)," ")&IF(I132="","",","&IFERROR(VLOOKUP($I132,【選択肢】!$Q$3:$U$90,2,)," ")&IF(J132="","",","&IFERROR(VLOOKUP($J132,【選択肢】!$Q$3:$U$90,2,)," ")&IF(K132="","",","&IFERROR(VLOOKUP($K132,【選択肢】!$Q$3:$U$90,2,)," ")&IF(L132="","",","&IFERROR(VLOOKUP($L132,【選択肢】!$Q$3:$U$90,2,)," ")))))))) ->  | N132: =IF(G132="","",(IFERROR(VLOOKUP($G132,【選択肢】!$Q$3:$U$90,4,)," ")&IF(H132="","",","&IFERROR(VLOOKUP($H132,【選択肢】!$Q$3:$U$90,4,)," ")&IF(I132="","",","&IFERROR(VLOOKUP($I132,【選択肢】!$Q$3:$U$90,4,)," ")&IF(J132="","",","&IFERROR(VLOOKUP($J132,【選択肢】!$Q$3:$U$90,4,)," ")&IF(K132="","",","&IFERROR(VLOOKUP($K132,【選択肢】!$Q$3:$U$90,4,)," ")&IF(L132="","",","&IFERROR(VLOOKUP($L132,【選択肢】!$Q$3:$U$90,4,)," ")))))))) ->  | O132: =IF(G132="","",(IFERROR(VLOOKUP($G132,【選択肢】!$Q$3:$U$90,5,)," ")&IF(H132="","",","&IFERROR(VLOOKUP($H132,【選択肢】!$Q$3:$U$90,5,)," ")&IF(I132="","",","&IFERROR(VLOOKUP($I132,【選択肢】!$Q$3:$U$90,5,)," ")&IF(J132="","",","&IFERROR(VLOOKUP($J132,【選択肢】!$Q$3:$U$90,5,)," ")&IF(K132="","",","&IFERROR(VLOOKUP($K132,【選択肢】!$Q$3:$U$90,5,)," ")&IF(L132="","",","&IFERROR(VLOOKUP($L132,【選択肢】!$Q$3:$U$90,5,)," ")))))))) -> 
F133: 0 | M133: =IF(G133="","",(IFERROR(VLOOKUP($G133,【選択肢】!$Q$3:$U$90,2,)," ")&IF(H133="","",","&IFERROR(VLOOKUP($H133,【選択肢】!$Q$3:$U$90,2,)," ")&IF(I133="","",","&IFERROR(VLOOKUP($I133,【選択肢】!$Q$3:$U$90,2,)," ")&IF(J133="","",","&IFERROR(VLOOKUP($J133,【選択肢】!$Q$3:$U$90,2,)," ")&IF(K133="","",","&IFERROR(VLOOKUP($K133,【選択肢】!$Q$3:$U$90,2,)," ")&IF(L133="","",","&IFERROR(VLOOKUP($L133,【選択肢】!$Q$3:$U$90,2,)," ")))))))) ->  | N133: =IF(G133="","",(IFERROR(VLOOKUP($G133,【選択肢】!$Q$3:$U$90,4,)," ")&IF(H133="","",","&IFERROR(VLOOKUP($H133,【選択肢】!$Q$3:$U$90,4,)," ")&IF(I133="","",","&IFERROR(VLOOKUP($I133,【選択肢】!$Q$3:$U$90,4,)," ")&IF(J133="","",","&IFERROR(VLOOKUP($J133,【選択肢】!$Q$3:$U$90,4,)," ")&IF(K133="","",","&IFERROR(VLOOKUP($K133,【選択肢】!$Q$3:$U$90,4,)," ")&IF(L133="","",","&IFERROR(VLOOKUP($L133,【選択肢】!$Q$3:$U$90,4,)," ")))))))) ->  | O133: =IF(G133="","",(IFERROR(VLOOKUP($G133,【選択肢】!$Q$3:$U$90,5,)," ")&IF(H133="","",","&IFERROR(VLOOKUP($H133,【選択肢】!$Q$3:$U$90,5,)," ")&IF(I133="","",","&IFERROR(VLOOKUP($I133,【選択肢】!$Q$3:$U$90,5,)," ")&IF(J133="","",","&IFERROR(VLOOKUP($J133,【選択肢】!$Q$3:$U$90,5,)," ")&IF(K133="","",","&IFERROR(VLOOKUP($K133,【選択肢】!$Q$3:$U$90,5,)," ")&IF(L133="","",","&IFERROR(VLOOKUP($L133,【選択肢】!$Q$3:$U$90,5,)," ")))))))) -> 
F134: 0 | M134: =IF(G134="","",(IFERROR(VLOOKUP($G134,【選択肢】!$Q$3:$U$90,2,)," ")&IF(H134="","",","&IFERROR(VLOOKUP($H134,【選択肢】!$Q$3:$U$90,2,)," ")&IF(I134="","",","&IFERROR(VLOOKUP($I134,【選択肢】!$Q$3:$U$90,2,)," ")&IF(J134="","",","&IFERROR(VLOOKUP($J134,【選択肢】!$Q$3:$U$90,2,)," ")&IF(K134="","",","&IFERROR(VLOOKUP($K134,【選択肢】!$Q$3:$U$90,2,)," ")&IF(L134="","",","&IFERROR(VLOOKUP($L134,【選択肢】!$Q$3:$U$90,2,)," ")))))))) ->  | N134: =IF(G134="","",(IFERROR(VLOOKUP($G134,【選択肢】!$Q$3:$U$90,4,)," ")&IF(H134="","",","&IFERROR(VLOOKUP($H134,【選択肢】!$Q$3:$U$90,4,)," ")&IF(I134="","",","&IFERROR(VLOOKUP($I134,【選択肢】!$Q$3:$U$90,4,)," ")&IF(J134="","",","&IFERROR(VLOOKUP($J134,【選択肢】!$Q$3:$U$90,4,)," ")&IF(K134="","",","&IFERROR(VLOOKUP($K134,【選択肢】!$Q$3:$U$90,4,)," ")&IF(L134="","",","&IFERROR(VLOOKUP($L134,【選択肢】!$Q$3:$U$90,4,)," ")))))))) ->  | O134: =IF(G134="","",(IFERROR(VLOOKUP($G134,【選択肢】!$Q$3:$U$90,5,)," ")&IF(H134="","",","&IFERROR(VLOOKUP($H134,【選択肢】!$Q$3:$U$90,5,)," ")&IF(I134="","",","&IFERROR(VLOOKUP($I134,【選択肢】!$Q$3:$U$90,5,)," ")&IF(J134="","",","&IFERROR(VLOOKUP($J134,【選択肢】!$Q$3:$U$90,5,)," ")&IF(K134="","",","&IFERROR(VLOOKUP($K134,【選択肢】!$Q$3:$U$90,5,)," ")&IF(L134="","",","&IFERROR(VLOOKUP($L134,【選択肢】!$Q$3:$U$90,5,)," ")))))))) -> 
F135: 0 | M135: =IF(G135="","",(IFERROR(VLOOKUP($G135,【選択肢】!$Q$3:$U$90,2,)," ")&IF(H135="","",","&IFERROR(VLOOKUP($H135,【選択肢】!$Q$3:$U$90,2,)," ")&IF(I135="","",","&IFERROR(VLOOKUP($I135,【選択肢】!$Q$3:$U$90,2,)," ")&IF(J135="","",","&IFERROR(VLOOKUP($J135,【選択肢】!$Q$3:$U$90,2,)," ")&IF(K135="","",","&IFERROR(VLOOKUP($K135,【選択肢】!$Q$3:$U$90,2,)," ")&IF(L135="","",","&IFERROR(VLOOKUP($L135,【選択肢】!$Q$3:$U$90,2,)," ")))))))) ->  | N135: =IF(G135="","",(IFERROR(VLOOKUP($G135,【選択肢】!$Q$3:$U$90,4,)," ")&IF(H135="","",","&IFERROR(VLOOKUP($H135,【選択肢】!$Q$3:$U$90,4,)," ")&IF(I135="","",","&IFERROR(VLOOKUP($I135,【選択肢】!$Q$3:$U$90,4,)," ")&IF(J135="","",","&IFERROR(VLOOKUP($J135,【選択肢】!$Q$3:$U$90,4,)," ")&IF(K135="","",","&IFERROR(VLOOKUP($K135,【選択肢】!$Q$3:$U$90,4,)," ")&IF(L135="","",","&IFERROR(VLOOKUP($L135,【選択肢】!$Q$3:$U$90,4,)," ")))))))) ->  | O135: =IF(G135="","",(IFERROR(VLOOKUP($G135,【選択肢】!$Q$3:$U$90,5,)," ")&IF(H135="","",","&IFERROR(VLOOKUP($H135,【選択肢】!$Q$3:$U$90,5,)," ")&IF(I135="","",","&IFERROR(VLOOKUP($I135,【選択肢】!$Q$3:$U$90,5,)," ")&IF(J135="","",","&IFERROR(VLOOKUP($J135,【選択肢】!$Q$3:$U$90,5,)," ")&IF(K135="","",","&IFERROR(VLOOKUP($K135,【選択肢】!$Q$3:$U$90,5,)," ")&IF(L135="","",","&IFERROR(VLOOKUP($L135,【選択肢】!$Q$3:$U$90,5,)," ")))))))) -> 
F136: 0 | M136: =IF(G136="","",(IFERROR(VLOOKUP($G136,【選択肢】!$Q$3:$U$90,2,)," ")&IF(H136="","",","&IFERROR(VLOOKUP($H136,【選択肢】!$Q$3:$U$90,2,)," ")&IF(I136="","",","&IFERROR(VLOOKUP($I136,【選択肢】!$Q$3:$U$90,2,)," ")&IF(J136="","",","&IFERROR(VLOOKUP($J136,【選択肢】!$Q$3:$U$90,2,)," ")&IF(K136="","",","&IFERROR(VLOOKUP($K136,【選択肢】!$Q$3:$U$90,2,)," ")&IF(L136="","",","&IFERROR(VLOOKUP($L136,【選択肢】!$Q$3:$U$90,2,)," ")))))))) ->  | N136: =IF(G136="","",(IFERROR(VLOOKUP($G136,【選択肢】!$Q$3:$U$90,4,)," ")&IF(H136="","",","&IFERROR(VLOOKUP($H136,【選択肢】!$Q$3:$U$90,4,)," ")&IF(I136="","",","&IFERROR(VLOOKUP($I136,【選択肢】!$Q$3:$U$90,4,)," ")&IF(J136="","",","&IFERROR(VLOOKUP($J136,【選択肢】!$Q$3:$U$90,4,)," ")&IF(K136="","",","&IFERROR(VLOOKUP($K136,【選択肢】!$Q$3:$U$90,4,)," ")&IF(L136="","",","&IFERROR(VLOOKUP($L136,【選択肢】!$Q$3:$U$90,4,)," ")))))))) ->  | O136: =IF(G136="","",(IFERROR(VLOOKUP($G136,【選択肢】!$Q$3:$U$90,5,)," ")&IF(H136="","",","&IFERROR(VLOOKUP($H136,【選択肢】!$Q$3:$U$90,5,)," ")&IF(I136="","",","&IFERROR(VLOOKUP($I136,【選択肢】!$Q$3:$U$90,5,)," ")&IF(J136="","",","&IFERROR(VLOOKUP($J136,【選択肢】!$Q$3:$U$90,5,)," ")&IF(K136="","",","&IFERROR(VLOOKUP($K136,【選択肢】!$Q$3:$U$90,5,)," ")&IF(L136="","",","&IFERROR(VLOOKUP($L136,【選択肢】!$Q$3:$U$90,5,)," ")))))))) -> 
F137: 0 | M137: =IF(G137="","",(IFERROR(VLOOKUP($G137,【選択肢】!$Q$3:$U$90,2,)," ")&IF(H137="","",","&IFERROR(VLOOKUP($H137,【選択肢】!$Q$3:$U$90,2,)," ")&IF(I137="","",","&IFERROR(VLOOKUP($I137,【選択肢】!$Q$3:$U$90,2,)," ")&IF(J137="","",","&IFERROR(VLOOKUP($J137,【選択肢】!$Q$3:$U$90,2,)," ")&IF(K137="","",","&IFERROR(VLOOKUP($K137,【選択肢】!$Q$3:$U$90,2,)," ")&IF(L137="","",","&IFERROR(VLOOKUP($L137,【選択肢】!$Q$3:$U$90,2,)," ")))))))) ->  | N137: =IF(G137="","",(IFERROR(VLOOKUP($G137,【選択肢】!$Q$3:$U$90,4,)," ")&IF(H137="","",","&IFERROR(VLOOKUP($H137,【選択肢】!$Q$3:$U$90,4,)," ")&IF(I137="","",","&IFERROR(VLOOKUP($I137,【選択肢】!$Q$3:$U$90,4,)," ")&IF(J137="","",","&IFERROR(VLOOKUP($J137,【選択肢】!$Q$3:$U$90,4,)," ")&IF(K137="","",","&IFERROR(VLOOKUP($K137,【選択肢】!$Q$3:$U$90,4,)," ")&IF(L137="","",","&IFERROR(VLOOKUP($L137,【選択肢】!$Q$3:$U$90,4,)," ")))))))) ->  | O137: =IF(G137="","",(IFERROR(VLOOKUP($G137,【選択肢】!$Q$3:$U$90,5,)," ")&IF(H137="","",","&IFERROR(VLOOKUP($H137,【選択肢】!$Q$3:$U$90,5,)," ")&IF(I137="","",","&IFERROR(VLOOKUP($I137,【選択肢】!$Q$3:$U$90,5,)," ")&IF(J137="","",","&IFERROR(VLOOKUP($J137,【選択肢】!$Q$3:$U$90,5,)," ")&IF(K137="","",","&IFERROR(VLOOKUP($K137,【選択肢】!$Q$3:$U$90,5,)," ")&IF(L137="","",","&IFERROR(VLOOKUP($L137,【選択肢】!$Q$3:$U$90,5,)," ")))))))) -> 
F138: =SUM(D138+E138) -> 0 | M138: =IF(G138="","",(IFERROR(VLOOKUP($G138,【選択肢】!$Q$3:$U$90,2,)," ")&IF(H138="","",","&IFERROR(VLOOKUP($H138,【選択肢】!$Q$3:$U$90,2,)," ")&IF(I138="","",","&IFERROR(VLOOKUP($I138,【選択肢】!$Q$3:$U$90,2,)," ")&IF(J138="","",","&IFERROR(VLOOKUP($J138,【選択肢】!$Q$3:$U$90,2,)," ")&IF(K138="","",","&IFERROR(VLOOKUP($K138,【選択肢】!$Q$3:$U$90,2,)," ")&IF(L138="","",","&IFERROR(VLOOKUP($L138,【選択肢】!$Q$3:$U$90,2,)," ")))))))) ->  | N138: =IF(G138="","",(IFERROR(VLOOKUP($G138,【選択肢】!$Q$3:$U$90,4,)," ")&IF(H138="","",","&IFERROR(VLOOKUP($H138,【選択肢】!$Q$3:$U$90,4,)," ")&IF(I138="","",","&IFERROR(VLOOKUP($I138,【選択肢】!$Q$3:$U$90,4,)," ")&IF(J138="","",","&IFERROR(VLOOKUP($J138,【選択肢】!$Q$3:$U$90,4,)," ")&IF(K138="","",","&IFERROR(VLOOKUP($K138,【選択肢】!$Q$3:$U$90,4,)," ")&IF(L138="","",","&IFERROR(VLOOKUP($L138,【選択肢】!$Q$3:$U$90,4,)," ")))))))) ->  | O138: =IF(G138="","",(IFERROR(VLOOKUP($G138,【選択肢】!$Q$3:$U$90,5,)," ")&IF(H138="","",","&IFERROR(VLOOKUP($H138,【選択肢】!$Q$3:$U$90,5,)," ")&IF(I138="","",","&IFERROR(VLOOKUP($I138,【選択肢】!$Q$3:$U$90,5,)," ")&IF(J138="","",","&IFERROR(VLOOKUP($J138,【選択肢】!$Q$3:$U$90,5,)," ")&IF(K138="","",","&IFERROR(VLOOKUP($K138,【選択肢】!$Q$3:$U$90,5,)," ")&IF(L138="","",","&IFERROR(VLOOKUP($L138,【選択肢】!$Q$3:$U$90,5,)," ")))))))) -> 
F139: 0 | M139: =IF(G139="","",(IFERROR(VLOOKUP($G139,【選択肢】!$Q$3:$U$90,2,)," ")&IF(H139="","",","&IFERROR(VLOOKUP($H139,【選択肢】!$Q$3:$U$90,2,)," ")&IF(I139="","",","&IFERROR(VLOOKUP($I139,【選択肢】!$Q$3:$U$90,2,)," ")&IF(J139="","",","&IFERROR(VLOOKUP($J139,【選択肢】!$Q$3:$U$90,2,)," ")&IF(K139="","",","&IFERROR(VLOOKUP($K139,【選択肢】!$Q$3:$U$90,2,)," ")&IF(L139="","",","&IFERROR(VLOOKUP($L139,【選択肢】!$Q$3:$U$90,2,)," ")))))))) ->  | N139: =IF(G139="","",(IFERROR(VLOOKUP($G139,【選択肢】!$Q$3:$U$90,4,)," ")&IF(H139="","",","&IFERROR(VLOOKUP($H139,【選択肢】!$Q$3:$U$90,4,)," ")&IF(I139="","",","&IFERROR(VLOOKUP($I139,【選択肢】!$Q$3:$U$90,4,)," ")&IF(J139="","",","&IFERROR(VLOOKUP($J139,【選択肢】!$Q$3:$U$90,4,)," ")&IF(K139="","",","&IFERROR(VLOOKUP($K139,【選択肢】!$Q$3:$U$90,4,)," ")&IF(L139="","",","&IFERROR(VLOOKUP($L139,【選択肢】!$Q$3:$U$90,4,)," ")))))))) ->  | O139: =IF(G139="","",(IFERROR(VLOOKUP($G139,【選択肢】!$Q$3:$U$90,5,)," ")&IF(H139="","",","&IFERROR(VLOOKUP($H139,【選択肢】!$Q$3:$U$90,5,)," ")&IF(I139="","",","&IFERROR(VLOOKUP($I139,【選択肢】!$Q$3:$U$90,5,)," ")&IF(J139="","",","&IFERROR(VLOOKUP($J139,【選択肢】!$Q$3:$U$90,5,)," ")&IF(K139="","",","&IFERROR(VLOOKUP($K139,【選択肢】!$Q$3:$U$90,5,)," ")&IF(L139="","",","&IFERROR(VLOOKUP($L139,【選択肢】!$Q$3:$U$90,5,)," ")))))))) -> 
F140: 0 | M140: =IF(G140="","",(IFERROR(VLOOKUP($G140,【選択肢】!$Q$3:$U$90,2,)," ")&IF(H140="","",","&IFERROR(VLOOKUP($H140,【選択肢】!$Q$3:$U$90,2,)," ")&IF(I140="","",","&IFERROR(VLOOKUP($I140,【選択肢】!$Q$3:$U$90,2,)," ")&IF(J140="","",","&IFERROR(VLOOKUP($J140,【選択肢】!$Q$3:$U$90,2,)," ")&IF(K140="","",","&IFERROR(VLOOKUP($K140,【選択肢】!$Q$3:$U$90,2,)," ")&IF(L140="","",","&IFERROR(VLOOKUP($L140,【選択肢】!$Q$3:$U$90,2,)," ")))))))) ->  | N140: =IF(G140="","",(IFERROR(VLOOKUP($G140,【選択肢】!$Q$3:$U$90,4,)," ")&IF(H140="","",","&IFERROR(VLOOKUP($H140,【選択肢】!$Q$3:$U$90,4,)," ")&IF(I140="","",","&IFERROR(VLOOKUP($I140,【選択肢】!$Q$3:$U$90,4,)," ")&IF(J140="","",","&IFERROR(VLOOKUP($J140,【選択肢】!$Q$3:$U$90,4,)," ")&IF(K140="","",","&IFERROR(VLOOKUP($K140,【選択肢】!$Q$3:$U$90,4,)," ")&IF(L140="","",","&IFERROR(VLOOKUP($L140,【選択肢】!$Q$3:$U$90,4,)," ")))))))) ->  | O140: =IF(G140="","",(IFERROR(VLOOKUP($G140,【選択肢】!$Q$3:$U$90,5,)," ")&IF(H140="","",","&IFERROR(VLOOKUP($H140,【選択肢】!$Q$3:$U$90,5,)," ")&IF(I140="","",","&IFERROR(VLOOKUP($I140,【選択肢】!$Q$3:$U$90,5,)," ")&IF(J140="","",","&IFERROR(VLOOKUP($J140,【選択肢】!$Q$3:$U$90,5,)," ")&IF(K140="","",","&IFERROR(VLOOKUP($K140,【選択肢】!$Q$3:$U$90,5,)," ")&IF(L140="","",","&IFERROR(VLOOKUP($L140,【選択肢】!$Q$3:$U$90,5,)," ")))))))) -> 
F141: 0 | M141: =IF(G141="","",(IFERROR(VLOOKUP($G141,【選択肢】!$Q$3:$U$90,2,)," ")&IF(H141="","",","&IFERROR(VLOOKUP($H141,【選択肢】!$Q$3:$U$90,2,)," ")&IF(I141="","",","&IFERROR(VLOOKUP($I141,【選択肢】!$Q$3:$U$90,2,)," ")&IF(J141="","",","&IFERROR(VLOOKUP($J141,【選択肢】!$Q$3:$U$90,2,)," ")&IF(K141="","",","&IFERROR(VLOOKUP($K141,【選択肢】!$Q$3:$U$90,2,)," ")&IF(L141="","",","&IFERROR(VLOOKUP($L141,【選択肢】!$Q$3:$U$90,2,)," ")))))))) ->  | N141: =IF(G141="","",(IFERROR(VLOOKUP($G141,【選択肢】!$Q$3:$U$90,4,)," ")&IF(H141="","",","&IFERROR(VLOOKUP($H141,【選択肢】!$Q$3:$U$90,4,)," ")&IF(I141="","",","&IFERROR(VLOOKUP($I141,【選択肢】!$Q$3:$U$90,4,)," ")&IF(J141="","",","&IFERROR(VLOOKUP($J141,【選択肢】!$Q$3:$U$90,4,)," ")&IF(K141="","",","&IFERROR(VLOOKUP($K141,【選択肢】!$Q$3:$U$90,4,)," ")&IF(L141="","",","&IFERROR(VLOOKUP($L141,【選択肢】!$Q$3:$U$90,4,)," ")))))))) ->  | O141: =IF(G141="","",(IFERROR(VLOOKUP($G141,【選択肢】!$Q$3:$U$90,5,)," ")&IF(H141="","",","&IFERROR(VLOOKUP($H141,【選択肢】!$Q$3:$U$90,5,)," ")&IF(I141="","",","&IFERROR(VLOOKUP($I141,【選択肢】!$Q$3:$U$90,5,)," ")&IF(J141="","",","&IFERROR(VLOOKUP($J141,【選択肢】!$Q$3:$U$90,5,)," ")&IF(K141="","",","&IFERROR(VLOOKUP($K141,【選択肢】!$Q$3:$U$90,5,)," ")&IF(L141="","",","&IFERROR(VLOOKUP($L141,【選択肢】!$Q$3:$U$90,5,)," ")))))))) -> 
F142: 0 | M142: =IF(G142="","",(IFERROR(VLOOKUP($G142,【選択肢】!$Q$3:$U$90,2,)," ")&IF(H142="","",","&IFERROR(VLOOKUP($H142,【選択肢】!$Q$3:$U$90,2,)," ")&IF(I142="","",","&IFERROR(VLOOKUP($I142,【選択肢】!$Q$3:$U$90,2,)," ")&IF(J142="","",","&IFERROR(VLOOKUP($J142,【選択肢】!$Q$3:$U$90,2,)," ")&IF(K142="","",","&IFERROR(VLOOKUP($K142,【選択肢】!$Q$3:$U$90,2,)," ")&IF(L142="","",","&IFERROR(VLOOKUP($L142,【選択肢】!$Q$3:$U$90,2,)," ")))))))) ->  | N142: =IF(G142="","",(IFERROR(VLOOKUP($G142,【選択肢】!$Q$3:$U$90,4,)," ")&IF(H142="","",","&IFERROR(VLOOKUP($H142,【選択肢】!$Q$3:$U$90,4,)," ")&IF(I142="","",","&IFERROR(VLOOKUP($I142,【選択肢】!$Q$3:$U$90,4,)," ")&IF(J142="","",","&IFERROR(VLOOKUP($J142,【選択肢】!$Q$3:$U$90,4,)," ")&IF(K142="","",","&IFERROR(VLOOKUP($K142,【選択肢】!$Q$3:$U$90,4,)," ")&IF(L142="","",","&IFERROR(VLOOKUP($L142,【選択肢】!$Q$3:$U$90,4,)," ")))))))) ->  | O142: =IF(G142="","",(IFERROR(VLOOKUP($G142,【選択肢】!$Q$3:$U$90,5,)," ")&IF(H142="","",","&IFERROR(VLOOKUP($H142,【選択肢】!$Q$3:$U$90,5,)," ")&IF(I142="","",","&IFERROR(VLOOKUP($I142,【選択肢】!$Q$3:$U$90,5,)," ")&IF(J142="","",","&IFERROR(VLOOKUP($J142,【選択肢】!$Q$3:$U$90,5,)," ")&IF(K142="","",","&IFERROR(VLOOKUP($K142,【選択肢】!$Q$3:$U$90,5,)," ")&IF(L142="","",","&IFERROR(VLOOKUP($L142,【選択肢】!$Q$3:$U$90,5,)," ")))))))) -> 
F143: 0 | M143: =IF(G143="","",(IFERROR(VLOOKUP($G143,【選択肢】!$Q$3:$U$90,2,)," ")&IF(H143="","",","&IFERROR(VLOOKUP($H143,【選択肢】!$Q$3:$U$90,2,)," ")&IF(I143="","",","&IFERROR(VLOOKUP($I143,【選択肢】!$Q$3:$U$90,2,)," ")&IF(J143="","",","&IFERROR(VLOOKUP($J143,【選択肢】!$Q$3:$U$90,2,)," ")&IF(K143="","",","&IFERROR(VLOOKUP($K143,【選択肢】!$Q$3:$U$90,2,)," ")&IF(L143="","",","&IFERROR(VLOOKUP($L143,【選択肢】!$Q$3:$U$90,2,)," ")))))))) ->  | N143: =IF(G143="","",(IFERROR(VLOOKUP($G143,【選択肢】!$Q$3:$U$90,4,)," ")&IF(H143="","",","&IFERROR(VLOOKUP($H143,【選択肢】!$Q$3:$U$90,4,)," ")&IF(I143="","",","&IFERROR(VLOOKUP($I143,【選択肢】!$Q$3:$U$90,4,)," ")&IF(J143="","",","&IFERROR(VLOOKUP($J143,【選択肢】!$Q$3:$U$90,4,)," ")&IF(K143="","",","&IFERROR(VLOOKUP($K143,【選択肢】!$Q$3:$U$90,4,)," ")&IF(L143="","",","&IFERROR(VLOOKUP($L143,【選択肢】!$Q$3:$U$90,4,)," ")))))))) ->  | O143: =IF(G143="","",(IFERROR(VLOOKUP($G143,【選択肢】!$Q$3:$U$90,5,)," ")&IF(H143="","",","&IFERROR(VLOOKUP($H143,【選択肢】!$Q$3:$U$90,5,)," ")&IF(I143="","",","&IFERROR(VLOOKUP($I143,【選択肢】!$Q$3:$U$90,5,)," ")&IF(J143="","",","&IFERROR(VLOOKUP($J143,【選択肢】!$Q$3:$U$90,5,)," ")&IF(K143="","",","&IFERROR(VLOOKUP($K143,【選択肢】!$Q$3:$U$90,5,)," ")&IF(L143="","",","&IFERROR(VLOOKUP($L143,【選択肢】!$Q$3:$U$90,5,)," ")))))))) -> 
F144: 0 | M144: =IF(G144="","",(IFERROR(VLOOKUP($G144,【選択肢】!$Q$3:$U$90,2,)," ")&IF(H144="","",","&IFERROR(VLOOKUP($H144,【選択肢】!$Q$3:$U$90,2,)," ")&IF(I144="","",","&IFERROR(VLOOKUP($I144,【選択肢】!$Q$3:$U$90,2,)," ")&IF(J144="","",","&IFERROR(VLOOKUP($J144,【選択肢】!$Q$3:$U$90,2,)," ")&IF(K144="","",","&IFERROR(VLOOKUP($K144,【選択肢】!$Q$3:$U$90,2,)," ")&IF(L144="","",","&IFERROR(VLOOKUP($L144,【選択肢】!$Q$3:$U$90,2,)," ")))))))) ->  | N144: =IF(G144="","",(IFERROR(VLOOKUP($G144,【選択肢】!$Q$3:$U$90,4,)," ")&IF(H144="","",","&IFERROR(VLOOKUP($H144,【選択肢】!$Q$3:$U$90,4,)," ")&IF(I144="","",","&IFERROR(VLOOKUP($I144,【選択肢】!$Q$3:$U$90,4,)," ")&IF(J144="","",","&IFERROR(VLOOKUP($J144,【選択肢】!$Q$3:$U$90,4,)," ")&IF(K144="","",","&IFERROR(VLOOKUP($K144,【選択肢】!$Q$3:$U$90,4,)," ")&IF(L144="","",","&IFERROR(VLOOKUP($L144,【選択肢】!$Q$3:$U$90,4,)," ")))))))) ->  | O144: =IF(G144="","",(IFERROR(VLOOKUP($G144,【選択肢】!$Q$3:$U$90,5,)," ")&IF(H144="","",","&IFERROR(VLOOKUP($H144,【選択肢】!$Q$3:$U$90,5,)," ")&IF(I144="","",","&IFERROR(VLOOKUP($I144,【選択肢】!$Q$3:$U$90,5,)," ")&IF(J144="","",","&IFERROR(VLOOKUP($J144,【選択肢】!$Q$3:$U$90,5,)," ")&IF(K144="","",","&IFERROR(VLOOKUP($K144,【選択肢】!$Q$3:$U$90,5,)," ")&IF(L144="","",","&IFERROR(VLOOKUP($L144,【選択肢】!$Q$3:$U$90,5,)," ")))))))) -> 
F145: 0 | M145: =IF(G145="","",(IFERROR(VLOOKUP($G145,【選択肢】!$Q$3:$U$90,2,)," ")&IF(H145="","",","&IFERROR(VLOOKUP($H145,【選択肢】!$Q$3:$U$90,2,)," ")&IF(I145="","",","&IFERROR(VLOOKUP($I145,【選択肢】!$Q$3:$U$90,2,)," ")&IF(J145="","",","&IFERROR(VLOOKUP($J145,【選択肢】!$Q$3:$U$90,2,)," ")&IF(K145="","",","&IFERROR(VLOOKUP($K145,【選択肢】!$Q$3:$U$90,2,)," ")&IF(L145="","",","&IFERROR(VLOOKUP($L145,【選択肢】!$Q$3:$U$90,2,)," ")))))))) ->  | N145: =IF(G145="","",(IFERROR(VLOOKUP($G145,【選択肢】!$Q$3:$U$90,4,)," ")&IF(H145="","",","&IFERROR(VLOOKUP($H145,【選択肢】!$Q$3:$U$90,4,)," ")&IF(I145="","",","&IFERROR(VLOOKUP($I145,【選択肢】!$Q$3:$U$90,4,)," ")&IF(J145="","",","&IFERROR(VLOOKUP($J145,【選択肢】!$Q$3:$U$90,4,)," ")&IF(K145="","",","&IFERROR(VLOOKUP($K145,【選択肢】!$Q$3:$U$90,4,)," ")&IF(L145="","",","&IFERROR(VLOOKUP($L145,【選択肢】!$Q$3:$U$90,4,)," ")))))))) ->  | O145: =IF(G145="","",(IFERROR(VLOOKUP($G145,【選択肢】!$Q$3:$U$90,5,)," ")&IF(H145="","",","&IFERROR(VLOOKUP($H145,【選択肢】!$Q$3:$U$90,5,)," ")&IF(I145="","",","&IFERROR(VLOOKUP($I145,【選択肢】!$Q$3:$U$90,5,)," ")&IF(J145="","",","&IFERROR(VLOOKUP($J145,【選択肢】!$Q$3:$U$90,5,)," ")&IF(K145="","",","&IFERROR(VLOOKUP($K145,【選択肢】!$Q$3:$U$90,5,)," ")&IF(L145="","",","&IFERROR(VLOOKUP($L145,【選択肢】!$Q$3:$U$90,5,)," ")))))))) -> 
F146: 0 | M146: =IF(G146="","",(IFERROR(VLOOKUP($G146,【選択肢】!$Q$3:$U$90,2,)," ")&IF(H146="","",","&IFERROR(VLOOKUP($H146,【選択肢】!$Q$3:$U$90,2,)," ")&IF(I146="","",","&IFERROR(VLOOKUP($I146,【選択肢】!$Q$3:$U$90,2,)," ")&IF(J146="","",","&IFERROR(VLOOKUP($J146,【選択肢】!$Q$3:$U$90,2,)," ")&IF(K146="","",","&IFERROR(VLOOKUP($K146,【選択肢】!$Q$3:$U$90,2,)," ")&IF(L146="","",","&IFERROR(VLOOKUP($L146,【選択肢】!$Q$3:$U$90,2,)," ")))))))) ->  | N146: =IF(G146="","",(IFERROR(VLOOKUP($G146,【選択肢】!$Q$3:$U$90,4,)," ")&IF(H146="","",","&IFERROR(VLOOKUP($H146,【選択肢】!$Q$3:$U$90,4,)," ")&IF(I146="","",","&IFERROR(VLOOKUP($I146,【選択肢】!$Q$3:$U$90,4,)," ")&IF(J146="","",","&IFERROR(VLOOKUP($J146,【選択肢】!$Q$3:$U$90,4,)," ")&IF(K146="","",","&IFERROR(VLOOKUP($K146,【選択肢】!$Q$3:$U$90,4,)," ")&IF(L146="","",","&IFERROR(VLOOKUP($L146,【選択肢】!$Q$3:$U$90,4,)," ")))))))) ->  | O146: =IF(G146="","",(IFERROR(VLOOKUP($G146,【選択肢】!$Q$3:$U$90,5,)," ")&IF(H146="","",","&IFERROR(VLOOKUP($H146,【選択肢】!$Q$3:$U$90,5,)," ")&IF(I146="","",","&IFERROR(VLOOKUP($I146,【選択肢】!$Q$3:$U$90,5,)," ")&IF(J146="","",","&IFERROR(VLOOKUP($J146,【選択肢】!$Q$3:$U$90,5,)," ")&IF(K146="","",","&IFERROR(VLOOKUP($K146,【選択肢】!$Q$3:$U$90,5,)," ")&IF(L146="","",","&IFERROR(VLOOKUP($L146,【選択肢】!$Q$3:$U$90,5,)," ")))))))) -> 
F147: 0 | M147: =IF(G147="","",(IFERROR(VLOOKUP($G147,【選択肢】!$Q$3:$U$90,2,)," ")&IF(H147="","",","&IFERROR(VLOOKUP($H147,【選択肢】!$Q$3:$U$90,2,)," ")&IF(I147="","",","&IFERROR(VLOOKUP($I147,【選択肢】!$Q$3:$U$90,2,)," ")&IF(J147="","",","&IFERROR(VLOOKUP($J147,【選択肢】!$Q$3:$U$90,2,)," ")&IF(K147="","",","&IFERROR(VLOOKUP($K147,【選択肢】!$Q$3:$U$90,2,)," ")&IF(L147="","",","&IFERROR(VLOOKUP($L147,【選択肢】!$Q$3:$U$90,2,)," ")))))))) ->  | N147: =IF(G147="","",(IFERROR(VLOOKUP($G147,【選択肢】!$Q$3:$U$90,4,)," ")&IF(H147="","",","&IFERROR(VLOOKUP($H147,【選択肢】!$Q$3:$U$90,4,)," ")&IF(I147="","",","&IFERROR(VLOOKUP($I147,【選択肢】!$Q$3:$U$90,4,)," ")&IF(J147="","",","&IFERROR(VLOOKUP($J147,【選択肢】!$Q$3:$U$90,4,)," ")&IF(K147="","",","&IFERROR(VLOOKUP($K147,【選択肢】!$Q$3:$U$90,4,)," ")&IF(L147="","",","&IFERROR(VLOOKUP($L147,【選択肢】!$Q$3:$U$90,4,)," ")))))))) ->  | O147: =IF(G147="","",(IFERROR(VLOOKUP($G147,【選択肢】!$Q$3:$U$90,5,)," ")&IF(H147="","",","&IFERROR(VLOOKUP($H147,【選択肢】!$Q$3:$U$90,5,)," ")&IF(I147="","",","&IFERROR(VLOOKUP($I147,【選択肢】!$Q$3:$U$90,5,)," ")&IF(J147="","",","&IFERROR(VLOOKUP($J147,【選択肢】!$Q$3:$U$90,5,)," ")&IF(K147="","",","&IFERROR(VLOOKUP($K147,【選択肢】!$Q$3:$U$90,5,)," ")&IF(L147="","",","&IFERROR(VLOOKUP($L147,【選択肢】!$Q$3:$U$90,5,)," ")))))))) -> 
F148: 0 | M148: =IF(G148="","",(IFERROR(VLOOKUP($G148,【選択肢】!$Q$3:$U$90,2,)," ")&IF(H148="","",","&IFERROR(VLOOKUP($H148,【選択肢】!$Q$3:$U$90,2,)," ")&IF(I148="","",","&IFERROR(VLOOKUP($I148,【選択肢】!$Q$3:$U$90,2,)," ")&IF(J148="","",","&IFERROR(VLOOKUP($J148,【選択肢】!$Q$3:$U$90,2,)," ")&IF(K148="","",","&IFERROR(VLOOKUP($K148,【選択肢】!$Q$3:$U$90,2,)," ")&IF(L148="","",","&IFERROR(VLOOKUP($L148,【選択肢】!$Q$3:$U$90,2,)," ")))))))) ->  | N148: =IF(G148="","",(IFERROR(VLOOKUP($G148,【選択肢】!$Q$3:$U$90,4,)," ")&IF(H148="","",","&IFERROR(VLOOKUP($H148,【選択肢】!$Q$3:$U$90,4,)," ")&IF(I148="","",","&IFERROR(VLOOKUP($I148,【選択肢】!$Q$3:$U$90,4,)," ")&IF(J148="","",","&IFERROR(VLOOKUP($J148,【選択肢】!$Q$3:$U$90,4,)," ")&IF(K148="","",","&IFERROR(VLOOKUP($K148,【選択肢】!$Q$3:$U$90,4,)," ")&IF(L148="","",","&IFERROR(VLOOKUP($L148,【選択肢】!$Q$3:$U$90,4,)," ")))))))) ->  | O148: =IF(G148="","",(IFERROR(VLOOKUP($G148,【選択肢】!$Q$3:$U$90,5,)," ")&IF(H148="","",","&IFERROR(VLOOKUP($H148,【選択肢】!$Q$3:$U$90,5,)," ")&IF(I148="","",","&IFERROR(VLOOKUP($I148,【選択肢】!$Q$3:$U$90,5,)," ")&IF(J148="","",","&IFERROR(VLOOKUP($J148,【選択肢】!$Q$3:$U$90,5,)," ")&IF(K148="","",","&IFERROR(VLOOKUP($K148,【選択肢】!$Q$3:$U$90,5,)," ")&IF(L148="","",","&IFERROR(VLOOKUP($L148,【選択肢】!$Q$3:$U$90,5,)," ")))))))) -> 
F149: 0 | M149: =IF(G149="","",(IFERROR(VLOOKUP($G149,【選択肢】!$Q$3:$U$90,2,)," ")&IF(H149="","",","&IFERROR(VLOOKUP($H149,【選択肢】!$Q$3:$U$90,2,)," ")&IF(I149="","",","&IFERROR(VLOOKUP($I149,【選択肢】!$Q$3:$U$90,2,)," ")&IF(J149="","",","&IFERROR(VLOOKUP($J149,【選択肢】!$Q$3:$U$90,2,)," ")&IF(K149="","",","&IFERROR(VLOOKUP($K149,【選択肢】!$Q$3:$U$90,2,)," ")&IF(L149="","",","&IFERROR(VLOOKUP($L149,【選択肢】!$Q$3:$U$90,2,)," ")))))))) ->  | N149: =IF(G149="","",(IFERROR(VLOOKUP($G149,【選択肢】!$Q$3:$U$90,4,)," ")&IF(H149="","",","&IFERROR(VLOOKUP($H149,【選択肢】!$Q$3:$U$90,4,)," ")&IF(I149="","",","&IFERROR(VLOOKUP($I149,【選択肢】!$Q$3:$U$90,4,)," ")&IF(J149="","",","&IFERROR(VLOOKUP($J149,【選択肢】!$Q$3:$U$90,4,)," ")&IF(K149="","",","&IFERROR(VLOOKUP($K149,【選択肢】!$Q$3:$U$90,4,)," ")&IF(L149="","",","&IFERROR(VLOOKUP($L149,【選択肢】!$Q$3:$U$90,4,)," ")))))))) ->  | O149: =IF(G149="","",(IFERROR(VLOOKUP($G149,【選択肢】!$Q$3:$U$90,5,)," ")&IF(H149="","",","&IFERROR(VLOOKUP($H149,【選択肢】!$Q$3:$U$90,5,)," ")&IF(I149="","",","&IFERROR(VLOOKUP($I149,【選択肢】!$Q$3:$U$90,5,)," ")&IF(J149="","",","&IFERROR(VLOOKUP($J149,【選択肢】!$Q$3:$U$90,5,)," ")&IF(K149="","",","&IFERROR(VLOOKUP($K149,【選択肢】!$Q$3:$U$90,5,)," ")&IF(L149="","",","&IFERROR(VLOOKUP($L149,【選択肢】!$Q$3:$U$90,5,)," ")))))))) -> 
F150: 0 | M150: =IF(G150="","",(IFERROR(VLOOKUP($G150,【選択肢】!$Q$3:$U$90,2,)," ")&IF(H150="","",","&IFERROR(VLOOKUP($H150,【選択肢】!$Q$3:$U$90,2,)," ")&IF(I150="","",","&IFERROR(VLOOKUP($I150,【選択肢】!$Q$3:$U$90,2,)," ")&IF(J150="","",","&IFERROR(VLOOKUP($J150,【選択肢】!$Q$3:$U$90,2,)," ")&IF(K150="","",","&IFERROR(VLOOKUP($K150,【選択肢】!$Q$3:$U$90,2,)," ")&IF(L150="","",","&IFERROR(VLOOKUP($L150,【選択肢】!$Q$3:$U$90,2,)," ")))))))) ->  | N150: =IF(G150="","",(IFERROR(VLOOKUP($G150,【選択肢】!$Q$3:$U$90,4,)," ")&IF(H150="","",","&IFERROR(VLOOKUP($H150,【選択肢】!$Q$3:$U$90,4,)," ")&IF(I150="","",","&IFERROR(VLOOKUP($I150,【選択肢】!$Q$3:$U$90,4,)," ")&IF(J150="","",","&IFERROR(VLOOKUP($J150,【選択肢】!$Q$3:$U$90,4,)," ")&IF(K150="","",","&IFERROR(VLOOKUP($K150,【選択肢】!$Q$3:$U$90,4,)," ")&IF(L150="","",","&IFERROR(VLOOKUP($L150,【選択肢】!$Q$3:$U$90,4,)," ")))))))) ->  | O150: =IF(G150="","",(IFERROR(VLOOKUP($G150,【選択肢】!$Q$3:$U$90,5,)," ")&IF(H150="","",","&IFERROR(VLOOKUP($H150,【選択肢】!$Q$3:$U$90,5,)," ")&IF(I150="","",","&IFERROR(VLOOKUP($I150,【選択肢】!$Q$3:$U$90,5,)," ")&IF(J150="","",","&IFERROR(VLOOKUP($J150,【選択肢】!$Q$3:$U$90,5,)," ")&IF(K150="","",","&IFERROR(VLOOKUP($K150,【選択肢】!$Q$3:$U$90,5,)," ")&IF(L150="","",","&IFERROR(VLOOKUP($L150,【選択肢】!$Q$3:$U$90,5,)," ")))))))) -> 
F151: =SUM(D151+E151) -> 0 | M151: =IF(G151="","",(IFERROR(VLOOKUP($G151,【選択肢】!$Q$3:$U$90,2,)," ")&IF(H151="","",","&IFERROR(VLOOKUP($H151,【選択肢】!$Q$3:$U$90,2,)," ")&IF(I151="","",","&IFERROR(VLOOKUP($I151,【選択肢】!$Q$3:$U$90,2,)," ")&IF(J151="","",","&IFERROR(VLOOKUP($J151,【選択肢】!$Q$3:$U$90,2,)," ")&IF(K151="","",","&IFERROR(VLOOKUP($K151,【選択肢】!$Q$3:$U$90,2,)," ")&IF(L151="","",","&IFERROR(VLOOKUP($L151,【選択肢】!$Q$3:$U$90,2,)," ")))))))) ->  | N151: =IF(G151="","",(IFERROR(VLOOKUP($G151,【選択肢】!$Q$3:$U$90,4,)," ")&IF(H151="","",","&IFERROR(VLOOKUP($H151,【選択肢】!$Q$3:$U$90,4,)," ")&IF(I151="","",","&IFERROR(VLOOKUP($I151,【選択肢】!$Q$3:$U$90,4,)," ")&IF(J151="","",","&IFERROR(VLOOKUP($J151,【選択肢】!$Q$3:$U$90,4,)," ")&IF(K151="","",","&IFERROR(VLOOKUP($K151,【選択肢】!$Q$3:$U$90,4,)," ")&IF(L151="","",","&IFERROR(VLOOKUP($L151,【選択肢】!$Q$3:$U$90,4,)," ")))))))) ->  | O151: =IF(G151="","",(IFERROR(VLOOKUP($G151,【選択肢】!$Q$3:$U$90,5,)," ")&IF(H151="","",","&IFERROR(VLOOKUP($H151,【選択肢】!$Q$3:$U$90,5,)," ")&IF(I151="","",","&IFERROR(VLOOKUP($I151,【選択肢】!$Q$3:$U$90,5,)," ")&IF(J151="","",","&IFERROR(VLOOKUP($J151,【選択肢】!$Q$3:$U$90,5,)," ")&IF(K151="","",","&IFERROR(VLOOKUP($K151,【選択肢】!$Q$3:$U$90,5,)," ")&IF(L151="","",","&IFERROR(VLOOKUP($L151,【選択肢】!$Q$3:$U$90,5,)," ")))))))) -> 
F152: 0 | M152: =IF(G152="","",(IFERROR(VLOOKUP($G152,【選択肢】!$Q$3:$U$90,2,)," ")&IF(H152="","",","&IFERROR(VLOOKUP($H152,【選択肢】!$Q$3:$U$90,2,)," ")&IF(I152="","",","&IFERROR(VLOOKUP($I152,【選択肢】!$Q$3:$U$90,2,)," ")&IF(J152="","",","&IFERROR(VLOOKUP($J152,【選択肢】!$Q$3:$U$90,2,)," ")&IF(K152="","",","&IFERROR(VLOOKUP($K152,【選択肢】!$Q$3:$U$90,2,)," ")&IF(L152="","",","&IFERROR(VLOOKUP($L152,【選択肢】!$Q$3:$U$90,2,)," ")))))))) ->  | N152: =IF(G152="","",(IFERROR(VLOOKUP($G152,【選択肢】!$Q$3:$U$90,4,)," ")&IF(H152="","",","&IFERROR(VLOOKUP($H152,【選択肢】!$Q$3:$U$90,4,)," ")&IF(I152="","",","&IFERROR(VLOOKUP($I152,【選択肢】!$Q$3:$U$90,4,)," ")&IF(J152="","",","&IFERROR(VLOOKUP($J152,【選択肢】!$Q$3:$U$90,4,)," ")&IF(K152="","",","&IFERROR(VLOOKUP($K152,【選択肢】!$Q$3:$U$90,4,)," ")&IF(L152="","",","&IFERROR(VLOOKUP($L152,【選択肢】!$Q$3:$U$90,4,)," ")))))))) ->  | O152: =IF(G152="","",(IFERROR(VLOOKUP($G152,【選択肢】!$Q$3:$U$90,5,)," ")&IF(H152="","",","&IFERROR(VLOOKUP($H152,【選択肢】!$Q$3:$U$90,5,)," ")&IF(I152="","",","&IFERROR(VLOOKUP($I152,【選択肢】!$Q$3:$U$90,5,)," ")&IF(J152="","",","&IFERROR(VLOOKUP($J152,【選択肢】!$Q$3:$U$90,5,)," ")&IF(K152="","",","&IFERROR(VLOOKUP($K152,【選択肢】!$Q$3:$U$90,5,)," ")&IF(L152="","",","&IFERROR(VLOOKUP($L152,【選択肢】!$Q$3:$U$90,5,)," ")))))))) -> 
F153: 0 | M153: =IF(G153="","",(IFERROR(VLOOKUP($G153,【選択肢】!$Q$3:$U$90,2,)," ")&IF(H153="","",","&IFERROR(VLOOKUP($H153,【選択肢】!$Q$3:$U$90,2,)," ")&IF(I153="","",","&IFERROR(VLOOKUP($I153,【選択肢】!$Q$3:$U$90,2,)," ")&IF(J153="","",","&IFERROR(VLOOKUP($J153,【選択肢】!$Q$3:$U$90,2,)," ")&IF(K153="","",","&IFERROR(VLOOKUP($K153,【選択肢】!$Q$3:$U$90,2,)," ")&IF(L153="","",","&IFERROR(VLOOKUP($L153,【選択肢】!$Q$3:$U$90,2,)," ")))))))) ->  | N153: =IF(G153="","",(IFERROR(VLOOKUP($G153,【選択肢】!$Q$3:$U$90,4,)," ")&IF(H153="","",","&IFERROR(VLOOKUP($H153,【選択肢】!$Q$3:$U$90,4,)," ")&IF(I153="","",","&IFERROR(VLOOKUP($I153,【選択肢】!$Q$3:$U$90,4,)," ")&IF(J153="","",","&IFERROR(VLOOKUP($J153,【選択肢】!$Q$3:$U$90,4,)," ")&IF(K153="","",","&IFERROR(VLOOKUP($K153,【選択肢】!$Q$3:$U$90,4,)," ")&IF(L153="","",","&IFERROR(VLOOKUP($L153,【選択肢】!$Q$3:$U$90,4,)," ")))))))) ->  | O153: =IF(G153="","",(IFERROR(VLOOKUP($G153,【選択肢】!$Q$3:$U$90,5,)," ")&IF(H153="","",","&IFERROR(VLOOKUP($H153,【選択肢】!$Q$3:$U$90,5,)," ")&IF(I153="","",","&IFERROR(VLOOKUP($I153,【選択肢】!$Q$3:$U$90,5,)," ")&IF(J153="","",","&IFERROR(VLOOKUP($J153,【選択肢】!$Q$3:$U$90,5,)," ")&IF(K153="","",","&IFERROR(VLOOKUP($K153,【選択肢】!$Q$3:$U$90,5,)," ")&IF(L153="","",","&IFERROR(VLOOKUP($L153,【選択肢】!$Q$3:$U$90,5,)," ")))))))) -> 
F154: 0 | M154: =IF(G154="","",(IFERROR(VLOOKUP($G154,【選択肢】!$Q$3:$U$90,2,)," ")&IF(H154="","",","&IFERROR(VLOOKUP($H154,【選択肢】!$Q$3:$U$90,2,)," ")&IF(I154="","",","&IFERROR(VLOOKUP($I154,【選択肢】!$Q$3:$U$90,2,)," ")&IF(J154="","",","&IFERROR(VLOOKUP($J154,【選択肢】!$Q$3:$U$90,2,)," ")&IF(K154="","",","&IFERROR(VLOOKUP($K154,【選択肢】!$Q$3:$U$90,2,)," ")&IF(L154="","",","&IFERROR(VLOOKUP($L154,【選択肢】!$Q$3:$U$90,2,)," ")))))))) ->  | N154: =IF(G154="","",(IFERROR(VLOOKUP($G154,【選択肢】!$Q$3:$U$90,4,)," ")&IF(H154="","",","&IFERROR(VLOOKUP($H154,【選択肢】!$Q$3:$U$90,4,)," ")&IF(I154="","",","&IFERROR(VLOOKUP($I154,【選択肢】!$Q$3:$U$90,4,)," ")&IF(J154="","",","&IFERROR(VLOOKUP($J154,【選択肢】!$Q$3:$U$90,4,)," ")&IF(K154="","",","&IFERROR(VLOOKUP($K154,【選択肢】!$Q$3:$U$90,4,)," ")&IF(L154="","",","&IFERROR(VLOOKUP($L154,【選択肢】!$Q$3:$U$90,4,)," ")))))))) ->  | O154: =IF(G154="","",(IFERROR(VLOOKUP($G154,【選択肢】!$Q$3:$U$90,5,)," ")&IF(H154="","",","&IFERROR(VLOOKUP($H154,【選択肢】!$Q$3:$U$90,5,)," ")&IF(I154="","",","&IFERROR(VLOOKUP($I154,【選択肢】!$Q$3:$U$90,5,)," ")&IF(J154="","",","&IFERROR(VLOOKUP($J154,【選択肢】!$Q$3:$U$90,5,)," ")&IF(K154="","",","&IFERROR(VLOOKUP($K154,【選択肢】!$Q$3:$U$90,5,)," ")&IF(L154="","",","&IFERROR(VLOOKUP($L154,【選択肢】!$Q$3:$U$90,5,)," ")))))))) -> 
F155: 0 | M155: =IF(G155="","",(IFERROR(VLOOKUP($G155,【選択肢】!$Q$3:$U$90,2,)," ")&IF(H155="","",","&IFERROR(VLOOKUP($H155,【選択肢】!$Q$3:$U$90,2,)," ")&IF(I155="","",","&IFERROR(VLOOKUP($I155,【選択肢】!$Q$3:$U$90,2,)," ")&IF(J155="","",","&IFERROR(VLOOKUP($J155,【選択肢】!$Q$3:$U$90,2,)," ")&IF(K155="","",","&IFERROR(VLOOKUP($K155,【選択肢】!$Q$3:$U$90,2,)," ")&IF(L155="","",","&IFERROR(VLOOKUP($L155,【選択肢】!$Q$3:$U$90,2,)," ")))))))) ->  | N155: =IF(G155="","",(IFERROR(VLOOKUP($G155,【選択肢】!$Q$3:$U$90,4,)," ")&IF(H155="","",","&IFERROR(VLOOKUP($H155,【選択肢】!$Q$3:$U$90,4,)," ")&IF(I155="","",","&IFERROR(VLOOKUP($I155,【選択肢】!$Q$3:$U$90,4,)," ")&IF(J155="","",","&IFERROR(VLOOKUP($J155,【選択肢】!$Q$3:$U$90,4,)," ")&IF(K155="","",","&IFERROR(VLOOKUP($K155,【選択肢】!$Q$3:$U$90,4,)," ")&IF(L155="","",","&IFERROR(VLOOKUP($L155,【選択肢】!$Q$3:$U$90,4,)," ")))))))) ->  | O155: =IF(G155="","",(IFERROR(VLOOKUP($G155,【選択肢】!$Q$3:$U$90,5,)," ")&IF(H155="","",","&IFERROR(VLOOKUP($H155,【選択肢】!$Q$3:$U$90,5,)," ")&IF(I155="","",","&IFERROR(VLOOKUP($I155,【選択肢】!$Q$3:$U$90,5,)," ")&IF(J155="","",","&IFERROR(VLOOKUP($J155,【選択肢】!$Q$3:$U$90,5,)," ")&IF(K155="","",","&IFERROR(VLOOKUP($K155,【選択肢】!$Q$3:$U$90,5,)," ")&IF(L155="","",","&IFERROR(VLOOKUP($L155,【選択肢】!$Q$3:$U$90,5,)," ")))))))) -> 
F156: =SUM(D156+E156) -> 0 | M156: =IF(G156="","",(IFERROR(VLOOKUP($G156,【選択肢】!$Q$3:$U$90,2,)," ")&IF(H156="","",","&IFERROR(VLOOKUP($H156,【選択肢】!$Q$3:$U$90,2,)," ")&IF(I156="","",","&IFERROR(VLOOKUP($I156,【選択肢】!$Q$3:$U$90,2,)," ")&IF(J156="","",","&IFERROR(VLOOKUP($J156,【選択肢】!$Q$3:$U$90,2,)," ")&IF(K156="","",","&IFERROR(VLOOKUP($K156,【選択肢】!$Q$3:$U$90,2,)," ")&IF(L156="","",","&IFERROR(VLOOKUP($L156,【選択肢】!$Q$3:$U$90,2,)," ")))))))) ->  | N156: =IF(G156="","",(IFERROR(VLOOKUP($G156,【選択肢】!$Q$3:$U$90,4,)," ")&IF(H156="","",","&IFERROR(VLOOKUP($H156,【選択肢】!$Q$3:$U$90,4,)," ")&IF(I156="","",","&IFERROR(VLOOKUP($I156,【選択肢】!$Q$3:$U$90,4,)," ")&IF(J156="","",","&IFERROR(VLOOKUP($J156,【選択肢】!$Q$3:$U$90,4,)," ")&IF(K156="","",","&IFERROR(VLOOKUP($K156,【選択肢】!$Q$3:$U$90,4,)," ")&IF(L156="","",","&IFERROR(VLOOKUP($L156,【選択肢】!$Q$3:$U$90,4,)," ")))))))) ->  | O156: =IF(G156="","",(IFERROR(VLOOKUP($G156,【選択肢】!$Q$3:$U$90,5,)," ")&IF(H156="","",","&IFERROR(VLOOKUP($H156,【選択肢】!$Q$3:$U$90,5,)," ")&IF(I156="","",","&IFERROR(VLOOKUP($I156,【選択肢】!$Q$3:$U$90,5,)," ")&IF(J156="","",","&IFERROR(VLOOKUP($J156,【選択肢】!$Q$3:$U$90,5,)," ")&IF(K156="","",","&IFERROR(VLOOKUP($K156,【選択肢】!$Q$3:$U$90,5,)," ")&IF(L156="","",","&IFERROR(VLOOKUP($L156,【選択肢】!$Q$3:$U$90,5,)," ")))))))) -> 
F157: 0 | M157: =IF(G157="","",(IFERROR(VLOOKUP($G157,【選択肢】!$Q$3:$U$90,2,)," ")&IF(H157="","",","&IFERROR(VLOOKUP($H157,【選択肢】!$Q$3:$U$90,2,)," ")&IF(I157="","",","&IFERROR(VLOOKUP($I157,【選択肢】!$Q$3:$U$90,2,)," ")&IF(J157="","",","&IFERROR(VLOOKUP($J157,【選択肢】!$Q$3:$U$90,2,)," ")&IF(K157="","",","&IFERROR(VLOOKUP($K157,【選択肢】!$Q$3:$U$90,2,)," ")&IF(L157="","",","&IFERROR(VLOOKUP($L157,【選択肢】!$Q$3:$U$90,2,)," ")))))))) ->  | N157: =IF(G157="","",(IFERROR(VLOOKUP($G157,【選択肢】!$Q$3:$U$90,4,)," ")&IF(H157="","",","&IFERROR(VLOOKUP($H157,【選択肢】!$Q$3:$U$90,4,)," ")&IF(I157="","",","&IFERROR(VLOOKUP($I157,【選択肢】!$Q$3:$U$90,4,)," ")&IF(J157="","",","&IFERROR(VLOOKUP($J157,【選択肢】!$Q$3:$U$90,4,)," ")&IF(K157="","",","&IFERROR(VLOOKUP($K157,【選択肢】!$Q$3:$U$90,4,)," ")&IF(L157="","",","&IFERROR(VLOOKUP($L157,【選択肢】!$Q$3:$U$90,4,)," ")))))))) ->  | O157: =IF(G157="","",(IFERROR(VLOOKUP($G157,【選択肢】!$Q$3:$U$90,5,)," ")&IF(H157="","",","&IFERROR(VLOOKUP($H157,【選択肢】!$Q$3:$U$90,5,)," ")&IF(I157="","",","&IFERROR(VLOOKUP($I157,【選択肢】!$Q$3:$U$90,5,)," ")&IF(J157="","",","&IFERROR(VLOOKUP($J157,【選択肢】!$Q$3:$U$90,5,)," ")&IF(K157="","",","&IFERROR(VLOOKUP($K157,【選択肢】!$Q$3:$U$90,5,)," ")&IF(L157="","",","&IFERROR(VLOOKUP($L157,【選択肢】!$Q$3:$U$90,5,)," ")))))))) -> 
F158: 0 | M158: =IF(G158="","",(IFERROR(VLOOKUP($G158,【選択肢】!$Q$3:$U$90,2,)," ")&IF(H158="","",","&IFERROR(VLOOKUP($H158,【選択肢】!$Q$3:$U$90,2,)," ")&IF(I158="","",","&IFERROR(VLOOKUP($I158,【選択肢】!$Q$3:$U$90,2,)," ")&IF(J158="","",","&IFERROR(VLOOKUP($J158,【選択肢】!$Q$3:$U$90,2,)," ")&IF(K158="","",","&IFERROR(VLOOKUP($K158,【選択肢】!$Q$3:$U$90,2,)," ")&IF(L158="","",","&IFERROR(VLOOKUP($L158,【選択肢】!$Q$3:$U$90,2,)," ")))))))) ->  | N158: =IF(G158="","",(IFERROR(VLOOKUP($G158,【選択肢】!$Q$3:$U$90,4,)," ")&IF(H158="","",","&IFERROR(VLOOKUP($H158,【選択肢】!$Q$3:$U$90,4,)," ")&IF(I158="","",","&IFERROR(VLOOKUP($I158,【選択肢】!$Q$3:$U$90,4,)," ")&IF(J158="","",","&IFERROR(VLOOKUP($J158,【選択肢】!$Q$3:$U$90,4,)," ")&IF(K158="","",","&IFERROR(VLOOKUP($K158,【選択肢】!$Q$3:$U$90,4,)," ")&IF(L158="","",","&IFERROR(VLOOKUP($L158,【選択肢】!$Q$3:$U$90,4,)," ")))))))) ->  | O158: =IF(G158="","",(IFERROR(VLOOKUP($G158,【選択肢】!$Q$3:$U$90,5,)," ")&IF(H158="","",","&IFERROR(VLOOKUP($H158,【選択肢】!$Q$3:$U$90,5,)," ")&IF(I158="","",","&IFERROR(VLOOKUP($I158,【選択肢】!$Q$3:$U$90,5,)," ")&IF(J158="","",","&IFERROR(VLOOKUP($J158,【選択肢】!$Q$3:$U$90,5,)," ")&IF(K158="","",","&IFERROR(VLOOKUP($K158,【選択肢】!$Q$3:$U$90,5,)," ")&IF(L158="","",","&IFERROR(VLOOKUP($L158,【選択肢】!$Q$3:$U$90,5,)," ")))))))) -> 
F159: 0 | M159: =IF(G159="","",(IFERROR(VLOOKUP($G159,【選択肢】!$Q$3:$U$90,2,)," ")&IF(H159="","",","&IFERROR(VLOOKUP($H159,【選択肢】!$Q$3:$U$90,2,)," ")&IF(I159="","",","&IFERROR(VLOOKUP($I159,【選択肢】!$Q$3:$U$90,2,)," ")&IF(J159="","",","&IFERROR(VLOOKUP($J159,【選択肢】!$Q$3:$U$90,2,)," ")&IF(K159="","",","&IFERROR(VLOOKUP($K159,【選択肢】!$Q$3:$U$90,2,)," ")&IF(L159="","",","&IFERROR(VLOOKUP($L159,【選択肢】!$Q$3:$U$90,2,)," ")))))))) ->  | N159: =IF(G159="","",(IFERROR(VLOOKUP($G159,【選択肢】!$Q$3:$U$90,4,)," ")&IF(H159="","",","&IFERROR(VLOOKUP($H159,【選択肢】!$Q$3:$U$90,4,)," ")&IF(I159="","",","&IFERROR(VLOOKUP($I159,【選択肢】!$Q$3:$U$90,4,)," ")&IF(J159="","",","&IFERROR(VLOOKUP($J159,【選択肢】!$Q$3:$U$90,4,)," ")&IF(K159="","",","&IFERROR(VLOOKUP($K159,【選択肢】!$Q$3:$U$90,4,)," ")&IF(L159="","",","&IFERROR(VLOOKUP($L159,【選択肢】!$Q$3:$U$90,4,)," ")))))))) ->  | O159: =IF(G159="","",(IFERROR(VLOOKUP($G159,【選択肢】!$Q$3:$U$90,5,)," ")&IF(H159="","",","&IFERROR(VLOOKUP($H159,【選択肢】!$Q$3:$U$90,5,)," ")&IF(I159="","",","&IFERROR(VLOOKUP($I159,【選択肢】!$Q$3:$U$90,5,)," ")&IF(J159="","",","&IFERROR(VLOOKUP($J159,【選択肢】!$Q$3:$U$90,5,)," ")&IF(K159="","",","&IFERROR(VLOOKUP($K159,【選択肢】!$Q$3:$U$90,5,)," ")&IF(L159="","",","&IFERROR(VLOOKUP($L159,【選択肢】!$Q$3:$U$90,5,)," ")))))))) -> 
F160: 0 | M160: =IF(G160="","",(IFERROR(VLOOKUP($G160,【選択肢】!$Q$3:$U$90,2,)," ")&IF(H160="","",","&IFERROR(VLOOKUP($H160,【選択肢】!$Q$3:$U$90,2,)," ")&IF(I160="","",","&IFERROR(VLOOKUP($I160,【選択肢】!$Q$3:$U$90,2,)," ")&IF(J160="","",","&IFERROR(VLOOKUP($J160,【選択肢】!$Q$3:$U$90,2,)," ")&IF(K160="","",","&IFERROR(VLOOKUP($K160,【選択肢】!$Q$3:$U$90,2,)," ")&IF(L160="","",","&IFERROR(VLOOKUP($L160,【選択肢】!$Q$3:$U$90,2,)," ")))))))) ->  | N160: =IF(G160="","",(IFERROR(VLOOKUP($G160,【選択肢】!$Q$3:$U$90,4,)," ")&IF(H160="","",","&IFERROR(VLOOKUP($H160,【選択肢】!$Q$3:$U$90,4,)," ")&IF(I160="","",","&IFERROR(VLOOKUP($I160,【選択肢】!$Q$3:$U$90,4,)," ")&IF(J160="","",","&IFERROR(VLOOKUP($J160,【選択肢】!$Q$3:$U$90,4,)," ")&IF(K160="","",","&IFERROR(VLOOKUP($K160,【選択肢】!$Q$3:$U$90,4,)," ")&IF(L160="","",","&IFERROR(VLOOKUP($L160,【選択肢】!$Q$3:$U$90,4,)," ")))))))) ->  | O160: =IF(G160="","",(IFERROR(VLOOKUP($G160,【選択肢】!$Q$3:$U$90,5,)," ")&IF(H160="","",","&IFERROR(VLOOKUP($H160,【選択肢】!$Q$3:$U$90,5,)," ")&IF(I160="","",","&IFERROR(VLOOKUP($I160,【選択肢】!$Q$3:$U$90,5,)," ")&IF(J160="","",","&IFERROR(VLOOKUP($J160,【選択肢】!$Q$3:$U$90,5,)," ")&IF(K160="","",","&IFERROR(VLOOKUP($K160,【選択肢】!$Q$3:$U$90,5,)," ")&IF(L160="","",","&IFERROR(VLOOKUP($L160,【選択肢】!$Q$3:$U$90,5,)," ")))))))) -> 
F161: 0 | M161: =IF(G161="","",(IFERROR(VLOOKUP($G161,【選択肢】!$Q$3:$U$90,2,)," ")&IF(H161="","",","&IFERROR(VLOOKUP($H161,【選択肢】!$Q$3:$U$90,2,)," ")&IF(I161="","",","&IFERROR(VLOOKUP($I161,【選択肢】!$Q$3:$U$90,2,)," ")&IF(J161="","",","&IFERROR(VLOOKUP($J161,【選択肢】!$Q$3:$U$90,2,)," ")&IF(K161="","",","&IFERROR(VLOOKUP($K161,【選択肢】!$Q$3:$U$90,2,)," ")&IF(L161="","",","&IFERROR(VLOOKUP($L161,【選択肢】!$Q$3:$U$90,2,)," ")))))))) ->  | N161: =IF(G161="","",(IFERROR(VLOOKUP($G161,【選択肢】!$Q$3:$U$90,4,)," ")&IF(H161="","",","&IFERROR(VLOOKUP($H161,【選択肢】!$Q$3:$U$90,4,)," ")&IF(I161="","",","&IFERROR(VLOOKUP($I161,【選択肢】!$Q$3:$U$90,4,)," ")&IF(J161="","",","&IFERROR(VLOOKUP($J161,【選択肢】!$Q$3:$U$90,4,)," ")&IF(K161="","",","&IFERROR(VLOOKUP($K161,【選択肢】!$Q$3:$U$90,4,)," ")&IF(L161="","",","&IFERROR(VLOOKUP($L161,【選択肢】!$Q$3:$U$90,4,)," ")))))))) ->  | O161: =IF(G161="","",(IFERROR(VLOOKUP($G161,【選択肢】!$Q$3:$U$90,5,)," ")&IF(H161="","",","&IFERROR(VLOOKUP($H161,【選択肢】!$Q$3:$U$90,5,)," ")&IF(I161="","",","&IFERROR(VLOOKUP($I161,【選択肢】!$Q$3:$U$90,5,)," ")&IF(J161="","",","&IFERROR(VLOOKUP($J161,【選択肢】!$Q$3:$U$90,5,)," ")&IF(K161="","",","&IFERROR(VLOOKUP($K161,【選択肢】!$Q$3:$U$90,5,)," ")&IF(L161="","",","&IFERROR(VLOOKUP($L161,【選択肢】!$Q$3:$U$90,5,)," ")))))))) -> 
F162: 0 | M162: =IF(G162="","",(IFERROR(VLOOKUP($G162,【選択肢】!$Q$3:$U$90,2,)," ")&IF(H162="","",","&IFERROR(VLOOKUP($H162,【選択肢】!$Q$3:$U$90,2,)," ")&IF(I162="","",","&IFERROR(VLOOKUP($I162,【選択肢】!$Q$3:$U$90,2,)," ")&IF(J162="","",","&IFERROR(VLOOKUP($J162,【選択肢】!$Q$3:$U$90,2,)," ")&IF(K162="","",","&IFERROR(VLOOKUP($K162,【選択肢】!$Q$3:$U$90,2,)," ")&IF(L162="","",","&IFERROR(VLOOKUP($L162,【選択肢】!$Q$3:$U$90,2,)," ")))))))) ->  | N162: =IF(G162="","",(IFERROR(VLOOKUP($G162,【選択肢】!$Q$3:$U$90,4,)," ")&IF(H162="","",","&IFERROR(VLOOKUP($H162,【選択肢】!$Q$3:$U$90,4,)," ")&IF(I162="","",","&IFERROR(VLOOKUP($I162,【選択肢】!$Q$3:$U$90,4,)," ")&IF(J162="","",","&IFERROR(VLOOKUP($J162,【選択肢】!$Q$3:$U$90,4,)," ")&IF(K162="","",","&IFERROR(VLOOKUP($K162,【選択肢】!$Q$3:$U$90,4,)," ")&IF(L162="","",","&IFERROR(VLOOKUP($L162,【選択肢】!$Q$3:$U$90,4,)," ")))))))) ->  | O162: =IF(G162="","",(IFERROR(VLOOKUP($G162,【選択肢】!$Q$3:$U$90,5,)," ")&IF(H162="","",","&IFERROR(VLOOKUP($H162,【選択肢】!$Q$3:$U$90,5,)," ")&IF(I162="","",","&IFERROR(VLOOKUP($I162,【選択肢】!$Q$3:$U$90,5,)," ")&IF(J162="","",","&IFERROR(VLOOKUP($J162,【選択肢】!$Q$3:$U$90,5,)," ")&IF(K162="","",","&IFERROR(VLOOKUP($K162,【選択肢】!$Q$3:$U$90,5,)," ")&IF(L162="","",","&IFERROR(VLOOKUP($L162,【選択肢】!$Q$3:$U$90,5,)," ")))))))) -> 
F163: 0 | M163: =IF(G163="","",(IFERROR(VLOOKUP($G163,【選択肢】!$Q$3:$U$90,2,)," ")&IF(H163="","",","&IFERROR(VLOOKUP($H163,【選択肢】!$Q$3:$U$90,2,)," ")&IF(I163="","",","&IFERROR(VLOOKUP($I163,【選択肢】!$Q$3:$U$90,2,)," ")&IF(J163="","",","&IFERROR(VLOOKUP($J163,【選択肢】!$Q$3:$U$90,2,)," ")&IF(K163="","",","&IFERROR(VLOOKUP($K163,【選択肢】!$Q$3:$U$90,2,)," ")&IF(L163="","",","&IFERROR(VLOOKUP($L163,【選択肢】!$Q$3:$U$90,2,)," ")))))))) ->  | N163: =IF(G163="","",(IFERROR(VLOOKUP($G163,【選択肢】!$Q$3:$U$90,4,)," ")&IF(H163="","",","&IFERROR(VLOOKUP($H163,【選択肢】!$Q$3:$U$90,4,)," ")&IF(I163="","",","&IFERROR(VLOOKUP($I163,【選択肢】!$Q$3:$U$90,4,)," ")&IF(J163="","",","&IFERROR(VLOOKUP($J163,【選択肢】!$Q$3:$U$90,4,)," ")&IF(K163="","",","&IFERROR(VLOOKUP($K163,【選択肢】!$Q$3:$U$90,4,)," ")&IF(L163="","",","&IFERROR(VLOOKUP($L163,【選択肢】!$Q$3:$U$90,4,)," ")))))))) ->  | O163: =IF(G163="","",(IFERROR(VLOOKUP($G163,【選択肢】!$Q$3:$U$90,5,)," ")&IF(H163="","",","&IFERROR(VLOOKUP($H163,【選択肢】!$Q$3:$U$90,5,)," ")&IF(I163="","",","&IFERROR(VLOOKUP($I163,【選択肢】!$Q$3:$U$90,5,)," ")&IF(J163="","",","&IFERROR(VLOOKUP($J163,【選択肢】!$Q$3:$U$90,5,)," ")&IF(K163="","",","&IFERROR(VLOOKUP($K163,【選択肢】!$Q$3:$U$90,5,)," ")&IF(L163="","",","&IFERROR(VLOOKUP($L163,【選択肢】!$Q$3:$U$90,5,)," ")))))))) -> 
F164: 0 | M164: =IF(G164="","",(IFERROR(VLOOKUP($G164,【選択肢】!$Q$3:$U$90,2,)," ")&IF(H164="","",","&IFERROR(VLOOKUP($H164,【選択肢】!$Q$3:$U$90,2,)," ")&IF(I164="","",","&IFERROR(VLOOKUP($I164,【選択肢】!$Q$3:$U$90,2,)," ")&IF(J164="","",","&IFERROR(VLOOKUP($J164,【選択肢】!$Q$3:$U$90,2,)," ")&IF(K164="","",","&IFERROR(VLOOKUP($K164,【選択肢】!$Q$3:$U$90,2,)," ")&IF(L164="","",","&IFERROR(VLOOKUP($L164,【選択肢】!$Q$3:$U$90,2,)," ")))))))) ->  | N164: =IF(G164="","",(IFERROR(VLOOKUP($G164,【選択肢】!$Q$3:$U$90,4,)," ")&IF(H164="","",","&IFERROR(VLOOKUP($H164,【選択肢】!$Q$3:$U$90,4,)," ")&IF(I164="","",","&IFERROR(VLOOKUP($I164,【選択肢】!$Q$3:$U$90,4,)," ")&IF(J164="","",","&IFERROR(VLOOKUP($J164,【選択肢】!$Q$3:$U$90,4,)," ")&IF(K164="","",","&IFERROR(VLOOKUP($K164,【選択肢】!$Q$3:$U$90,4,)," ")&IF(L164="","",","&IFERROR(VLOOKUP($L164,【選択肢】!$Q$3:$U$90,4,)," ")))))))) ->  | O164: =IF(G164="","",(IFERROR(VLOOKUP($G164,【選択肢】!$Q$3:$U$90,5,)," ")&IF(H164="","",","&IFERROR(VLOOKUP($H164,【選択肢】!$Q$3:$U$90,5,)," ")&IF(I164="","",","&IFERROR(VLOOKUP($I164,【選択肢】!$Q$3:$U$90,5,)," ")&IF(J164="","",","&IFERROR(VLOOKUP($J164,【選択肢】!$Q$3:$U$90,5,)," ")&IF(K164="","",","&IFERROR(VLOOKUP($K164,【選択肢】!$Q$3:$U$90,5,)," ")&IF(L164="","",","&IFERROR(VLOOKUP($L164,【選択肢】!$Q$3:$U$90,5,)," ")))))))) -> 
F165: 0 | M165: =IF(G165="","",(IFERROR(VLOOKUP($G165,【選択肢】!$Q$3:$U$90,2,)," ")&IF(H165="","",","&IFERROR(VLOOKUP($H165,【選択肢】!$Q$3:$U$90,2,)," ")&IF(I165="","",","&IFERROR(VLOOKUP($I165,【選択肢】!$Q$3:$U$90,2,)," ")&IF(J165="","",","&IFERROR(VLOOKUP($J165,【選択肢】!$Q$3:$U$90,2,)," ")&IF(K165="","",","&IFERROR(VLOOKUP($K165,【選択肢】!$Q$3:$U$90,2,)," ")&IF(L165="","",","&IFERROR(VLOOKUP($L165,【選択肢】!$Q$3:$U$90,2,)," ")))))))) ->  | N165: =IF(G165="","",(IFERROR(VLOOKUP($G165,【選択肢】!$Q$3:$U$90,4,)," ")&IF(H165="","",","&IFERROR(VLOOKUP($H165,【選択肢】!$Q$3:$U$90,4,)," ")&IF(I165="","",","&IFERROR(VLOOKUP($I165,【選択肢】!$Q$3:$U$90,4,)," ")&IF(J165="","",","&IFERROR(VLOOKUP($J165,【選択肢】!$Q$3:$U$90,4,)," ")&IF(K165="","",","&IFERROR(VLOOKUP($K165,【選択肢】!$Q$3:$U$90,4,)," ")&IF(L165="","",","&IFERROR(VLOOKUP($L165,【選択肢】!$Q$3:$U$90,4,)," ")))))))) ->  | O165: =IF(G165="","",(IFERROR(VLOOKUP($G165,【選択肢】!$Q$3:$U$90,5,)," ")&IF(H165="","",","&IFERROR(VLOOKUP($H165,【選択肢】!$Q$3:$U$90,5,)," ")&IF(I165="","",","&IFERROR(VLOOKUP($I165,【選択肢】!$Q$3:$U$90,5,)," ")&IF(J165="","",","&IFERROR(VLOOKUP($J165,【選択肢】!$Q$3:$U$90,5,)," ")&IF(K165="","",","&IFERROR(VLOOKUP($K165,【選択肢】!$Q$3:$U$90,5,)," ")&IF(L165="","",","&IFERROR(VLOOKUP($L165,【選択肢】!$Q$3:$U$90,5,)," ")))))))) -> 
F166: 0 | M166: =IF(G166="","",(IFERROR(VLOOKUP($G166,【選択肢】!$Q$3:$U$90,2,)," ")&IF(H166="","",","&IFERROR(VLOOKUP($H166,【選択肢】!$Q$3:$U$90,2,)," ")&IF(I166="","",","&IFERROR(VLOOKUP($I166,【選択肢】!$Q$3:$U$90,2,)," ")&IF(J166="","",","&IFERROR(VLOOKUP($J166,【選択肢】!$Q$3:$U$90,2,)," ")&IF(K166="","",","&IFERROR(VLOOKUP($K166,【選択肢】!$Q$3:$U$90,2,)," ")&IF(L166="","",","&IFERROR(VLOOKUP($L166,【選択肢】!$Q$3:$U$90,2,)," ")))))))) ->  | N166: =IF(G166="","",(IFERROR(VLOOKUP($G166,【選択肢】!$Q$3:$U$90,4,)," ")&IF(H166="","",","&IFERROR(VLOOKUP($H166,【選択肢】!$Q$3:$U$90,4,)," ")&IF(I166="","",","&IFERROR(VLOOKUP($I166,【選択肢】!$Q$3:$U$90,4,)," ")&IF(J166="","",","&IFERROR(VLOOKUP($J166,【選択肢】!$Q$3:$U$90,4,)," ")&IF(K166="","",","&IFERROR(VLOOKUP($K166,【選択肢】!$Q$3:$U$90,4,)," ")&IF(L166="","",","&IFERROR(VLOOKUP($L166,【選択肢】!$Q$3:$U$90,4,)," ")))))))) ->  | O166: =IF(G166="","",(IFERROR(VLOOKUP($G166,【選択肢】!$Q$3:$U$90,5,)," ")&IF(H166="","",","&IFERROR(VLOOKUP($H166,【選択肢】!$Q$3:$U$90,5,)," ")&IF(I166="","",","&IFERROR(VLOOKUP($I166,【選択肢】!$Q$3:$U$90,5,)," ")&IF(J166="","",","&IFERROR(VLOOKUP($J166,【選択肢】!$Q$3:$U$90,5,)," ")&IF(K166="","",","&IFERROR(VLOOKUP($K166,【選択肢】!$Q$3:$U$90,5,)," ")&IF(L166="","",","&IFERROR(VLOOKUP($L166,【選択肢】!$Q$3:$U$90,5,)," ")))))))) -> 
F167: 0 | M167: =IF(G167="","",(IFERROR(VLOOKUP($G167,【選択肢】!$Q$3:$U$90,2,)," ")&IF(H167="","",","&IFERROR(VLOOKUP($H167,【選択肢】!$Q$3:$U$90,2,)," ")&IF(I167="","",","&IFERROR(VLOOKUP($I167,【選択肢】!$Q$3:$U$90,2,)," ")&IF(J167="","",","&IFERROR(VLOOKUP($J167,【選択肢】!$Q$3:$U$90,2,)," ")&IF(K167="","",","&IFERROR(VLOOKUP($K167,【選択肢】!$Q$3:$U$90,2,)," ")&IF(L167="","",","&IFERROR(VLOOKUP($L167,【選択肢】!$Q$3:$U$90,2,)," ")))))))) ->  | N167: =IF(G167="","",(IFERROR(VLOOKUP($G167,【選択肢】!$Q$3:$U$90,4,)," ")&IF(H167="","",","&IFERROR(VLOOKUP($H167,【選択肢】!$Q$3:$U$90,4,)," ")&IF(I167="","",","&IFERROR(VLOOKUP($I167,【選択肢】!$Q$3:$U$90,4,)," ")&IF(J167="","",","&IFERROR(VLOOKUP($J167,【選択肢】!$Q$3:$U$90,4,)," ")&IF(K167="","",","&IFERROR(VLOOKUP($K167,【選択肢】!$Q$3:$U$90,4,)," ")&IF(L167="","",","&IFERROR(VLOOKUP($L167,【選択肢】!$Q$3:$U$90,4,)," ")))))))) ->  | O167: =IF(G167="","",(IFERROR(VLOOKUP($G167,【選択肢】!$Q$3:$U$90,5,)," ")&IF(H167="","",","&IFERROR(VLOOKUP($H167,【選択肢】!$Q$3:$U$90,5,)," ")&IF(I167="","",","&IFERROR(VLOOKUP($I167,【選択肢】!$Q$3:$U$90,5,)," ")&IF(J167="","",","&IFERROR(VLOOKUP($J167,【選択肢】!$Q$3:$U$90,5,)," ")&IF(K167="","",","&IFERROR(VLOOKUP($K167,【選択肢】!$Q$3:$U$90,5,)," ")&IF(L167="","",","&IFERROR(VLOOKUP($L167,【選択肢】!$Q$3:$U$90,5,)," ")))))))) -> 
F168: 0 | M168: =IF(G168="","",(IFERROR(VLOOKUP($G168,【選択肢】!$Q$3:$U$90,2,)," ")&IF(H168="","",","&IFERROR(VLOOKUP($H168,【選択肢】!$Q$3:$U$90,2,)," ")&IF(I168="","",","&IFERROR(VLOOKUP($I168,【選択肢】!$Q$3:$U$90,2,)," ")&IF(J168="","",","&IFERROR(VLOOKUP($J168,【選択肢】!$Q$3:$U$90,2,)," ")&IF(K168="","",","&IFERROR(VLOOKUP($K168,【選択肢】!$Q$3:$U$90,2,)," ")&IF(L168="","",","&IFERROR(VLOOKUP($L168,【選択肢】!$Q$3:$U$90,2,)," ")))))))) ->  | N168: =IF(G168="","",(IFERROR(VLOOKUP($G168,【選択肢】!$Q$3:$U$90,4,)," ")&IF(H168="","",","&IFERROR(VLOOKUP($H168,【選択肢】!$Q$3:$U$90,4,)," ")&IF(I168="","",","&IFERROR(VLOOKUP($I168,【選択肢】!$Q$3:$U$90,4,)," ")&IF(J168="","",","&IFERROR(VLOOKUP($J168,【選択肢】!$Q$3:$U$90,4,)," ")&IF(K168="","",","&IFERROR(VLOOKUP($K168,【選択肢】!$Q$3:$U$90,4,)," ")&IF(L168="","",","&IFERROR(VLOOKUP($L168,【選択肢】!$Q$3:$U$90,4,)," ")))))))) ->  | O168: =IF(G168="","",(IFERROR(VLOOKUP($G168,【選択肢】!$Q$3:$U$90,5,)," ")&IF(H168="","",","&IFERROR(VLOOKUP($H168,【選択肢】!$Q$3:$U$90,5,)," ")&IF(I168="","",","&IFERROR(VLOOKUP($I168,【選択肢】!$Q$3:$U$90,5,)," ")&IF(J168="","",","&IFERROR(VLOOKUP($J168,【選択肢】!$Q$3:$U$90,5,)," ")&IF(K168="","",","&IFERROR(VLOOKUP($K168,【選択肢】!$Q$3:$U$90,5,)," ")&IF(L168="","",","&IFERROR(VLOOKUP($L168,【選択肢】!$Q$3:$U$90,5,)," ")))))))) -> 
F169: 0 | M169: =IF(G169="","",(IFERROR(VLOOKUP($G169,【選択肢】!$Q$3:$U$90,2,)," ")&IF(H169="","",","&IFERROR(VLOOKUP($H169,【選択肢】!$Q$3:$U$90,2,)," ")&IF(I169="","",","&IFERROR(VLOOKUP($I169,【選択肢】!$Q$3:$U$90,2,)," ")&IF(J169="","",","&IFERROR(VLOOKUP($J169,【選択肢】!$Q$3:$U$90,2,)," ")&IF(K169="","",","&IFERROR(VLOOKUP($K169,【選択肢】!$Q$3:$U$90,2,)," ")&IF(L169="","",","&IFERROR(VLOOKUP($L169,【選択肢】!$Q$3:$U$90,2,)," ")))))))) ->  | N169: =IF(G169="","",(IFERROR(VLOOKUP($G169,【選択肢】!$Q$3:$U$90,4,)," ")&IF(H169="","",","&IFERROR(VLOOKUP($H169,【選択肢】!$Q$3:$U$90,4,)," ")&IF(I169="","",","&IFERROR(VLOOKUP($I169,【選択肢】!$Q$3:$U$90,4,)," ")&IF(J169="","",","&IFERROR(VLOOKUP($J169,【選択肢】!$Q$3:$U$90,4,)," ")&IF(K169="","",","&IFERROR(VLOOKUP($K169,【選択肢】!$Q$3:$U$90,4,)," ")&IF(L169="","",","&IFERROR(VLOOKUP($L169,【選択肢】!$Q$3:$U$90,4,)," ")))))))) ->  | O169: =IF(G169="","",(IFERROR(VLOOKUP($G169,【選択肢】!$Q$3:$U$90,5,)," ")&IF(H169="","",","&IFERROR(VLOOKUP($H169,【選択肢】!$Q$3:$U$90,5,)," ")&IF(I169="","",","&IFERROR(VLOOKUP($I169,【選択肢】!$Q$3:$U$90,5,)," ")&IF(J169="","",","&IFERROR(VLOOKUP($J169,【選択肢】!$Q$3:$U$90,5,)," ")&IF(K169="","",","&IFERROR(VLOOKUP($K169,【選択肢】!$Q$3:$U$90,5,)," ")&IF(L169="","",","&IFERROR(VLOOKUP($L169,【選択肢】!$Q$3:$U$90,5,)," ")))))))) -> 
F170: 0 | M170: =IF(G170="","",(IFERROR(VLOOKUP($G170,【選択肢】!$Q$3:$U$90,2,)," ")&IF(H170="","",","&IFERROR(VLOOKUP($H170,【選択肢】!$Q$3:$U$90,2,)," ")&IF(I170="","",","&IFERROR(VLOOKUP($I170,【選択肢】!$Q$3:$U$90,2,)," ")&IF(J170="","",","&IFERROR(VLOOKUP($J170,【選択肢】!$Q$3:$U$90,2,)," ")&IF(K170="","",","&IFERROR(VLOOKUP($K170,【選択肢】!$Q$3:$U$90,2,)," ")&IF(L170="","",","&IFERROR(VLOOKUP($L170,【選択肢】!$Q$3:$U$90,2,)," ")))))))) ->  | N170: =IF(G170="","",(IFERROR(VLOOKUP($G170,【選択肢】!$Q$3:$U$90,4,)," ")&IF(H170="","",","&IFERROR(VLOOKUP($H170,【選択肢】!$Q$3:$U$90,4,)," ")&IF(I170="","",","&IFERROR(VLOOKUP($I170,【選択肢】!$Q$3:$U$90,4,)," ")&IF(J170="","",","&IFERROR(VLOOKUP($J170,【選択肢】!$Q$3:$U$90,4,)," ")&IF(K170="","",","&IFERROR(VLOOKUP($K170,【選択肢】!$Q$3:$U$90,4,)," ")&IF(L170="","",","&IFERROR(VLOOKUP($L170,【選択肢】!$Q$3:$U$90,4,)," ")))))))) ->  | O170: =IF(G170="","",(IFERROR(VLOOKUP($G170,【選択肢】!$Q$3:$U$90,5,)," ")&IF(H170="","",","&IFERROR(VLOOKUP($H170,【選択肢】!$Q$3:$U$90,5,)," ")&IF(I170="","",","&IFERROR(VLOOKUP($I170,【選択肢】!$Q$3:$U$90,5,)," ")&IF(J170="","",","&IFERROR(VLOOKUP($J170,【選択肢】!$Q$3:$U$90,5,)," ")&IF(K170="","",","&IFERROR(VLOOKUP($K170,【選択肢】!$Q$3:$U$90,5,)," ")&IF(L170="","",","&IFERROR(VLOOKUP($L170,【選択肢】!$Q$3:$U$90,5,)," ")))))))) -> 
F171: 0 | M171: =IF(G171="","",(IFERROR(VLOOKUP($G171,【選択肢】!$Q$3:$U$90,2,)," ")&IF(H171="","",","&IFERROR(VLOOKUP($H171,【選択肢】!$Q$3:$U$90,2,)," ")&IF(I171="","",","&IFERROR(VLOOKUP($I171,【選択肢】!$Q$3:$U$90,2,)," ")&IF(J171="","",","&IFERROR(VLOOKUP($J171,【選択肢】!$Q$3:$U$90,2,)," ")&IF(K171="","",","&IFERROR(VLOOKUP($K171,【選択肢】!$Q$3:$U$90,2,)," ")&IF(L171="","",","&IFERROR(VLOOKUP($L171,【選択肢】!$Q$3:$U$90,2,)," ")))))))) ->  | N171: =IF(G171="","",(IFERROR(VLOOKUP($G171,【選択肢】!$Q$3:$U$90,4,)," ")&IF(H171="","",","&IFERROR(VLOOKUP($H171,【選択肢】!$Q$3:$U$90,4,)," ")&IF(I171="","",","&IFERROR(VLOOKUP($I171,【選択肢】!$Q$3:$U$90,4,)," ")&IF(J171="","",","&IFERROR(VLOOKUP($J171,【選択肢】!$Q$3:$U$90,4,)," ")&IF(K171="","",","&IFERROR(VLOOKUP($K171,【選択肢】!$Q$3:$U$90,4,)," ")&IF(L171="","",","&IFERROR(VLOOKUP($L171,【選択肢】!$Q$3:$U$90,4,)," ")))))))) ->  | O171: =IF(G171="","",(IFERROR(VLOOKUP($G171,【選択肢】!$Q$3:$U$90,5,)," ")&IF(H171="","",","&IFERROR(VLOOKUP($H171,【選択肢】!$Q$3:$U$90,5,)," ")&IF(I171="","",","&IFERROR(VLOOKUP($I171,【選択肢】!$Q$3:$U$90,5,)," ")&IF(J171="","",","&IFERROR(VLOOKUP($J171,【選択肢】!$Q$3:$U$90,5,)," ")&IF(K171="","",","&IFERROR(VLOOKUP($K171,【選択肢】!$Q$3:$U$90,5,)," ")&IF(L171="","",","&IFERROR(VLOOKUP($L171,【選択肢】!$Q$3:$U$90,5,)," ")))))))) -> 
F172: 0 | M172: =IF(G172="","",(IFERROR(VLOOKUP($G172,【選択肢】!$Q$3:$U$90,2,)," ")&IF(H172="","",","&IFERROR(VLOOKUP($H172,【選択肢】!$Q$3:$U$90,2,)," ")&IF(I172="","",","&IFERROR(VLOOKUP($I172,【選択肢】!$Q$3:$U$90,2,)," ")&IF(J172="","",","&IFERROR(VLOOKUP($J172,【選択肢】!$Q$3:$U$90,2,)," ")&IF(K172="","",","&IFERROR(VLOOKUP($K172,【選択肢】!$Q$3:$U$90,2,)," ")&IF(L172="","",","&IFERROR(VLOOKUP($L172,【選択肢】!$Q$3:$U$90,2,)," ")))))))) ->  | N172: =IF(G172="","",(IFERROR(VLOOKUP($G172,【選択肢】!$Q$3:$U$90,4,)," ")&IF(H172="","",","&IFERROR(VLOOKUP($H172,【選択肢】!$Q$3:$U$90,4,)," ")&IF(I172="","",","&IFERROR(VLOOKUP($I172,【選択肢】!$Q$3:$U$90,4,)," ")&IF(J172="","",","&IFERROR(VLOOKUP($J172,【選択肢】!$Q$3:$U$90,4,)," ")&IF(K172="","",","&IFERROR(VLOOKUP($K172,【選択肢】!$Q$3:$U$90,4,)," ")&IF(L172="","",","&IFERROR(VLOOKUP($L172,【選択肢】!$Q$3:$U$90,4,)," ")))))))) ->  | O172: =IF(G172="","",(IFERROR(VLOOKUP($G172,【選択肢】!$Q$3:$U$90,5,)," ")&IF(H172="","",","&IFERROR(VLOOKUP($H172,【選択肢】!$Q$3:$U$90,5,)," ")&IF(I172="","",","&IFERROR(VLOOKUP($I172,【選択肢】!$Q$3:$U$90,5,)," ")&IF(J172="","",","&IFERROR(VLOOKUP($J172,【選択肢】!$Q$3:$U$90,5,)," ")&IF(K172="","",","&IFERROR(VLOOKUP($K172,【選択肢】!$Q$3:$U$90,5,)," ")&IF(L172="","",","&IFERROR(VLOOKUP($L172,【選択肢】!$Q$3:$U$90,5,)," ")))))))) -> 
F173: 0 | M173: =IF(G173="","",(IFERROR(VLOOKUP($G173,【選択肢】!$Q$3:$U$90,2,)," ")&IF(H173="","",","&IFERROR(VLOOKUP($H173,【選択肢】!$Q$3:$U$90,2,)," ")&IF(I173="","",","&IFERROR(VLOOKUP($I173,【選択肢】!$Q$3:$U$90,2,)," ")&IF(J173="","",","&IFERROR(VLOOKUP($J173,【選択肢】!$Q$3:$U$90,2,)," ")&IF(K173="","",","&IFERROR(VLOOKUP($K173,【選択肢】!$Q$3:$U$90,2,)," ")&IF(L173="","",","&IFERROR(VLOOKUP($L173,【選択肢】!$Q$3:$U$90,2,)," ")))))))) ->  | N173: =IF(G173="","",(IFERROR(VLOOKUP($G173,【選択肢】!$Q$3:$U$90,4,)," ")&IF(H173="","",","&IFERROR(VLOOKUP($H173,【選択肢】!$Q$3:$U$90,4,)," ")&IF(I173="","",","&IFERROR(VLOOKUP($I173,【選択肢】!$Q$3:$U$90,4,)," ")&IF(J173="","",","&IFERROR(VLOOKUP($J173,【選択肢】!$Q$3:$U$90,4,)," ")&IF(K173="","",","&IFERROR(VLOOKUP($K173,【選択肢】!$Q$3:$U$90,4,)," ")&IF(L173="","",","&IFERROR(VLOOKUP($L173,【選択肢】!$Q$3:$U$90,4,)," ")))))))) ->  | O173: =IF(G173="","",(IFERROR(VLOOKUP($G173,【選択肢】!$Q$3:$U$90,5,)," ")&IF(H173="","",","&IFERROR(VLOOKUP($H173,【選択肢】!$Q$3:$U$90,5,)," ")&IF(I173="","",","&IFERROR(VLOOKUP($I173,【選択肢】!$Q$3:$U$90,5,)," ")&IF(J173="","",","&IFERROR(VLOOKUP($J173,【選択肢】!$Q$3:$U$90,5,)," ")&IF(K173="","",","&IFERROR(VLOOKUP($K173,【選択肢】!$Q$3:$U$90,5,)," ")&IF(L173="","",","&IFERROR(VLOOKUP($L173,【選択肢】!$Q$3:$U$90,5,)," ")))))))) -> 
F174: =SUM(D174+E174) -> 0 | M174: =IF(G174="","",(IFERROR(VLOOKUP($G174,【選択肢】!$Q$3:$U$90,2,)," ")&IF(H174="","",","&IFERROR(VLOOKUP($H174,【選択肢】!$Q$3:$U$90,2,)," ")&IF(I174="","",","&IFERROR(VLOOKUP($I174,【選択肢】!$Q$3:$U$90,2,)," ")&IF(J174="","",","&IFERROR(VLOOKUP($J174,【選択肢】!$Q$3:$U$90,2,)," ")&IF(K174="","",","&IFERROR(VLOOKUP($K174,【選択肢】!$Q$3:$U$90,2,)," ")&IF(L174="","",","&IFERROR(VLOOKUP($L174,【選択肢】!$Q$3:$U$90,2,)," ")))))))) ->  | N174: =IF(G174="","",(IFERROR(VLOOKUP($G174,【選択肢】!$Q$3:$U$90,4,)," ")&IF(H174="","",","&IFERROR(VLOOKUP($H174,【選択肢】!$Q$3:$U$90,4,)," ")&IF(I174="","",","&IFERROR(VLOOKUP($I174,【選択肢】!$Q$3:$U$90,4,)," ")&IF(J174="","",","&IFERROR(VLOOKUP($J174,【選択肢】!$Q$3:$U$90,4,)," ")&IF(K174="","",","&IFERROR(VLOOKUP($K174,【選択肢】!$Q$3:$U$90,4,)," ")&IF(L174="","",","&IFERROR(VLOOKUP($L174,【選択肢】!$Q$3:$U$90,4,)," ")))))))) ->  | O174: =IF(G174="","",(IFERROR(VLOOKUP($G174,【選択肢】!$Q$3:$U$90,5,)," ")&IF(H174="","",","&IFERROR(VLOOKUP($H174,【選択肢】!$Q$3:$U$90,5,)," ")&IF(I174="","",","&IFERROR(VLOOKUP($I174,【選択肢】!$Q$3:$U$90,5,)," ")&IF(J174="","",","&IFERROR(VLOOKUP($J174,【選択肢】!$Q$3:$U$90,5,)," ")&IF(K174="","",","&IFERROR(VLOOKUP($K174,【選択肢】!$Q$3:$U$90,5,)," ")&IF(L174="","",","&IFERROR(VLOOKUP($L174,【選択肢】!$Q$3:$U$90,5,)," ")))))))) -> 
F175: 0 | M175: =IF(G175="","",(IFERROR(VLOOKUP($G175,【選択肢】!$Q$3:$U$90,2,)," ")&IF(H175="","",","&IFERROR(VLOOKUP($H175,【選択肢】!$Q$3:$U$90,2,)," ")&IF(I175="","",","&IFERROR(VLOOKUP($I175,【選択肢】!$Q$3:$U$90,2,)," ")&IF(J175="","",","&IFERROR(VLOOKUP($J175,【選択肢】!$Q$3:$U$90,2,)," ")&IF(K175="","",","&IFERROR(VLOOKUP($K175,【選択肢】!$Q$3:$U$90,2,)," ")&IF(L175="","",","&IFERROR(VLOOKUP($L175,【選択肢】!$Q$3:$U$90,2,)," ")))))))) ->  | N175: =IF(G175="","",(IFERROR(VLOOKUP($G175,【選択肢】!$Q$3:$U$90,4,)," ")&IF(H175="","",","&IFERROR(VLOOKUP($H175,【選択肢】!$Q$3:$U$90,4,)," ")&IF(I175="","",","&IFERROR(VLOOKUP($I175,【選択肢】!$Q$3:$U$90,4,)," ")&IF(J175="","",","&IFERROR(VLOOKUP($J175,【選択肢】!$Q$3:$U$90,4,)," ")&IF(K175="","",","&IFERROR(VLOOKUP($K175,【選択肢】!$Q$3:$U$90,4,)," ")&IF(L175="","",","&IFERROR(VLOOKUP($L175,【選択肢】!$Q$3:$U$90,4,)," ")))))))) ->  | O175: =IF(G175="","",(IFERROR(VLOOKUP($G175,【選択肢】!$Q$3:$U$90,5,)," ")&IF(H175="","",","&IFERROR(VLOOKUP($H175,【選択肢】!$Q$3:$U$90,5,)," ")&IF(I175="","",","&IFERROR(VLOOKUP($I175,【選択肢】!$Q$3:$U$90,5,)," ")&IF(J175="","",","&IFERROR(VLOOKUP($J175,【選択肢】!$Q$3:$U$90,5,)," ")&IF(K175="","",","&IFERROR(VLOOKUP($K175,【選択肢】!$Q$3:$U$90,5,)," ")&IF(L175="","",","&IFERROR(VLOOKUP($L175,【選択肢】!$Q$3:$U$90,5,)," ")))))))) -> 
F176: 0 | M176: =IF(G176="","",(IFERROR(VLOOKUP($G176,【選択肢】!$Q$3:$U$90,2,)," ")&IF(H176="","",","&IFERROR(VLOOKUP($H176,【選択肢】!$Q$3:$U$90,2,)," ")&IF(I176="","",","&IFERROR(VLOOKUP($I176,【選択肢】!$Q$3:$U$90,2,)," ")&IF(J176="","",","&IFERROR(VLOOKUP($J176,【選択肢】!$Q$3:$U$90,2,)," ")&IF(K176="","",","&IFERROR(VLOOKUP($K176,【選択肢】!$Q$3:$U$90,2,)," ")&IF(L176="","",","&IFERROR(VLOOKUP($L176,【選択肢】!$Q$3:$U$90,2,)," ")))))))) ->  | N176: =IF(G176="","",(IFERROR(VLOOKUP($G176,【選択肢】!$Q$3:$U$90,4,)," ")&IF(H176="","",","&IFERROR(VLOOKUP($H176,【選択肢】!$Q$3:$U$90,4,)," ")&IF(I176="","",","&IFERROR(VLOOKUP($I176,【選択肢】!$Q$3:$U$90,4,)," ")&IF(J176="","",","&IFERROR(VLOOKUP($J176,【選択肢】!$Q$3:$U$90,4,)," ")&IF(K176="","",","&IFERROR(VLOOKUP($K176,【選択肢】!$Q$3:$U$90,4,)," ")&IF(L176="","",","&IFERROR(VLOOKUP($L176,【選択肢】!$Q$3:$U$90,4,)," ")))))))) ->  | O176: =IF(G176="","",(IFERROR(VLOOKUP($G176,【選択肢】!$Q$3:$U$90,5,)," ")&IF(H176="","",","&IFERROR(VLOOKUP($H176,【選択肢】!$Q$3:$U$90,5,)," ")&IF(I176="","",","&IFERROR(VLOOKUP($I176,【選択肢】!$Q$3:$U$90,5,)," ")&IF(J176="","",","&IFERROR(VLOOKUP($J176,【選択肢】!$Q$3:$U$90,5,)," ")&IF(K176="","",","&IFERROR(VLOOKUP($K176,【選択肢】!$Q$3:$U$90,5,)," ")&IF(L176="","",","&IFERROR(VLOOKUP($L176,【選択肢】!$Q$3:$U$90,5,)," ")))))))) -> 
F177: 0 | M177: =IF(G177="","",(IFERROR(VLOOKUP($G177,【選択肢】!$Q$3:$U$90,2,)," ")&IF(H177="","",","&IFERROR(VLOOKUP($H177,【選択肢】!$Q$3:$U$90,2,)," ")&IF(I177="","",","&IFERROR(VLOOKUP($I177,【選択肢】!$Q$3:$U$90,2,)," ")&IF(J177="","",","&IFERROR(VLOOKUP($J177,【選択肢】!$Q$3:$U$90,2,)," ")&IF(K177="","",","&IFERROR(VLOOKUP($K177,【選択肢】!$Q$3:$U$90,2,)," ")&IF(L177="","",","&IFERROR(VLOOKUP($L177,【選択肢】!$Q$3:$U$90,2,)," ")))))))) ->  | N177: =IF(G177="","",(IFERROR(VLOOKUP($G177,【選択肢】!$Q$3:$U$90,4,)," ")&IF(H177="","",","&IFERROR(VLOOKUP($H177,【選択肢】!$Q$3:$U$90,4,)," ")&IF(I177="","",","&IFERROR(VLOOKUP($I177,【選択肢】!$Q$3:$U$90,4,)," ")&IF(J177="","",","&IFERROR(VLOOKUP($J177,【選択肢】!$Q$3:$U$90,4,)," ")&IF(K177="","",","&IFERROR(VLOOKUP($K177,【選択肢】!$Q$3:$U$90,4,)," ")&IF(L177="","",","&IFERROR(VLOOKUP($L177,【選択肢】!$Q$3:$U$90,4,)," ")))))))) ->  | O177: =IF(G177="","",(IFERROR(VLOOKUP($G177,【選択肢】!$Q$3:$U$90,5,)," ")&IF(H177="","",","&IFERROR(VLOOKUP($H177,【選択肢】!$Q$3:$U$90,5,)," ")&IF(I177="","",","&IFERROR(VLOOKUP($I177,【選択肢】!$Q$3:$U$90,5,)," ")&IF(J177="","",","&IFERROR(VLOOKUP($J177,【選択肢】!$Q$3:$U$90,5,)," ")&IF(K177="","",","&IFERROR(VLOOKUP($K177,【選択肢】!$Q$3:$U$90,5,)," ")&IF(L177="","",","&IFERROR(VLOOKUP($L177,【選択肢】!$Q$3:$U$90,5,)," ")))))))) -> 
F178: 0 | M178: =IF(G178="","",(IFERROR(VLOOKUP($G178,【選択肢】!$Q$3:$U$90,2,)," ")&IF(H178="","",","&IFERROR(VLOOKUP($H178,【選択肢】!$Q$3:$U$90,2,)," ")&IF(I178="","",","&IFERROR(VLOOKUP($I178,【選択肢】!$Q$3:$U$90,2,)," ")&IF(J178="","",","&IFERROR(VLOOKUP($J178,【選択肢】!$Q$3:$U$90,2,)," ")&IF(K178="","",","&IFERROR(VLOOKUP($K178,【選択肢】!$Q$3:$U$90,2,)," ")&IF(L178="","",","&IFERROR(VLOOKUP($L178,【選択肢】!$Q$3:$U$90,2,)," ")))))))) ->  | N178: =IF(G178="","",(IFERROR(VLOOKUP($G178,【選択肢】!$Q$3:$U$90,4,)," ")&IF(H178="","",","&IFERROR(VLOOKUP($H178,【選択肢】!$Q$3:$U$90,4,)," ")&IF(I178="","",","&IFERROR(VLOOKUP($I178,【選択肢】!$Q$3:$U$90,4,)," ")&IF(J178="","",","&IFERROR(VLOOKUP($J178,【選択肢】!$Q$3:$U$90,4,)," ")&IF(K178="","",","&IFERROR(VLOOKUP($K178,【選択肢】!$Q$3:$U$90,4,)," ")&IF(L178="","",","&IFERROR(VLOOKUP($L178,【選択肢】!$Q$3:$U$90,4,)," ")))))))) ->  | O178: =IF(G178="","",(IFERROR(VLOOKUP($G178,【選択肢】!$Q$3:$U$90,5,)," ")&IF(H178="","",","&IFERROR(VLOOKUP($H178,【選択肢】!$Q$3:$U$90,5,)," ")&IF(I178="","",","&IFERROR(VLOOKUP($I178,【選択肢】!$Q$3:$U$90,5,)," ")&IF(J178="","",","&IFERROR(VLOOKUP($J178,【選択肢】!$Q$3:$U$90,5,)," ")&IF(K178="","",","&IFERROR(VLOOKUP($K178,【選択肢】!$Q$3:$U$90,5,)," ")&IF(L178="","",","&IFERROR(VLOOKUP($L178,【選択肢】!$Q$3:$U$90,5,)," ")))))))) -> 
F179: 0 | M179: =IF(G179="","",(IFERROR(VLOOKUP($G179,【選択肢】!$Q$3:$U$90,2,)," ")&IF(H179="","",","&IFERROR(VLOOKUP($H179,【選択肢】!$Q$3:$U$90,2,)," ")&IF(I179="","",","&IFERROR(VLOOKUP($I179,【選択肢】!$Q$3:$U$90,2,)," ")&IF(J179="","",","&IFERROR(VLOOKUP($J179,【選択肢】!$Q$3:$U$90,2,)," ")&IF(K179="","",","&IFERROR(VLOOKUP($K179,【選択肢】!$Q$3:$U$90,2,)," ")&IF(L179="","",","&IFERROR(VLOOKUP($L179,【選択肢】!$Q$3:$U$90,2,)," ")))))))) ->  | N179: =IF(G179="","",(IFERROR(VLOOKUP($G179,【選択肢】!$Q$3:$U$90,4,)," ")&IF(H179="","",","&IFERROR(VLOOKUP($H179,【選択肢】!$Q$3:$U$90,4,)," ")&IF(I179="","",","&IFERROR(VLOOKUP($I179,【選択肢】!$Q$3:$U$90,4,)," ")&IF(J179="","",","&IFERROR(VLOOKUP($J179,【選択肢】!$Q$3:$U$90,4,)," ")&IF(K179="","",","&IFERROR(VLOOKUP($K179,【選択肢】!$Q$3:$U$90,4,)," ")&IF(L179="","",","&IFERROR(VLOOKUP($L179,【選択肢】!$Q$3:$U$90,4,)," ")))))))) ->  | O179: =IF(G179="","",(IFERROR(VLOOKUP($G179,【選択肢】!$Q$3:$U$90,5,)," ")&IF(H179="","",","&IFERROR(VLOOKUP($H179,【選択肢】!$Q$3:$U$90,5,)," ")&IF(I179="","",","&IFERROR(VLOOKUP($I179,【選択肢】!$Q$3:$U$90,5,)," ")&IF(J179="","",","&IFERROR(VLOOKUP($J179,【選択肢】!$Q$3:$U$90,5,)," ")&IF(K179="","",","&IFERROR(VLOOKUP($K179,【選択肢】!$Q$3:$U$90,5,)," ")&IF(L179="","",","&IFERROR(VLOOKUP($L179,【選択肢】!$Q$3:$U$90,5,)," ")))))))) -> 
F180: 0 | M180: =IF(G180="","",(IFERROR(VLOOKUP($G180,【選択肢】!$Q$3:$U$90,2,)," ")&IF(H180="","",","&IFERROR(VLOOKUP($H180,【選択肢】!$Q$3:$U$90,2,)," ")&IF(I180="","",","&IFERROR(VLOOKUP($I180,【選択肢】!$Q$3:$U$90,2,)," ")&IF(J180="","",","&IFERROR(VLOOKUP($J180,【選択肢】!$Q$3:$U$90,2,)," ")&IF(K180="","",","&IFERROR(VLOOKUP($K180,【選択肢】!$Q$3:$U$90,2,)," ")&IF(L180="","",","&IFERROR(VLOOKUP($L180,【選択肢】!$Q$3:$U$90,2,)," ")))))))) ->  | N180: =IF(G180="","",(IFERROR(VLOOKUP($G180,【選択肢】!$Q$3:$U$90,4,)," ")&IF(H180="","",","&IFERROR(VLOOKUP($H180,【選択肢】!$Q$3:$U$90,4,)," ")&IF(I180="","",","&IFERROR(VLOOKUP($I180,【選択肢】!$Q$3:$U$90,4,)," ")&IF(J180="","",","&IFERROR(VLOOKUP($J180,【選択肢】!$Q$3:$U$90,4,)," ")&IF(K180="","",","&IFERROR(VLOOKUP($K180,【選択肢】!$Q$3:$U$90,4,)," ")&IF(L180="","",","&IFERROR(VLOOKUP($L180,【選択肢】!$Q$3:$U$90,4,)," ")))))))) ->  | O180: =IF(G180="","",(IFERROR(VLOOKUP($G180,【選択肢】!$Q$3:$U$90,5,)," ")&IF(H180="","",","&IFERROR(VLOOKUP($H180,【選択肢】!$Q$3:$U$90,5,)," ")&IF(I180="","",","&IFERROR(VLOOKUP($I180,【選択肢】!$Q$3:$U$90,5,)," ")&IF(J180="","",","&IFERROR(VLOOKUP($J180,【選択肢】!$Q$3:$U$90,5,)," ")&IF(K180="","",","&IFERROR(VLOOKUP($K180,【選択肢】!$Q$3:$U$90,5,)," ")&IF(L180="","",","&IFERROR(VLOOKUP($L180,【選択肢】!$Q$3:$U$90,5,)," ")))))))) -> 
F181: 0 | M181: =IF(G181="","",(IFERROR(VLOOKUP($G181,【選択肢】!$Q$3:$U$90,2,)," ")&IF(H181="","",","&IFERROR(VLOOKUP($H181,【選択肢】!$Q$3:$U$90,2,)," ")&IF(I181="","",","&IFERROR(VLOOKUP($I181,【選択肢】!$Q$3:$U$90,2,)," ")&IF(J181="","",","&IFERROR(VLOOKUP($J181,【選択肢】!$Q$3:$U$90,2,)," ")&IF(K181="","",","&IFERROR(VLOOKUP($K181,【選択肢】!$Q$3:$U$90,2,)," ")&IF(L181="","",","&IFERROR(VLOOKUP($L181,【選択肢】!$Q$3:$U$90,2,)," ")))))))) ->  | N181: =IF(G181="","",(IFERROR(VLOOKUP($G181,【選択肢】!$Q$3:$U$90,4,)," ")&IF(H181="","",","&IFERROR(VLOOKUP($H181,【選択肢】!$Q$3:$U$90,4,)," ")&IF(I181="","",","&IFERROR(VLOOKUP($I181,【選択肢】!$Q$3:$U$90,4,)," ")&IF(J181="","",","&IFERROR(VLOOKUP($J181,【選択肢】!$Q$3:$U$90,4,)," ")&IF(K181="","",","&IFERROR(VLOOKUP($K181,【選択肢】!$Q$3:$U$90,4,)," ")&IF(L181="","",","&IFERROR(VLOOKUP($L181,【選択肢】!$Q$3:$U$90,4,)," ")))))))) ->  | O181: =IF(G181="","",(IFERROR(VLOOKUP($G181,【選択肢】!$Q$3:$U$90,5,)," ")&IF(H181="","",","&IFERROR(VLOOKUP($H181,【選択肢】!$Q$3:$U$90,5,)," ")&IF(I181="","",","&IFERROR(VLOOKUP($I181,【選択肢】!$Q$3:$U$90,5,)," ")&IF(J181="","",","&IFERROR(VLOOKUP($J181,【選択肢】!$Q$3:$U$90,5,)," ")&IF(K181="","",","&IFERROR(VLOOKUP($K181,【選択肢】!$Q$3:$U$90,5,)," ")&IF(L181="","",","&IFERROR(VLOOKUP($L181,【選択肢】!$Q$3:$U$90,5,)," ")))))))) -> 
F182: 0 | M182: =IF(G182="","",(IFERROR(VLOOKUP($G182,【選択肢】!$Q$3:$U$90,2,)," ")&IF(H182="","",","&IFERROR(VLOOKUP($H182,【選択肢】!$Q$3:$U$90,2,)," ")&IF(I182="","",","&IFERROR(VLOOKUP($I182,【選択肢】!$Q$3:$U$90,2,)," ")&IF(J182="","",","&IFERROR(VLOOKUP($J182,【選択肢】!$Q$3:$U$90,2,)," ")&IF(K182="","",","&IFERROR(VLOOKUP($K182,【選択肢】!$Q$3:$U$90,2,)," ")&IF(L182="","",","&IFERROR(VLOOKUP($L182,【選択肢】!$Q$3:$U$90,2,)," ")))))))) ->  | N182: =IF(G182="","",(IFERROR(VLOOKUP($G182,【選択肢】!$Q$3:$U$90,4,)," ")&IF(H182="","",","&IFERROR(VLOOKUP($H182,【選択肢】!$Q$3:$U$90,4,)," ")&IF(I182="","",","&IFERROR(VLOOKUP($I182,【選択肢】!$Q$3:$U$90,4,)," ")&IF(J182="","",","&IFERROR(VLOOKUP($J182,【選択肢】!$Q$3:$U$90,4,)," ")&IF(K182="","",","&IFERROR(VLOOKUP($K182,【選択肢】!$Q$3:$U$90,4,)," ")&IF(L182="","",","&IFERROR(VLOOKUP($L182,【選択肢】!$Q$3:$U$90,4,)," ")))))))) ->  | O182: =IF(G182="","",(IFERROR(VLOOKUP($G182,【選択肢】!$Q$3:$U$90,5,)," ")&IF(H182="","",","&IFERROR(VLOOKUP($H182,【選択肢】!$Q$3:$U$90,5,)," ")&IF(I182="","",","&IFERROR(VLOOKUP($I182,【選択肢】!$Q$3:$U$90,5,)," ")&IF(J182="","",","&IFERROR(VLOOKUP($J182,【選択肢】!$Q$3:$U$90,5,)," ")&IF(K182="","",","&IFERROR(VLOOKUP($K182,【選択肢】!$Q$3:$U$90,5,)," ")&IF(L182="","",","&IFERROR(VLOOKUP($L182,【選択肢】!$Q$3:$U$90,5,)," ")))))))) -> 
F183: 0 | M183: =IF(G183="","",(IFERROR(VLOOKUP($G183,【選択肢】!$Q$3:$U$90,2,)," ")&IF(H183="","",","&IFERROR(VLOOKUP($H183,【選択肢】!$Q$3:$U$90,2,)," ")&IF(I183="","",","&IFERROR(VLOOKUP($I183,【選択肢】!$Q$3:$U$90,2,)," ")&IF(J183="","",","&IFERROR(VLOOKUP($J183,【選択肢】!$Q$3:$U$90,2,)," ")&IF(K183="","",","&IFERROR(VLOOKUP($K183,【選択肢】!$Q$3:$U$90,2,)," ")&IF(L183="","",","&IFERROR(VLOOKUP($L183,【選択肢】!$Q$3:$U$90,2,)," ")))))))) ->  | N183: =IF(G183="","",(IFERROR(VLOOKUP($G183,【選択肢】!$Q$3:$U$90,4,)," ")&IF(H183="","",","&IFERROR(VLOOKUP($H183,【選択肢】!$Q$3:$U$90,4,)," ")&IF(I183="","",","&IFERROR(VLOOKUP($I183,【選択肢】!$Q$3:$U$90,4,)," ")&IF(J183="","",","&IFERROR(VLOOKUP($J183,【選択肢】!$Q$3:$U$90,4,)," ")&IF(K183="","",","&IFERROR(VLOOKUP($K183,【選択肢】!$Q$3:$U$90,4,)," ")&IF(L183="","",","&IFERROR(VLOOKUP($L183,【選択肢】!$Q$3:$U$90,4,)," ")))))))) ->  | O183: =IF(G183="","",(IFERROR(VLOOKUP($G183,【選択肢】!$Q$3:$U$90,5,)," ")&IF(H183="","",","&IFERROR(VLOOKUP($H183,【選択肢】!$Q$3:$U$90,5,)," ")&IF(I183="","",","&IFERROR(VLOOKUP($I183,【選択肢】!$Q$3:$U$90,5,)," ")&IF(J183="","",","&IFERROR(VLOOKUP($J183,【選択肢】!$Q$3:$U$90,5,)," ")&IF(K183="","",","&IFERROR(VLOOKUP($K183,【選択肢】!$Q$3:$U$90,5,)," ")&IF(L183="","",","&IFERROR(VLOOKUP($L183,【選択肢】!$Q$3:$U$90,5,)," ")))))))) -> 
F184: =SUM(D184+E184) -> 0 | M184: =IF(G184="","",(IFERROR(VLOOKUP($G184,【選択肢】!$Q$3:$U$90,2,)," ")&IF(H184="","",","&IFERROR(VLOOKUP($H184,【選択肢】!$Q$3:$U$90,2,)," ")&IF(I184="","",","&IFERROR(VLOOKUP($I184,【選択肢】!$Q$3:$U$90,2,)," ")&IF(J184="","",","&IFERROR(VLOOKUP($J184,【選択肢】!$Q$3:$U$90,2,)," ")&IF(K184="","",","&IFERROR(VLOOKUP($K184,【選択肢】!$Q$3:$U$90,2,)," ")&IF(L184="","",","&IFERROR(VLOOKUP($L184,【選択肢】!$Q$3:$U$90,2,)," ")))))))) ->  | N184: =IF(G184="","",(IFERROR(VLOOKUP($G184,【選択肢】!$Q$3:$U$90,4,)," ")&IF(H184="","",","&IFERROR(VLOOKUP($H184,【選択肢】!$Q$3:$U$90,4,)," ")&IF(I184="","",","&IFERROR(VLOOKUP($I184,【選択肢】!$Q$3:$U$90,4,)," ")&IF(J184="","",","&IFERROR(VLOOKUP($J184,【選択肢】!$Q$3:$U$90,4,)," ")&IF(K184="","",","&IFERROR(VLOOKUP($K184,【選択肢】!$Q$3:$U$90,4,)," ")&IF(L184="","",","&IFERROR(VLOOKUP($L184,【選択肢】!$Q$3:$U$90,4,)," ")))))))) ->  | O184: =IF(G184="","",(IFERROR(VLOOKUP($G184,【選択肢】!$Q$3:$U$90,5,)," ")&IF(H184="","",","&IFERROR(VLOOKUP($H184,【選択肢】!$Q$3:$U$90,5,)," ")&IF(I184="","",","&IFERROR(VLOOKUP($I184,【選択肢】!$Q$3:$U$90,5,)," ")&IF(J184="","",","&IFERROR(VLOOKUP($J184,【選択肢】!$Q$3:$U$90,5,)," ")&IF(K184="","",","&IFERROR(VLOOKUP($K184,【選択肢】!$Q$3:$U$90,5,)," ")&IF(L184="","",","&IFERROR(VLOOKUP($L184,【選択肢】!$Q$3:$U$90,5,)," ")))))))) -> 
F185: 0 | M185: =IF(G185="","",(IFERROR(VLOOKUP($G185,【選択肢】!$Q$3:$U$90,2,)," ")&IF(H185="","",","&IFERROR(VLOOKUP($H185,【選択肢】!$Q$3:$U$90,2,)," ")&IF(I185="","",","&IFERROR(VLOOKUP($I185,【選択肢】!$Q$3:$U$90,2,)," ")&IF(J185="","",","&IFERROR(VLOOKUP($J185,【選択肢】!$Q$3:$U$90,2,)," ")&IF(K185="","",","&IFERROR(VLOOKUP($K185,【選択肢】!$Q$3:$U$90,2,)," ")&IF(L185="","",","&IFERROR(VLOOKUP($L185,【選択肢】!$Q$3:$U$90,2,)," ")))))))) ->  | N185: =IF(G185="","",(IFERROR(VLOOKUP($G185,【選択肢】!$Q$3:$U$90,4,)," ")&IF(H185="","",","&IFERROR(VLOOKUP($H185,【選択肢】!$Q$3:$U$90,4,)," ")&IF(I185="","",","&IFERROR(VLOOKUP($I185,【選択肢】!$Q$3:$U$90,4,)," ")&IF(J185="","",","&IFERROR(VLOOKUP($J185,【選択肢】!$Q$3:$U$90,4,)," ")&IF(K185="","",","&IFERROR(VLOOKUP($K185,【選択肢】!$Q$3:$U$90,4,)," ")&IF(L185="","",","&IFERROR(VLOOKUP($L185,【選択肢】!$Q$3:$U$90,4,)," ")))))))) ->  | O185: =IF(G185="","",(IFERROR(VLOOKUP($G185,【選択肢】!$Q$3:$U$90,5,)," ")&IF(H185="","",","&IFERROR(VLOOKUP($H185,【選択肢】!$Q$3:$U$90,5,)," ")&IF(I185="","",","&IFERROR(VLOOKUP($I185,【選択肢】!$Q$3:$U$90,5,)," ")&IF(J185="","",","&IFERROR(VLOOKUP($J185,【選択肢】!$Q$3:$U$90,5,)," ")&IF(K185="","",","&IFERROR(VLOOKUP($K185,【選択肢】!$Q$3:$U$90,5,)," ")&IF(L185="","",","&IFERROR(VLOOKUP($L185,【選択肢】!$Q$3:$U$90,5,)," ")))))))) -> 
F186: 0 | M186: =IF(G186="","",(IFERROR(VLOOKUP($G186,【選択肢】!$Q$3:$U$90,2,)," ")&IF(H186="","",","&IFERROR(VLOOKUP($H186,【選択肢】!$Q$3:$U$90,2,)," ")&IF(I186="","",","&IFERROR(VLOOKUP($I186,【選択肢】!$Q$3:$U$90,2,)," ")&IF(J186="","",","&IFERROR(VLOOKUP($J186,【選択肢】!$Q$3:$U$90,2,)," ")&IF(K186="","",","&IFERROR(VLOOKUP($K186,【選択肢】!$Q$3:$U$90,2,)," ")&IF(L186="","",","&IFERROR(VLOOKUP($L186,【選択肢】!$Q$3:$U$90,2,)," ")))))))) ->  | N186: =IF(G186="","",(IFERROR(VLOOKUP($G186,【選択肢】!$Q$3:$U$90,4,)," ")&IF(H186="","",","&IFERROR(VLOOKUP($H186,【選択肢】!$Q$3:$U$90,4,)," ")&IF(I186="","",","&IFERROR(VLOOKUP($I186,【選択肢】!$Q$3:$U$90,4,)," ")&IF(J186="","",","&IFERROR(VLOOKUP($J186,【選択肢】!$Q$3:$U$90,4,)," ")&IF(K186="","",","&IFERROR(VLOOKUP($K186,【選択肢】!$Q$3:$U$90,4,)," ")&IF(L186="","",","&IFERROR(VLOOKUP($L186,【選択肢】!$Q$3:$U$90,4,)," ")))))))) ->  | O186: =IF(G186="","",(IFERROR(VLOOKUP($G186,【選択肢】!$Q$3:$U$90,5,)," ")&IF(H186="","",","&IFERROR(VLOOKUP($H186,【選択肢】!$Q$3:$U$90,5,)," ")&IF(I186="","",","&IFERROR(VLOOKUP($I186,【選択肢】!$Q$3:$U$90,5,)," ")&IF(J186="","",","&IFERROR(VLOOKUP($J186,【選択肢】!$Q$3:$U$90,5,)," ")&IF(K186="","",","&IFERROR(VLOOKUP($K186,【選択肢】!$Q$3:$U$90,5,)," ")&IF(L186="","",","&IFERROR(VLOOKUP($L186,【選択肢】!$Q$3:$U$90,5,)," ")))))))) -> 
F187: 0 | M187: =IF(G187="","",(IFERROR(VLOOKUP($G187,【選択肢】!$Q$3:$U$90,2,)," ")&IF(H187="","",","&IFERROR(VLOOKUP($H187,【選択肢】!$Q$3:$U$90,2,)," ")&IF(I187="","",","&IFERROR(VLOOKUP($I187,【選択肢】!$Q$3:$U$90,2,)," ")&IF(J187="","",","&IFERROR(VLOOKUP($J187,【選択肢】!$Q$3:$U$90,2,)," ")&IF(K187="","",","&IFERROR(VLOOKUP($K187,【選択肢】!$Q$3:$U$90,2,)," ")&IF(L187="","",","&IFERROR(VLOOKUP($L187,【選択肢】!$Q$3:$U$90,2,)," ")))))))) ->  | N187: =IF(G187="","",(IFERROR(VLOOKUP($G187,【選択肢】!$Q$3:$U$90,4,)," ")&IF(H187="","",","&IFERROR(VLOOKUP($H187,【選択肢】!$Q$3:$U$90,4,)," ")&IF(I187="","",","&IFERROR(VLOOKUP($I187,【選択肢】!$Q$3:$U$90,4,)," ")&IF(J187="","",","&IFERROR(VLOOKUP($J187,【選択肢】!$Q$3:$U$90,4,)," ")&IF(K187="","",","&IFERROR(VLOOKUP($K187,【選択肢】!$Q$3:$U$90,4,)," ")&IF(L187="","",","&IFERROR(VLOOKUP($L187,【選択肢】!$Q$3:$U$90,4,)," ")))))))) ->  | O187: =IF(G187="","",(IFERROR(VLOOKUP($G187,【選択肢】!$Q$3:$U$90,5,)," ")&IF(H187="","",","&IFERROR(VLOOKUP($H187,【選択肢】!$Q$3:$U$90,5,)," ")&IF(I187="","",","&IFERROR(VLOOKUP($I187,【選択肢】!$Q$3:$U$90,5,)," ")&IF(J187="","",","&IFERROR(VLOOKUP($J187,【選択肢】!$Q$3:$U$90,5,)," ")&IF(K187="","",","&IFERROR(VLOOKUP($K187,【選択肢】!$Q$3:$U$90,5,)," ")&IF(L187="","",","&IFERROR(VLOOKUP($L187,【選択肢】!$Q$3:$U$90,5,)," ")))))))) -> 
F188: 0 | M188: =IF(G188="","",(IFERROR(VLOOKUP($G188,【選択肢】!$Q$3:$U$90,2,)," ")&IF(H188="","",","&IFERROR(VLOOKUP($H188,【選択肢】!$Q$3:$U$90,2,)," ")&IF(I188="","",","&IFERROR(VLOOKUP($I188,【選択肢】!$Q$3:$U$90,2,)," ")&IF(J188="","",","&IFERROR(VLOOKUP($J188,【選択肢】!$Q$3:$U$90,2,)," ")&IF(K188="","",","&IFERROR(VLOOKUP($K188,【選択肢】!$Q$3:$U$90,2,)," ")&IF(L188="","",","&IFERROR(VLOOKUP($L188,【選択肢】!$Q$3:$U$90,2,)," ")))))))) ->  | N188: =IF(G188="","",(IFERROR(VLOOKUP($G188,【選択肢】!$Q$3:$U$90,4,)," ")&IF(H188="","",","&IFERROR(VLOOKUP($H188,【選択肢】!$Q$3:$U$90,4,)," ")&IF(I188="","",","&IFERROR(VLOOKUP($I188,【選択肢】!$Q$3:$U$90,4,)," ")&IF(J188="","",","&IFERROR(VLOOKUP($J188,【選択肢】!$Q$3:$U$90,4,)," ")&IF(K188="","",","&IFERROR(VLOOKUP($K188,【選択肢】!$Q$3:$U$90,4,)," ")&IF(L188="","",","&IFERROR(VLOOKUP($L188,【選択肢】!$Q$3:$U$90,4,)," ")))))))) ->  | O188: =IF(G188="","",(IFERROR(VLOOKUP($G188,【選択肢】!$Q$3:$U$90,5,)," ")&IF(H188="","",","&IFERROR(VLOOKUP($H188,【選択肢】!$Q$3:$U$90,5,)," ")&IF(I188="","",","&IFERROR(VLOOKUP($I188,【選択肢】!$Q$3:$U$90,5,)," ")&IF(J188="","",","&IFERROR(VLOOKUP($J188,【選択肢】!$Q$3:$U$90,5,)," ")&IF(K188="","",","&IFERROR(VLOOKUP($K188,【選択肢】!$Q$3:$U$90,5,)," ")&IF(L188="","",","&IFERROR(VLOOKUP($L188,【選択肢】!$Q$3:$U$90,5,)," ")))))))) -> 
F189: 0 | M189: =IF(G189="","",(IFERROR(VLOOKUP($G189,【選択肢】!$Q$3:$U$90,2,)," ")&IF(H189="","",","&IFERROR(VLOOKUP($H189,【選択肢】!$Q$3:$U$90,2,)," ")&IF(I189="","",","&IFERROR(VLOOKUP($I189,【選択肢】!$Q$3:$U$90,2,)," ")&IF(J189="","",","&IFERROR(VLOOKUP($J189,【選択肢】!$Q$3:$U$90,2,)," ")&IF(K189="","",","&IFERROR(VLOOKUP($K189,【選択肢】!$Q$3:$U$90,2,)," ")&IF(L189="","",","&IFERROR(VLOOKUP($L189,【選択肢】!$Q$3:$U$90,2,)," ")))))))) ->  | N189: =IF(G189="","",(IFERROR(VLOOKUP($G189,【選択肢】!$Q$3:$U$90,4,)," ")&IF(H189="","",","&IFERROR(VLOOKUP($H189,【選択肢】!$Q$3:$U$90,4,)," ")&IF(I189="","",","&IFERROR(VLOOKUP($I189,【選択肢】!$Q$3:$U$90,4,)," ")&IF(J189="","",","&IFERROR(VLOOKUP($J189,【選択肢】!$Q$3:$U$90,4,)," ")&IF(K189="","",","&IFERROR(VLOOKUP($K189,【選択肢】!$Q$3:$U$90,4,)," ")&IF(L189="","",","&IFERROR(VLOOKUP($L189,【選択肢】!$Q$3:$U$90,4,)," ")))))))) ->  | O189: =IF(G189="","",(IFERROR(VLOOKUP($G189,【選択肢】!$Q$3:$U$90,5,)," ")&IF(H189="","",","&IFERROR(VLOOKUP($H189,【選択肢】!$Q$3:$U$90,5,)," ")&IF(I189="","",","&IFERROR(VLOOKUP($I189,【選択肢】!$Q$3:$U$90,5,)," ")&IF(J189="","",","&IFERROR(VLOOKUP($J189,【選択肢】!$Q$3:$U$90,5,)," ")&IF(K189="","",","&IFERROR(VLOOKUP($K189,【選択肢】!$Q$3:$U$90,5,)," ")&IF(L189="","",","&IFERROR(VLOOKUP($L189,【選択肢】!$Q$3:$U$90,5,)," ")))))))) -> 
F190: 0 | M190: =IF(G190="","",(IFERROR(VLOOKUP($G190,【選択肢】!$Q$3:$U$90,2,)," ")&IF(H190="","",","&IFERROR(VLOOKUP($H190,【選択肢】!$Q$3:$U$90,2,)," ")&IF(I190="","",","&IFERROR(VLOOKUP($I190,【選択肢】!$Q$3:$U$90,2,)," ")&IF(J190="","",","&IFERROR(VLOOKUP($J190,【選択肢】!$Q$3:$U$90,2,)," ")&IF(K190="","",","&IFERROR(VLOOKUP($K190,【選択肢】!$Q$3:$U$90,2,)," ")&IF(L190="","",","&IFERROR(VLOOKUP($L190,【選択肢】!$Q$3:$U$90,2,)," ")))))))) ->  | N190: =IF(G190="","",(IFERROR(VLOOKUP($G190,【選択肢】!$Q$3:$U$90,4,)," ")&IF(H190="","",","&IFERROR(VLOOKUP($H190,【選択肢】!$Q$3:$U$90,4,)," ")&IF(I190="","",","&IFERROR(VLOOKUP($I190,【選択肢】!$Q$3:$U$90,4,)," ")&IF(J190="","",","&IFERROR(VLOOKUP($J190,【選択肢】!$Q$3:$U$90,4,)," ")&IF(K190="","",","&IFERROR(VLOOKUP($K190,【選択肢】!$Q$3:$U$90,4,)," ")&IF(L190="","",","&IFERROR(VLOOKUP($L190,【選択肢】!$Q$3:$U$90,4,)," ")))))))) ->  | O190: =IF(G190="","",(IFERROR(VLOOKUP($G190,【選択肢】!$Q$3:$U$90,5,)," ")&IF(H190="","",","&IFERROR(VLOOKUP($H190,【選択肢】!$Q$3:$U$90,5,)," ")&IF(I190="","",","&IFERROR(VLOOKUP($I190,【選択肢】!$Q$3:$U$90,5,)," ")&IF(J190="","",","&IFERROR(VLOOKUP($J190,【選択肢】!$Q$3:$U$90,5,)," ")&IF(K190="","",","&IFERROR(VLOOKUP($K190,【選択肢】!$Q$3:$U$90,5,)," ")&IF(L190="","",","&IFERROR(VLOOKUP($L190,【選択肢】!$Q$3:$U$90,5,)," ")))))))) -> 
F191: 0 | M191: =IF(G191="","",(IFERROR(VLOOKUP($G191,【選択肢】!$Q$3:$U$90,2,)," ")&IF(H191="","",","&IFERROR(VLOOKUP($H191,【選択肢】!$Q$3:$U$90,2,)," ")&IF(I191="","",","&IFERROR(VLOOKUP($I191,【選択肢】!$Q$3:$U$90,2,)," ")&IF(J191="","",","&IFERROR(VLOOKUP($J191,【選択肢】!$Q$3:$U$90,2,)," ")&IF(K191="","",","&IFERROR(VLOOKUP($K191,【選択肢】!$Q$3:$U$90,2,)," ")&IF(L191="","",","&IFERROR(VLOOKUP($L191,【選択肢】!$Q$3:$U$90,2,)," ")))))))) ->  | N191: =IF(G191="","",(IFERROR(VLOOKUP($G191,【選択肢】!$Q$3:$U$90,4,)," ")&IF(H191="","",","&IFERROR(VLOOKUP($H191,【選択肢】!$Q$3:$U$90,4,)," ")&IF(I191="","",","&IFERROR(VLOOKUP($I191,【選択肢】!$Q$3:$U$90,4,)," ")&IF(J191="","",","&IFERROR(VLOOKUP($J191,【選択肢】!$Q$3:$U$90,4,)," ")&IF(K191="","",","&IFERROR(VLOOKUP($K191,【選択肢】!$Q$3:$U$90,4,)," ")&IF(L191="","",","&IFERROR(VLOOKUP($L191,【選択肢】!$Q$3:$U$90,4,)," ")))))))) ->  | O191: =IF(G191="","",(IFERROR(VLOOKUP($G191,【選択肢】!$Q$3:$U$90,5,)," ")&IF(H191="","",","&IFERROR(VLOOKUP($H191,【選択肢】!$Q$3:$U$90,5,)," ")&IF(I191="","",","&IFERROR(VLOOKUP($I191,【選択肢】!$Q$3:$U$90,5,)," ")&IF(J191="","",","&IFERROR(VLOOKUP($J191,【選択肢】!$Q$3:$U$90,5,)," ")&IF(K191="","",","&IFERROR(VLOOKUP($K191,【選択肢】!$Q$3:$U$90,5,)," ")&IF(L191="","",","&IFERROR(VLOOKUP($L191,【選択肢】!$Q$3:$U$90,5,)," ")))))))) -> 
F192: =SUM(D192+E192) -> 0 | M192: =IF(G192="","",(IFERROR(VLOOKUP($G192,【選択肢】!$Q$3:$U$90,2,)," ")&IF(H192="","",","&IFERROR(VLOOKUP($H192,【選択肢】!$Q$3:$U$90,2,)," ")&IF(I192="","",","&IFERROR(VLOOKUP($I192,【選択肢】!$Q$3:$U$90,2,)," ")&IF(J192="","",","&IFERROR(VLOOKUP($J192,【選択肢】!$Q$3:$U$90,2,)," ")&IF(K192="","",","&IFERROR(VLOOKUP($K192,【選択肢】!$Q$3:$U$90,2,)," ")&IF(L192="","",","&IFERROR(VLOOKUP($L192,【選択肢】!$Q$3:$U$90,2,)," ")))))))) ->  | N192: =IF(G192="","",(IFERROR(VLOOKUP($G192,【選択肢】!$Q$3:$U$90,4,)," ")&IF(H192="","",","&IFERROR(VLOOKUP($H192,【選択肢】!$Q$3:$U$90,4,)," ")&IF(I192="","",","&IFERROR(VLOOKUP($I192,【選択肢】!$Q$3:$U$90,4,)," ")&IF(J192="","",","&IFERROR(VLOOKUP($J192,【選択肢】!$Q$3:$U$90,4,)," ")&IF(K192="","",","&IFERROR(VLOOKUP($K192,【選択肢】!$Q$3:$U$90,4,)," ")&IF(L192="","",","&IFERROR(VLOOKUP($L192,【選択肢】!$Q$3:$U$90,4,)," ")))))))) ->  | O192: =IF(G192="","",(IFERROR(VLOOKUP($G192,【選択肢】!$Q$3:$U$90,5,)," ")&IF(H192="","",","&IFERROR(VLOOKUP($H192,【選択肢】!$Q$3:$U$90,5,)," ")&IF(I192="","",","&IFERROR(VLOOKUP($I192,【選択肢】!$Q$3:$U$90,5,)," ")&IF(J192="","",","&IFERROR(VLOOKUP($J192,【選択肢】!$Q$3:$U$90,5,)," ")&IF(K192="","",","&IFERROR(VLOOKUP($K192,【選択肢】!$Q$3:$U$90,5,)," ")&IF(L192="","",","&IFERROR(VLOOKUP($L192,【選択肢】!$Q$3:$U$90,5,)," ")))))))) -> 
F193: 0 | M193: =IF(G193="","",(IFERROR(VLOOKUP($G193,【選択肢】!$Q$3:$U$90,2,)," ")&IF(H193="","",","&IFERROR(VLOOKUP($H193,【選択肢】!$Q$3:$U$90,2,)," ")&IF(I193="","",","&IFERROR(VLOOKUP($I193,【選択肢】!$Q$3:$U$90,2,)," ")&IF(J193="","",","&IFERROR(VLOOKUP($J193,【選択肢】!$Q$3:$U$90,2,)," ")&IF(K193="","",","&IFERROR(VLOOKUP($K193,【選択肢】!$Q$3:$U$90,2,)," ")&IF(L193="","",","&IFERROR(VLOOKUP($L193,【選択肢】!$Q$3:$U$90,2,)," ")))))))) ->  | N193: =IF(G193="","",(IFERROR(VLOOKUP($G193,【選択肢】!$Q$3:$U$90,4,)," ")&IF(H193="","",","&IFERROR(VLOOKUP($H193,【選択肢】!$Q$3:$U$90,4,)," ")&IF(I193="","",","&IFERROR(VLOOKUP($I193,【選択肢】!$Q$3:$U$90,4,)," ")&IF(J193="","",","&IFERROR(VLOOKUP($J193,【選択肢】!$Q$3:$U$90,4,)," ")&IF(K193="","",","&IFERROR(VLOOKUP($K193,【選択肢】!$Q$3:$U$90,4,)," ")&IF(L193="","",","&IFERROR(VLOOKUP($L193,【選択肢】!$Q$3:$U$90,4,)," ")))))))) ->  | O193: =IF(G193="","",(IFERROR(VLOOKUP($G193,【選択肢】!$Q$3:$U$90,5,)," ")&IF(H193="","",","&IFERROR(VLOOKUP($H193,【選択肢】!$Q$3:$U$90,5,)," ")&IF(I193="","",","&IFERROR(VLOOKUP($I193,【選択肢】!$Q$3:$U$90,5,)," ")&IF(J193="","",","&IFERROR(VLOOKUP($J193,【選択肢】!$Q$3:$U$90,5,)," ")&IF(K193="","",","&IFERROR(VLOOKUP($K193,【選択肢】!$Q$3:$U$90,5,)," ")&IF(L193="","",","&IFERROR(VLOOKUP($L193,【選択肢】!$Q$3:$U$90,5,)," ")))))))) -> 
F194: 0 | M194: =IF(G194="","",(IFERROR(VLOOKUP($G194,【選択肢】!$Q$3:$U$90,2,)," ")&IF(H194="","",","&IFERROR(VLOOKUP($H194,【選択肢】!$Q$3:$U$90,2,)," ")&IF(I194="","",","&IFERROR(VLOOKUP($I194,【選択肢】!$Q$3:$U$90,2,)," ")&IF(J194="","",","&IFERROR(VLOOKUP($J194,【選択肢】!$Q$3:$U$90,2,)," ")&IF(K194="","",","&IFERROR(VLOOKUP($K194,【選択肢】!$Q$3:$U$90,2,)," ")&IF(L194="","",","&IFERROR(VLOOKUP($L194,【選択肢】!$Q$3:$U$90,2,)," ")))))))) ->  | N194: =IF(G194="","",(IFERROR(VLOOKUP($G194,【選択肢】!$Q$3:$U$90,4,)," ")&IF(H194="","",","&IFERROR(VLOOKUP($H194,【選択肢】!$Q$3:$U$90,4,)," ")&IF(I194="","",","&IFERROR(VLOOKUP($I194,【選択肢】!$Q$3:$U$90,4,)," ")&IF(J194="","",","&IFERROR(VLOOKUP($J194,【選択肢】!$Q$3:$U$90,4,)," ")&IF(K194="","",","&IFERROR(VLOOKUP($K194,【選択肢】!$Q$3:$U$90,4,)," ")&IF(L194="","",","&IFERROR(VLOOKUP($L194,【選択肢】!$Q$3:$U$90,4,)," ")))))))) ->  | O194: =IF(G194="","",(IFERROR(VLOOKUP($G194,【選択肢】!$Q$3:$U$90,5,)," ")&IF(H194="","",","&IFERROR(VLOOKUP($H194,【選択肢】!$Q$3:$U$90,5,)," ")&IF(I194="","",","&IFERROR(VLOOKUP($I194,【選択肢】!$Q$3:$U$90,5,)," ")&IF(J194="","",","&IFERROR(VLOOKUP($J194,【選択肢】!$Q$3:$U$90,5,)," ")&IF(K194="","",","&IFERROR(VLOOKUP($K194,【選択肢】!$Q$3:$U$90,5,)," ")&IF(L194="","",","&IFERROR(VLOOKUP($L194,【選択肢】!$Q$3:$U$90,5,)," ")))))))) -> 
F195: 0 | M195: =IF(G195="","",(IFERROR(VLOOKUP($G195,【選択肢】!$Q$3:$U$90,2,)," ")&IF(H195="","",","&IFERROR(VLOOKUP($H195,【選択肢】!$Q$3:$U$90,2,)," ")&IF(I195="","",","&IFERROR(VLOOKUP($I195,【選択肢】!$Q$3:$U$90,2,)," ")&IF(J195="","",","&IFERROR(VLOOKUP($J195,【選択肢】!$Q$3:$U$90,2,)," ")&IF(K195="","",","&IFERROR(VLOOKUP($K195,【選択肢】!$Q$3:$U$90,2,)," ")&IF(L195="","",","&IFERROR(VLOOKUP($L195,【選択肢】!$Q$3:$U$90,2,)," ")))))))) ->  | N195: =IF(G195="","",(IFERROR(VLOOKUP($G195,【選択肢】!$Q$3:$U$90,4,)," ")&IF(H195="","",","&IFERROR(VLOOKUP($H195,【選択肢】!$Q$3:$U$90,4,)," ")&IF(I195="","",","&IFERROR(VLOOKUP($I195,【選択肢】!$Q$3:$U$90,4,)," ")&IF(J195="","",","&IFERROR(VLOOKUP($J195,【選択肢】!$Q$3:$U$90,4,)," ")&IF(K195="","",","&IFERROR(VLOOKUP($K195,【選択肢】!$Q$3:$U$90,4,)," ")&IF(L195="","",","&IFERROR(VLOOKUP($L195,【選択肢】!$Q$3:$U$90,4,)," ")))))))) ->  | O195: =IF(G195="","",(IFERROR(VLOOKUP($G195,【選択肢】!$Q$3:$U$90,5,)," ")&IF(H195="","",","&IFERROR(VLOOKUP($H195,【選択肢】!$Q$3:$U$90,5,)," ")&IF(I195="","",","&IFERROR(VLOOKUP($I195,【選択肢】!$Q$3:$U$90,5,)," ")&IF(J195="","",","&IFERROR(VLOOKUP($J195,【選択肢】!$Q$3:$U$90,5,)," ")&IF(K195="","",","&IFERROR(VLOOKUP($K195,【選択肢】!$Q$3:$U$90,5,)," ")&IF(L195="","",","&IFERROR(VLOOKUP($L195,【選択肢】!$Q$3:$U$90,5,)," ")))))))) -> 
F196: 0 | M196: =IF(G196="","",(IFERROR(VLOOKUP($G196,【選択肢】!$Q$3:$U$90,2,)," ")&IF(H196="","",","&IFERROR(VLOOKUP($H196,【選択肢】!$Q$3:$U$90,2,)," ")&IF(I196="","",","&IFERROR(VLOOKUP($I196,【選択肢】!$Q$3:$U$90,2,)," ")&IF(J196="","",","&IFERROR(VLOOKUP($J196,【選択肢】!$Q$3:$U$90,2,)," ")&IF(K196="","",","&IFERROR(VLOOKUP($K196,【選択肢】!$Q$3:$U$90,2,)," ")&IF(L196="","",","&IFERROR(VLOOKUP($L196,【選択肢】!$Q$3:$U$90,2,)," ")))))))) ->  | N196: =IF(G196="","",(IFERROR(VLOOKUP($G196,【選択肢】!$Q$3:$U$90,4,)," ")&IF(H196="","",","&IFERROR(VLOOKUP($H196,【選択肢】!$Q$3:$U$90,4,)," ")&IF(I196="","",","&IFERROR(VLOOKUP($I196,【選択肢】!$Q$3:$U$90,4,)," ")&IF(J196="","",","&IFERROR(VLOOKUP($J196,【選択肢】!$Q$3:$U$90,4,)," ")&IF(K196="","",","&IFERROR(VLOOKUP($K196,【選択肢】!$Q$3:$U$90,4,)," ")&IF(L196="","",","&IFERROR(VLOOKUP($L196,【選択肢】!$Q$3:$U$90,4,)," ")))))))) ->  | O196: =IF(G196="","",(IFERROR(VLOOKUP($G196,【選択肢】!$Q$3:$U$90,5,)," ")&IF(H196="","",","&IFERROR(VLOOKUP($H196,【選択肢】!$Q$3:$U$90,5,)," ")&IF(I196="","",","&IFERROR(VLOOKUP($I196,【選択肢】!$Q$3:$U$90,5,)," ")&IF(J196="","",","&IFERROR(VLOOKUP($J196,【選択肢】!$Q$3:$U$90,5,)," ")&IF(K196="","",","&IFERROR(VLOOKUP($K196,【選択肢】!$Q$3:$U$90,5,)," ")&IF(L196="","",","&IFERROR(VLOOKUP($L196,【選択肢】!$Q$3:$U$90,5,)," ")))))))) -> 
F197: 0 | M197: =IF(G197="","",(IFERROR(VLOOKUP($G197,【選択肢】!$Q$3:$U$90,2,)," ")&IF(H197="","",","&IFERROR(VLOOKUP($H197,【選択肢】!$Q$3:$U$90,2,)," ")&IF(I197="","",","&IFERROR(VLOOKUP($I197,【選択肢】!$Q$3:$U$90,2,)," ")&IF(J197="","",","&IFERROR(VLOOKUP($J197,【選択肢】!$Q$3:$U$90,2,)," ")&IF(K197="","",","&IFERROR(VLOOKUP($K197,【選択肢】!$Q$3:$U$90,2,)," ")&IF(L197="","",","&IFERROR(VLOOKUP($L197,【選択肢】!$Q$3:$U$90,2,)," ")))))))) ->  | N197: =IF(G197="","",(IFERROR(VLOOKUP($G197,【選択肢】!$Q$3:$U$90,4,)," ")&IF(H197="","",","&IFERROR(VLOOKUP($H197,【選択肢】!$Q$3:$U$90,4,)," ")&IF(I197="","",","&IFERROR(VLOOKUP($I197,【選択肢】!$Q$3:$U$90,4,)," ")&IF(J197="","",","&IFERROR(VLOOKUP($J197,【選択肢】!$Q$3:$U$90,4,)," ")&IF(K197="","",","&IFERROR(VLOOKUP($K197,【選択肢】!$Q$3:$U$90,4,)," ")&IF(L197="","",","&IFERROR(VLOOKUP($L197,【選択肢】!$Q$3:$U$90,4,)," ")))))))) ->  | O197: =IF(G197="","",(IFERROR(VLOOKUP($G197,【選択肢】!$Q$3:$U$90,5,)," ")&IF(H197="","",","&IFERROR(VLOOKUP($H197,【選択肢】!$Q$3:$U$90,5,)," ")&IF(I197="","",","&IFERROR(VLOOKUP($I197,【選択肢】!$Q$3:$U$90,5,)," ")&IF(J197="","",","&IFERROR(VLOOKUP($J197,【選択肢】!$Q$3:$U$90,5,)," ")&IF(K197="","",","&IFERROR(VLOOKUP($K197,【選択肢】!$Q$3:$U$90,5,)," ")&IF(L197="","",","&IFERROR(VLOOKUP($L197,【選択肢】!$Q$3:$U$90,5,)," ")))))))) -> 
F198: 0 | M198: =IF(G198="","",(IFERROR(VLOOKUP($G198,【選択肢】!$Q$3:$U$90,2,)," ")&IF(H198="","",","&IFERROR(VLOOKUP($H198,【選択肢】!$Q$3:$U$90,2,)," ")&IF(I198="","",","&IFERROR(VLOOKUP($I198,【選択肢】!$Q$3:$U$90,2,)," ")&IF(J198="","",","&IFERROR(VLOOKUP($J198,【選択肢】!$Q$3:$U$90,2,)," ")&IF(K198="","",","&IFERROR(VLOOKUP($K198,【選択肢】!$Q$3:$U$90,2,)," ")&IF(L198="","",","&IFERROR(VLOOKUP($L198,【選択肢】!$Q$3:$U$90,2,)," ")))))))) ->  | N198: =IF(G198="","",(IFERROR(VLOOKUP($G198,【選択肢】!$Q$3:$U$90,4,)," ")&IF(H198="","",","&IFERROR(VLOOKUP($H198,【選択肢】!$Q$3:$U$90,4,)," ")&IF(I198="","",","&IFERROR(VLOOKUP($I198,【選択肢】!$Q$3:$U$90,4,)," ")&IF(J198="","",","&IFERROR(VLOOKUP($J198,【選択肢】!$Q$3:$U$90,4,)," ")&IF(K198="","",","&IFERROR(VLOOKUP($K198,【選択肢】!$Q$3:$U$90,4,)," ")&IF(L198="","",","&IFERROR(VLOOKUP($L198,【選択肢】!$Q$3:$U$90,4,)," ")))))))) ->  | O198: =IF(G198="","",(IFERROR(VLOOKUP($G198,【選択肢】!$Q$3:$U$90,5,)," ")&IF(H198="","",","&IFERROR(VLOOKUP($H198,【選択肢】!$Q$3:$U$90,5,)," ")&IF(I198="","",","&IFERROR(VLOOKUP($I198,【選択肢】!$Q$3:$U$90,5,)," ")&IF(J198="","",","&IFERROR(VLOOKUP($J198,【選択肢】!$Q$3:$U$90,5,)," ")&IF(K198="","",","&IFERROR(VLOOKUP($K198,【選択肢】!$Q$3:$U$90,5,)," ")&IF(L198="","",","&IFERROR(VLOOKUP($L198,【選択肢】!$Q$3:$U$90,5,)," ")))))))) -> 
F199: 0 | M199: =IF(G199="","",(IFERROR(VLOOKUP($G199,【選択肢】!$Q$3:$U$90,2,)," ")&IF(H199="","",","&IFERROR(VLOOKUP($H199,【選択肢】!$Q$3:$U$90,2,)," ")&IF(I199="","",","&IFERROR(VLOOKUP($I199,【選択肢】!$Q$3:$U$90,2,)," ")&IF(J199="","",","&IFERROR(VLOOKUP($J199,【選択肢】!$Q$3:$U$90,2,)," ")&IF(K199="","",","&IFERROR(VLOOKUP($K199,【選択肢】!$Q$3:$U$90,2,)," ")&IF(L199="","",","&IFERROR(VLOOKUP($L199,【選択肢】!$Q$3:$U$90,2,)," ")))))))) ->  | N199: =IF(G199="","",(IFERROR(VLOOKUP($G199,【選択肢】!$Q$3:$U$90,4,)," ")&IF(H199="","",","&IFERROR(VLOOKUP($H199,【選択肢】!$Q$3:$U$90,4,)," ")&IF(I199="","",","&IFERROR(VLOOKUP($I199,【選択肢】!$Q$3:$U$90,4,)," ")&IF(J199="","",","&IFERROR(VLOOKUP($J199,【選択肢】!$Q$3:$U$90,4,)," ")&IF(K199="","",","&IFERROR(VLOOKUP($K199,【選択肢】!$Q$3:$U$90,4,)," ")&IF(L199="","",","&IFERROR(VLOOKUP($L199,【選択肢】!$Q$3:$U$90,4,)," ")))))))) ->  | O199: =IF(G199="","",(IFERROR(VLOOKUP($G199,【選択肢】!$Q$3:$U$90,5,)," ")&IF(H199="","",","&IFERROR(VLOOKUP($H199,【選択肢】!$Q$3:$U$90,5,)," ")&IF(I199="","",","&IFERROR(VLOOKUP($I199,【選択肢】!$Q$3:$U$90,5,)," ")&IF(J199="","",","&IFERROR(VLOOKUP($J199,【選択肢】!$Q$3:$U$90,5,)," ")&IF(K199="","",","&IFERROR(VLOOKUP($K199,【選択肢】!$Q$3:$U$90,5,)," ")&IF(L199="","",","&IFERROR(VLOOKUP($L199,【選択肢】!$Q$3:$U$90,5,)," ")))))))) -> 
F200: この線より上に行を挿入してください。
D202: 農業者 | E202: 農業者以外 | F202: 合計
... 2 more rows

Sheet 活動記録 (長寿命化)
A1: （様式第１－６号） | P1: 農林水産省様式
A2: 【活動組織から市町村に提出するもの】 | P2: 組織名：
F3: 7 | G3: 年度 多面的機能支払交付金 活動記録 | P3: ='はじめに（PC）'!D4&"" -> ●●活動組織
B4: ★「実施時間」には休憩時間を含めず、実働時間を記入してください。 | M4: （施設の長寿命化）
B5: ★「活動項目番号」欄には、実施要領別記1-2の国が定める活動指針における活動項目の番号及び要領第1の２の(1)に基づき都道府県が定める要綱基本方針において追加された活動項目の番号を記入します。その他、事務処理は200番、会議等は300番を記入します。 同一日に複数の活動を行った場合は、該当する全ての活動項目番号を左詰めで一行に記入してください。番号欄が足りない場合は、複数行に分けて記入してください。
B6: 活動実施日及び活動時間 | D6: 活動参加人数 | G6: 活動項目番号（左詰め） | M6: 活動内容 | P6: 備考（具体的な活動内容を記入） | Q6: 様式欄外（参考）
B7: 日付 | C7: 活動時間 | D7: 農業者 | E7: 農業者 以外 | F7: 総参加 人数 | M7: 支払区分 | N7: 活動区分 | O7: 活動項目 | Q7: 直営施工した場合は○ | R7: 活動支援班による活動の場合は○
F9: =SUM(D9+E9) -> 0 | M9: =IF(G9="","",(IFERROR(VLOOKUP($G9,【選択肢】!$Q$3:$U$90,2,)," ")&IF(H9="","",","&IFERROR(VLOOKUP($H9,【選択肢】!$Q$3:$U$90,2,)," ")&IF(I9="","",","&IFERROR(VLOOKUP($I9,【選択肢】!$Q$3:$U$90,2,)," ")&IF(J9="","",","&IFERROR(VLOOKUP($J9,【選択肢】!$Q$3:$U$90,2,)," ")&IF(K9="","",","&IFERROR(VLOOKUP($K9,【選択肢】!$Q$3:$U$90,2,)," ")&IF(L9="","",","&IFERROR(VLOOKUP($L9,【選択肢】!$Q$3:$U$90,2,)," ")))))))) ->  | N9: =IF(G9="","",(IFERROR(VLOOKUP($G9,【選択肢】!$Q$3:$U$90,4,)," ")&IF(H9="","",","&IFERROR(VLOOKUP($H9,【選択肢】!$Q$3:$U$90,4,)," ")&IF(I9="","",","&IFERROR(VLOOKUP($I9,【選択肢】!$Q$3:$U$90,4,)," ")&IF(J9="","",","&IFERROR(VLOOKUP($J9,【選択肢】!$Q$3:$U$90,4,)," ")&IF(K9="","",","&IFERROR(VLOOKUP($K9,【選択肢】!$Q$3:$U$90,4,)," ")&IF(L9="","",","&IFERROR(VLOOKUP($L9,【選択肢】!$Q$3:$U$90,4,)," ")))))))) ->  | O9: =IF(G9="","",(IFERROR(VLOOKUP($G9,【選択肢】!$Q$3:$U$90,5,)," ")&IF(H9="","",","&IFERROR(VLOOKUP($H9,【選択肢】!$Q$3:$U$90,5,)," ")&IF(I9="","",","&IFERROR(VLOOKUP($I9,【選択肢】!$Q$3:$U$90,5,)," ")&IF(J9="","",","&IFERROR(VLOOKUP($J9,【選択肢】!$Q$3:$U$90,5,)," ")&IF(K9="","",","&IFERROR(VLOOKUP($K9,【選択肢】!$Q$3:$U$90,5,)," ")&IF(L9="","",","&IFERROR(VLOOKUP($L9,【選択肢】!$Q$3:$U$90,5,)," ")))))))) -> 
F10: 0 | M10: =IF(G10="","",(IFERROR(VLOOKUP($G10,【選択肢】!$Q$3:$U$90,2,)," ")&IF(H10="","",","&IFERROR(VLOOKUP($H10,【選択肢】!$Q$3:$U$90,2,)," ")&IF(I10="","",","&IFERROR(VLOOKUP($I10,【選択肢】!$Q$3:$U$90,2,)," ")&IF(J10="","",","&IFERROR(VLOOKUP($J10,【選択肢】!$Q$3:$U$90,2,)," ")&IF(K10="","",","&IFERROR(VLOOKUP($K10,【選択肢】!$Q$3:$U$90,2,)," ")&IF(L10="","",","&IFERROR(VLOOKUP($L10,【選択肢】!$Q$3:$U$90,2,)," ")))))))) ->  | N10: =IF(G10="","",(IFERROR(VLOOKUP($G10,【選択肢】!$Q$3:$U$90,4,)," ")&IF(H10="","",","&IFERROR(VLOOKUP($H10,【選択肢】!$Q$3:$U$90,4,)," ")&IF(I10="","",","&IFERROR(VLOOKUP($I10,【選択肢】!$Q$3:$U$90,4,)," ")&IF(J10="","",","&IFERROR(VLOOKUP($J10,【選択肢】!$Q$3:$U$90,4,)," ")&IF(K10="","",","&IFERROR(VLOOKUP($K10,【選択肢】!$Q$3:$U$90,4,)," ")&IF(L10="","",","&IFERROR(VLOOKUP($L10,【選択肢】!$Q$3:$U$90,4,)," ")))))))) ->  | O10: =IF(G10="","",(IFERROR(VLOOKUP($G10,【選択肢】!$Q$3:$U$90,5,)," ")&IF(H10="","",","&IFERROR(VLOOKUP($H10,【選択肢】!$Q$3:$U$90,5,)," ")&IF(I10="","",","&IFERROR(VLOOKUP($I10,【選択肢】!$Q$3:$U$90,5,)," ")&IF(J10="","",","&IFERROR(VLOOKUP($J10,【選択肢】!$Q$3:$U$90,5,)," ")&IF(K10="","",","&IFERROR(VLOOKUP($K10,【選択肢】!$Q$3:$U$90,5,)," ")&IF(L10="","",","&IFERROR(VLOOKUP($L10,【選択肢】!$Q$3:$U$90,5,)," ")))))))) -> 
F11: 0 | M11: =IF(G11="","",(IFERROR(VLOOKUP($G11,【選択肢】!$Q$3:$U$90,2,)," ")&IF(H11="","",","&IFERROR(VLOOKUP($H11,【選択肢】!$Q$3:$U$90,2,)," ")&IF(I11="","",","&IFERROR(VLOOKUP($I11,【選択肢】!$Q$3:$U$90,2,)," ")&IF(J11="","",","&IFERROR(VLOOKUP($J11,【選択肢】!$Q$3:$U$90,2,)," ")&IF(K11="","",","&IFERROR(VLOOKUP($K11,【選択肢】!$Q$3:$U$90,2,)," ")&IF(L11="","",","&IFERROR(VLOOKUP($L11,【選択肢】!$Q$3:$U$90,2,)," ")))))))) ->  | N11: =IF(G11="","",(IFERROR(VLOOKUP($G11,【選択肢】!$Q$3:$U$90,4,)," ")&IF(H11="","",","&IFERROR(VLOOKUP($H11,【選択肢】!$Q$3:$U$90,4,)," ")&IF(I11="","",","&IFERROR(VLOOKUP($I11,【選択肢】!$Q$3:$U$90,4,)," ")&IF(J11="","",","&IFERROR(VLOOKUP($J11,【選択肢】!$Q$3:$U$90,4,)," ")&IF(K11="","",","&IFERROR(VLOOKUP($K11,【選択肢】!$Q$3:$U$90,4,)," ")&IF(L11="","",","&IFERROR(VLOOKUP($L11,【選択肢】!$Q$3:$U$90,4,)," ")))))))) ->  | O11: =IF(G11="","",(IFERROR(VLOOKUP($G11,【選択肢】!$Q$3:$U$90,5,)," ")&IF(H11="","",","&IFERROR(VLOOKUP($H11,【選択肢】!$Q$3:$U$90,5,)," ")&IF(I11="","",","&IFERROR(VLOOKUP($I11,【選択肢】!$Q$3:$U$90,5,)," ")&IF(J11="","",","&IFERROR(VLOOKUP($J11,【選択肢】!$Q$3:$U$90,5,)," ")&IF(K11="","",","&IFERROR(VLOOKUP($K11,【選択肢】!$Q$3:$U$90,5,)," ")&IF(L11="","",","&IFERROR(VLOOKUP($L11,【選択肢】!$Q$3:$U$90,5,)," ")))))))) -> 
F12: 0 | M12: =IF(G12="","",(IFERROR(VLOOKUP($G12,【選択肢】!$Q$3:$U$90,2,)," ")&IF(H12="","",","&IFERROR(VLOOKUP($H12,【選択肢】!$Q$3:$U$90,2,)," ")&IF(I12="","",","&IFERROR(VLOOKUP($I12,【選択肢】!$Q$3:$U$90,2,)," ")&IF(J12="","",","&IFERROR(VLOOKUP($J12,【選択肢】!$Q$3:$U$90,2,)," ")&IF(K12="","",","&IFERROR(VLOOKUP($K12,【選択肢】!$Q$3:$U$90,2,)," ")&IF(L12="","",","&IFERROR(VLOOKUP($L12,【選択肢】!$Q$3:$U$90,2,)," ")))))))) ->  | N12: =IF(G12="","",(IFERROR(VLOOKUP($G12,【選択肢】!$Q$3:$U$90,4,)," ")&IF(H12="","",","&IFERROR(VLOOKUP($H12,【選択肢】!$Q$3:$U$90,4,)," ")&IF(I12="","",","&IFERROR(VLOOKUP($I12,【選択肢】!$Q$3:$U$90,4,)," ")&IF(J12="","",","&IFERROR(VLOOKUP($J12,【選択肢】!$Q$3:$U$90,4,)," ")&IF(K12="","",","&IFERROR(VLOOKUP($K12,【選択肢】!$Q$3:$U$90,4,)," ")&IF(L12="","",","&IFERROR(VLOOKUP($L12,【選択肢】!$Q$3:$U$90,4,)," ")))))))) ->  | O12: =IF(G12="","",(IFERROR(VLOOKUP($G12,【選択肢】!$Q$3:$U$90,5,)," ")&IF(H12="","",","&IFERROR(VLOOKUP($H12,【選択肢】!$Q$3:$U$90,5,)," ")&IF(I12="","",","&IFERROR(VLOOKUP($I12,【選択肢】!$Q$3:$U$90,5,)," ")&IF(J12="","",","&IFERROR(VLOOKUP($J12,【選択肢】!$Q$3:$U$90,5,)," ")&IF(K12="","",","&IFERROR(VLOOKUP($K12,【選択肢】!$Q$3:$U$90,5,)," ")&IF(L12="","",","&IFERROR(VLOOKUP($L12,【選択肢】!$Q$3:$U$90,5,)," ")))))))) -> 
F13: 0 | M13: =IF(G13="","",(IFERROR(VLOOKUP($G13,【選択肢】!$Q$3:$U$90,2,)," ")&IF(H13="","",","&IFERROR(VLOOKUP($H13,【選択肢】!$Q$3:$U$90,2,)," ")&IF(I13="","",","&IFERROR(VLOOKUP($I13,【選択肢】!$Q$3:$U$90,2,)," ")&IF(J13="","",","&IFERROR(VLOOKUP($J13,【選択肢】!$Q$3:$U$90,2,)," ")&IF(K13="","",","&IFERROR(VLOOKUP($K13,【選択肢】!$Q$3:$U$90,2,)," ")&IF(L13="","",","&IFERROR(VLOOKUP($L13,【選択肢】!$Q$3:$U$90,2,)," ")))))))) ->  | N13: =IF(G13="","",(IFERROR(VLOOKUP($G13,【選択肢】!$Q$3:$U$90,4,)," ")&IF(H13="","",","&IFERROR(VLOOKUP($H13,【選択肢】!$Q$3:$U$90,4,)," ")&IF(I13="","",","&IFERROR(VLOOKUP($I13,【選択肢】!$Q$3:$U$90,4,)," ")&IF(J13="","",","&IFERROR(VLOOKUP($J13,【選択肢】!$Q$3:$U$90,4,)," ")&IF(K13="","",","&IFERROR(VLOOKUP($K13,【選択肢】!$Q$3:$U$90,4,)," ")&IF(L13="","",","&IFERROR(VLOOKUP($L13,【選択肢】!$Q$3:$U$90,4,)," ")))))))) ->  | O13: =IF(G13="","",(IFERROR(VLOOKUP($G13,【選択肢】!$Q$3:$U$90,5,)," ")&IF(H13="","",","&IFERROR(VLOOKUP($H13,【選択肢】!$Q$3:$U$90,5,)," ")&IF(I13="","",","&IFERROR(VLOOKUP($I13,【選択肢】!$Q$3:$U$90,5,)," ")&IF(J13="","",","&IFERROR(VLOOKUP($J13,【選択肢】!$Q$3:$U$90,5,)," ")&IF(K13="","",","&IFERROR(VLOOKUP($K13,【選択肢】!$Q$3:$U$90,5,)," ")&IF(L13="","",","&IFERROR(VLOOKUP($L13,【選択肢】!$Q$3:$U$90,5,)," ")))))))) -> 
F14: 0 | M14: =IF(G14="","",(IFERROR(VLOOKUP($G14,【選択肢】!$Q$3:$U$90,2,)," ")&IF(H14="","",","&IFERROR(VLOOKUP($H14,【選択肢】!$Q$3:$U$90,2,)," ")&IF(I14="","",","&IFERROR(VLOOKUP($I14,【選択肢】!$Q$3:$U$90,2,)," ")&IF(J14="","",","&IFERROR(VLOOKUP($J14,【選択肢】!$Q$3:$U$90,2,)," ")&IF(K14="","",","&IFERROR(VLOOKUP($K14,【選択肢】!$Q$3:$U$90,2,)," ")&IF(L14="","",","&IFERROR(VLOOKUP($L14,【選択肢】!$Q$3:$U$90,2,)," ")))))))) ->  | N14: =IF(G14="","",(IFERROR(VLOOKUP($G14,【選択肢】!$Q$3:$U$90,4,)," ")&IF(H14="","",","&IFERROR(VLOOKUP($H14,【選択肢】!$Q$3:$U$90,4,)," ")&IF(I14="","",","&IFERROR(VLOOKUP($I14,【選択肢】!$Q$3:$U$90,4,)," ")&IF(J14="","",","&IFERROR(VLOOKUP($J14,【選択肢】!$Q$3:$U$90,4,)," ")&IF(K14="","",","&IFERROR(VLOOKUP($K14,【選択肢】!$Q$3:$U$90,4,)," ")&IF(L14="","",","&IFERROR(VLOOKUP($L14,【選択肢】!$Q$3:$U$90,4,)," ")))))))) ->  | O14: =IF(G14="","",(IFERROR(VLOOKUP($G14,【選択肢】!$Q$3:$U$90,5,)," ")&IF(H14="","",","&IFERROR(VLOOKUP($H14,【選択肢】!$Q$3:$U$90,5,)," ")&IF(I14="","",","&IFERROR(VLOOKUP($I14,【選択肢】!$Q$3:$U$90,5,)," ")&IF(J14="","",","&IFERROR(VLOOKUP($J14,【選択肢】!$Q$3:$U$90,5,)," ")&IF(K14="","",","&IFERROR(VLOOKUP($K14,【選択肢】!$Q$3:$U$90,5,)," ")&IF(L14="","",","&IFERROR(VLOOKUP($L14,【選択肢】!$Q$3:$U$90,5,)," ")))))))) -> 
F15: 0 | M15: =IF(G15="","",(IFERROR(VLOOKUP($G15,【選択肢】!$Q$3:$U$90,2,)," ")&IF(H15="","",","&IFERROR(VLOOKUP($H15,【選択肢】!$Q$3:$U$90,2,)," ")&IF(I15="","",","&IFERROR(VLOOKUP($I15,【選択肢】!$Q$3:$U$90,2,)," ")&IF(J15="","",","&IFERROR(VLOOKUP($J15,【選択肢】!$Q$3:$U$90,2,)," ")&IF(K15="","",","&IFERROR(VLOOKUP($K15,【選択肢】!$Q$3:$U$90,2,)," ")&IF(L15="","",","&IFERROR(VLOOKUP($L15,【選択肢】!$Q$3:$U$90,2,)," ")))))))) ->  | N15: =IF(G15="","",(IFERROR(VLOOKUP($G15,【選択肢】!$Q$3:$U$90,4,)," ")&IF(H15="","",","&IFERROR(VLOOKUP($H15,【選択肢】!$Q$3:$U$90,4,)," ")&IF(I15="","",","&IFERROR(VLOOKUP($I15,【選択肢】!$Q$3:$U$90,4,)," ")&IF(J15="","",","&IFERROR(VLOOKUP($J15,【選択肢】!$Q$3:$U$90,4,)," ")&IF(K15="","",","&IFERROR(VLOOKUP($K15,【選択肢】!$Q$3:$U$90,4,)," ")&IF(L15="","",","&IFERROR(VLOOKUP($L15,【選択肢】!$Q$3:$U$90,4,)," ")))))))) ->  | O15: =IF(G15="","",(IFERROR(VLOOKUP($G15,【選択肢】!$Q$3:$U$90,5,)," ")&IF(H15="","",","&IFERROR(VLOOKUP($H15,【選択肢】!$Q$3:$U$90,5,)," ")&IF(I15="","",","&IFERROR(VLOOKUP($I15,【選択肢】!$Q$3:$U$90,5,)," ")&IF(J15="","",","&IFERROR(VLOOKUP($J15,【選択肢】!$Q$3:$U$90,5,)," ")&IF(K15="","",","&IFERROR(VLOOKUP($K15,【選択肢】!$Q$3:$U$90,5,)," ")&IF(L15="","",","&IFERROR(VLOOKUP($L15,【選択肢】!$Q$3:$U$90,5,)," ")))))))) -> 
F16: 0 | M16: =IF(G16="","",(IFERROR(VLOOKUP($G16,【選択肢】!$Q$3:$U$90,2,)," ")&IF(H16="","",","&IFERROR(VLOOKUP($H16,【選択肢】!$Q$3:$U$90,2,)," ")&IF(I16="","",","&IFERROR(VLOOKUP($I16,【選択肢】!$Q$3:$U$90,2,)," ")&IF(J16="","",","&IFERROR(VLOOKUP($J16,【選択肢】!$Q$3:$U$90,2,)," ")&IF(K16="","",","&IFERROR(VLOOKUP($K16,【選択肢】!$Q$3:$U$90,2,)," ")&IF(L16="","",","&IFERROR(VLOOKUP($L16,【選択肢】!$Q$3:$U$90,2,)," ")))))))) ->  | N16: =IF(G16="","",(IFERROR(VLOOKUP($G16,【選択肢】!$Q$3:$U$90,4,)," ")&IF(H16="","",","&IFERROR(VLOOKUP($H16,【選択肢】!$Q$3:$U$90,4,)," ")&IF(I16="","",","&IFERROR(VLOOKUP($I16,【選択肢】!$Q$3:$U$90,4,)," ")&IF(J16="","",","&IFERROR(VLOOKUP($J16,【選択肢】!$Q$3:$U$90,4,)," ")&IF(K16="","",","&IFERROR(VLOOKUP($K16,【選択肢】!$Q$3:$U$90,4,)," ")&IF(L16="","",","&IFERROR(VLOOKUP($L16,【選択肢】!$Q$3:$U$90,4,)," ")))))))) ->  | O16: =IF(G16="","",(IFERROR(VLOOKUP($G16,【選択肢】!$Q$3:$U$90,5,)," ")&IF(H16="","",","&IFERROR(VLOOKUP($H16,【選択肢】!$Q$3:$U$90,5,)," ")&IF(I16="","",","&IFERROR(VLOOKUP($I16,【選択肢】!$Q$3:$U$90,5,)," ")&IF(J16="","",","&IFERROR(VLOOKUP($J16,【選択肢】!$Q$3:$U$90,5,)," ")&IF(K16="","",","&IFERROR(VLOOKUP($K16,【選択肢】!$Q$3:$U$90,5,)," ")&IF(L16="","",","&IFERROR(VLOOKUP($L16,【選択肢】!$Q$3:$U$90,5,)," ")))))))) -> 
F17: 0 | M17: =IF(G17="","",(IFERROR(VLOOKUP($G17,【選択肢】!$Q$3:$U$90,2,)," ")&IF(H17="","",","&IFERROR(VLOOKUP($H17,【選択肢】!$Q$3:$U$90,2,)," ")&IF(I17="","",","&IFERROR(VLOOKUP($I17,【選択肢】!$Q$3:$U$90,2,)," ")&IF(J17="","",","&IFERROR(VLOOKUP($J17,【選択肢】!$Q$3:$U$90,2,)," ")&IF(K17="","",","&IFERROR(VLOOKUP($K17,【選択肢】!$Q$3:$U$90,2,)," ")&IF(L17="","",","&IFERROR(VLOOKUP($L17,【選択肢】!$Q$3:$U$90,2,)," ")))))))) ->  | N17: =IF(G17="","",(IFERROR(VLOOKUP($G17,【選択肢】!$Q$3:$U$90,4,)," ")&IF(H17="","",","&IFERROR(VLOOKUP($H17,【選択肢】!$Q$3:$U$90,4,)," ")&IF(I17="","",","&IFERROR(VLOOKUP($I17,【選択肢】!$Q$3:$U$90,4,)," ")&IF(J17="","",","&IFERROR(VLOOKUP($J17,【選択肢】!$Q$3:$U$90,4,)," ")&IF(K17="","",","&IFERROR(VLOOKUP($K17,【選択肢】!$Q$3:$U$90,4,)," ")&IF(L17="","",","&IFERROR(VLOOKUP($L17,【選択肢】!$Q$3:$U$90,4,)," ")))))))) ->  | O17: =IF(G17="","",(IFERROR(VLOOKUP($G17,【選択肢】!$Q$3:$U$90,5,)," ")&IF(H17="","",","&IFERROR(VLOOKUP($H17,【選択肢】!$Q$3:$U$90,5,)," ")&IF(I17="","",","&IFERROR(VLOOKUP($I17,【選択肢】!$Q$3:$U$90,5,)," ")&IF(J17="","",","&IFERROR(VLOOKUP($J17,【選択肢】!$Q$3:$U$90,5,)," ")&IF(K17="","",","&IFERROR(VLOOKUP($K17,【選択肢】!$Q$3:$U$90,5,)," ")&IF(L17="","",","&IFERROR(VLOOKUP($L17,【選択肢】!$Q$3:$U$90,5,)," ")))))))) -> 
F18: 0 | M18: =IF(G18="","",(IFERROR(VLOOKUP($G18,【選択肢】!$Q$3:$U$90,2,)," ")&IF(H18="","",","&IFERROR(VLOOKUP($H18,【選択肢】!$Q$3:$U$90,2,)," ")&IF(I18="","",","&IFERROR(VLOOKUP($I18,【選択肢】!$Q$3:$U$90,2,)," ")&IF(J18="","",","&IFERROR(VLOOKUP($J18,【選択肢】!$Q$3:$U$90,2,)," ")&IF(K18="","",","&IFERROR(VLOOKUP($K18,【選択肢】!$Q$3:$U$90,2,)," ")&IF(L18="","",","&IFERROR(VLOOKUP($L18,【選択肢】!$Q$3:$U$90,2,)," ")))))))) ->  | N18: =IF(G18="","",(IFERROR(VLOOKUP($G18,【選択肢】!$Q$3:$U$90,4,)," ")&IF(H18="","",","&IFERROR(VLOOKUP($H18,【選択肢】!$Q$3:$U$90,4,)," ")&IF(I18="","",","&IFERROR(VLOOKUP($I18,【選択肢】!$Q$3:$U$90,4,)," ")&IF(J18="","",","&IFERROR(VLOOKUP($J18,【選択肢】!$Q$3:$U$90,4,)," ")&IF(K18="","",","&IFERROR(VLOOKUP($K18,【選択肢】!$Q$3:$U$90,4,)," ")&IF(L18="","",","&IFERROR(VLOOKUP($L18,【選択肢】!$Q$3:$U$90,4,)," ")))))))) ->  | O18: =IF(G18="","",(IFERROR(VLOOKUP($G18,【選択肢】!$Q$3:$U$90,5,)," ")&IF(H18="","",","&IFERROR(VLOOKUP($H18,【選択肢】!$Q$3:$U$90,5,)," ")&IF(I18="","",","&IFERROR(VLOOKUP($I18,【選択肢】!$Q$3:$U$90,5,)," ")&IF(J18="","",","&IFERROR(VLOOKUP($J18,【選択肢】!$Q$3:$U$90,5,)," ")&IF(K18="","",","&IFERROR(VLOOKUP($K18,【選択肢】!$Q$3:$U$90,5,)," ")&IF(L18="","",","&IFERROR(VLOOKUP($L18,【選択肢】!$Q$3:$U$90,5,)," ")))))))) -> 
F19: 0 | M19: =IF(G19="","",(IFERROR(VLOOKUP($G19,【選択肢】!$Q$3:$U$90,2,)," ")&IF(H19="","",","&IFERROR(VLOOKUP($H19,【選択肢】!$Q$3:$U$90,2,)," ")&IF(I19="","",","&IFERROR(VLOOKUP($I19,【選択肢】!$Q$3:$U$90,2,)," ")&IF(J19="","",","&IFERROR(VLOOKUP($J19,【選択肢】!$Q$3:$U$90,2,)," ")&IF(K19="","",","&IFERROR(VLOOKUP($K19,【選択肢】!$Q$3:$U$90,2,)," ")&IF(L19="","",","&IFERROR(VLOOKUP($L19,【選択肢】!$Q$3:$U$90,2,)," ")))))))) ->  | N19: =IF(G19="","",(IFERROR(VLOOKUP($G19,【選択肢】!$Q$3:$U$90,4,)," ")&IF(H19="","",","&IFERROR(VLOOKUP($H19,【選択肢】!$Q$3:$U$90,4,)," ")&IF(I19="","",","&IFERROR(VLOOKUP($I19,【選択肢】!$Q$3:$U$90,4,)," ")&IF(J19="","",","&IFERROR(VLOOKUP($J19,【選択肢】!$Q$3:$U$90,4,)," ")&IF(K19="","",","&IFERROR(VLOOKUP($K19,【選択肢】!$Q$3:$U$90,4,)," ")&IF(L19="","",","&IFERROR(VLOOKUP($L19,【選択肢】!$Q$3:$U$90,4,)," ")))))))) ->  | O19: =IF(G19="","",(IFERROR(VLOOKUP($G19,【選択肢】!$Q$3:$U$90,5,)," ")&IF(H19="","",","&IFERROR(VLOOKUP($H19,【選択肢】!$Q$3:$U$90,5,)," ")&IF(I19="","",","&IFERROR(VLOOKUP($I19,【選択肢】!$Q$3:$U$90,5,)," ")&IF(J19="","",","&IFERROR(VLOOKUP($J19,【選択肢】!$Q$3:$U$90,5,)," ")&IF(K19="","",","&IFERROR(VLOOKUP($K19,【選択肢】!$Q$3:$U$90,5,)," ")&IF(L19="","",","&IFERROR(VLOOKUP($L19,【選択肢】!$Q$3:$U$90,5,)," ")))))))) -> 
F20: 0 | M20: =IF(G20="","",(IFERROR(VLOOKUP($G20,【選択肢】!$Q$3:$U$90,2,)," ")&IF(H20="","",","&IFERROR(VLOOKUP($H20,【選択肢】!$Q$3:$U$90,2,)," ")&IF(I20="","",","&IFERROR(VLOOKUP($I20,【選択肢】!$Q$3:$U$90,2,)," ")&IF(J20="","",","&IFERROR(VLOOKUP($J20,【選択肢】!$Q$3:$U$90,2,)," ")&IF(K20="","",","&IFERROR(VLOOKUP($K20,【選択肢】!$Q$3:$U$90,2,)," ")&IF(L20="","",","&IFERROR(VLOOKUP($L20,【選択肢】!$Q$3:$U$90,2,)," ")))))))) ->  | N20: =IF(G20="","",(IFERROR(VLOOKUP($G20,【選択肢】!$Q$3:$U$90,4,)," ")&IF(H20="","",","&IFERROR(VLOOKUP($H20,【選択肢】!$Q$3:$U$90,4,)," ")&IF(I20="","",","&IFERROR(VLOOKUP($I20,【選択肢】!$Q$3:$U$90,4,)," ")&IF(J20="","",","&IFERROR(VLOOKUP($J20,【選択肢】!$Q$3:$U$90,4,)," ")&IF(K20="","",","&IFERROR(VLOOKUP($K20,【選択肢】!$Q$3:$U$90,4,)," ")&IF(L20="","",","&IFERROR(VLOOKUP($L20,【選択肢】!$Q$3:$U$90,4,)," ")))))))) ->  | O20: =IF(G20="","",(IFERROR(VLOOKUP($G20,【選択肢】!$Q$3:$U$90,5,)," ")&IF(H20="","",","&IFERROR(VLOOKUP($H20,【選択肢】!$Q$3:$U$90,5,)," ")&IF(I20="","",","&IFERROR(VLOOKUP($I20,【選択肢】!$Q$3:$U$90,5,)," ")&IF(J20="","",","&IFERROR(VLOOKUP($J20,【選択肢】!$Q$3:$U$90,5,)," ")&IF(K20="","",","&IFERROR(VLOOKUP($K20,【選択肢】!$Q$3:$U$90,5,)," ")&IF(L20="","",","&IFERROR(VLOOKUP($L20,【選択肢】!$Q$3:$U$90,5,)," ")))))))) -> 
F21: 0 | M21: =IF(G21="","",(IFERROR(VLOOKUP($G21,【選択肢】!$Q$3:$U$90,2,)," ")&IF(H21="","",","&IFERROR(VLOOKUP($H21,【選択肢】!$Q$3:$U$90,2,)," ")&IF(I21="","",","&IFERROR(VLOOKUP($I21,【選択肢】!$Q$3:$U$90,2,)," ")&IF(J21="","",","&IFERROR(VLOOKUP($J21,【選択肢】!$Q$3:$U$90,2,)," ")&IF(K21="","",","&IFERROR(VLOOKUP($K21,【選択肢】!$Q$3:$U$90,2,)," ")&IF(L21="","",","&IFERROR(VLOOKUP($L21,【選択肢】!$Q$3:$U$90,2,)," ")))))))) ->  | N21: =IF(G21="","",(IFERROR(VLOOKUP($G21,【選択肢】!$Q$3:$U$90,4,)," ")&IF(H21="","",","&IFERROR(VLOOKUP($H21,【選択肢】!$Q$3:$U$90,4,)," ")&IF(I21="","",","&IFERROR(VLOOKUP($I21,【選択肢】!$Q$3:$U$90,4,)," ")&IF(J21="","",","&IFERROR(VLOOKUP($J21,【選択肢】!$Q$3:$U$90,4,)," ")&IF(K21="","",","&IFERROR(VLOOKUP($K21,【選択肢】!$Q$3:$U$90,4,)," ")&IF(L21="","",","&IFERROR(VLOOKUP($L21,【選択肢】!$Q$3:$U$90,4,)," ")))))))) ->  | O21: =IF(G21="","",(IFERROR(VLOOKUP($G21,【選択肢】!$Q$3:$U$90,5,)," ")&IF(H21="","",","&IFERROR(VLOOKUP($H21,【選択肢】!$Q$3:$U$90,5,)," ")&IF(I21="","",","&IFERROR(VLOOKUP($I21,【選択肢】!$Q$3:$U$90,5,)," ")&IF(J21="","",","&IFERROR(VLOOKUP($J21,【選択肢】!$Q$3:$U$90,5,)," ")&IF(K21="","",","&IFERROR(VLOOKUP($K21,【選択肢】!$Q$3:$U$90,5,)," ")&IF(L21="","",","&IFERROR(VLOOKUP($L21,【選択肢】!$Q$3:$U$90,5,)," ")))))))) -> 
F22: 0 | M22: =IF(G22="","",(IFERROR(VLOOKUP($G22,【選択肢】!$Q$3:$U$90,2,)," ")&IF(H22="","",","&IFERROR(VLOOKUP($H22,【選択肢】!$Q$3:$U$90,2,)," ")&IF(I22="","",","&IFERROR(VLOOKUP($I22,【選択肢】!$Q$3:$U$90,2,)," ")&IF(J22="","",","&IFERROR(VLOOKUP($J22,【選択肢】!$Q$3:$U$90,2,)," ")&IF(K22="","",","&IFERROR(VLOOKUP($K22,【選択肢】!$Q$3:$U$90,2,)," ")&IF(L22="","",","&IFERROR(VLOOKUP($L22,【選択肢】!$Q$3:$U$90,2,)," ")))))))) ->  | N22: =IF(G22="","",(IFERROR(VLOOKUP($G22,【選択肢】!$Q$3:$U$90,4,)," ")&IF(H22="","",","&IFERROR(VLOOKUP($H22,【選択肢】!$Q$3:$U$90,4,)," ")&IF(I22="","",","&IFERROR(VLOOKUP($I22,【選択肢】!$Q$3:$U$90,4,)," ")&IF(J22="","",","&IFERROR(VLOOKUP($J22,【選択肢】!$Q$3:$U$90,4,)," ")&IF(K22="","",","&IFERROR(VLOOKUP($K22,【選択肢】!$Q$3:$U$90,4,)," ")&IF(L22="","",","&IFERROR(VLOOKUP($L22,【選択肢】!$Q$3:$U$90,4,)," ")))))))) ->  | O22: =IF(G22="","",(IFERROR(VLOOKUP($G22,【選択肢】!$Q$3:$U$90,5,)," ")&IF(H22="","",","&IFERROR(VLOOKUP($H22,【選択肢】!$Q$3:$U$90,5,)," ")&IF(I22="","",","&IFERROR(VLOOKUP($I22,【選択肢】!$Q$3:$U$90,5,)," ")&IF(J22="","",","&IFERROR(VLOOKUP($J22,【選択肢】!$Q$3:$U$90,5,)," ")&IF(K22="","",","&IFERROR(VLOOKUP($K22,【選択肢】!$Q$3:$U$90,5,)," ")&IF(L22="","",","&IFERROR(VLOOKUP($L22,【選択肢】!$Q$3:$U$90,5,)," ")))))))) -> 
F23: 0 | M23: =IF(G23="","",(IFERROR(VLOOKUP($G23,【選択肢】!$Q$3:$U$90,2,)," ")&IF(H23="","",","&IFERROR(VLOOKUP($H23,【選択肢】!$Q$3:$U$90,2,)," ")&IF(I23="","",","&IFERROR(VLOOKUP($I23,【選択肢】!$Q$3:$U$90,2,)," ")&IF(J23="","",","&IFERROR(VLOOKUP($J23,【選択肢】!$Q$3:$U$90,2,)," ")&IF(K23="","",","&IFERROR(VLOOKUP($K23,【選択肢】!$Q$3:$U$90,2,)," ")&IF(L23="","",","&IFERROR(VLOOKUP($L23,【選択肢】!$Q$3:$U$90,2,)," ")))))))) ->  | N23: =IF(G23="","",(IFERROR(VLOOKUP($G23,【選択肢】!$Q$3:$U$90,4,)," ")&IF(H23="","",","&IFERROR(VLOOKUP($H23,【選択肢】!$Q$3:$U$90,4,)," ")&IF(I23="","",","&IFERROR(VLOOKUP($I23,【選択肢】!$Q$3:$U$90,4,)," ")&IF(J23="","",","&IFERROR(VLOOKUP($J23,【選択肢】!$Q$3:$U$90,4,)," ")&IF(K23="","",","&IFERROR(VLOOKUP($K23,【選択肢】!$Q$3:$U$90,4,)," ")&IF(L23="","",","&IFERROR(VLOOKUP($L23,【選択肢】!$Q$3:$U$90,4,)," ")))))))) ->  | O23: =IF(G23="","",(IFERROR(VLOOKUP($G23,【選択肢】!$Q$3:$U$90,5,)," ")&IF(H23="","",","&IFERROR(VLOOKUP($H23,【選択肢】!$Q$3:$U$90,5,)," ")&IF(I23="","",","&IFERROR(VLOOKUP($I23,【選択肢】!$Q$3:$U$90,5,)," ")&IF(J23="","",","&IFERROR(VLOOKUP($J23,【選択肢】!$Q$3:$U$90,5,)," ")&IF(K23="","",","&IFERROR(VLOOKUP($K23,【選択肢】!$Q$3:$U$90,5,)," ")&IF(L23="","",","&IFERROR(VLOOKUP($L23,【選択肢】!$Q$3:$U$90,5,)," ")))))))) -> 
F24: 0 | M24: =IF(G24="","",(IFERROR(VLOOKUP($G24,【選択肢】!$Q$3:$U$90,2,)," ")&IF(H24="","",","&IFERROR(VLOOKUP($H24,【選択肢】!$Q$3:$U$90,2,)," ")&IF(I24="","",","&IFERROR(VLOOKUP($I24,【選択肢】!$Q$3:$U$90,2,)," ")&IF(J24="","",","&IFERROR(VLOOKUP($J24,【選択肢】!$Q$3:$U$90,2,)," ")&IF(K24="","",","&IFERROR(VLOOKUP($K24,【選択肢】!$Q$3:$U$90,2,)," ")&IF(L24="","",","&IFERROR(VLOOKUP($L24,【選択肢】!$Q$3:$U$90,2,)," ")))))))) ->  | N24: =IF(G24="","",(IFERROR(VLOOKUP($G24,【選択肢】!$Q$3:$U$90,4,)," ")&IF(H24="","",","&IFERROR(VLOOKUP($H24,【選択肢】!$Q$3:$U$90,4,)," ")&IF(I24="","",","&IFERROR(VLOOKUP($I24,【選択肢】!$Q$3:$U$90,4,)," ")&IF(J24="","",","&IFERROR(VLOOKUP($J24,【選択肢】!$Q$3:$U$90,4,)," ")&IF(K24="","",","&IFERROR(VLOOKUP($K24,【選択肢】!$Q$3:$U$90,4,)," ")&IF(L24="","",","&IFERROR(VLOOKUP($L24,【選択肢】!$Q$3:$U$90,4,)," ")))))))) ->  | O24: =IF(G24="","",(IFERROR(VLOOKUP($G24,【選択肢】!$Q$3:$U$90,5,)," ")&IF(H24="","",","&IFERROR(VLOOKUP($H24,【選択肢】!$Q$3:$U$90,5,)," ")&IF(I24="","",","&IFERROR(VLOOKUP($I24,【選択肢】!$Q$3:$U$90,5,)," ")&IF(J24="","",","&IFERROR(VLOOKUP($J24,【選択肢】!$Q$3:$U$90,5,)," ")&IF(K24="","",","&IFERROR(VLOOKUP($K24,【選択肢】!$Q$3:$U$90,5,)," ")&IF(L24="","",","&IFERROR(VLOOKUP($L24,【選択肢】!$Q$3:$U$90,5,)," ")))))))) -> 
F25: 0 | M25: =IF(G25="","",(IFERROR(VLOOKUP($G25,【選択肢】!$Q$3:$U$90,2,)," ")&IF(H25="","",","&IFERROR(VLOOKUP($H25,【選択肢】!$Q$3:$U$90,2,)," ")&IF(I25="","",","&IFERROR(VLOOKUP($I25,【選択肢】!$Q$3:$U$90,2,)," ")&IF(J25="","",","&IFERROR(VLOOKUP($J25,【選択肢】!$Q$3:$U$90,2,)," ")&IF(K25="","",","&IFERROR(VLOOKUP($K25,【選択肢】!$Q$3:$U$90,2,)," ")&IF(L25="","",","&IFERROR(VLOOKUP($L25,【選択肢】!$Q$3:$U$90,2,)," ")))))))) ->  | N25: =IF(G25="","",(IFERROR(VLOOKUP($G25,【選択肢】!$Q$3:$U$90,4,)," ")&IF(H25="","",","&IFERROR(VLOOKUP($H25,【選択肢】!$Q$3:$U$90,4,)," ")&IF(I25="","",","&IFERROR(VLOOKUP($I25,【選択肢】!$Q$3:$U$90,4,)," ")&IF(J25="","",","&IFERROR(VLOOKUP($J25,【選択肢】!$Q$3:$U$90,4,)," ")&IF(K25="","",","&IFERROR(VLOOKUP($K25,【選択肢】!$Q$3:$U$90,4,)," ")&IF(L25="","",","&IFERROR(VLOOKUP($L25,【選択肢】!$Q$3:$U$90,4,)," ")))))))) ->  | O25: =IF(G25="","",(IFERROR(VLOOKUP($G25,【選択肢】!$Q$3:$U$90,5,)," ")&IF(H25="","",","&IFERROR(VLOOKUP($H25,【選択肢】!$Q$3:$U$90,5,)," ")&IF(I25="","",","&IFERROR(VLOOKUP($I25,【選択肢】!$Q$3:$U$90,5,)," ")&IF(J25="","",","&IFERROR(VLOOKUP($J25,【選択肢】!$Q$3:$U$90,5,)," ")&IF(K25="","",","&IFERROR(VLOOKUP($K25,【選択肢】!$Q$3:$U$90,5,)," ")&IF(L25="","",","&IFERROR(VLOOKUP($L25,【選択肢】!$Q$3:$U$90,5,)," ")))))))) -> 
F26: 0 | M26: =IF(G26="","",(IFERROR(VLOOKUP($G26,【選択肢】!$Q$3:$U$90,2,)," ")&IF(H26="","",","&IFERROR(VLOOKUP($H26,【選択肢】!$Q$3:$U$90,2,)," ")&IF(I26="","",","&IFERROR(VLOOKUP($I26,【選択肢】!$Q$3:$U$90,2,)," ")&IF(J26="","",","&IFERROR(VLOOKUP($J26,【選択肢】!$Q$3:$U$90,2,)," ")&IF(K26="","",","&IFERROR(VLOOKUP($K26,【選択肢】!$Q$3:$U$90,2,)," ")&IF(L26="","",","&IFERROR(VLOOKUP($L26,【選択肢】!$Q$3:$U$90,2,)," ")))))))) ->  | N26: =IF(G26="","",(IFERROR(VLOOKUP($G26,【選択肢】!$Q$3:$U$90,4,)," ")&IF(H26="","",","&IFERROR(VLOOKUP($H26,【選択肢】!$Q$3:$U$90,4,)," ")&IF(I26="","",","&IFERROR(VLOOKUP($I26,【選択肢】!$Q$3:$U$90,4,)," ")&IF(J26="","",","&IFERROR(VLOOKUP($J26,【選択肢】!$Q$3:$U$90,4,)," ")&IF(K26="","",","&IFERROR(VLOOKUP($K26,【選択肢】!$Q$3:$U$90,4,)," ")&IF(L26="","",","&IFERROR(VLOOKUP($L26,【選択肢】!$Q$3:$U$90,4,)," ")))))))) ->  | O26: =IF(G26="","",(IFERROR(VLOOKUP($G26,【選択肢】!$Q$3:$U$90,5,)," ")&IF(H26="","",","&IFERROR(VLOOKUP($H26,【選択肢】!$Q$3:$U$90,5,)," ")&IF(I26="","",","&IFERROR(VLOOKUP($I26,【選択肢】!$Q$3:$U$90,5,)," ")&IF(J26="","",","&IFERROR(VLOOKUP($J26,【選択肢】!$Q$3:$U$90,5,)," ")&IF(K26="","",","&IFERROR(VLOOKUP($K26,【選択肢】!$Q$3:$U$90,5,)," ")&IF(L26="","",","&IFERROR(VLOOKUP($L26,【選択肢】!$Q$3:$U$90,5,)," ")))))))) -> 
F27: 0 | M27: =IF(G27="","",(IFERROR(VLOOKUP($G27,【選択肢】!$Q$3:$U$90,2,)," ")&IF(H27="","",","&IFERROR(VLOOKUP($H27,【選択肢】!$Q$3:$U$90,2,)," ")&IF(I27="","",","&IFERROR(VLOOKUP($I27,【選択肢】!$Q$3:$U$90,2,)," ")&IF(J27="","",","&IFERROR(VLOOKUP($J27,【選択肢】!$Q$3:$U$90,2,)," ")&IF(K27="","",","&IFERROR(VLOOKUP($K27,【選択肢】!$Q$3:$U$90,2,)," ")&IF(L27="","",","&IFERROR(VLOOKUP($L27,【選択肢】!$Q$3:$U$90,2,)," ")))))))) ->  | N27: =IF(G27="","",(IFERROR(VLOOKUP($G27,【選択肢】!$Q$3:$U$90,4,)," ")&IF(H27="","",","&IFERROR(VLOOKUP($H27,【選択肢】!$Q$3:$U$90,4,)," ")&IF(I27="","",","&IFERROR(VLOOKUP($I27,【選択肢】!$Q$3:$U$90,4,)," ")&IF(J27="","",","&IFERROR(VLOOKUP($J27,【選択肢】!$Q$3:$U$90,4,)," ")&IF(K27="","",","&IFERROR(VLOOKUP($K27,【選択肢】!$Q$3:$U$90,4,)," ")&IF(L27="","",","&IFERROR(VLOOKUP($L27,【選択肢】!$Q$3:$U$90,4,)," ")))))))) ->  | O27: =IF(G27="","",(IFERROR(VLOOKUP($G27,【選択肢】!$Q$3:$U$90,5,)," ")&IF(H27="","",","&IFERROR(VLOOKUP($H27,【選択肢】!$Q$3:$U$90,5,)," ")&IF(I27="","",","&IFERROR(VLOOKUP($I27,【選択肢】!$Q$3:$U$90,5,)," ")&IF(J27="","",","&IFERROR(VLOOKUP($J27,【選択肢】!$Q$3:$U$90,5,)," ")&IF(K27="","",","&IFERROR(VLOOKUP($K27,【選択肢】!$Q$3:$U$90,5,)," ")&IF(L27="","",","&IFERROR(VLOOKUP($L27,【選択肢】!$Q$3:$U$90,5,)," ")))))))) -> 
F28: =SUM(D28+E28) -> 0 | M28: =IF(G28="","",(IFERROR(VLOOKUP($G28,【選択肢】!$Q$3:$U$90,2,)," ")&IF(H28="","",","&IFERROR(VLOOKUP($H28,【選択肢】!$Q$3:$U$90,2,)," ")&IF(I28="","",","&IFERROR(VLOOKUP($I28,【選択肢】!$Q$3:$U$90,2,)," ")&IF(J28="","",","&IFERROR(VLOOKUP($J28,【選択肢】!$Q$3:$U$90,2,)," ")&IF(K28="","",","&IFERROR(VLOOKUP($K28,【選択肢】!$Q$3:$U$90,2,)," ")&IF(L28="","",","&IFERROR(VLOOKUP($L28,【選択肢】!$Q$3:$U$90,2,)," ")))))))) ->  | N28: =IF(G28="","",(IFERROR(VLOOKUP($G28,【選択肢】!$Q$3:$U$90,4,)," ")&IF(H28="","",","&IFERROR(VLOOKUP($H28,【選択肢】!$Q$3:$U$90,4,)," ")&IF(I28="","",","&IFERROR(VLOOKUP($I28,【選択肢】!$Q$3:$U$90,4,)," ")&IF(J28="","",","&IFERROR(VLOOKUP($J28,【選択肢】!$Q$3:$U$90,4,)," ")&IF(K28="","",","&IFERROR(VLOOKUP($K28,【選択肢】!$Q$3:$U$90,4,)," ")&IF(L28="","",","&IFERROR(VLOOKUP($L28,【選択肢】!$Q$3:$U$90,4,)," ")))))))) ->  | O28: =IF(G28="","",(IFERROR(VLOOKUP($G28,【選択肢】!$Q$3:$U$90,5,)," ")&IF(H28="","",","&IFERROR(VLOOKUP($H28,【選択肢】!$Q$3:$U$90,5,)," ")&IF(I28="","",","&IFERROR(VLOOKUP($I28,【選択肢】!$Q$3:$U$90,5,)," ")&IF(J28="","",","&IFERROR(VLOOKUP($J28,【選択肢】!$Q$3:$U$90,5,)," ")&IF(K28="","",","&IFERROR(VLOOKUP($K28,【選択肢】!$Q$3:$U$90,5,)," ")&IF(L28="","",","&IFERROR(VLOOKUP($L28,【選択肢】!$Q$3:$U$90,5,)," ")))))))) -> 
F29: 0 | M29: =IF(G29="","",(IFERROR(VLOOKUP($G29,【選択肢】!$Q$3:$U$90,2,)," ")&IF(H29="","",","&IFERROR(VLOOKUP($H29,【選択肢】!$Q$3:$U$90,2,)," ")&IF(I29="","",","&IFERROR(VLOOKUP($I29,【選択肢】!$Q$3:$U$90,2,)," ")&IF(J29="","",","&IFERROR(VLOOKUP($J29,【選択肢】!$Q$3:$U$90,2,)," ")&IF(K29="","",","&IFERROR(VLOOKUP($K29,【選択肢】!$Q$3:$U$90,2,)," ")&IF(L29="","",","&IFERROR(VLOOKUP($L29,【選択肢】!$Q$3:$U$90,2,)," ")))))))) ->  | N29: =IF(G29="","",(IFERROR(VLOOKUP($G29,【選択肢】!$Q$3:$U$90,4,)," ")&IF(H29="","",","&IFERROR(VLOOKUP($H29,【選択肢】!$Q$3:$U$90,4,)," ")&IF(I29="","",","&IFERROR(VLOOKUP($I29,【選択肢】!$Q$3:$U$90,4,)," ")&IF(J29="","",","&IFERROR(VLOOKUP($J29,【選択肢】!$Q$3:$U$90,4,)," ")&IF(K29="","",","&IFERROR(VLOOKUP($K29,【選択肢】!$Q$3:$U$90,4,)," ")&IF(L29="","",","&IFERROR(VLOOKUP($L29,【選択肢】!$Q$3:$U$90,4,)," ")))))))) ->  | O29: =IF(G29="","",(IFERROR(VLOOKUP($G29,【選択肢】!$Q$3:$U$90,5,)," ")&IF(H29="","",","&IFERROR(VLOOKUP($H29,【選択肢】!$Q$3:$U$90,5,)," ")&IF(I29="","",","&IFERROR(VLOOKUP($I29,【選択肢】!$Q$3:$U$90,5,)," ")&IF(J29="","",","&IFERROR(VLOOKUP($J29,【選択肢】!$Q$3:$U$90,5,)," ")&IF(K29="","",","&IFERROR(VLOOKUP($K29,【選択肢】!$Q$3:$U$90,5,)," ")&IF(L29="","",","&IFERROR(VLOOKUP($L29,【選択肢】!$Q$3:$U$90,5,)," ")))))))) -> 
F30: =SUM(D30+E30) -> 0 | M30: =IF(G30="","",(IFERROR(VLOOKUP($G30,【選択肢】!$Q$3:$U$90,2,)," ")&IF(H30="","",","&IFERROR(VLOOKUP($H30,【選択肢】!$Q$3:$U$90,2,)," ")&IF(I30="","",","&IFERROR(VLOOKUP($I30,【選択肢】!$Q$3:$U$90,2,)," ")&IF(J30="","",","&IFERROR(VLOOKUP($J30,【選択肢】!$Q$3:$U$90,2,)," ")&IF(K30="","",","&IFERROR(VLOOKUP($K30,【選択肢】!$Q$3:$U$90,2,)," ")&IF(L30="","",","&IFERROR(VLOOKUP($L30,【選択肢】!$Q$3:$U$90,2,)," ")))))))) ->  | N30: =IF(G30="","",(IFERROR(VLOOKUP($G30,【選択肢】!$Q$3:$U$90,4,)," ")&IF(H30="","",","&IFERROR(VLOOKUP($H30,【選択肢】!$Q$3:$U$90,4,)," ")&IF(I30="","",","&IFERROR(VLOOKUP($I30,【選択肢】!$Q$3:$U$90,4,)," ")&IF(J30="","",","&IFERROR(VLOOKUP($J30,【選択肢】!$Q$3:$U$90,4,)," ")&IF(K30="","",","&IFERROR(VLOOKUP($K30,【選択肢】!$Q$3:$U$90,4,)," ")&IF(L30="","",","&IFERROR(VLOOKUP($L30,【選択肢】!$Q$3:$U$90,4,)," ")))))))) ->  | O30: =IF(G30="","",(IFERROR(VLOOKUP($G30,【選択肢】!$Q$3:$U$90,5,)," ")&IF(H30="","",","&IFERROR(VLOOKUP($H30,【選択肢】!$Q$3:$U$90,5,)," ")&IF(I30="","",","&IFERROR(VLOOKUP($I30,【選択肢】!$Q$3:$U$90,5,)," ")&IF(J30="","",","&IFERROR(VLOOKUP($J30,【選択肢】!$Q$3:$U$90,5,)," ")&IF(K30="","",","&IFERROR(VLOOKUP($K30,【選択肢】!$Q$3:$U$90,5,)," ")&IF(L30="","",","&IFERROR(VLOOKUP($L30,【選択肢】!$Q$3:$U$90,5,)," ")))))))) -> 
